Workbook

Sheet วิธีการใช้
B3: โปรแกรมช่วยคำนวณระดับคะแนนแบบ T - Score
B4: ชุดโปรแกรมช่วยสอนวิชาสถิติและวิจัย
B5: พัฒนาโดย...นายศักดิ์สิทธิ์ วัชรารัตน์ วิทยาลัยสารพัดช่างพิษณุโลก สำนักงานคณะกรรมการการอาชีวศึกษา, 2553
B6: email: saksit2500@gmail.com; saksit2500@hotmail.com; saksit2500@yahoo.com
B9: คำแนะนำในการใช้งาน
B10: โปรแกรมช่วยคำนวณระดับคะแนนแบบ T - Score คิดค่าระดับคะแนนทั้ง 5 ระดับ และ 8 ระดับ โดยมีขั้นตอนการใช้ ดังต่อไปนี้
B11: 1. ที่แผ่นงานกรอกข้อมูล ให้กรอกข้อมูลค่าคะแนนลงมาในคอลัมน์กรอกข้อมูลจนครบ (ทับข้อมูลเก่าหรือลบข้อมูลเก่าให้หมด) โดยได้จัดเตรียมไว้ให้จำนวนตั้งแต่ 1 - 400 ข้อมูล (ผู้ที่ได้คะแนน 0 ไม่ต้องกรอก เพราะไม่นำมาคำนวณด้วย)
B12: 2. เมื่อกรอกข้อมูลเสร็จสิ้นแล้ว ให้ใช้แผ่นงานTมาตรฐานTคู่กับแผ่นงานgradeD และ แผ่นงานTมาตรฐานZคู่กับแผ่นงานgradeD(2)
B13: 3. ที่แผ่นงานgradeD หรือแผ่นงานgradeD(2) ในกรณีที่มีการคำนวณเกรดได้เป็นเลขคี่ 1,3,5 โดยดูที่ D10 ท่านสามารถปรับตัวเลขเกรดตามกลุ่มผู้เรียนได้ในตารางเกรดเลขคี่ โดยยึดค่าแถวกลางไว้ (B21) สำหรับเลข 5 ใช้ได้เลยไม่ต้องกรอกใหม่ ตัวอย่างเช่น คำนวณได้ 3 เกรดมีวิธีการกรอกตัวเลขเกรดตามกลุ่ม ดังนี้ กรณีที่1 B20 กรอก 4,B21 กรอก 3,B22 กรอก 2 หรือ กรณีที่2 B20 กรอก 3,B21 กรอก 2,B22 กรอก 1 หรือ กรณีที่3 B20 กรอก 2,B21 กรอก 1,B22 กรอก 0
B14: 4. ที่แผ่นงานgradeD หรือแผ่นงานgradeD(2) ในกรณีที่มีการคำนวณเกรดได้เป็นเลขคู่ 2,4 โดยดูที่ D10 ท่านสามารถปรับตัวเลขเกรดตามกลุ่มผู้เรียนได้ในตารางเกรดเลขคู่ โดยยึดค่าแถวกลางไว้ (B30 กับ B31) ตัวอย่างเช่น คำนวณได้ 2 เกรด มีวิธีการกรอกตัวเลขเกรดตามกลุ่ม ดังนี้ กรณีที่1 B30 กรอก 4,B31 กรอก 3 หรือ กรณีที่2 B30 กรอก 3,B31 กรอก 2 หรือ กรณีที่3 B30 กรอก 2,B31 กรอก 1 หรือ กรณีที่4 B30 กรอก 1,B31 กรอก 0
B15: 5. ดูผลการคำนวณค่า T-score และเกรดแบบ 5 ระดับ/ 8 ระดับ ได้ที่แผ่นงานTมาตรฐานT หรือ แผ่นงานTมาตรฐานZ โดยท่านเลือกใช้แผ่นงานใดแผ่นงานหนึ่งได้ตามต้องการ ซึ่งค่าคะแนนในแต่ละเกรด หรืออันตรภาคชั้น (I) นั้น ได้ใช้วิธีการของ Douglas จะไม่ให้กำหนดเอง (จะมีอคติได้)
B16: 6. ให้บันทึกเป็นแฟ้มข้อมูลในชื่อใหม่ตามต้องการ

Sheet กรอกข้อมูล
A1: กรอกข้อมูล | C1: กำหนดจำนวนชั้น (k) => | D1: 7 | E1: =$O$1 -> ช่วงข้อมูล | H1: ขอบเขตชั้น | K1: =U1 -> ความถี่ (f) | L1: ความถี่สะสม (F) | N1: class | O1: ช่วงข้อมูล | R1: ขอบเขตชั้น | U1: ความถี่ (f) | V1: ความถี่สะสม (F) | W1: f | X1: Cum F | Y1: ช่วงข้อมูล L | Z1: X | AA1: fX | AB1: fX2 | AC1: X-m | AD1: (X-m)2 | AE1: f(X-m)2 | AF1: ความถี่สัมพัทธ์ | AG1: %ความถี่สัมพัทธ์ | AH1: จุดกึ่งกลาง (X) | AI1: x¢ | AJ1: fix'i | AK1: (x¢)2 | AL1: fix'i2 | AM1: Z=(x-m)/s | AO1: กรณีที่แจกแจงความถี่ | AS1: no | AT1: freq | AU1: cum freq | AV1: =AS1 -> no | AX1: no | AY1: count | AZ1: fre | BB1: count | BD1: no
A2: 19 | C2: เทียบกับการคำนวณจากสูตร = | D2: =$M$2 -> 6.606601014 | E2: =O2 -> 12 | F2: =P2 -> - | G2: =Q2 -> 14 | H2: =R2 -> 11.5 | I2: =S2 -> - | J2: =T2 -> 14.5 | K2: =U2 -> 4 | L2: =V2 -> 4 | M2: =1+3.3*LOG(D12) -> 6.606601014 | N2: 1 | O2: =MIN(A2:A401) -> 12 | P2: =IF(N2<=AO$4,"-","") -> - | Q2: =IF(N2<=AO$4,O2+AQ$3-1,"") -> 14 | R2: =IF(N2<=AO$4,O2-0.5,"") -> 11.5 | S2: =IF(N2<=AO$4,"-","") -> - | T2: =IF(N2<=AO$4,Q2+0.5,"") -> 14.5 | U2: =W2 -> 4 | V2: =X2 -> 4 | W2: =IF(N2<=AO$4,$X$2,"") -> 4 | X2: =IF(N2<=AO$4,DSUM(AS$1:AU$401,AU$1,AX1:AZ2),"") -> 4 | Y2: =O2 -> 12 | Z2: =IF(N2<=AO$4,(O2+Q2)/2,"") -> 13 | AA2: =IF(N2<=AO$4,W2*Z2,"") -> 52 | AB2: =IF(N2<=AO$4,(W2*Z2^2),"") -> 676 | AC2: =IF(N2<=AO$4,(Z2-AO$9),"") -> -8.64 | AD2: =IF(N2<=AO$4,(Z2-AO$9)^2,"") -> 74.6496 | AE2: =IF(N2<=AO$4,AD2*W2,"") -> 298.5984 | AF2: =IF(N2<=AO$4,W2/AO$7,"") -> 0.08 | AG2: =IF(N2<=AO$4,AF2*100,"") -> 8 | AH2: =Z2 -> 13 | AI2: =IF(N2<=AO$4,(Z2-AH$53)/D$7,"") -> -3 | AJ2: =IF(N2<=AO$4,W2*AI2,"") -> -12 | AK2: =IF(N2<=AO$4,AI2^2,"") -> 9 | AL2: =IF(N2<=AO$4,W2*AK2,"") -> 36 | AN2: max = | AO2: =MAX(A2:A401) -> 31 | AP2: max - min = | AQ2: =AO2-AO3 -> 19 | AS2: =MIN(A2:A60) -> 12 | AT2: =COUNTIF(A$2:A$401,AS2) -> 2 | AU2: =AT2 -> 2 | AV2: 12 | AW2: 1 | AX2: =$Q$2 -> 14 | BB2: =IF(AT2>0,COUNT(AT2),0) -> 1 | BC2: =$BB$2 -> 1 | BD2: =AS2 -> 12
A3: 24 | C3: ด้วยสูตร k = 1 + 3.3 log N | E3: 15 | F3: - | G3: 17 | H3: 14.5 | I3: - | J3: 17.5 | K3: 7 | L3: 11 | N3: 2 | O3: =IF(N3<=AO$4,O2+AQ$3,"") -> 15 | P3: - | Q3: 17 | R3: 14.5 | S3: - | T3: 17.5 | U3: 7 | V3: 11 | W3: =IF(N3<=AO$4,X3-X2,"") -> 7 | X3: =IF(N3<=AO$4,DSUM(AS$1:AU$401,AU$1,AX3:AZ4),"") -> 11 | Y3: 15 | Z3: 16 | AA3: 112 | AB3: =IF(N3<=AO$4,(W3*Z3^2),"") -> 1792 | AC3: =IF(N3<=AO$4,(Z3-AO$9),"") -> -5.64 | AD3: 31.8096 | AE3: 222.6672 | AF3: 0.14 | AG3: 14 | AH3: 16 | AI3: -2 | AJ3: =IF(N3<=AO$4,W3*AI3,"") -> -14 | AK3: =IF(N3<=AO$4,AI3^2,"") -> 4 | AL3: =IF(N3<=AO$4,W3*AK3,"") -> 28 | AN3: min = | AO3: =MIN(A2:A401) -> 12 | AP3: อันตรภาคชั้น(I) = | AQ3: =ROUND(AR4,0) -> 3 | AS3: =AS2+1 -> 13 | AT3: =COUNTIF(A$2:A$401,AS3) -> 1 | AU3: =AT3+AU2 -> 3 | AV3: 13 | AX3: no | AY3: count | AZ3: fre | BB3: 1 | BC3: =BC2+BB3 -> 2 | BD3: 13
A4: 30 | C4: เทียบกับคะแนนสูงสุดของข้อมูลกับในตาราง | E4: 18 | F4: - | G4: 20 | H4: 17.5 | I4: - | J4: 20.5 | K4: 9 | L4: 20 | N4: 3 | O4: 18 | P4: - | Q4: 20 | R4: 17.5 | S4: - | T4: 20.5 | U4: 9 | V4: 20 | W4: 9 | X4: =IF(N4<=AO$4,DSUM(AS$1:AU$401,AU$1,AX5:AZ6),"") -> 20 | Y4: 18 | Z4: 19 | AA4: 171 | AB4: 3249 | AC4: -2.64 | AD4: 6.9696 | AE4: 62.7264 | AF4: 0.18 | AG4: 18 | AH4: 19 | AI4: -1 | AJ4: -9 | AK4: 1 | AL4: 9 | AN4: class = | AO4: =$D$1 -> 7 | AP4: อันตรภาคชั้น = | AQ4: =AQ2/AO4 -> 2.714285714 | AR4: =CEILING(AQ4,0.5) -> 3 | AS4: =AS3+1 -> 14 | AT4: 1 | AU4: 4 | AV4: 14 | AW4: 2 | AX4: =Q3 -> 17 | BB4: 1 | BC4: 3 | BD4: 14
A5: 14 | C5: สรุปว่าการกำหนดชั้น | D5: =$C$404 -> ค่า k ใช้ได้ | E5: 21 | F5: - | G5: 23 | H5: 20.5 | I5: - | J5: 23.5 | K5: 12 | L5: 32 | N5: 4 | O5: 21 | P5: - | Q5: 23 | R5: 20.5 | S5: - | T5: 23.5 | U5: 12 | V5: 32 | W5: 12 | X5: =IF(N5<=AO$4,DSUM(AS$1:AU$401,AU$1,AX7:AZ8),"") -> 32 | Y5: 21 | Z5: 22 | AA5: 264 | AB5: 5808 | AC5: 0.36 | AD5: 0.1296 | AE5: 1.5552 | AF5: 0.24 | AG5: 24 | AH5: 22 | AI5: 0 | AJ5: 0 | AK5: 0 | AL5: 0 | AN5: sum = | AO5: =SUM(A2:A401) -> 1079 | AS5: =AS4+1 -> 15 | AT5: 2 | AU5: 6 | AV5: 15 | AX5: no | AY5: count | AZ5: fre | BB5: 1 | BC5: 4 | BD5: 15
A6: 31 | C6: อันตรภาคชั้น (I) = พิสัย/จำนวนชั้น | E6: 24 | F6: - | G6: 26 | H6: 23.5 | I6: - | J6: 26.5 | K6: 10 | L6: 42 | N6: 5 | O6: 24 | P6: - | Q6: 26 | R6: 23.5 | S6: - | T6: 26.5 | U6: 10 | V6: 42 | W6: 10 | X6: =IF(N6<=AO$4,DSUM(AS$1:AU$401,AU$1,AX9:AZ10),"") -> 42 | Y6: 24 | Z6: 25 | AA6: 250 | AB6: 6250 | AC6: 3.36 | AD6: 11.2896 | AE6: 112.896 | AF6: 0.2 | AG6: 20 | AH6: 25 | AI6: 1 | AJ6: 10 | AK6: 1 | AL6: 10 | AN6: average = | AO6: =AVERAGE(A2:A401) -> 21.58 | AS6: 16 | AT6: 2 | AU6: 8 | AV6: 16 | AW6: 3 | AX6: =Q4 -> 20 | BB6: 1 | BC6: 5 | BD6: 16
A7: 12 | C7: อันตรภาคชั้น (I) = | D7: =$AQ$3 -> 3 | E7: 27 | F7: - | G7: 29 | H7: 26.5 | I7: - | J7: 29.5 | K7: 5 | L7: 47 | N7: 6 | O7: 27 | P7: - | Q7: 29 | R7: 26.5 | S7: - | T7: 29.5 | U7: 5 | V7: 47 | W7: 5 | X7: =IF(N7<=AO$4,DSUM(AS$1:AU$401,AU$1,AX11:AZ12),"") -> 47 | Y7: 27 | Z7: 28 | AA7: 140 | AB7: 3920 | AC7: 6.36 | AD7: 40.4496 | AE7: 202.248 | AF7: 0.1 | AG7: 10 | AH7: 28 | AI7: 2 | AJ7: 10 | AK7: 4 | AL7: 20 | AN7: n = | AO7: =COUNT(A2:A401) -> 50 | AP7: รวมความถี่= | AQ7: =$W$52 -> 50 | AS7: 17 | AT7: 3 | AU7: 11 | AV7: 17 | AX7: no | AY7: count | AZ7: fre | BB7: 1 | BC7: 6 | BD7: 17
A8: 29 | C8: พิสัย = ค่าสูงสุด - ค่าต่ำสุด | E8: 30 | F8: - | G8: 32 | H8: 29.5 | I8: - | J8: 32.5 | K8: 3 | L8: 50 | N8: 7 | O8: 30 | P8: - | Q8: 32 | R8: 29.5 | S8: - | T8: 32.5 | U8: 3 | V8: 50 | W8: 3 | X8: =IF(N8<=AO$4,DSUM(AS$1:AU$401,AU$1,AX13:AZ14),"") -> 50 | Y8: 30 | Z8: 31 | AA8: 93 | AB8: 2883 | AC8: 9.36 | AD8: 87.6096 | AE8: 262.8288 | AF8: 0.06 | AG8: 6 | AH8: 31 | AI8: 3 | AJ8: 9 | AK8: 9 | AL8: 27 | AN8: sum fX = | AO8: =SUM(AA2:AA51) -> 1082 | AP8: ตำแหน่ง med = | AQ8: =AO7/2 -> 25 | AS8: 18 | AT8: 2 | AU8: 13 | AV8: 18 | AW8: 4 | AX8: =Q5 -> 23 | BB8: 1 | BC8: 7 | BD8: 18
A9: 26 | C9: พิสัย = | D9: =$AQ$2 -> 19 | N9: 8 | X9: =IF(N9<=AO$4,DSUM(AS$1:AU$401,AU$1,AX15:AZ16),"") ->  | AN9: m = | AO9: =AO8/AO7 -> 21.64 | AP9: ตำแหน่งต่ำ F = | AQ9: =VLOOKUP(AQ8,X2:Y51,2) -> 18 | AS9: 19 | AT9: 4 | AU9: 17 | AV9: 19 | AX9: no | AY9: count | AZ9: fre | BB9: 1 | BC9: 8 | BD9: 19
A10: 23 | C10: ค่าสูงสุด = | D10: =AO2 -> 31 | N10: 9 | X10: =IF(N10<=AO$4,DSUM(AS$1:AU$401,AU$1,AX17:AZ18),"") ->  | AN10: sum f(X-m)2= | AO10: =SUM(AE2:AE51) -> 1163.52 | AP10: L = | AQ10: =AQ9-0.5 -> 17.5 | AS10: 20 | AT10: 3 | AU10: 20 | AV10: 20 | AW10: 5 | AX10: =Q6 -> 26 | BB10: =IF(AT10>0,COUNT(AT10),0) -> 1 | BC10: =BC9+BB10 -> 9 | BD10: 20
A11: 23 | C11: ค่าต่ำสุด = | D11: =AO3 -> 12 | N11: 10 | X11: =IF(N11<=AO$4,DSUM(AS$1:AU$401,AU$1,AX19:AZ20),"") ->  | AN11: s2 = | AO11: =AO10/AO7 -> 23.2704 | AP11: ตำแหน่ง f = | AQ11: =VLOOKUP(AQ9,O2:W51,7) -> 9 | AS11: 21 | AT11: 6 | AU11: 26 | AV11: 21 | AX11: no | AY11: count | AZ11: fre | BB11: 1 | BC11: 10 | BD11: 21
A12: 20 | C12: จำนวนข้อมูล = | D12: =$AO$7 -> 50 | N12: 11 | X12: =IF(N12<=AO$4,DSUM(AS$1:AU$401,AU$1,AX22:AZ23),"") ->  | AK12: =IF(N12<=AO$4,AI12^2,"") ->  | AL12: =IF(N12<=AO$4,W12*AK12,"") ->  | AN12: s = | AO12: =SQRT(AO11) -> 4.823940298 | AP12: ตำแหน่ง F ก่อน= | AQ12: =VLOOKUP(AQ9-AQ3,O2:X51,8) -> 11 | AS12: 22 | AT12: 2 | AU12: 28 | AV12: 22 | AW12: 6 | AX12: =Q7 -> 29 | BB12: 1 | BC12: 11 | BD12: 22
A13: 25 | C13: สัมประสิทธิ์ของพิสัย = ค่าสูงสุด - ค่าต่ำสุด | N13: 12 | X13: =IF(N13<=AO$4,DSUM(AS$1:AU$401,AU$1,AX23:AZ24),"") ->  | AN13: C.V. = | AO13: =AO12/AO9 -> 0.2229177587 | AP13: Med = | AQ13: L+I(((N/2)-F)/f) | AS13: 23 | AT13: 4 | AU13: 32 | AV13: 23 | AX13: no | AY13: count | AZ13: fre | BB13: 1 | BC13: 12 | BD13: 23
A14: 17 | C14: ค่าสูงสุด + ค่าต่ำสุด | N14: 13 | X14: =IF(N14<=AO$4,DSUM(AS$1:AU$401,AU$1,AX25:AZ26),"") ->  | AN14: %C.V. = | AO14: =AO13*100 -> 22.29177587 | AP14: Med = | AQ14: =AQ10+AQ3*((AQ8-AQ12)/AQ11) -> 22.16666667 | AS14: 24 | AT14: 3 | AU14: 35 | AV14: 24 | AW14: 7 | AX14: =Q8 -> 32 | BB14: 1 | BC14: 13 | BD14: 24
A15: 15 | C15: ดังนั้น สัมประสิทธิ์ของพิสัย = | D15: =$M$15 -> 0.4418604651 | M15: =(D10-D11)/(D10+D11) -> 0.4418604651 | N15: 14 | X15: =IF(N15<=AO$4,DSUM(AS$1:AU$401,AU$1,AX27:AZ28),"") ->  | AN15: S2 = | AO15: =AO10/(AO7-1) -> 23.74530612 | AS15: 25 | AT15: 3 | AU15: 38 | AV15: 25 | AX15: no | AY15: count | AZ15: fre | BB15: 1 | BC15: 14 | BD15: 25
A16: 22 | C16: หรือร้อยละ = | D16: =$M$16 -> 0.4418604651 | M16: =(D10-D11)/(D10+D11) -> 0.4418604651 | N16: 15 | X16: =IF(N16<=AO$4,DSUM(AS$1:AU$401,AU$1,AX29:AZ30),"") ->  | AN16: S = | AO16: =SQRT(AO15) -> 4.872915567 | AP16: ตำแหน่ง mod f = | AQ16: =MAX(W2:W51) -> 12 | AS16: 26 | AT16: 4 | AU16: 42 | AV16: 26 | AW16: 8 | AX16: =Q9 ->  | BB16: 1 | BC16: 15 | BD16: 26
A17: 28 | C17: สัมประสิทธิ์ของการแปรผัน = S.D./ค่าเฉลี่ย | N17: 16 | X17: =IF(N17<=AO$4,DSUM(AS$1:AU$401,AU$1,AX31:AZ32),"") ->  | AP17: ตำแหน่งต่ำ mod = | AQ17: =VLOOKUP(AQ16,W2:Y51,3,FALSE) -> 21 | AS17: 27 | AT17: 2 | AU17: 44 | AV17: 27 | AX17: no | AY17: count | AZ17: fre | BB17: 1 | BC17: 16 | BD17: 27
A18: 12 | C18: สัมประสิทธิ์ของการแปรผัน = | D18: =$M$18 -> 0.2229177587 | M18: =AO12/AO9 -> 0.2229177587 | N18: 17 | X18: =IF(N18<=AO$4,DSUM(AS$1:AU$401,AU$1,AX33:AZ34),"") ->  | AP18: L = | AQ18: =AQ17-0.5 -> 20.5 | AS18: =AS17+1 -> 28 | AT18: 2 | AU18: 46 | AV18: 28 | AW18: 9 | AX18: =Q10 ->  | BB18: 1 | BC18: 17 | BD18: 28
A19: 27 | C19: หรือร้อยละ = | D19: =$M$19 -> 0.2229177587 | M19: =AO12/AO9 -> 0.2229177587 | N19: 18 | X19: =IF(N19<=AO$4,DSUM(AS$1:AU$401,AU$1,AX35:AZ36),"") ->  | AP19: ตำแหน่งต่ำก่อน mod = | AQ19: =AQ17-AQ3 -> 18 | AS19: 29 | AT19: 1 | AU19: 47 | AV19: 29 | AX19: no | AY19: count | AZ19: fre | BB19: 1 | BC19: 18 | BD19: 29
A20: 19 | N20: 19 | X20: =IF(N20<=AO$4,DSUM(AS$1:AU$401,AU$1,AX37:AZ38),"") ->  | AP20: ตำแหน่งต่ำสูง mod = | AQ20: =AQ17+AQ3 -> 24 | AS20: 30 | AT20: 2 | AU20: 49 | AV20: 30 | AW20: 10 | AX20: =Q11 ->  | BB20: 1 | BC20: 19 | BD20: 30
A21: 26 | C21: อันตรภาคชั้นจะปัดขึ้นให้เป็นเลขจำนวนเต็ม เพื่อให้ครบจำนวนชั้น | N21: 20 | X21: =IF(N21<=AO$4,DSUM(AS$1:AU$401,AU$1,AX39:AZ40),"") ->  | AP21: f ก่อน mod = | AQ21: =VLOOKUP(AQ19,O2:W51,7) -> 9 | AS21: 31 | AT21: 1 | AU21: 50 | AV21: 31 | AX21: no | AY21: count | AZ21: fre | BB21: 1 | BC21: 20 | BD21: 31
A22: 25 | N22: 21 | X22: =IF(N22<=AO$4,DSUM(AS$1:AU$401,AU$1,AX41:AZ42),"") ->  | AP22: f สูง mod = | AQ22: =VLOOKUP(AQ20,O2:W51,7) -> 10 | AS22: 32 | AT22: 0 | AU22: 50 | AV22: 32 | AW22: 11 | AX22: =Q12 ->  | BB22: 0 | BC22: 20 | BD22: 32
A23: 30 | N23: 22 | X23: =IF(N23<=AO$4,DSUM(AS$1:AU$401,AU$1,AX43:AZ44),"") ->  | AN23: sum (X-m)2= | AO23: =SUM(AD2:AD51) -> 252.9072 | AP23: Change1 = | AQ23: =AQ16-AQ21 -> 3 | AS23: 33 | AT23: 0 | AU23: =AT23+AU22 -> 50 | AV23: 33 | AX23: no | AY23: count | AZ23: fre | BB23: 0 | BC23: 20 | BD23: 33
A24: 15 | C24: ให้กำหนดเฉพาะจำนวนชั้น โดยต้องสังเกตด้วยว่าคะแนนสูงสุดในตารางครอบคลุมค่าข้อมูลที่กรอกด้วยหรือไม่ หากไม่ครอบคลุมให้เปลี่ยนจำนวนชั้นใหม่ | N24: 23 | X24: =IF(N24<=AO$4,DSUM(AS$1:AU$401,AU$1,AX45:AZ46),"") ->  | AN24: n = | AO24: =$AO$7 -> 50 | AP24: Change2 = | AQ24: =AQ16-AQ22 -> 2 | AS24: =AS23+1 -> 34 | AT24: 0 | AU24: 50 | AV24: 34 | AW24: 12 | AX24: =Q13 ->  | BB24: 0 | BC24: 20 | BD24: 34
A25: 19 | N25: 24 | X25: =IF(N25<=AO$4,DSUM(AS$1:AU$401,AU$1,AX47:AZ48),"") ->  | AN25: S2 = | AO25: =AO23/(AO24-1) -> 5.161371429 | AP25: mod = | AQ25: L+I(d1/(d1+d2)) | AS25: 35 | AT25: 0 | AU25: 50 | AV25: 35 | AX25: no | AY25: count | AZ25: fre | BB25: 0 | BC25: 20 | BD25: 35
A26: 19 | N26: 25 | X26: =IF(N26<=AO$4,DSUM(AS$1:AU$401,AU$1,AX49:AZ50),"") ->  | AN26: S = | AO26: =SQRT(AO25) -> 2.271865187 | AP26: mod = | AQ26: =AQ18+AQ3*(AQ23/(AQ23+AQ24)) -> 22.3 | AS26: 36 | AT26: 0 | AU26: 50 | AV26: 36 | AW26: 13 | AX26: =Q14 ->  | BB26: 0 | BC26: 20 | BD26: 36
A27: 23 | N27: 26 | X27: =IF(N27<=AO$4,DSUM(AS$1:AU$401,AU$1,AX51:AZ52),"") ->  | AS27: 37 | AT27: 0 | AU27: 50 | AV27: 37 | AX27: no | AY27: count | AZ27: fre | BB27: 0 | BC27: 20 | BD27: 37
A28: 22 | N28: 27 | X28: =IF(N28<=AO$4,DSUM(AS$1:AU$401,AU$1,AX53:AZ54),"") ->  | AN28: กรณีที่ไม่แจกแจงความถี่ | AP28: =COUNT(A2:A401) -> 50 | AQ28: =AP28/2 -> 25 | AR28: =AQ28+1 -> 26 | AS28: 38 | AT28: 0 | AU28: 50 | AV28: 38 | AW28: 14 | AX28: =Q15 ->  | BB28: 0 | BC28: 20 | BD28: 38
A29: 21 | N29: 28 | X29: =IF(N29<=AO$4,DSUM(AS$1:AU$401,AU$1,AX55:AZ56),"") ->  | AN29: Med excel = | AO29: =MEDIAN(A2:A401) -> 21 | AP29: =ISEVEN(AP28) -> TRUE | AQ29: =INDEX(เรียงข้อมูล!M1:M400,AQ28,1) -> 21 | AR29: =INDEX(เรียงข้อมูล!M1:M400,AR28,1) -> 21 | AS29: 39 | AT29: 0 | AU29: 50 | AV29: 39 | AX29: no | AY29: count | AZ29: fre | BB29: 0 | BC29: 20 | BD29: 39
A30: 21 | C30: ที่มา: 1.บุญเรียง ขจรศิลป์.2549.สถิติวิจัย I.พิมพ์ครั้งที่ 9. | N30: 29 | X30: =IF(N30<=AO$4,DSUM(AS$1:AU$401,AU$1,AX57:AZ58),"") ->  | AP30: Med คี่ = | AQ30: =(AP28+1)/2 -> 25.5 | AR30: =INDEX(เรียงข้อมูล!M1:M400,AQ30,1) -> 21 | AS30: 40 | AT30: 0 | AU30: 50 | AV30: 40 | AW30: 15 | AX30: =Q16 ->  | BB30: 0 | BC30: 20 | BD30: 40
A31: 27 | C31: กรุงเทพฯ: พีเอส.พริ้นท์.หน้า 11-52. | N31: 30 | X31: =IF(N31<=AO$4,DSUM(AS$1:AU$401,AU$1,AX59:AZ60),"") ->  | AP31: Med คู่ = | AQ31: =(AQ29+AR29)/2 -> 21 | AS31: 41 | AT31: 0 | AU31: 50 | AV31: 41 | AX31: no | AY31: count | AZ31: fre | BB31: 0 | BC31: 20 | BD31: 41
A32: 16 | C32: 2.พิสมัย หาญมงคลพิพัฒน์.2550.หลักสถิติ1. | N32: 31 | X32: =IF(N32<=AO$4,DSUM(AS$1:AU$401,AU$1,AX61:AZ62),"") ->  | AP32: =IF(AP29=TRUE,AP31,AP30) -> Med คู่ = | AQ32: =IF(AP29=TRUE,AQ31,AR30) -> 21 | AS32: 42 | AT32: 0 | AU32: 50 | AV32: 42 | AW32: 16 | AX32: =Q17 ->  | BB32: 0 | BC32: 20 | BD32: 42
A33: 26 | C33: พิมพ์ครั้งที่ 3.กรุงเทพฯ: มหาวิทยาลัยเกษตรศาสตร์. | N33: 32 | X33: =IF(N33<=AO$4,DSUM(AS$1:AU$401,AU$1,AX63:AZ64),"") ->  | AP33: Max freq = | AQ33: =MAX(AT2:AT401) -> 6 | AS33: 43 | AT33: 0 | AU33: 50 | AV33: 43 | AX33: no | AY33: count | AZ33: fre | BB33: 0 | BC33: 20 | BD33: 43
A34: 26 | C34: หน้า 11-40. | E34: =O34 ->  | F34: =P34 ->  | G34: =Q34 ->  | H34: =R34 ->  | I34: =S34 ->  | J34: =T34 ->  | K34: =U34 ->  | L34: =V34 ->  | N34: 33 | P34: =IF(N34<=AO$4,"-","") ->  | Q34: =IF(N34<=AO$4,O34+AQ$3-1,"") ->  | R34: =IF(N34<=AO$4,O34-0.5,"") ->  | S34: =IF(N34<=AO$4,"-","") ->  | T34: =IF(N34<=AO$4,Q34+0.5,"") ->  | U34: =W34 ->  | V34: =X34 ->  | X34: =IF(N34<=AO$4,DSUM(AS$1:AU$401,AU$1,AX65:AZ66),"") ->  | Y34: =O34 ->  | Z34: =IF(N34<=AO$4,(O34+Q34)/2,"") ->  | AA34: =IF(N34<=AO$4,W34*Z34,"") ->  | AD34: =IF(N34<=AO$4,(Z34-AO$9)^2,"") ->  | AE34: =IF(N34<=AO$4,AD34*W34,"") ->  | AF34: =IF(N34<=AO$4,W34/AO$7,"") ->  | AG34: =IF(N34<=AO$4,AF34*100,"") ->  | AH34: =Z34 ->  | AI34: =IF(N34<=AO$4,(Z34-AH$53)/D$7,"") ->  | AN34: Mod excel = | AO34: =MODE(A2:A401) -> 21 | AP34: Mod = | AQ34: =VLOOKUP(AQ33,AT1:AV401,3,FALSE) -> 21 | AS34: 44 | AT34: 0 | AU34: 50 | AV34: 44 | AW34: 17 | AX34: =Q18 ->  | BB34: 0 | BC34: 20 | BD34: 44
A35: 28 | N35: 34 | O35: =IF(N35<=AO$4,O34+AQ$3,"") ->  | W35: =IF(N35<=AO$4,X35-X34,"") ->  | X35: =IF(N35<=AO$4,DSUM(AS$1:AU$401,AU$1,AX67:AZ68),"") ->  | AN35: Mean excel = | AO35: =AVERAGE(A2:A401) -> 21.58 | AP35: Mean = | AQ35: =SUM(A2:A401)/W52 -> 21.58 | AS35: 45 | AT35: 0 | AU35: 50 | AV35: 45 | AX35: no | AY35: count | AZ35: fre | BB35: 0 | BC35: 20 | BD35: 45
A36: 21 | N36: 35 | X36: =IF(N36<=AO$4,DSUM(AS$1:AU$401,AU$1,AX69:AZ70),"") ->  | AS36: 46 | AT36: 0 | AU36: 50 | AV36: 46 | AW36: 18 | AX36: =Q19 ->  | BB36: 0 | BC36: 20 | BD36: 46
A37: 17 | N37: 36 | X37: =IF(N37<=AO$4,DSUM(AS$1:AU$401,AU$1,AX71:AZ72),"") ->  | AN37: P = | AO37: =PDQไม่แจกแจง!$D$13 -> 12.75 | AP37: =ROUNDDOWN(AO37,0) -> 12 | AQ37: กับ | AR37: =AP37+1 -> 13 | AS37: 47 | AT37: 0 | AU37: 50 | AV37: 47 | AX37: no | AY37: count | AZ37: fre | BB37: 0 | BC37: 20 | BD37: 47
A38: 13 | N38: 37 | X38: =IF(N38<=AO$4,DSUM(AS$1:AU$401,AU$1,AX73:AZ74),"") ->  | AO38: =AP38+(AR38-AP38)/(AR37-AP37)*(AO37-AP37) -> 18 | AP38: =INDEX(เรียงข้อมูล!M1:M400,AP37,1) -> 18 | AQ38: กับ | AR38: =INDEX(เรียงข้อมูล!M1:M400,AR37,1) -> 18 | AS38: 48 | AT38: 0 | AU38: 50 | AV38: 48 | AW38: 19 | AX38: =Q20 ->  | BB38: 0 | BC38: 20 | BD38: 48
A39: 17 | N39: 38 | X39: =IF(N39<=AO$4,DSUM(AS$1:AU$401,AU$1,AX75:AZ76),"") ->  | AN39: D = | AQ39: กับ | AS39: 49 | AT39: 0 | AU39: 50 | AV39: 49 | AX39: no | AY39: count | AZ39: fre | BB39: 0 | BC39: 20 | BD39: 49
A40: 24 | N40: 39 | X40: =IF(N40<=AO$4,DSUM(AS$1:AU$401,AU$1,AX77:AZ78),"") ->  | AQ40: กับ | AS40: 50 | AT40: 0 | AU40: 50 | AV40: 50 | AW40: 20 | AX40: =Q21 ->  | BB40: 0 | BC40: 20 | BD40: 50
A41: 21 | N41: 40 | X41: =IF(N41<=AO$4,DSUM(AS$1:AU$401,AU$1,AX79:AZ80),"") ->  | AN41: Q = | AQ41: กับ | AS41: 51 | AT41: 0 | AU41: 50 | AV41: 51 | AX41: no | AY41: count | AZ41: fre | BB41: 0 | BC41: 20 | BD41: 51
A42: 20 | N42: 41 | X42: =IF(N42<=AO$4,DSUM(AS$1:AU$401,AU$1,AX81:AZ82),"") ->  | AQ42: กับ | AS42: 52 | AT42: 0 | AU42: 50 | AV42: 52 | AW42: 21 | AX42: =Q22 ->  | BB42: 0 | BC42: 20 | BD42: 52
A43: 16 | N43: 42 | X43: =IF(N43<=AO$4,DSUM(AS$1:AU$401,AU$1,AX83:AZ84),"") ->  | AS43: 53 | AT43: 0 | AU43: 50 | AV43: 53 | AX43: no | AY43: count | AZ43: fre | BB43: 0 | BC43: 20 | BD43: 53
A44: 20 | N44: 43 | X44: =IF(N44<=AO$4,DSUM(AS$1:AU$401,AU$1,AX85:AZ86),"") ->  | AN44: กรณีที่แจกแจงความถี่ | AS44: 54 | AT44: 0 | AU44: 50 | AV44: 54 | AW44: 22 | AX44: =Q23 ->  | BB44: 0 | BC44: 20 | BD44: 54
A45: 25 | N45: 44 | X45: =IF(N45<=AO$4,DSUM(AS$1:AU$401,AU$1,AX87:AZ88),"") ->  | AN45: การคำนวณหาตำแหน่งเปอร์เซนไทล์ เดไซล์ และควอไซล์ ของคะแนนที่กำหนด | AS45: 55 | AT45: 0 | AU45: 50 | AV45: 55 | AX45: no | AY45: count | AZ45: fre | BB45: 0 | BC45: 20 | BD45: 55
A46: 21 | N46: 45 | X46: =IF(N46<=AO$4,DSUM(AS$1:AU$401,AU$1,AX89:AZ90),"") ->  | AN46: X = | AO46: =PDQ!$C$19 -> 25 | AP46: P = | AQ46: =PDQ!J13 -> 75 | AS46: 56 | AT46: 0 | AU46: 50 | AV46: 56 | AW46: 23 | AX46: =Q24 ->  | BB46: 0 | BC46: 20 | BD46: 56
A47: 23 | N47: 46 | X47: =IF(N47<=AO$4,DSUM(AS$1:AU$401,AU$1,AX91:AZ92),"") ->  | AN47: L = | AO47: =VLOOKUP(AO46,O2:X51,1) -> 24 | AP47: D = | AQ47: =PDQ!J15 -> 7.5 | AS47: 57 | AT47: 0 | AU47: 50 | AV47: 57 | AX47: no | AY47: count | AZ47: fre | BB47: 0 | BC47: 20 | BD47: 57
A48: 24 | N48: 47 | X48: =IF(N48<=AO$4,DSUM(AS$1:AU$401,AU$1,AX93:AZ94),"") ->  | AN48: Lf = | AO48: =AO47-0.5 -> 23.5 | AP48: Q = | AQ48: =PDQ!J17 -> 3 | AS48: 58 | AT48: 0 | AU48: 50 | AV48: 58 | AW48: 24 | AX48: =Q25 ->  | BB48: 0 | BC48: 20 | BD48: 58
A49: 21 | N49: 48 | X49: =IF(N49<=AO$4,DSUM(AS$1:AU$401,AU$1,AX95:AZ96),"") ->  | AN49: Ll = | AO49: =AO47-AQ3 -> 21 | AS49: 59 | AT49: 0 | AU49: 50 | AV49: 59 | AX49: no | AY49: count | AZ49: fre | BB49: 0 | BC49: 20 | BD49: 59
A50: 18 | N50: 49 | X50: =IF(N50<=AO$4,DSUM(AS$1:AU$401,AU$1,AX97:AZ98),"") ->  | AN50: F = | AO50: =VLOOKUP(AO49,O2:X51,8) -> 32 | AS50: 60 | AT50: 0 | AU50: 50 | AV50: 60 | AW50: 25 | AX50: =Q26 ->  | BB50: 0 | BC50: 20 | BD50: 60
A51: 18 | N51: 50 | X51: =IF(N51<=AO$4,DSUM(AS$1:AU$401,AU$1,AX99:AZ100),"") ->  | AN51: f = | AO51: =VLOOKUP(AO47,O2:X51,7) -> 10 | AS51: 61 | AT51: 0 | AU51: 50 | AV51: 61 | AX51: no | AY51: count | AZ51: fre | BB51: 0 | BC51: 20 | BD51: 61
E52: ผลรวม | K52: 50 | L52: 206 | N52: Sum | O52: ผลรวม | U52: 50 | V52: 206 | W52: =SUM(W2:W51) -> 50 | X52: =SUM(X2:X51) -> 206 | Z52: =SUM(Z2:Z51) -> 154 | AA52: 1082 | AB52: 24578 | AC52: 2.52 | AD52: 252.9072 | AE52: 1163.52 | AF52: =SUM(AF2:AF51) -> 1 | AG52: 100 | AH52: 154 | AI52: 0 | AJ52: -6 | AK52: 28 | AL52: 130 | AN52: N = | AO52: =$AO$7 -> 50 | AS52: 62 | AT52: 0 | AU52: 50 | AV52: 62 | AW52: 26 | AX52: =Q27 ->  | BB52: 0 | BC52: 20 | BD52: 62
AH53: =VLOOKUP(MAX(W2:W51),W2:AH51,12,FALSE) -> 22 | AS53: 63 | AT53: 0 | AU53: 50 | AV53: 63 | AX53: no | AY53: count | AZ53: fre | BB53: 0 | BC53: 20 | BD53: 63
AN54: P = | AO54: =(100/AO52)*(AO50+(AO51*(AO46-AO48)/AQ3)) -> 74 | AP54: Xp = | AQ54: =AO48+(((AO52*AQ46/100)-AO50)/AO51)*AQ3 -> 25.15 | AS54: 64 | AT54: 0 | AU54: 50 | AV54: 64 | AW54: 27 | AX54: =Q28 ->  | BB54: 0 | BC54: 20 | BD54: 64
AN55: D = | AO55: =(10/AO52)*(AO50+(AO51*(AO46-AO48)/AQ3)) -> 7.4 | AP55: Xd = | AQ55: =AO48+(((AO52*AQ47/10)-AO50)/AO51)*AQ3 -> 25.15 | AS55: 65 | AT55: 0 | AU55: 50 | AV55: 65 | AX55: no | AY55: count | AZ55: fre | BB55: 0 | BC55: 20 | BD55: 65
AN56: Q = | AO56: =(4/AO52)*(AO50+(AO51*(AO46-AO48)/AQ3)) -> 2.96 | AP56: Xq = | AQ56: =AO48+(((AO52*AQ48/4)-AO50)/AO51)*AQ3 -> 25.15 | AS56: 66 | AT56: 0 | AU56: 50 | AV56: 66 | AW56: 28 | AX56: =Q29 ->  | BB56: 0 | BC56: 20 | BD56: 66
AS57: 67 | AT57: 0 | AU57: 50 | AV57: 67 | AX57: no | AY57: count | AZ57: fre | BB57: 0 | BC57: 20 | BD57: 67
AS58: 68 | AT58: 0 | AU58: 50 | AV58: 68 | AW58: 29 | AX58: =Q30 ->  | BB58: 0 | BC58: 20 | BD58: 68
AS59: 69 | AT59: 0 | AU59: 50 | AV59: 69 | AX59: no | AY59: count | AZ59: fre | BB59: 0 | BC59: 20 | BD59: 69
AS60: 70 | AT60: 0 | AU60: 50 | AV60: 70 | AW60: 30 | AX60: =Q31 ->  | BB60: 0 | BC60: 20 | BD60: 70
AS61: 71 | AT61: 0 | AU61: 50 | AV61: 71 | AX61: no | AY61: count | AZ61: fre | BB61: 0 | BC61: 20 | BD61: 71
AS62: 72 | AT62: 0 | AU62: 50 | AV62: 72 | AW62: 31 | AX62: =Q32 ->  | BB62: 0 | BC62: 20 | BD62: 72
AS63: 73 | AT63: 0 | AU63: 50 | AV63: 73 | AX63: no | AY63: count | AZ63: fre | BB63: 0 | BC63: 20 | BD63: 73
AS64: 74 | AT64: 0 | AU64: 50 | AV64: 74 | AW64: 32 | AX64: =Q33 ->  | BB64: 0 | BC64: 20 | BD64: 74
AS65: 75 | AT65: 0 | AU65: 50 | AV65: 75 | AX65: no | AY65: count | AZ65: fre | BB65: 0 | BC65: 20 | BD65: 75
AS66: 76 | AT66: 0 | AU66: 50 | AV66: =AS66 -> 76 | AW66: 33 | AX66: =Q34 ->  | BB66: 0 | BC66: 20 | BD66: =AS66 -> 76
AS67: 77 | AT67: =COUNTIF(A$2:A$401,AS67) -> 0 | AU67: 50 | AV67: 77 | AX67: no | AY67: count | AZ67: fre | BB67: 0 | BC67: 20 | BD67: 77
AS68: 78 | AT68: 0 | AU68: 50 | AV68: 78 | AW68: 34 | AX68: =Q35 ->  | BB68: 0 | BC68: 20 | BD68: 78
AS69: 79 | AT69: 0 | AU69: 50 | AV69: 79 | AX69: no | AY69: count | AZ69: fre | BB69: 0 | BC69: 20 | BD69: 79
AS70: 80 | AT70: 0 | AU70: 50 | AV70: 80 | AW70: 35 | AX70: =Q36 ->  | BB70: 0 | BC70: 20 | BD70: 80
AS71: 81 | AT71: 0 | AU71: 50 | AV71: 81 | AX71: no | AY71: count | AZ71: fre | BB71: 0 | BC71: 20 | BD71: 81
AS72: 82 | AT72: 0 | AU72: 50 | AV72: 82 | AW72: 36 | AX72: =Q37 ->  | BB72: 0 | BC72: 20 | BD72: 82
AS73: 83 | AT73: 0 | AU73: 50 | AV73: 83 | AX73: no | AY73: count | AZ73: fre | BB73: 0 | BC73: 20 | BD73: 83
AS74: 84 | AT74: 0 | AU74: 50 | AV74: 84 | AW74: 37 | AX74: =Q38 ->  | BB74: =IF(AT74>0,COUNT(AT74),0) -> 0 | BC74: =BC73+BB74 -> 20 | BD74: 84
AS75: 85 | AT75: 0 | AU75: 50 | AV75: 85 | AX75: no | AY75: count | AZ75: fre | BB75: 0 | BC75: 20 | BD75: 85
AS76: 86 | AT76: 0 | AU76: 50 | AV76: 86 | AW76: 38 | AX76: =Q39 ->  | BB76: 0 | BC76: 20 | BD76: 86
AS77: 87 | AT77: 0 | AU77: 50 | AV77: 87 | AX77: no | AY77: count | AZ77: fre | BB77: 0 | BC77: 20 | BD77: 87
AS78: 88 | AT78: 0 | AU78: 50 | AV78: 88 | AW78: 39 | AX78: =Q40 ->  | BB78: 0 | BC78: 20 | BD78: 88
AS79: 89 | AT79: 0 | AU79: 50 | AV79: 89 | AX79: no | AY79: count | AZ79: fre | BB79: 0 | BC79: 20 | BD79: 89
AS80: 90 | AT80: 0 | AU80: 50 | AV80: 90 | AW80: 40 | AX80: =Q41 ->  | BB80: 0 | BC80: 20 | BD80: 90
AS81: 91 | AT81: 0 | AU81: 50 | AV81: 91 | AX81: no | AY81: count | AZ81: fre | BB81: 0 | BC81: 20 | BD81: 91
AS82: 92 | AT82: 0 | AU82: 50 | AV82: 92 | AW82: 41 | AX82: =Q42 ->  | BB82: 0 | BC82: 20 | BD82: 92
AS83: 93 | AT83: 0 | AU83: 50 | AV83: 93 | AX83: no | AY83: count | AZ83: fre | BB83: 0 | BC83: 20 | BD83: 93
AS84: 94 | AT84: 0 | AU84: 50 | AV84: 94 | AW84: 42 | AX84: =Q43 ->  | BB84: 0 | BC84: 20 | BD84: 94
AS85: 95 | AT85: 0 | AU85: 50 | AV85: 95 | AX85: no | AY85: count | AZ85: fre | BB85: 0 | BC85: 20 | BD85: 95
AS86: 96 | AT86: 0 | AU86: 50 | AV86: 96 | AW86: 43 | AX86: =Q44 ->  | BB86: 0 | BC86: 20 | BD86: 96
AS87: 97 | AT87: 0 | AU87: =AT87+AU86 -> 50 | AV87: 97 | AX87: no | AY87: count | AZ87: fre | BB87: 0 | BC87: 20 | BD87: 97
AS88: =AS87+1 -> 98 | AT88: 0 | AU88: 50 | AV88: 98 | AW88: 44 | AX88: =Q45 ->  | BB88: 0 | BC88: 20 | BD88: 98
AS89: 99 | AT89: 0 | AU89: 50 | AV89: 99 | AX89: no | AY89: count | AZ89: fre | BB89: 0 | BC89: 20 | BD89: 99
AS90: 100 | AT90: 0 | AU90: 50 | AV90: 100 | AW90: 45 | AX90: =Q46 ->  | BB90: 0 | BC90: 20 | BD90: 100
AS91: 101 | AT91: 0 | AU91: 50 | AV91: 101 | AX91: no | AY91: count | AZ91: fre | BB91: 0 | BC91: 20 | BD91: 101
AS92: 102 | AT92: 0 | AU92: 50 | AV92: 102 | AW92: 46 | AX92: =Q47 ->  | BB92: 0 | BC92: 20 | BD92: 102
AS93: 103 | AT93: 0 | AU93: 50 | AV93: 103 | AX93: no | AY93: count | AZ93: fre | BB93: 0 | BC93: 20 | BD93: 103
AS94: 104 | AT94: 0 | AU94: 50 | AV94: 104 | AW94: 47 | AX94: =Q48 ->  | BB94: 0 | BC94: 20 | BD94: 104
AS95: 105 | AT95: 0 | AU95: 50 | AV95: 105 | AX95: no | AY95: count | AZ95: fre | BB95: 0 | BC95: 20 | BD95: 105
AS96: 106 | AT96: 0 | AU96: 50 | AV96: 106 | AW96: 48 | AX96: =Q49 ->  | BB96: 0 | BC96: 20 | BD96: 106
AS97: 107 | AT97: 0 | AU97: 50 | AV97: 107 | AX97: no | AY97: count | AZ97: fre | BB97: 0 | BC97: 20 | BD97: 107
AS98: 108 | AT98: 0 | AU98: 50 | AV98: 108 | AW98: 49 | AX98: =Q50 ->  | BB98: 0 | BC98: 20 | BD98: 108
AS99: 109 | AT99: 0 | AU99: 50 | AV99: 109 | AX99: no | AY99: count | AZ99: fre | BB99: 0 | BC99: 20 | BD99: 109
AS100: 110 | AT100: 0 | AU100: 50 | AV100: 110 | AW100: 50 | AX100: =Q51 ->  | BB100: 0 | BC100: 20 | BD100: 110
AS101: 111 | AT101: 0 | AU101: 50 | AV101: 111 | BB101: 0 | BC101: 20 | BD101: 111
AS102: 112 | AT102: 0 | AU102: 50 | AV102: 112 | BB102: 0 | BC102: 20 | BD102: 112
AS103: 113 | AT103: 0 | AU103: 50 | AV103: 113 | BB103: 0 | BC103: 20 | BD103: 113
AS104: 114 | AT104: 0 | AU104: 50 | AV104: 114 | BB104: 0 | BC104: 20 | BD104: 114
AS105: 115 | AT105: 0 | AU105: 50 | AV105: 115 | BB105: 0 | BC105: 20 | BD105: 115
AS106: 116 | AT106: 0 | AU106: 50 | AV106: 116 | BB106: 0 | BC106: 20 | BD106: 116
AS107: 117 | AT107: 0 | AU107: 50 | AV107: 117 | BB107: 0 | BC107: 20 | BD107: 117
AS108: 118 | AT108: 0 | AU108: 50 | AV108: 118 | BB108: 0 | BC108: 20 | BD108: 118
AS109: 119 | AT109: 0 | AU109: 50 | AV109: 119 | BB109: 0 | BC109: 20 | BD109: 119
AS110: 120 | AT110: 0 | AU110: 50 | AV110: 120 | BB110: 0 | BC110: 20 | BD110: 120
AS111: 121 | AT111: 0 | AU111: 50 | AV111: 121 | BB111: 0 | BC111: 20 | BD111: 121
AS112: 122 | AT112: 0 | AU112: 50 | AV112: 122 | BB112: 0 | BC112: 20 | BD112: 122
AS113: 123 | AT113: 0 | AU113: 50 | AV113: 123 | BB113: 0 | BC113: 20 | BD113: 123
AS114: 124 | AT114: 0 | AU114: 50 | AV114: 124 | BB114: 0 | BC114: 20 | BD114: 124
AS115: 125 | AT115: 0 | AU115: 50 | AV115: 125 | BB115: 0 | BC115: 20 | BD115: 125
AS116: 126 | AT116: 0 | AU116: 50 | AV116: 126 | BB116: 0 | BC116: 20 | BD116: 126
AS117: 127 | AT117: 0 | AU117: 50 | AV117: 127 | BB117: 0 | BC117: 20 | BD117: 127
AS118: 128 | AT118: 0 | AU118: 50 | AV118: 128 | BB118: 0 | BC118: 20 | BD118: 128
AS119: 129 | AT119: 0 | AU119: 50 | AV119: 129 | BB119: 0 | BC119: 20 | BD119: 129
AS120: 130 | AT120: 0 | AU120: 50 | AV120: 130 | BB120: 0 | BC120: 20 | BD120: 130
AS121: 131 | AT121: 0 | AU121: 50 | AV121: 131 | BB121: 0 | BC121: 20 | BD121: 131
AS122: 132 | AT122: 0 | AU122: 50 | AV122: 132 | BB122: 0 | BC122: 20 | BD122: 132
AS123: 133 | AT123: 0 | AU123: 50 | AV123: 133 | BB123: 0 | BC123: 20 | BD123: 133
AS124: 134 | AT124: 0 | AU124: 50 | AV124: 134 | BB124: 0 | BC124: 20 | BD124: 134
AS125: 135 | AT125: 0 | AU125: 50 | AV125: 135 | BB125: 0 | BC125: 20 | BD125: 135
AS126: 136 | AT126: 0 | AU126: 50 | AV126: 136 | BB126: 0 | BC126: 20 | BD126: 136
AS127: 137 | AT127: 0 | AU127: 50 | AV127: 137 | BB127: 0 | BC127: 20 | BD127: 137
AS128: 138 | AT128: 0 | AU128: 50 | AV128: 138 | BB128: 0 | BC128: 20 | BD128: 138
AS129: 139 | AT129: 0 | AU129: 50 | AV129: 139 | BB129: 0 | BC129: 20 | BD129: 139
AS130: 140 | AT130: 0 | AU130: 50 | AV130: =AS130 -> 140 | BB130: 0 | BC130: 20 | BD130: =AS130 -> 140
AS131: 141 | AT131: =COUNTIF(A$2:A$401,AS131) -> 0 | AU131: 50 | AV131: 141 | BB131: 0 | BC131: 20 | BD131: 141
AS132: 142 | AT132: 0 | AU132: 50 | AV132: 142 | BB132: 0 | BC132: 20 | BD132: 142
AS133: 143 | AT133: 0 | AU133: 50 | AV133: 143 | BB133: 0 | BC133: 20 | BD133: 143
AS134: 144 | AT134: 0 | AU134: 50 | AV134: 144 | BB134: 0 | BC134: 20 | BD134: 144
AS135: 145 | AT135: 0 | AU135: 50 | AV135: 145 | BB135: 0 | BC135: 20 | BD135: 145
AS136: 146 | AT136: 0 | AU136: 50 | AV136: 146 | BB136: 0 | BC136: 20 | BD136: 146
AS137: 147 | AT137: 0 | AU137: 50 | AV137: 147 | BB137: 0 | BC137: 20 | BD137: 147
AS138: 148 | AT138: 0 | AU138: 50 | AV138: 148 | BB138: =IF(AT138>0,COUNT(AT138),0) -> 0 | BC138: =BC137+BB138 -> 20 | BD138: 148
AS139: 149 | AT139: 0 | AU139: 50 | AV139: 149 | BB139: 0 | BC139: 20 | BD139: 149
AS140: 150 | AT140: 0 | AU140: 50 | AV140: 150 | BB140: 0 | BC140: 20 | BD140: 150
AS141: 151 | AT141: 0 | AU141: 50 | AV141: 151 | BB141: 0 | BC141: 20 | BD141: 151
AS142: 152 | AT142: 0 | AU142: 50 | AV142: 152 | BB142: 0 | BC142: 20 | BD142: 152
AS143: 153 | AT143: 0 | AU143: 50 | AV143: 153 | BB143: 0 | BC143: 20 | BD143: 153
AS144: 154 | AT144: 0 | AU144: 50 | AV144: 154 | BB144: 0 | BC144: 20 | BD144: 154
AS145: 155 | AT145: 0 | AU145: 50 | AV145: 155 | BB145: 0 | BC145: 20 | BD145: 155
AS146: 156 | AT146: 0 | AU146: 50 | AV146: 156 | BB146: 0 | BC146: 20 | BD146: 156
AS147: 157 | AT147: 0 | AU147: 50 | AV147: 157 | BB147: 0 | BC147: 20 | BD147: 157
AS148: 158 | AT148: 0 | AU148: 50 | AV148: 158 | BB148: 0 | BC148: 20 | BD148: 158
AS149: 159 | AT149: 0 | AU149: 50 | AV149: 159 | BB149: 0 | BC149: 20 | BD149: 159
AS150: 160 | AT150: 0 | AU150: 50 | AV150: 160 | BB150: 0 | BC150: 20 | BD150: 160
AS151: 161 | AT151: 0 | AU151: =AT151+AU150 -> 50 | AV151: 161 | BB151: 0 | BC151: 20 | BD151: 161
AS152: =AS151+1 -> 162 | AT152: 0 | AU152: 50 | AV152: 162 | BB152: 0 | BC152: 20 | BD152: 162
AS153: 163 | AT153: 0 | AU153: 50 | AV153: 163 | BB153: 0 | BC153: 20 | BD153: 163
AS154: 164 | AT154: 0 | AU154: 50 | AV154: 164 | BB154: 0 | BC154: 20 | BD154: 164
AS155: 165 | AT155: 0 | AU155: 50 | AV155: 165 | BB155: 0 | BC155: 20 | BD155: 165
AS156: 166 | AT156: 0 | AU156: 50 | AV156: 166 | BB156: 0 | BC156: 20 | BD156: 166
AS157: 167 | AT157: 0 | AU157: 50 | AV157: 167 | BB157: 0 | BC157: 20 | BD157: 167
AS158: 168 | AT158: 0 | AU158: 50 | AV158: 168 | BB158: 0 | BC158: 20 | BD158: 168
AS159: 169 | AT159: 0 | AU159: 50 | AV159: 169 | BB159: 0 | BC159: 20 | BD159: 169
AS160: 170 | AT160: 0 | AU160: 50 | AV160: 170 | BB160: 0 | BC160: 20 | BD160: 170
AS161: 171 | AT161: 0 | AU161: 50 | AV161: 171 | BB161: 0 | BC161: 20 | BD161: 171
AS162: 172 | AT162: 0 | AU162: 50 | AV162: 172 | BB162: 0 | BC162: 20 | BD162: 172
AS163: 173 | AT163: 0 | AU163: 50 | AV163: 173 | BB163: 0 | BC163: 20 | BD163: 173
AS164: 174 | AT164: 0 | AU164: 50 | AV164: 174 | BB164: 0 | BC164: 20 | BD164: 174
AS165: 175 | AT165: 0 | AU165: 50 | AV165: 175 | BB165: 0 | BC165: 20 | BD165: 175
AS166: 176 | AT166: 0 | AU166: 50 | AV166: 176 | BB166: 0 | BC166: 20 | BD166: 176
AS167: 177 | AT167: 0 | AU167: 50 | AV167: 177 | BB167: 0 | BC167: 20 | BD167: 177
AS168: 178 | AT168: 0 | AU168: 50 | AV168: 178 | BB168: 0 | BC168: 20 | BD168: 178
AS169: 179 | AT169: 0 | AU169: 50 | AV169: 179 | BB169: 0 | BC169: 20 | BD169: 179
AS170: 180 | AT170: 0 | AU170: 50 | AV170: 180 | BB170: 0 | BC170: 20 | BD170: 180
AS171: 181 | AT171: 0 | AU171: 50 | AV171: 181 | BB171: 0 | BC171: 20 | BD171: 181
AS172: 182 | AT172: 0 | AU172: 50 | AV172: 182 | BB172: 0 | BC172: 20 | BD172: 182
AS173: 183 | AT173: 0 | AU173: 50 | AV173: 183 | BB173: 0 | BC173: 20 | BD173: 183
AS174: 184 | AT174: 0 | AU174: 50 | AV174: 184 | BB174: 0 | BC174: 20 | BD174: 184
AS175: 185 | AT175: 0 | AU175: 50 | AV175: 185 | BB175: 0 | BC175: 20 | BD175: 185
AS176: 186 | AT176: 0 | AU176: 50 | AV176: 186 | BB176: 0 | BC176: 20 | BD176: 186
AS177: 187 | AT177: 0 | AU177: 50 | AV177: 187 | BB177: 0 | BC177: 20 | BD177: 187
AS178: 188 | AT178: 0 | AU178: 50 | AV178: 188 | BB178: 0 | BC178: 20 | BD178: 188
AS179: 189 | AT179: 0 | AU179: 50 | AV179: 189 | BB179: 0 | BC179: 20 | BD179: 189
AS180: 190 | AT180: 0 | AU180: 50 | AV180: 190 | BB180: 0 | BC180: 20 | BD180: 190
AS181: 191 | AT181: 0 | AU181: 50 | AV181: 191 | BB181: 0 | BC181: 20 | BD181: 191
AS182: 192 | AT182: 0 | AU182: 50 | AV182: 192 | BB182: 0 | BC182: 20 | BD182: 192
AS183: 193 | AT183: 0 | AU183: 50 | AV183: 193 | BB183: 0 | BC183: 20 | BD183: 193
AS184: 194 | AT184: 0 | AU184: 50 | AV184: 194 | BB184: 0 | BC184: 20 | BD184: 194
AS185: 195 | AT185: 0 | AU185: 50 | AV185: 195 | BB185: 0 | BC185: 20 | BD185: 195
AS186: 196 | AT186: 0 | AU186: 50 | AV186: 196 | BB186: 0 | BC186: 20 | BD186: 196
AS187: 197 | AT187: 0 | AU187: 50 | AV187: 197 | BB187: 0 | BC187: 20 | BD187: 197
AS188: 198 | AT188: 0 | AU188: 50 | AV188: 198 | BB188: 0 | BC188: 20 | BD188: 198
AS189: 199 | AT189: 0 | AU189: 50 | AV189: 199 | BB189: 0 | BC189: 20 | BD189: 199
AS190: 200 | AT190: 0 | AU190: 50 | AV190: 200 | BB190: 0 | BC190: 20 | BD190: 200
AS191: 201 | AT191: 0 | AU191: 50 | AV191: 201 | BB191: 0 | BC191: 20 | BD191: 201
AS192: 202 | AT192: 0 | AU192: 50 | AV192: 202 | BB192: 0 | BC192: 20 | BD192: 202
AS193: 203 | AT193: 0 | AU193: 50 | AV193: 203 | BB193: 0 | BC193: 20 | BD193: 203
AS194: 204 | AT194: 0 | AU194: 50 | AV194: =AS194 -> 204 | BB194: 0 | BC194: 20 | BD194: =AS194 -> 204
AS195: 205 | AT195: =COUNTIF(A$2:A$401,AS195) -> 0 | AU195: 50 | AV195: 205 | BB195: 0 | BC195: 20 | BD195: 205
AS196: 206 | AT196: 0 | AU196: 50 | AV196: 206 | BB196: 0 | BC196: 20 | BD196: 206
AS197: 207 | AT197: 0 | AU197: 50 | AV197: 207 | BB197: 0 | BC197: 20 | BD197: 207
AS198: 208 | AT198: 0 | AU198: 50 | AV198: 208 | BB198: 0 | BC198: 20 | BD198: 208
AS199: 209 | AT199: 0 | AU199: 50 | AV199: 209 | BB199: 0 | BC199: 20 | BD199: 209
AS200: 210 | AT200: 0 | AU200: 50 | AV200: 210 | BB200: 0 | BC200: 20 | BD200: 210
... 203 more rows

Sheet วิธีการเปิดแมโคร (hidden)
A1: วิธีการเปิดใช้งานแมโคร
A2: 1. เปิดแฟ้มข้อมูลนี้ขึ้นมา
A3: 2. ที่ใต้แถบ Ribbon จะมีแถบเครื่องมือคำเตือนเกี่ยวกับความปลอดภัย ดังรูป
A14: 3. ให้คลิกปุ่มตัวเลือก...จะเปิดแผ่นโต้ตอบตัวเลือกความปลอดภัยของ Microsoft Office แล้วจึงคลิกเลือกตัวเลือกเปิดใช้งานเนื้อหานี้ ดังรูป
A32: 4. ในกรณีที่ยังไม่เปิดการใช้แมโคร เมื่อมีการใช้คำสั่งแมโคร จะเปิดแผ่นคำเตือนให้เปิดแฟ้มใหม่ แล้วเลือกเปิดใช้งานแมโคร ตาม ข้อ 1 - 3 ดังรูป

Sheet เรียงข้อมูล (hidden)
A1: =M1 -> 12 | M1: =IF(กรอกข้อมูล!A7=0,"",กรอกข้อมูล!A7) -> 12
A2: 12 | M2: =IF(กรอกข้อมูล!A18=0,"",กรอกข้อมูล!A18) -> 12
A3: 13 | M3: =IF(กรอกข้อมูล!A38=0,"",กรอกข้อมูล!A38) -> 13
A4: 14 | M4: =IF(กรอกข้อมูล!A5=0,"",กรอกข้อมูล!A5) -> 14
A5: 15 | M5: =IF(กรอกข้อมูล!A15=0,"",กรอกข้อมูล!A15) -> 15
A6: 15 | M6: =IF(กรอกข้อมูล!A24=0,"",กรอกข้อมูล!A24) -> 15
A7: 16 | M7: =IF(กรอกข้อมูล!A32=0,"",กรอกข้อมูล!A32) -> 16
A8: 16 | M8: =IF(กรอกข้อมูล!A43=0,"",กรอกข้อมูล!A43) -> 16
A9: 17 | M9: =IF(กรอกข้อมูล!A14=0,"",กรอกข้อมูล!A14) -> 17
A10: 17 | M10: =IF(กรอกข้อมูล!A37=0,"",กรอกข้อมูล!A37) -> 17
A11: 17 | M11: =IF(กรอกข้อมูล!A39=0,"",กรอกข้อมูล!A39) -> 17
A12: 18 | M12: =IF(กรอกข้อมูล!A50=0,"",กรอกข้อมูล!A50) -> 18
A13: 18 | M13: =IF(กรอกข้อมูล!A51=0,"",กรอกข้อมูล!A51) -> 18
A14: 19 | M14: =IF(กรอกข้อมูล!A2=0,"",กรอกข้อมูล!A2) -> 19
A15: 19 | M15: =IF(กรอกข้อมูล!A20=0,"",กรอกข้อมูล!A20) -> 19
A16: 19 | M16: =IF(กรอกข้อมูล!A25=0,"",กรอกข้อมูล!A25) -> 19
A17: 19 | M17: =IF(กรอกข้อมูล!A26=0,"",กรอกข้อมูล!A26) -> 19
A18: 20 | M18: =IF(กรอกข้อมูล!A12=0,"",กรอกข้อมูล!A12) -> 20
A19: 20 | M19: =IF(กรอกข้อมูล!A42=0,"",กรอกข้อมูล!A42) -> 20
A20: 20 | M20: =IF(กรอกข้อมูล!A44=0,"",กรอกข้อมูล!A44) -> 20
A21: 21 | M21: =IF(กรอกข้อมูล!A29=0,"",กรอกข้อมูล!A29) -> 21
A22: 21 | M22: =IF(กรอกข้อมูล!A30=0,"",กรอกข้อมูล!A30) -> 21
A23: 21 | M23: =IF(กรอกข้อมูล!A36=0,"",กรอกข้อมูล!A36) -> 21
A24: 21 | M24: =IF(กรอกข้อมูล!A41=0,"",กรอกข้อมูล!A41) -> 21
A25: 21 | M25: =IF(กรอกข้อมูล!A46=0,"",กรอกข้อมูล!A46) -> 21
A26: 21 | M26: =IF(กรอกข้อมูล!A49=0,"",กรอกข้อมูล!A49) -> 21
A27: 22 | M27: =IF(กรอกข้อมูล!A16=0,"",กรอกข้อมูล!A16) -> 22
A28: 22 | M28: =IF(กรอกข้อมูล!A28=0,"",กรอกข้อมูล!A28) -> 22
A29: 23 | M29: =IF(กรอกข้อมูล!A10=0,"",กรอกข้อมูล!A10) -> 23
A30: 23 | M30: =IF(กรอกข้อมูล!A11=0,"",กรอกข้อมูล!A11) -> 23
A31: 23 | M31: =IF(กรอกข้อมูล!A27=0,"",กรอกข้อมูล!A27) -> 23
A32: 23 | M32: =IF(กรอกข้อมูล!A47=0,"",กรอกข้อมูล!A47) -> 23
A33: 24 | M33: =IF(กรอกข้อมูล!A3=0,"",กรอกข้อมูล!A3) -> 24
A34: 24 | M34: =IF(กรอกข้อมูล!A40=0,"",กรอกข้อมูล!A40) -> 24
A35: 24 | M35: =IF(กรอกข้อมูล!A48=0,"",กรอกข้อมูล!A48) -> 24
A36: 25 | M36: =IF(กรอกข้อมูล!A13=0,"",กรอกข้อมูล!A13) -> 25
A37: 25 | M37: =IF(กรอกข้อมูล!A22=0,"",กรอกข้อมูล!A22) -> 25
A38: 25 | M38: =IF(กรอกข้อมูล!A45=0,"",กรอกข้อมูล!A45) -> 25
A39: 26 | M39: =IF(กรอกข้อมูล!A9=0,"",กรอกข้อมูล!A9) -> 26
A40: 26 | M40: =IF(กรอกข้อมูล!A21=0,"",กรอกข้อมูล!A21) -> 26
A41: 26 | M41: =IF(กรอกข้อมูล!A33=0,"",กรอกข้อมูล!A33) -> 26
A42: 26 | M42: =IF(กรอกข้อมูล!A34=0,"",กรอกข้อมูล!A34) -> 26
A43: 27 | M43: =IF(กรอกข้อมูล!A19=0,"",กรอกข้อมูล!A19) -> 27
A44: 27 | M44: =IF(กรอกข้อมูล!A31=0,"",กรอกข้อมูล!A31) -> 27
A45: 28 | M45: =IF(กรอกข้อมูล!A17=0,"",กรอกข้อมูล!A17) -> 28
A46: 28 | M46: =IF(กรอกข้อมูล!A35=0,"",กรอกข้อมูล!A35) -> 28
A47: 29 | M47: =IF(กรอกข้อมูล!A8=0,"",กรอกข้อมูล!A8) -> 29
A48: 30 | M48: =IF(กรอกข้อมูล!A4=0,"",กรอกข้อมูล!A4) -> 30
A49: 30 | M49: =IF(กรอกข้อมูล!A23=0,"",กรอกข้อมูล!A23) -> 30
A50: 31 | M50: =IF(กรอกข้อมูล!A6=0,"",กรอกข้อมูล!A6) -> 31
M51: =IF(กรอกข้อมูล!A52=0,"",กรอกข้อมูล!A52) -> 
M52: =IF(กรอกข้อมูล!A53=0,"",กรอกข้อมูล!A53) -> 
M53: =IF(กรอกข้อมูล!A54=0,"",กรอกข้อมูล!A54) -> 
M54: =IF(กรอกข้อมูล!A55=0,"",กรอกข้อมูล!A55) -> 
M55: =IF(กรอกข้อมูล!A56=0,"",กรอกข้อมูล!A56) -> 
M56: =IF(กรอกข้อมูล!A57=0,"",กรอกข้อมูล!A57) -> 
M57: =IF(กรอกข้อมูล!A58=0,"",กรอกข้อมูล!A58) -> 
M58: =IF(กรอกข้อมูล!A59=0,"",กรอกข้อมูล!A59) -> 
M59: =IF(กรอกข้อมูล!A60=0,"",กรอกข้อมูล!A60) -> 
M60: =IF(กรอกข้อมูล!A61=0,"",กรอกข้อมูล!A61) -> 
M61: =IF(กรอกข้อมูล!A62=0,"",กรอกข้อมูล!A62) -> 
M62: =IF(กรอกข้อมูล!A63=0,"",กรอกข้อมูล!A63) -> 
M63: =IF(กรอกข้อมูล!A64=0,"",กรอกข้อมูล!A64) -> 
M64: =IF(กรอกข้อมูล!A65=0,"",กรอกข้อมูล!A65) -> 
A65: =M65 ->  | M65: =IF(กรอกข้อมูล!A66=0,"",กรอกข้อมูล!A66) -> 
M66: =IF(กรอกข้อมูล!A67=0,"",กรอกข้อมูล!A67) -> 
M67: =IF(กรอกข้อมูล!A68=0,"",กรอกข้อมูล!A68) -> 
M68: =IF(กรอกข้อมูล!A69=0,"",กรอกข้อมูล!A69) -> 
M69: =IF(กรอกข้อมูล!A70=0,"",กรอกข้อมูล!A70) -> 
M70: =IF(กรอกข้อมูล!A71=0,"",กรอกข้อมูล!A71) -> 
M71: =IF(กรอกข้อมูล!A72=0,"",กรอกข้อมูล!A72) -> 
M72: =IF(กรอกข้อมูล!A73=0,"",กรอกข้อมูล!A73) -> 
M73: =IF(กรอกข้อมูล!A74=0,"",กรอกข้อมูล!A74) -> 
M74: =IF(กรอกข้อมูล!A75=0,"",กรอกข้อมูล!A75) -> 
M75: =IF(กรอกข้อมูล!A76=0,"",กรอกข้อมูล!A76) -> 
M76: =IF(กรอกข้อมูล!A77=0,"",กรอกข้อมูล!A77) -> 
M77: =IF(กรอกข้อมูล!A78=0,"",กรอกข้อมูล!A78) -> 
M78: =IF(กรอกข้อมูล!A79=0,"",กรอกข้อมูล!A79) -> 
M79: =IF(กรอกข้อมูล!A80=0,"",กรอกข้อมูล!A80) -> 
M80: =IF(กรอกข้อมูล!A81=0,"",กรอกข้อมูล!A81) -> 
M81: =IF(กรอกข้อมูล!A82=0,"",กรอกข้อมูล!A82) -> 
M82: =IF(กรอกข้อมูล!A83=0,"",กรอกข้อมูล!A83) -> 
M83: =IF(กรอกข้อมูล!A84=0,"",กรอกข้อมูล!A84) -> 
M84: =IF(กรอกข้อมูล!A85=0,"",กรอกข้อมูล!A85) -> 
M85: =IF(กรอกข้อมูล!A86=0,"",กรอกข้อมูล!A86) -> 
M86: =IF(กรอกข้อมูล!A87=0,"",กรอกข้อมูล!A87) -> 
M87: =IF(กรอกข้อมูล!A88=0,"",กรอกข้อมูล!A88) -> 
M88: =IF(กรอกข้อมูล!A89=0,"",กรอกข้อมูล!A89) -> 
M89: =IF(กรอกข้อมูล!A90=0,"",กรอกข้อมูล!A90) -> 
M90: =IF(กรอกข้อมูล!A91=0,"",กรอกข้อมูล!A91) -> 
M91: =IF(กรอกข้อมูล!A92=0,"",กรอกข้อมูล!A92) -> 
M92: =IF(กรอกข้อมูล!A93=0,"",กรอกข้อมูล!A93) -> 
M93: =IF(กรอกข้อมูล!A94=0,"",กรอกข้อมูล!A94) -> 
M94: =IF(กรอกข้อมูล!A95=0,"",กรอกข้อมูล!A95) -> 
M95: =IF(กรอกข้อมูล!A96=0,"",กรอกข้อมูล!A96) -> 
M96: =IF(กรอกข้อมูล!A97=0,"",กรอกข้อมูล!A97) -> 
M97: =IF(กรอกข้อมูล!A98=0,"",กรอกข้อมูล!A98) -> 
M98: =IF(กรอกข้อมูล!A99=0,"",กรอกข้อมูล!A99) -> 
M99: =IF(กรอกข้อมูล!A100=0,"",กรอกข้อมูล!A100) -> 
M100: =IF(กรอกข้อมูล!A101=0,"",กรอกข้อมูล!A101) -> 
M101: =IF(กรอกข้อมูล!A102=0,"",กรอกข้อมูล!A102) -> 
M102: =IF(กรอกข้อมูล!A103=0,"",กรอกข้อมูล!A103) -> 
M103: =IF(กรอกข้อมูล!A104=0,"",กรอกข้อมูล!A104) -> 
M104: =IF(กรอกข้อมูล!A105=0,"",กรอกข้อมูล!A105) -> 
M105: =IF(กรอกข้อมูล!A106=0,"",กรอกข้อมูล!A106) -> 
M106: =IF(กรอกข้อมูล!A107=0,"",กรอกข้อมูล!A107) -> 
M107: =IF(กรอกข้อมูล!A108=0,"",กรอกข้อมูล!A108) -> 
M108: =IF(กรอกข้อมูล!A109=0,"",กรอกข้อมูล!A109) -> 
M109: =IF(กรอกข้อมูล!A110=0,"",กรอกข้อมูล!A110) -> 
M110: =IF(กรอกข้อมูล!A111=0,"",กรอกข้อมูล!A111) -> 
M111: =IF(กรอกข้อมูล!A112=0,"",กรอกข้อมูล!A112) -> 
M112: =IF(กรอกข้อมูล!A113=0,"",กรอกข้อมูล!A113) -> 
M113: =IF(กรอกข้อมูล!A114=0,"",กรอกข้อมูล!A114) -> 
M114: =IF(กรอกข้อมูล!A115=0,"",กรอกข้อมูล!A115) -> 
M115: =IF(กรอกข้อมูล!A116=0,"",กรอกข้อมูล!A116) -> 
M116: =IF(กรอกข้อมูล!A117=0,"",กรอกข้อมูล!A117) -> 
M117: =IF(กรอกข้อมูล!A118=0,"",กรอกข้อมูล!A118) -> 
M118: =IF(กรอกข้อมูล!A119=0,"",กรอกข้อมูล!A119) -> 
M119: =IF(กรอกข้อมูล!A120=0,"",กรอกข้อมูล!A120) -> 
M120: =IF(กรอกข้อมูล!A121=0,"",กรอกข้อมูล!A121) -> 
M121: =IF(กรอกข้อมูล!A122=0,"",กรอกข้อมูล!A122) -> 
M122: =IF(กรอกข้อมูล!A123=0,"",กรอกข้อมูล!A123) -> 
M123: =IF(กรอกข้อมูล!A124=0,"",กรอกข้อมูล!A124) -> 
M124: =IF(กรอกข้อมูล!A125=0,"",กรอกข้อมูล!A125) -> 
M125: =IF(กรอกข้อมูล!A126=0,"",กรอกข้อมูล!A126) -> 
M126: =IF(กรอกข้อมูล!A127=0,"",กรอกข้อมูล!A127) -> 
M127: =IF(กรอกข้อมูล!A128=0,"",กรอกข้อมูล!A128) -> 
M128: =IF(กรอกข้อมูล!A129=0,"",กรอกข้อมูล!A129) -> 
A129: =M129 ->  | M129: =IF(กรอกข้อมูล!A130=0,"",กรอกข้อมูล!A130) -> 
M130: =IF(กรอกข้อมูล!A131=0,"",กรอกข้อมูล!A131) -> 
M131: =IF(กรอกข้อมูล!A132=0,"",กรอกข้อมูล!A132) -> 
M132: =IF(กรอกข้อมูล!A133=0,"",กรอกข้อมูล!A133) -> 
M133: =IF(กรอกข้อมูล!A134=0,"",กรอกข้อมูล!A134) -> 
M134: =IF(กรอกข้อมูล!A135=0,"",กรอกข้อมูล!A135) -> 
M135: =IF(กรอกข้อมูล!A136=0,"",กรอกข้อมูล!A136) -> 
M136: =IF(กรอกข้อมูล!A137=0,"",กรอกข้อมูล!A137) -> 
M137: =IF(กรอกข้อมูล!A138=0,"",กรอกข้อมูล!A138) -> 
M138: =IF(กรอกข้อมูล!A139=0,"",กรอกข้อมูล!A139) -> 
M139: =IF(กรอกข้อมูล!A140=0,"",กรอกข้อมูล!A140) -> 
M140: =IF(กรอกข้อมูล!A141=0,"",กรอกข้อมูล!A141) -> 
M141: =IF(กรอกข้อมูล!A142=0,"",กรอกข้อมูล!A142) -> 
M142: =IF(กรอกข้อมูล!A143=0,"",กรอกข้อมูล!A143) -> 
M143: =IF(กรอกข้อมูล!A144=0,"",กรอกข้อมูล!A144) -> 
M144: =IF(กรอกข้อมูล!A145=0,"",กรอกข้อมูล!A145) -> 
M145: =IF(กรอกข้อมูล!A146=0,"",กรอกข้อมูล!A146) -> 
M146: =IF(กรอกข้อมูล!A147=0,"",กรอกข้อมูล!A147) -> 
M147: =IF(กรอกข้อมูล!A148=0,"",กรอกข้อมูล!A148) -> 
M148: =IF(กรอกข้อมูล!A149=0,"",กรอกข้อมูล!A149) -> 
M149: =IF(กรอกข้อมูล!A150=0,"",กรอกข้อมูล!A150) -> 
M150: =IF(กรอกข้อมูล!A151=0,"",กรอกข้อมูล!A151) -> 
M151: =IF(กรอกข้อมูล!A152=0,"",กรอกข้อมูล!A152) -> 
M152: =IF(กรอกข้อมูล!A153=0,"",กรอกข้อมูล!A153) -> 
M153: =IF(กรอกข้อมูล!A154=0,"",กรอกข้อมูล!A154) -> 
M154: =IF(กรอกข้อมูล!A155=0,"",กรอกข้อมูล!A155) -> 
M155: =IF(กรอกข้อมูล!A156=0,"",กรอกข้อมูล!A156) -> 
M156: =IF(กรอกข้อมูล!A157=0,"",กรอกข้อมูล!A157) -> 
M157: =IF(กรอกข้อมูล!A158=0,"",กรอกข้อมูล!A158) -> 
M158: =IF(กรอกข้อมูล!A159=0,"",กรอกข้อมูล!A159) -> 
M159: =IF(กรอกข้อมูล!A160=0,"",กรอกข้อมูล!A160) -> 
M160: =IF(กรอกข้อมูล!A161=0,"",กรอกข้อมูล!A161) -> 
M161: =IF(กรอกข้อมูล!A162=0,"",กรอกข้อมูล!A162) -> 
M162: =IF(กรอกข้อมูล!A163=0,"",กรอกข้อมูล!A163) -> 
M163: =IF(กรอกข้อมูล!A164=0,"",กรอกข้อมูล!A164) -> 
M164: =IF(กรอกข้อมูล!A165=0,"",กรอกข้อมูล!A165) -> 
M165: =IF(กรอกข้อมูล!A166=0,"",กรอกข้อมูล!A166) -> 
M166: =IF(กรอกข้อมูล!A167=0,"",กรอกข้อมูล!A167) -> 
M167: =IF(กรอกข้อมูล!A168=0,"",กรอกข้อมูล!A168) -> 
M168: =IF(กรอกข้อมูล!A169=0,"",กรอกข้อมูล!A169) -> 
M169: =IF(กรอกข้อมูล!A170=0,"",กรอกข้อมูล!A170) -> 
M170: =IF(กรอกข้อมูล!A171=0,"",กรอกข้อมูล!A171) -> 
M171: =IF(กรอกข้อมูล!A172=0,"",กรอกข้อมูล!A172) -> 
M172: =IF(กรอกข้อมูล!A173=0,"",กรอกข้อมูล!A173) -> 
M173: =IF(กรอกข้อมูล!A174=0,"",กรอกข้อมูล!A174) -> 
M174: =IF(กรอกข้อมูล!A175=0,"",กรอกข้อมูล!A175) -> 
M175: =IF(กรอกข้อมูล!A176=0,"",กรอกข้อมูล!A176) -> 
M176: =IF(กรอกข้อมูล!A177=0,"",กรอกข้อมูล!A177) -> 
M177: =IF(กรอกข้อมูล!A178=0,"",กรอกข้อมูล!A178) -> 
M178: =IF(กรอกข้อมูล!A179=0,"",กรอกข้อมูล!A179) -> 
M179: =IF(กรอกข้อมูล!A180=0,"",กรอกข้อมูล!A180) -> 
M180: =IF(กรอกข้อมูล!A181=0,"",กรอกข้อมูล!A181) -> 
M181: =IF(กรอกข้อมูล!A182=0,"",กรอกข้อมูล!A182) -> 
M182: =IF(กรอกข้อมูล!A183=0,"",กรอกข้อมูล!A183) -> 
M183: =IF(กรอกข้อมูล!A184=0,"",กรอกข้อมูล!A184) -> 
M184: =IF(กรอกข้อมูล!A185=0,"",กรอกข้อมูล!A185) -> 
M185: =IF(กรอกข้อมูล!A186=0,"",กรอกข้อมูล!A186) -> 
M186: =IF(กรอกข้อมูล!A187=0,"",กรอกข้อมูล!A187) -> 
M187: =IF(กรอกข้อมูล!A188=0,"",กรอกข้อมูล!A188) -> 
M188: =IF(กรอกข้อมูล!A189=0,"",กรอกข้อมูล!A189) -> 
M189: =IF(กรอกข้อมูล!A190=0,"",กรอกข้อมูล!A190) -> 
M190: =IF(กรอกข้อมูล!A191=0,"",กรอกข้อมูล!A191) -> 
M191: =IF(กรอกข้อมูล!A192=0,"",กรอกข้อมูล!A192) -> 
M192: =IF(กรอกข้อมูล!A193=0,"",กรอกข้อมูล!A193) -> 
A193: =M193 ->  | M193: =IF(กรอกข้อมูล!A194=0,"",กรอกข้อมูล!A194) -> 
M194: =IF(กรอกข้อมูล!A195=0,"",กรอกข้อมูล!A195) -> 
M195: =IF(กรอกข้อมูล!A196=0,"",กรอกข้อมูล!A196) -> 
M196: =IF(กรอกข้อมูล!A197=0,"",กรอกข้อมูล!A197) -> 
M197: =IF(กรอกข้อมูล!A198=0,"",กรอกข้อมูล!A198) -> 
M198: =IF(กรอกข้อมูล!A199=0,"",กรอกข้อมูล!A199) -> 
M199: =IF(กรอกข้อมูล!A200=0,"",กรอกข้อมูล!A200) -> 
M200: =IF(กรอกข้อมูล!A201=0,"",กรอกข้อมูล!A201) -> 
... 200 more rows

Sheet ไม่แจกแจง (hidden)
A1: ข้อมูล (X) | B1: X-m | C1: (X-m)2 | D1: =กรอกข้อมูล!A1 -> กรอกข้อมูล | E1: X-m | F1: (X-m)2 | H1: ค่าเฉลี่ยเลขคณิต (Mean) | K1: ค่ามัธยฐาน (Median) | O1: ค่าฐานนิยม (Mode) | R1: ข้อมูล (X) | S1: ความถี่ (f) | T1: ข้อมูล | U1: ความถี่
A2: =D2 -> 19 | B2: =E2 -> -2.58 | C2: =F2 -> 6.6564 | D2: =IF(กรอกข้อมูล!A2=0,"",กรอกข้อมูล!A2) -> 19 | E2: =IF(กรอกข้อมูล!A2=0,"",D2-I$6) -> -2.58 | F2: =IF(กรอกข้อมูล!A2=0,"",E2^2) -> 6.6564 | H2: ผลรวมข้อมูล = | I2: =$D$402 -> 1079 | R2: =T2 -> 12 | S2: =U2 -> 2 | T2: =IF(กรอกข้อมูล!AS2>กรอกข้อมูล!AO$2,"",กรอกข้อมูล!AS2) -> 12 | U2: =IF(กรอกข้อมูล!AS2>กรอกข้อมูล!AO$2,"",กรอกข้อมูล!AT2) -> 2
A3: 24 | B3: 2.42 | C3: 5.8564 | D3: =IF(กรอกข้อมูล!A3=0,"",กรอกข้อมูล!A3) -> 24 | E3: =IF(กรอกข้อมูล!A3=0,"",D3-I$6) -> 2.42 | F3: =IF(กรอกข้อมูล!A3=0,"",E3^2) -> 5.8564 | H3: = | I3: =$F$402 -> 1154.18 | K3: จำนวนข้อมูล = | L3: =กรอกข้อมูล!$AO$7 -> 50 | O3: ค่าความถี่สูงสุด = | P3: =กรอกข้อมูล!$AQ$33 -> 6 | R3: 13 | S3: 1 | T3: =IF(กรอกข้อมูล!AS3>กรอกข้อมูล!AO$2,"",กรอกข้อมูล!AS3) -> 13 | U3: =IF(กรอกข้อมูล!AS3>กรอกข้อมูล!AO$2,"",กรอกข้อมูล!AT3) -> 1
A4: 30 | B4: 8.42 | C4: 70.8964 | D4: =IF(กรอกข้อมูล!A4=0,"",กรอกข้อมูล!A4) -> 30 | E4: =IF(กรอกข้อมูล!A4=0,"",D4-I$6) -> 8.42 | F4: =IF(กรอกข้อมูล!A4=0,"",E4^2) -> 70.8964 | H4: n = | I4: =กรอกข้อมูล!$AO$7 -> 50 | K4: Med คี่ = | L4: (N+1)/2 = | M4: =กรอกข้อมูล!$AR$31 -> 0 | O4: ตรงกับข้อมูล = | P4: =กรอกข้อมูล!$AQ$34 -> 21 | R4: 14 | S4: 1 | T4: =IF(กรอกข้อมูล!AS4>กรอกข้อมูล!AO$2,"",กรอกข้อมูล!AS4) -> 14 | U4: =IF(กรอกข้อมูล!AS4>กรอกข้อมูล!AO$2,"",กรอกข้อมูล!AT4) -> 1
A5: 14 | B5: -7.58 | C5: 57.4564 | D5: =IF(กรอกข้อมูล!A5=0,"",กรอกข้อมูล!A5) -> 14 | E5: =IF(กรอกข้อมูล!A5=0,"",D5-I$6) -> -7.58 | F5: =IF(กรอกข้อมูล!A5=0,"",E5^2) -> 57.4564 | H5: ค่าเฉลี่ยเลขคณิต = | I5: ผลรวม X/n | K5: Med คู่ = | L5: N/2 และ N/2 +1 | O5: สำหรับข้อมูลที่มีความถี่มากที่สุดหลายค่า | R5: 15 | S5: 2 | T5: =IF(กรอกข้อมูล!AS5>กรอกข้อมูล!AO$2,"",กรอกข้อมูล!AS5) -> 15 | U5: =IF(กรอกข้อมูล!AS5>กรอกข้อมูล!AO$2,"",กรอกข้อมูล!AT5) -> 2
A6: 31 | B6: 9.42 | C6: 88.7364 | D6: =IF(กรอกข้อมูล!A6=0,"",กรอกข้อมูล!A6) -> 31 | E6: =IF(กรอกข้อมูล!A6=0,"",D6-I$6) -> 9.42 | F6: =IF(กรอกข้อมูล!A6=0,"",E6^2) -> 88.7364 | H6: Mean = | I6: =I2/I4 -> 21.58 | K6: N/2 = | L6: ตรงกับตำแหน่งที่ | M6: =กรอกข้อมูล!AQ28 -> 25 | O6: ให้ท่านเลือกด้วยตนเองจากตาราง => | R6: 16 | S6: 2 | T6: =IF(กรอกข้อมูล!AS6>กรอกข้อมูล!AO$2,"",กรอกข้อมูล!AS6) -> 16 | U6: =IF(กรอกข้อมูล!AS6>กรอกข้อมูล!AO$2,"",กรอกข้อมูล!AT6) -> 2
A7: 12 | B7: -9.58 | C7: 91.7764 | D7: =IF(กรอกข้อมูล!A7=0,"",กรอกข้อมูล!A7) -> 12 | E7: =IF(กรอกข้อมูล!A7=0,"",D7-I$6) -> -9.58 | F7: =IF(กรอกข้อมูล!A7=0,"",E7^2) -> 91.7764 | H7: ประชากร | L7: ตรงกับข้อมูล = | M7: =กรอกข้อมูล!$AQ$29 -> 21 | O7: หรือถ้าต้องการใช้เป็นค่าเดียวให้ใช้สูตร | R7: 17 | S7: 3 | T7: =IF(กรอกข้อมูล!AS7>กรอกข้อมูล!AO$2,"",กรอกข้อมูล!AS7) -> 17 | U7: =IF(กรอกข้อมูล!AS7>กรอกข้อมูล!AO$2,"",กรอกข้อมูล!AT7) -> 3
A8: 29 | B8: 7.42 | C8: 55.0564 | D8: =IF(กรอกข้อมูล!A8=0,"",กรอกข้อมูล!A8) -> 29 | E8: =IF(กรอกข้อมูล!A8=0,"",D8-I$6) -> 7.42 | F8: =IF(กรอกข้อมูล!A8=0,"",E8^2) -> 55.0564 | H8: ส่วนเบี่ยงเบนมาตรฐาน = | I8: =SQRT(I3/I4) -> 4.80453952 | K8: N/2 +1 = | L8: ตรงกับตำแหน่งที่ | M8: =กรอกข้อมูล!AR28 -> 26 | O8: Mode = 3(Median) - 2(Mean) | R8: 18 | S8: 2 | T8: =IF(กรอกข้อมูล!AS8>กรอกข้อมูล!AO$2,"",กรอกข้อมูล!AS8) -> 18 | U8: =IF(กรอกข้อมูล!AS8>กรอกข้อมูล!AO$2,"",กรอกข้อมูล!AT8) -> 2
A9: 26 | B9: 4.42 | C9: 19.5364 | D9: =IF(กรอกข้อมูล!A9=0,"",กรอกข้อมูล!A9) -> 26 | E9: =IF(กรอกข้อมูล!A9=0,"",D9-I$6) -> 4.42 | F9: =IF(กรอกข้อมูล!A9=0,"",E9^2) -> 19.5364 | H9: ความแปรปรวน = | I9: =I8^2 -> 23.0836 | L9: ตรงกับข้อมูล = | M9: =กรอกข้อมูล!$AR$29 -> 21 | O9: Mode = | P9: =3*M11-2*I6 -> 19.84 | R9: 19 | S9: 4 | T9: =IF(กรอกข้อมูล!AS9>กรอกข้อมูล!AO$2,"",กรอกข้อมูล!AS9) -> 19 | U9: =IF(กรอกข้อมูล!AS9>กรอกข้อมูล!AO$2,"",กรอกข้อมูล!AT9) -> 4
A10: 23 | B10: 1.42 | C10: 2.0164 | D10: =IF(กรอกข้อมูล!A10=0,"",กรอกข้อมูล!A10) -> 23 | E10: =IF(กรอกข้อมูล!A10=0,"",D10-I$6) -> 1.42 | F10: =IF(กรอกข้อมูล!A10=0,"",E10^2) -> 2.0164 | H10: ตัวอย่าง | R10: 20 | S10: 3 | T10: =IF(กรอกข้อมูล!AS10>กรอกข้อมูล!AO$2,"",กรอกข้อมูล!AS10) -> 20 | U10: =IF(กรอกข้อมูล!AS10>กรอกข้อมูล!AO$2,"",กรอกข้อมูล!AT10) -> 3
A11: 23 | B11: 1.42 | C11: 2.0164 | D11: =IF(กรอกข้อมูล!A11=0,"",กรอกข้อมูล!A11) -> 23 | E11: =IF(กรอกข้อมูล!A11=0,"",D11-I$6) -> 1.42 | F11: =IF(กรอกข้อมูล!A11=0,"",E11^2) -> 2.0164 | H11: ส่วนเบี่ยงเบนมาตรฐาน = | I11: =SQRT(I3/(I4-1)) -> 4.853317822 | K11: แสดงว่าต้องใช้สูตรของ | L11: =กรอกข้อมูล!AP32 -> Med คู่ = | M11: =กรอกข้อมูล!AQ32 -> 21 | R11: 21 | S11: 6 | T11: =IF(กรอกข้อมูล!AS11>กรอกข้อมูล!AO$2,"",กรอกข้อมูล!AS11) -> 21 | U11: =IF(กรอกข้อมูล!AS11>กรอกข้อมูล!AO$2,"",กรอกข้อมูล!AT11) -> 6
A12: 20 | B12: -1.58 | C12: 2.4964 | D12: =IF(กรอกข้อมูล!A12=0,"",กรอกข้อมูล!A12) -> 20 | E12: =IF(กรอกข้อมูล!A12=0,"",D12-I$6) -> -1.58 | F12: =IF(กรอกข้อมูล!A12=0,"",E12^2) -> 2.4964 | H12: ความแปรปรวน = | I12: =I11^2 -> 23.55469388 | K12: (หมายเหตุ: ต้องใช้แผ่นงานเรียงข้อมูลก่อน) | R12: 22 | S12: 2 | T12: =IF(กรอกข้อมูล!AS12>กรอกข้อมูล!AO$2,"",กรอกข้อมูล!AS12) -> 22 | U12: =IF(กรอกข้อมูล!AS12>กรอกข้อมูล!AO$2,"",กรอกข้อมูล!AT12) -> 2
A13: 25 | B13: 3.42 | C13: 11.6964 | D13: =IF(กรอกข้อมูล!A13=0,"",กรอกข้อมูล!A13) -> 25 | E13: =IF(กรอกข้อมูล!A13=0,"",D13-I$6) -> 3.42 | F13: =IF(กรอกข้อมูล!A13=0,"",E13^2) -> 11.6964 | R13: 23 | S13: 4 | T13: =IF(กรอกข้อมูล!AS13>กรอกข้อมูล!AO$2,"",กรอกข้อมูล!AS13) -> 23 | U13: =IF(กรอกข้อมูล!AS13>กรอกข้อมูล!AO$2,"",กรอกข้อมูล!AT13) -> 4
A14: 17 | B14: -4.58 | C14: 20.9764 | D14: =IF(กรอกข้อมูล!A14=0,"",กรอกข้อมูล!A14) -> 17 | E14: =IF(กรอกข้อมูล!A14=0,"",D14-I$6) -> -4.58 | F14: =IF(กรอกข้อมูล!A14=0,"",E14^2) -> 20.9764 | H14: ถ้าใช้สูตรคำนวณของโปรแกรม Excel จะได้ผลลัพธ์ ดังนี้ | R14: 24 | S14: 3 | T14: =IF(กรอกข้อมูล!AS14>กรอกข้อมูล!AO$2,"",กรอกข้อมูล!AS14) -> 24 | U14: =IF(กรอกข้อมูล!AS14>กรอกข้อมูล!AO$2,"",กรอกข้อมูล!AT14) -> 3
A15: 15 | B15: -6.58 | C15: 43.2964 | D15: =IF(กรอกข้อมูล!A15=0,"",กรอกข้อมูล!A15) -> 15 | E15: =IF(กรอกข้อมูล!A15=0,"",D15-I$6) -> -6.58 | F15: =IF(กรอกข้อมูล!A15=0,"",E15^2) -> 43.2964 | H15: =กรอกข้อมูล!AN35 -> Mean excel = | I15: =กรอกข้อมูล!AO35 -> 21.58 | K15: =กรอกข้อมูล!AN29 -> Med excel = | L15: =กรอกข้อมูล!AO29 -> 21 | O15: =กรอกข้อมูล!AN34 -> Mod excel = | P15: =กรอกข้อมูล!AO34 -> 21 | R15: 25 | S15: 3 | T15: =IF(กรอกข้อมูล!AS15>กรอกข้อมูล!AO$2,"",กรอกข้อมูล!AS15) -> 25 | U15: =IF(กรอกข้อมูล!AS15>กรอกข้อมูล!AO$2,"",กรอกข้อมูล!AT15) -> 3
A16: 22 | B16: 0.42 | C16: 0.1764 | D16: =IF(กรอกข้อมูล!A16=0,"",กรอกข้อมูล!A16) -> 22 | E16: =IF(กรอกข้อมูล!A16=0,"",D16-I$6) -> 0.42 | F16: =IF(กรอกข้อมูล!A16=0,"",E16^2) -> 0.1764 | R16: 26 | S16: 4 | T16: =IF(กรอกข้อมูล!AS16>กรอกข้อมูล!AO$2,"",กรอกข้อมูล!AS16) -> 26 | U16: =IF(กรอกข้อมูล!AS16>กรอกข้อมูล!AO$2,"",กรอกข้อมูล!AT16) -> 4
A17: 28 | B17: 6.42 | C17: 41.2164 | D17: =IF(กรอกข้อมูล!A17=0,"",กรอกข้อมูล!A17) -> 28 | E17: =IF(กรอกข้อมูล!A17=0,"",D17-I$6) -> 6.42 | F17: =IF(กรอกข้อมูล!A17=0,"",E17^2) -> 41.2164 | R17: 27 | S17: 2 | T17: =IF(กรอกข้อมูล!AS17>กรอกข้อมูล!AO$2,"",กรอกข้อมูล!AS17) -> 27 | U17: =IF(กรอกข้อมูล!AS17>กรอกข้อมูล!AO$2,"",กรอกข้อมูล!AT17) -> 2
A18: 12 | B18: -9.58 | C18: 91.7764 | D18: =IF(กรอกข้อมูล!A18=0,"",กรอกข้อมูล!A18) -> 12 | E18: =IF(กรอกข้อมูล!A18=0,"",D18-I$6) -> -9.58 | F18: =IF(กรอกข้อมูล!A18=0,"",E18^2) -> 91.7764 | R18: 28 | S18: 2 | T18: =IF(กรอกข้อมูล!AS18>กรอกข้อมูล!AO$2,"",กรอกข้อมูล!AS18) -> 28 | U18: =IF(กรอกข้อมูล!AS18>กรอกข้อมูล!AO$2,"",กรอกข้อมูล!AT18) -> 2
A19: 27 | B19: 5.42 | C19: 29.3764 | D19: =IF(กรอกข้อมูล!A19=0,"",กรอกข้อมูล!A19) -> 27 | E19: =IF(กรอกข้อมูล!A19=0,"",D19-I$6) -> 5.42 | F19: =IF(กรอกข้อมูล!A19=0,"",E19^2) -> 29.3764 | R19: 29 | S19: 1 | T19: =IF(กรอกข้อมูล!AS19>กรอกข้อมูล!AO$2,"",กรอกข้อมูล!AS19) -> 29 | U19: =IF(กรอกข้อมูล!AS19>กรอกข้อมูล!AO$2,"",กรอกข้อมูล!AT19) -> 1
A20: 19 | B20: -2.58 | C20: 6.6564 | D20: =IF(กรอกข้อมูล!A20=0,"",กรอกข้อมูล!A20) -> 19 | E20: =IF(กรอกข้อมูล!A20=0,"",D20-I$6) -> -2.58 | F20: =IF(กรอกข้อมูล!A20=0,"",E20^2) -> 6.6564 | R20: 30 | S20: 2 | T20: =IF(กรอกข้อมูล!AS20>กรอกข้อมูล!AO$2,"",กรอกข้อมูล!AS20) -> 30 | U20: =IF(กรอกข้อมูล!AS20>กรอกข้อมูล!AO$2,"",กรอกข้อมูล!AT20) -> 2
A21: 26 | B21: 4.42 | C21: 19.5364 | D21: =IF(กรอกข้อมูล!A21=0,"",กรอกข้อมูล!A21) -> 26 | E21: =IF(กรอกข้อมูล!A21=0,"",D21-I$6) -> 4.42 | F21: =IF(กรอกข้อมูล!A21=0,"",E21^2) -> 19.5364 | R21: 31 | S21: 1 | T21: =IF(กรอกข้อมูล!AS21>กรอกข้อมูล!AO$2,"",กรอกข้อมูล!AS21) -> 31 | U21: =IF(กรอกข้อมูล!AS21>กรอกข้อมูล!AO$2,"",กรอกข้อมูล!AT21) -> 1
A22: 25 | B22: 3.42 | C22: 11.6964 | D22: =IF(กรอกข้อมูล!A22=0,"",กรอกข้อมูล!A22) -> 25 | E22: =IF(กรอกข้อมูล!A22=0,"",D22-I$6) -> 3.42 | F22: =IF(กรอกข้อมูล!A22=0,"",E22^2) -> 11.6964 | T22: =IF(กรอกข้อมูล!AS22>กรอกข้อมูล!AO$2,"",กรอกข้อมูล!AS22) ->  | U22: =IF(กรอกข้อมูล!AS22>กรอกข้อมูล!AO$2,"",กรอกข้อมูล!AT22) -> 
A23: 30 | B23: 8.42 | C23: 70.8964 | D23: =IF(กรอกข้อมูล!A23=0,"",กรอกข้อมูล!A23) -> 30 | E23: =IF(กรอกข้อมูล!A23=0,"",D23-I$6) -> 8.42 | F23: =IF(กรอกข้อมูล!A23=0,"",E23^2) -> 70.8964 | T23: =IF(กรอกข้อมูล!AS23>กรอกข้อมูล!AO$2,"",กรอกข้อมูล!AS23) ->  | U23: =IF(กรอกข้อมูล!AS23>กรอกข้อมูล!AO$2,"",กรอกข้อมูล!AT23) -> 
A24: 15 | B24: -6.58 | C24: 43.2964 | D24: =IF(กรอกข้อมูล!A24=0,"",กรอกข้อมูล!A24) -> 15 | E24: =IF(กรอกข้อมูล!A24=0,"",D24-I$6) -> -6.58 | F24: =IF(กรอกข้อมูล!A24=0,"",E24^2) -> 43.2964 | T24: =IF(กรอกข้อมูล!AS24>กรอกข้อมูล!AO$2,"",กรอกข้อมูล!AS24) ->  | U24: =IF(กรอกข้อมูล!AS24>กรอกข้อมูล!AO$2,"",กรอกข้อมูล!AT24) -> 
A25: 19 | B25: -2.58 | C25: 6.6564 | D25: =IF(กรอกข้อมูล!A25=0,"",กรอกข้อมูล!A25) -> 19 | E25: =IF(กรอกข้อมูล!A25=0,"",D25-I$6) -> -2.58 | F25: =IF(กรอกข้อมูล!A25=0,"",E25^2) -> 6.6564 | T25: =IF(กรอกข้อมูล!AS25>กรอกข้อมูล!AO$2,"",กรอกข้อมูล!AS25) ->  | U25: =IF(กรอกข้อมูล!AS25>กรอกข้อมูล!AO$2,"",กรอกข้อมูล!AT25) -> 
A26: 19 | B26: -2.58 | C26: 6.6564 | D26: =IF(กรอกข้อมูล!A26=0,"",กรอกข้อมูล!A26) -> 19 | E26: =IF(กรอกข้อมูล!A26=0,"",D26-I$6) -> -2.58 | F26: =IF(กรอกข้อมูล!A26=0,"",E26^2) -> 6.6564 | T26: =IF(กรอกข้อมูล!AS26>กรอกข้อมูล!AO$2,"",กรอกข้อมูล!AS26) ->  | U26: =IF(กรอกข้อมูล!AS26>กรอกข้อมูล!AO$2,"",กรอกข้อมูล!AT26) -> 
A27: 23 | B27: 1.42 | C27: 2.0164 | D27: =IF(กรอกข้อมูล!A27=0,"",กรอกข้อมูล!A27) -> 23 | E27: =IF(กรอกข้อมูล!A27=0,"",D27-I$6) -> 1.42 | F27: =IF(กรอกข้อมูล!A27=0,"",E27^2) -> 2.0164 | T27: =IF(กรอกข้อมูล!AS27>กรอกข้อมูล!AO$2,"",กรอกข้อมูล!AS27) ->  | U27: =IF(กรอกข้อมูล!AS27>กรอกข้อมูล!AO$2,"",กรอกข้อมูล!AT27) -> 
A28: 22 | B28: 0.42 | C28: 0.1764 | D28: =IF(กรอกข้อมูล!A28=0,"",กรอกข้อมูล!A28) -> 22 | E28: =IF(กรอกข้อมูล!A28=0,"",D28-I$6) -> 0.42 | F28: =IF(กรอกข้อมูล!A28=0,"",E28^2) -> 0.1764 | T28: =IF(กรอกข้อมูล!AS28>กรอกข้อมูล!AO$2,"",กรอกข้อมูล!AS28) ->  | U28: =IF(กรอกข้อมูล!AS28>กรอกข้อมูล!AO$2,"",กรอกข้อมูล!AT28) -> 
A29: 21 | B29: -0.58 | C29: 0.3364 | D29: =IF(กรอกข้อมูล!A29=0,"",กรอกข้อมูล!A29) -> 21 | E29: =IF(กรอกข้อมูล!A29=0,"",D29-I$6) -> -0.58 | F29: =IF(กรอกข้อมูล!A29=0,"",E29^2) -> 0.3364 | T29: =IF(กรอกข้อมูล!AS29>กรอกข้อมูล!AO$2,"",กรอกข้อมูล!AS29) ->  | U29: =IF(กรอกข้อมูล!AS29>กรอกข้อมูล!AO$2,"",กรอกข้อมูล!AT29) -> 
A30: 21 | B30: -0.58 | C30: 0.3364 | D30: =IF(กรอกข้อมูล!A30=0,"",กรอกข้อมูล!A30) -> 21 | E30: =IF(กรอกข้อมูล!A30=0,"",D30-I$6) -> -0.58 | F30: =IF(กรอกข้อมูล!A30=0,"",E30^2) -> 0.3364 | T30: =IF(กรอกข้อมูล!AS30>กรอกข้อมูล!AO$2,"",กรอกข้อมูล!AS30) ->  | U30: =IF(กรอกข้อมูล!AS30>กรอกข้อมูล!AO$2,"",กรอกข้อมูล!AT30) -> 
A31: 27 | B31: 5.42 | C31: 29.3764 | D31: =IF(กรอกข้อมูล!A31=0,"",กรอกข้อมูล!A31) -> 27 | E31: =IF(กรอกข้อมูล!A31=0,"",D31-I$6) -> 5.42 | F31: =IF(กรอกข้อมูล!A31=0,"",E31^2) -> 29.3764 | T31: =IF(กรอกข้อมูล!AS31>กรอกข้อมูล!AO$2,"",กรอกข้อมูล!AS31) ->  | U31: =IF(กรอกข้อมูล!AS31>กรอกข้อมูล!AO$2,"",กรอกข้อมูล!AT31) -> 
A32: 16 | B32: -5.58 | C32: 31.1364 | D32: =IF(กรอกข้อมูล!A32=0,"",กรอกข้อมูล!A32) -> 16 | E32: =IF(กรอกข้อมูล!A32=0,"",D32-I$6) -> -5.58 | F32: =IF(กรอกข้อมูล!A32=0,"",E32^2) -> 31.1364 | T32: =IF(กรอกข้อมูล!AS32>กรอกข้อมูล!AO$2,"",กรอกข้อมูล!AS32) ->  | U32: =IF(กรอกข้อมูล!AS32>กรอกข้อมูล!AO$2,"",กรอกข้อมูล!AT32) -> 
A33: 26 | B33: 4.42 | C33: 19.5364 | D33: =IF(กรอกข้อมูล!A33=0,"",กรอกข้อมูล!A33) -> 26 | E33: =IF(กรอกข้อมูล!A33=0,"",D33-I$6) -> 4.42 | F33: =IF(กรอกข้อมูล!A33=0,"",E33^2) -> 19.5364 | T33: =IF(กรอกข้อมูล!AS33>กรอกข้อมูล!AO$2,"",กรอกข้อมูล!AS33) ->  | U33: =IF(กรอกข้อมูล!AS33>กรอกข้อมูล!AO$2,"",กรอกข้อมูล!AT33) -> 
A34: 26 | B34: 4.42 | C34: 19.5364 | D34: =IF(กรอกข้อมูล!A34=0,"",กรอกข้อมูล!A34) -> 26 | E34: =IF(กรอกข้อมูล!A34=0,"",D34-I$6) -> 4.42 | F34: =IF(กรอกข้อมูล!A34=0,"",E34^2) -> 19.5364 | T34: =IF(กรอกข้อมูล!AS34>กรอกข้อมูล!AO$2,"",กรอกข้อมูล!AS34) ->  | U34: =IF(กรอกข้อมูล!AS34>กรอกข้อมูล!AO$2,"",กรอกข้อมูล!AT34) -> 
A35: 28 | B35: 6.42 | C35: 41.2164 | D35: =IF(กรอกข้อมูล!A35=0,"",กรอกข้อมูล!A35) -> 28 | E35: =IF(กรอกข้อมูล!A35=0,"",D35-I$6) -> 6.42 | F35: =IF(กรอกข้อมูล!A35=0,"",E35^2) -> 41.2164 | T35: =IF(กรอกข้อมูล!AS35>กรอกข้อมูล!AO$2,"",กรอกข้อมูล!AS35) ->  | U35: =IF(กรอกข้อมูล!AS35>กรอกข้อมูล!AO$2,"",กรอกข้อมูล!AT35) -> 
A36: 21 | B36: -0.58 | C36: 0.3364 | D36: =IF(กรอกข้อมูล!A36=0,"",กรอกข้อมูล!A36) -> 21 | E36: =IF(กรอกข้อมูล!A36=0,"",D36-I$6) -> -0.58 | F36: =IF(กรอกข้อมูล!A36=0,"",E36^2) -> 0.3364 | T36: =IF(กรอกข้อมูล!AS36>กรอกข้อมูล!AO$2,"",กรอกข้อมูล!AS36) ->  | U36: =IF(กรอกข้อมูล!AS36>กรอกข้อมูล!AO$2,"",กรอกข้อมูล!AT36) -> 
A37: 17 | B37: -4.58 | C37: 20.9764 | D37: =IF(กรอกข้อมูล!A37=0,"",กรอกข้อมูล!A37) -> 17 | E37: =IF(กรอกข้อมูล!A37=0,"",D37-I$6) -> -4.58 | F37: =IF(กรอกข้อมูล!A37=0,"",E37^2) -> 20.9764 | T37: =IF(กรอกข้อมูล!AS37>กรอกข้อมูล!AO$2,"",กรอกข้อมูล!AS37) ->  | U37: =IF(กรอกข้อมูล!AS37>กรอกข้อมูล!AO$2,"",กรอกข้อมูล!AT37) -> 
A38: 13 | B38: -8.58 | C38: 73.6164 | D38: =IF(กรอกข้อมูล!A38=0,"",กรอกข้อมูล!A38) -> 13 | E38: =IF(กรอกข้อมูล!A38=0,"",D38-I$6) -> -8.58 | F38: =IF(กรอกข้อมูล!A38=0,"",E38^2) -> 73.6164 | T38: =IF(กรอกข้อมูล!AS38>กรอกข้อมูล!AO$2,"",กรอกข้อมูล!AS38) ->  | U38: =IF(กรอกข้อมูล!AS38>กรอกข้อมูล!AO$2,"",กรอกข้อมูล!AT38) -> 
A39: 17 | B39: -4.58 | C39: 20.9764 | D39: =IF(กรอกข้อมูล!A39=0,"",กรอกข้อมูล!A39) -> 17 | E39: =IF(กรอกข้อมูล!A39=0,"",D39-I$6) -> -4.58 | F39: =IF(กรอกข้อมูล!A39=0,"",E39^2) -> 20.9764 | T39: =IF(กรอกข้อมูล!AS39>กรอกข้อมูล!AO$2,"",กรอกข้อมูล!AS39) ->  | U39: =IF(กรอกข้อมูล!AS39>กรอกข้อมูล!AO$2,"",กรอกข้อมูล!AT39) -> 
A40: 24 | B40: 2.42 | C40: 5.8564 | D40: =IF(กรอกข้อมูล!A40=0,"",กรอกข้อมูล!A40) -> 24 | E40: =IF(กรอกข้อมูล!A40=0,"",D40-I$6) -> 2.42 | F40: =IF(กรอกข้อมูล!A40=0,"",E40^2) -> 5.8564 | T40: =IF(กรอกข้อมูล!AS40>กรอกข้อมูล!AO$2,"",กรอกข้อมูล!AS40) ->  | U40: =IF(กรอกข้อมูล!AS40>กรอกข้อมูล!AO$2,"",กรอกข้อมูล!AT40) -> 
A41: 21 | B41: -0.58 | C41: 0.3364 | D41: =IF(กรอกข้อมูล!A41=0,"",กรอกข้อมูล!A41) -> 21 | E41: =IF(กรอกข้อมูล!A41=0,"",D41-I$6) -> -0.58 | F41: =IF(กรอกข้อมูล!A41=0,"",E41^2) -> 0.3364 | T41: =IF(กรอกข้อมูล!AS41>กรอกข้อมูล!AO$2,"",กรอกข้อมูล!AS41) ->  | U41: =IF(กรอกข้อมูล!AS41>กรอกข้อมูล!AO$2,"",กรอกข้อมูล!AT41) -> 
A42: 20 | B42: -1.58 | C42: 2.4964 | D42: =IF(กรอกข้อมูล!A42=0,"",กรอกข้อมูล!A42) -> 20 | E42: =IF(กรอกข้อมูล!A42=0,"",D42-I$6) -> -1.58 | F42: =IF(กรอกข้อมูล!A42=0,"",E42^2) -> 2.4964 | T42: =IF(กรอกข้อมูล!AS42>กรอกข้อมูล!AO$2,"",กรอกข้อมูล!AS42) ->  | U42: =IF(กรอกข้อมูล!AS42>กรอกข้อมูล!AO$2,"",กรอกข้อมูล!AT42) -> 
A43: 16 | B43: -5.58 | C43: 31.1364 | D43: =IF(กรอกข้อมูล!A43=0,"",กรอกข้อมูล!A43) -> 16 | E43: =IF(กรอกข้อมูล!A43=0,"",D43-I$6) -> -5.58 | F43: =IF(กรอกข้อมูล!A43=0,"",E43^2) -> 31.1364 | T43: =IF(กรอกข้อมูล!AS43>กรอกข้อมูล!AO$2,"",กรอกข้อมูล!AS43) ->  | U43: =IF(กรอกข้อมูล!AS43>กรอกข้อมูล!AO$2,"",กรอกข้อมูล!AT43) -> 
A44: 20 | B44: -1.58 | C44: 2.4964 | D44: =IF(กรอกข้อมูล!A44=0,"",กรอกข้อมูล!A44) -> 20 | E44: =IF(กรอกข้อมูล!A44=0,"",D44-I$6) -> -1.58 | F44: =IF(กรอกข้อมูล!A44=0,"",E44^2) -> 2.4964 | T44: =IF(กรอกข้อมูล!AS44>กรอกข้อมูล!AO$2,"",กรอกข้อมูล!AS44) ->  | U44: =IF(กรอกข้อมูล!AS44>กรอกข้อมูล!AO$2,"",กรอกข้อมูล!AT44) -> 
A45: 25 | B45: 3.42 | C45: 11.6964 | D45: =IF(กรอกข้อมูล!A45=0,"",กรอกข้อมูล!A45) -> 25 | E45: =IF(กรอกข้อมูล!A45=0,"",D45-I$6) -> 3.42 | F45: =IF(กรอกข้อมูล!A45=0,"",E45^2) -> 11.6964 | T45: =IF(กรอกข้อมูล!AS45>กรอกข้อมูล!AO$2,"",กรอกข้อมูล!AS45) ->  | U45: =IF(กรอกข้อมูล!AS45>กรอกข้อมูล!AO$2,"",กรอกข้อมูล!AT45) -> 
A46: 21 | B46: -0.58 | C46: 0.3364 | D46: =IF(กรอกข้อมูล!A46=0,"",กรอกข้อมูล!A46) -> 21 | E46: =IF(กรอกข้อมูล!A46=0,"",D46-I$6) -> -0.58 | F46: =IF(กรอกข้อมูล!A46=0,"",E46^2) -> 0.3364 | T46: =IF(กรอกข้อมูล!AS46>กรอกข้อมูล!AO$2,"",กรอกข้อมูล!AS46) ->  | U46: =IF(กรอกข้อมูล!AS46>กรอกข้อมูล!AO$2,"",กรอกข้อมูล!AT46) -> 
A47: 23 | B47: 1.42 | C47: 2.0164 | D47: =IF(กรอกข้อมูล!A47=0,"",กรอกข้อมูล!A47) -> 23 | E47: =IF(กรอกข้อมูล!A47=0,"",D47-I$6) -> 1.42 | F47: =IF(กรอกข้อมูล!A47=0,"",E47^2) -> 2.0164 | T47: =IF(กรอกข้อมูล!AS47>กรอกข้อมูล!AO$2,"",กรอกข้อมูล!AS47) ->  | U47: =IF(กรอกข้อมูล!AS47>กรอกข้อมูล!AO$2,"",กรอกข้อมูล!AT47) -> 
A48: 24 | B48: 2.42 | C48: 5.8564 | D48: =IF(กรอกข้อมูล!A48=0,"",กรอกข้อมูล!A48) -> 24 | E48: =IF(กรอกข้อมูล!A48=0,"",D48-I$6) -> 2.42 | F48: =IF(กรอกข้อมูล!A48=0,"",E48^2) -> 5.8564 | T48: =IF(กรอกข้อมูล!AS48>กรอกข้อมูล!AO$2,"",กรอกข้อมูล!AS48) ->  | U48: =IF(กรอกข้อมูล!AS48>กรอกข้อมูล!AO$2,"",กรอกข้อมูล!AT48) -> 
A49: 21 | B49: -0.58 | C49: 0.3364 | D49: =IF(กรอกข้อมูล!A49=0,"",กรอกข้อมูล!A49) -> 21 | E49: =IF(กรอกข้อมูล!A49=0,"",D49-I$6) -> -0.58 | F49: =IF(กรอกข้อมูล!A49=0,"",E49^2) -> 0.3364 | T49: =IF(กรอกข้อมูล!AS49>กรอกข้อมูล!AO$2,"",กรอกข้อมูล!AS49) ->  | U49: =IF(กรอกข้อมูล!AS49>กรอกข้อมูล!AO$2,"",กรอกข้อมูล!AT49) -> 
A50: 18 | B50: -3.58 | C50: 12.8164 | D50: =IF(กรอกข้อมูล!A50=0,"",กรอกข้อมูล!A50) -> 18 | E50: =IF(กรอกข้อมูล!A50=0,"",D50-I$6) -> -3.58 | F50: =IF(กรอกข้อมูล!A50=0,"",E50^2) -> 12.8164 | T50: =IF(กรอกข้อมูล!AS50>กรอกข้อมูล!AO$2,"",กรอกข้อมูล!AS50) ->  | U50: =IF(กรอกข้อมูล!AS50>กรอกข้อมูล!AO$2,"",กรอกข้อมูล!AT50) -> 
A51: 18 | B51: -3.58 | C51: 12.8164 | D51: =IF(กรอกข้อมูล!A51=0,"",กรอกข้อมูล!A51) -> 18 | E51: =IF(กรอกข้อมูล!A51=0,"",D51-I$6) -> -3.58 | F51: =IF(กรอกข้อมูล!A51=0,"",E51^2) -> 12.8164 | T51: =IF(กรอกข้อมูล!AS51>กรอกข้อมูล!AO$2,"",กรอกข้อมูล!AS51) ->  | U51: =IF(กรอกข้อมูล!AS51>กรอกข้อมูล!AO$2,"",กรอกข้อมูล!AT51) -> 
D52: =IF(กรอกข้อมูล!A52=0,"",กรอกข้อมูล!A52) ->  | E52: =IF(กรอกข้อมูล!A52=0,"",D52-I$6) ->  | F52: =IF(กรอกข้อมูล!A52=0,"",E52^2) ->  | T52: =IF(กรอกข้อมูล!AS52>กรอกข้อมูล!AO$2,"",กรอกข้อมูล!AS52) ->  | U52: =IF(กรอกข้อมูล!AS52>กรอกข้อมูล!AO$2,"",กรอกข้อมูล!AT52) -> 
D53: =IF(กรอกข้อมูล!A53=0,"",กรอกข้อมูล!A53) ->  | E53: =IF(กรอกข้อมูล!A53=0,"",D53-I$6) ->  | F53: =IF(กรอกข้อมูล!A53=0,"",E53^2) ->  | T53: =IF(กรอกข้อมูล!AS53>กรอกข้อมูล!AO$2,"",กรอกข้อมูล!AS53) ->  | U53: =IF(กรอกข้อมูล!AS53>กรอกข้อมูล!AO$2,"",กรอกข้อมูล!AT53) -> 
D54: =IF(กรอกข้อมูล!A54=0,"",กรอกข้อมูล!A54) ->  | E54: =IF(กรอกข้อมูล!A54=0,"",D54-I$6) ->  | F54: =IF(กรอกข้อมูล!A54=0,"",E54^2) ->  | T54: =IF(กรอกข้อมูล!AS54>กรอกข้อมูล!AO$2,"",กรอกข้อมูล!AS54) ->  | U54: =IF(กรอกข้อมูล!AS54>กรอกข้อมูล!AO$2,"",กรอกข้อมูล!AT54) -> 
D55: =IF(กรอกข้อมูล!A55=0,"",กรอกข้อมูล!A55) ->  | E55: =IF(กรอกข้อมูล!A55=0,"",D55-I$6) ->  | F55: =IF(กรอกข้อมูล!A55=0,"",E55^2) ->  | T55: =IF(กรอกข้อมูล!AS55>กรอกข้อมูล!AO$2,"",กรอกข้อมูล!AS55) ->  | U55: =IF(กรอกข้อมูล!AS55>กรอกข้อมูล!AO$2,"",กรอกข้อมูล!AT55) -> 
D56: =IF(กรอกข้อมูล!A56=0,"",กรอกข้อมูล!A56) ->  | E56: =IF(กรอกข้อมูล!A56=0,"",D56-I$6) ->  | F56: =IF(กรอกข้อมูล!A56=0,"",E56^2) ->  | T56: =IF(กรอกข้อมูล!AS56>กรอกข้อมูล!AO$2,"",กรอกข้อมูล!AS56) ->  | U56: =IF(กรอกข้อมูล!AS56>กรอกข้อมูล!AO$2,"",กรอกข้อมูล!AT56) -> 
D57: =IF(กรอกข้อมูล!A57=0,"",กรอกข้อมูล!A57) ->  | E57: =IF(กรอกข้อมูล!A57=0,"",D57-I$6) ->  | F57: =IF(กรอกข้อมูล!A57=0,"",E57^2) ->  | T57: =IF(กรอกข้อมูล!AS57>กรอกข้อมูล!AO$2,"",กรอกข้อมูล!AS57) ->  | U57: =IF(กรอกข้อมูล!AS57>กรอกข้อมูล!AO$2,"",กรอกข้อมูล!AT57) -> 
D58: =IF(กรอกข้อมูล!A58=0,"",กรอกข้อมูล!A58) ->  | E58: =IF(กรอกข้อมูล!A58=0,"",D58-I$6) ->  | F58: =IF(กรอกข้อมูล!A58=0,"",E58^2) ->  | T58: =IF(กรอกข้อมูล!AS58>กรอกข้อมูล!AO$2,"",กรอกข้อมูล!AS58) ->  | U58: =IF(กรอกข้อมูล!AS58>กรอกข้อมูล!AO$2,"",กรอกข้อมูล!AT58) -> 
D59: =IF(กรอกข้อมูล!A59=0,"",กรอกข้อมูล!A59) ->  | E59: =IF(กรอกข้อมูล!A59=0,"",D59-I$6) ->  | F59: =IF(กรอกข้อมูล!A59=0,"",E59^2) ->  | T59: =IF(กรอกข้อมูล!AS59>กรอกข้อมูล!AO$2,"",กรอกข้อมูล!AS59) ->  | U59: =IF(กรอกข้อมูล!AS59>กรอกข้อมูล!AO$2,"",กรอกข้อมูล!AT59) -> 
D60: =IF(กรอกข้อมูล!A60=0,"",กรอกข้อมูล!A60) ->  | E60: =IF(กรอกข้อมูล!A60=0,"",D60-I$6) ->  | F60: =IF(กรอกข้อมูล!A60=0,"",E60^2) ->  | T60: =IF(กรอกข้อมูล!AS60>กรอกข้อมูล!AO$2,"",กรอกข้อมูล!AS60) ->  | U60: =IF(กรอกข้อมูล!AS60>กรอกข้อมูล!AO$2,"",กรอกข้อมูล!AT60) -> 
D61: =IF(กรอกข้อมูล!A61=0,"",กรอกข้อมูล!A61) ->  | E61: =IF(กรอกข้อมูล!A61=0,"",D61-I$6) ->  | F61: =IF(กรอกข้อมูล!A61=0,"",E61^2) ->  | T61: =IF(กรอกข้อมูล!AS61>กรอกข้อมูล!AO$2,"",กรอกข้อมูล!AS61) ->  | U61: =IF(กรอกข้อมูล!AS61>กรอกข้อมูล!AO$2,"",กรอกข้อมูล!AT61) -> 
D62: =IF(กรอกข้อมูล!A62=0,"",กรอกข้อมูล!A62) ->  | E62: =IF(กรอกข้อมูล!A62=0,"",D62-I$6) ->  | F62: =IF(กรอกข้อมูล!A62=0,"",E62^2) ->  | T62: =IF(กรอกข้อมูล!AS62>กรอกข้อมูล!AO$2,"",กรอกข้อมูล!AS62) ->  | U62: =IF(กรอกข้อมูล!AS62>กรอกข้อมูล!AO$2,"",กรอกข้อมูล!AT62) -> 
D63: =IF(กรอกข้อมูล!A63=0,"",กรอกข้อมูล!A63) ->  | E63: =IF(กรอกข้อมูล!A63=0,"",D63-I$6) ->  | F63: =IF(กรอกข้อมูล!A63=0,"",E63^2) ->  | T63: =IF(กรอกข้อมูล!AS63>กรอกข้อมูล!AO$2,"",กรอกข้อมูล!AS63) ->  | U63: =IF(กรอกข้อมูล!AS63>กรอกข้อมูล!AO$2,"",กรอกข้อมูล!AT63) -> 
D64: =IF(กรอกข้อมูล!A64=0,"",กรอกข้อมูล!A64) ->  | E64: =IF(กรอกข้อมูล!A64=0,"",D64-I$6) ->  | F64: =IF(กรอกข้อมูล!A64=0,"",E64^2) ->  | T64: =IF(กรอกข้อมูล!AS64>กรอกข้อมูล!AO$2,"",กรอกข้อมูล!AS64) ->  | U64: =IF(กรอกข้อมูล!AS64>กรอกข้อมูล!AO$2,"",กรอกข้อมูล!AT64) -> 
A65: =D65 ->  | B65: =E65 ->  | C65: =F65 ->  | D65: =IF(กรอกข้อมูล!A65=0,"",กรอกข้อมูล!A65) ->  | E65: =IF(กรอกข้อมูล!A65=0,"",D65-I$6) ->  | F65: =IF(กรอกข้อมูล!A65=0,"",E65^2) ->  | T65: =IF(กรอกข้อมูล!AS65>กรอกข้อมูล!AO$2,"",กรอกข้อมูล!AS65) ->  | U65: =IF(กรอกข้อมูล!AS65>กรอกข้อมูล!AO$2,"",กรอกข้อมูล!AT65) -> 
D66: =IF(กรอกข้อมูล!A66=0,"",กรอกข้อมูล!A66) ->  | E66: =IF(กรอกข้อมูล!A66=0,"",D66-I$6) ->  | F66: =IF(กรอกข้อมูล!A66=0,"",E66^2) ->  | R66: =T66 ->  | S66: =U66 ->  | T66: =IF(กรอกข้อมูล!AS66>กรอกข้อมูล!AO$2,"",กรอกข้อมูล!AS66) ->  | U66: =IF(กรอกข้อมูล!AS66>กรอกข้อมูล!AO$2,"",กรอกข้อมูล!AT66) -> 
D67: =IF(กรอกข้อมูล!A67=0,"",กรอกข้อมูล!A67) ->  | E67: =IF(กรอกข้อมูล!A67=0,"",D67-I$6) ->  | F67: =IF(กรอกข้อมูล!A67=0,"",E67^2) ->  | T67: =IF(กรอกข้อมูล!AS67>กรอกข้อมูล!AO$2,"",กรอกข้อมูล!AS67) ->  | U67: =IF(กรอกข้อมูล!AS67>กรอกข้อมูล!AO$2,"",กรอกข้อมูล!AT67) -> 
D68: =IF(กรอกข้อมูล!A68=0,"",กรอกข้อมูล!A68) ->  | E68: =IF(กรอกข้อมูล!A68=0,"",D68-I$6) ->  | F68: =IF(กรอกข้อมูล!A68=0,"",E68^2) ->  | T68: =IF(กรอกข้อมูล!AS68>กรอกข้อมูล!AO$2,"",กรอกข้อมูล!AS68) ->  | U68: =IF(กรอกข้อมูล!AS68>กรอกข้อมูล!AO$2,"",กรอกข้อมูล!AT68) -> 
D69: =IF(กรอกข้อมูล!A69=0,"",กรอกข้อมูล!A69) ->  | E69: =IF(กรอกข้อมูล!A69=0,"",D69-I$6) ->  | F69: =IF(กรอกข้อมูล!A69=0,"",E69^2) ->  | T69: =IF(กรอกข้อมูล!AS69>กรอกข้อมูล!AO$2,"",กรอกข้อมูล!AS69) ->  | U69: =IF(กรอกข้อมูล!AS69>กรอกข้อมูล!AO$2,"",กรอกข้อมูล!AT69) -> 
D70: =IF(กรอกข้อมูล!A70=0,"",กรอกข้อมูล!A70) ->  | E70: =IF(กรอกข้อมูล!A70=0,"",D70-I$6) ->  | F70: =IF(กรอกข้อมูล!A70=0,"",E70^2) ->  | T70: =IF(กรอกข้อมูล!AS70>กรอกข้อมูล!AO$2,"",กรอกข้อมูล!AS70) ->  | U70: =IF(กรอกข้อมูล!AS70>กรอกข้อมูล!AO$2,"",กรอกข้อมูล!AT70) -> 
D71: =IF(กรอกข้อมูล!A71=0,"",กรอกข้อมูล!A71) ->  | E71: =IF(กรอกข้อมูล!A71=0,"",D71-I$6) ->  | F71: =IF(กรอกข้อมูล!A71=0,"",E71^2) ->  | T71: =IF(กรอกข้อมูล!AS71>กรอกข้อมูล!AO$2,"",กรอกข้อมูล!AS71) ->  | U71: =IF(กรอกข้อมูล!AS71>กรอกข้อมูล!AO$2,"",กรอกข้อมูล!AT71) -> 
D72: =IF(กรอกข้อมูล!A72=0,"",กรอกข้อมูล!A72) ->  | E72: =IF(กรอกข้อมูล!A72=0,"",D72-I$6) ->  | F72: =IF(กรอกข้อมูล!A72=0,"",E72^2) ->  | T72: =IF(กรอกข้อมูล!AS72>กรอกข้อมูล!AO$2,"",กรอกข้อมูล!AS72) ->  | U72: =IF(กรอกข้อมูล!AS72>กรอกข้อมูล!AO$2,"",กรอกข้อมูล!AT72) -> 
D73: =IF(กรอกข้อมูล!A73=0,"",กรอกข้อมูล!A73) ->  | E73: =IF(กรอกข้อมูล!A73=0,"",D73-I$6) ->  | F73: =IF(กรอกข้อมูล!A73=0,"",E73^2) ->  | T73: =IF(กรอกข้อมูล!AS73>กรอกข้อมูล!AO$2,"",กรอกข้อมูล!AS73) ->  | U73: =IF(กรอกข้อมูล!AS73>กรอกข้อมูล!AO$2,"",กรอกข้อมูล!AT73) -> 
D74: =IF(กรอกข้อมูล!A74=0,"",กรอกข้อมูล!A74) ->  | E74: =IF(กรอกข้อมูล!A74=0,"",D74-I$6) ->  | F74: =IF(กรอกข้อมูล!A74=0,"",E74^2) ->  | T74: =IF(กรอกข้อมูล!AS74>กรอกข้อมูล!AO$2,"",กรอกข้อมูล!AS74) ->  | U74: =IF(กรอกข้อมูล!AS74>กรอกข้อมูล!AO$2,"",กรอกข้อมูล!AT74) -> 
D75: =IF(กรอกข้อมูล!A75=0,"",กรอกข้อมูล!A75) ->  | E75: =IF(กรอกข้อมูล!A75=0,"",D75-I$6) ->  | F75: =IF(กรอกข้อมูล!A75=0,"",E75^2) ->  | T75: =IF(กรอกข้อมูล!AS75>กรอกข้อมูล!AO$2,"",กรอกข้อมูล!AS75) ->  | U75: =IF(กรอกข้อมูล!AS75>กรอกข้อมูล!AO$2,"",กรอกข้อมูล!AT75) -> 
D76: =IF(กรอกข้อมูล!A76=0,"",กรอกข้อมูล!A76) ->  | E76: =IF(กรอกข้อมูล!A76=0,"",D76-I$6) ->  | F76: =IF(กรอกข้อมูล!A76=0,"",E76^2) ->  | T76: =IF(กรอกข้อมูล!AS76>กรอกข้อมูล!AO$2,"",กรอกข้อมูล!AS76) ->  | U76: =IF(กรอกข้อมูล!AS76>กรอกข้อมูล!AO$2,"",กรอกข้อมูล!AT76) -> 
D77: =IF(กรอกข้อมูล!A77=0,"",กรอกข้อมูล!A77) ->  | E77: =IF(กรอกข้อมูล!A77=0,"",D77-I$6) ->  | F77: =IF(กรอกข้อมูล!A77=0,"",E77^2) ->  | T77: =IF(กรอกข้อมูล!AS77>กรอกข้อมูล!AO$2,"",กรอกข้อมูล!AS77) ->  | U77: =IF(กรอกข้อมูล!AS77>กรอกข้อมูล!AO$2,"",กรอกข้อมูล!AT77) -> 
D78: =IF(กรอกข้อมูล!A78=0,"",กรอกข้อมูล!A78) ->  | E78: =IF(กรอกข้อมูล!A78=0,"",D78-I$6) ->  | F78: =IF(กรอกข้อมูล!A78=0,"",E78^2) ->  | T78: =IF(กรอกข้อมูล!AS78>กรอกข้อมูล!AO$2,"",กรอกข้อมูล!AS78) ->  | U78: =IF(กรอกข้อมูล!AS78>กรอกข้อมูล!AO$2,"",กรอกข้อมูล!AT78) -> 
D79: =IF(กรอกข้อมูล!A79=0,"",กรอกข้อมูล!A79) ->  | E79: =IF(กรอกข้อมูล!A79=0,"",D79-I$6) ->  | F79: =IF(กรอกข้อมูล!A79=0,"",E79^2) ->  | T79: =IF(กรอกข้อมูล!AS79>กรอกข้อมูล!AO$2,"",กรอกข้อมูล!AS79) ->  | U79: =IF(กรอกข้อมูล!AS79>กรอกข้อมูล!AO$2,"",กรอกข้อมูล!AT79) -> 
D80: =IF(กรอกข้อมูล!A80=0,"",กรอกข้อมูล!A80) ->  | E80: =IF(กรอกข้อมูล!A80=0,"",D80-I$6) ->  | F80: =IF(กรอกข้อมูล!A80=0,"",E80^2) ->  | T80: =IF(กรอกข้อมูล!AS80>กรอกข้อมูล!AO$2,"",กรอกข้อมูล!AS80) ->  | U80: =IF(กรอกข้อมูล!AS80>กรอกข้อมูล!AO$2,"",กรอกข้อมูล!AT80) -> 
D81: =IF(กรอกข้อมูล!A81=0,"",กรอกข้อมูล!A81) ->  | E81: =IF(กรอกข้อมูล!A81=0,"",D81-I$6) ->  | F81: =IF(กรอกข้อมูล!A81=0,"",E81^2) ->  | T81: =IF(กรอกข้อมูล!AS81>กรอกข้อมูล!AO$2,"",กรอกข้อมูล!AS81) ->  | U81: =IF(กรอกข้อมูล!AS81>กรอกข้อมูล!AO$2,"",กรอกข้อมูล!AT81) -> 
D82: =IF(กรอกข้อมูล!A82=0,"",กรอกข้อมูล!A82) ->  | E82: =IF(กรอกข้อมูล!A82=0,"",D82-I$6) ->  | F82: =IF(กรอกข้อมูล!A82=0,"",E82^2) ->  | T82: =IF(กรอกข้อมูล!AS82>กรอกข้อมูล!AO$2,"",กรอกข้อมูล!AS82) ->  | U82: =IF(กรอกข้อมูล!AS82>กรอกข้อมูล!AO$2,"",กรอกข้อมูล!AT82) -> 
D83: =IF(กรอกข้อมูล!A83=0,"",กรอกข้อมูล!A83) ->  | E83: =IF(กรอกข้อมูล!A83=0,"",D83-I$6) ->  | F83: =IF(กรอกข้อมูล!A83=0,"",E83^2) ->  | T83: =IF(กรอกข้อมูล!AS83>กรอกข้อมูล!AO$2,"",กรอกข้อมูล!AS83) ->  | U83: =IF(กรอกข้อมูล!AS83>กรอกข้อมูล!AO$2,"",กรอกข้อมูล!AT83) -> 
D84: =IF(กรอกข้อมูล!A84=0,"",กรอกข้อมูล!A84) ->  | E84: =IF(กรอกข้อมูล!A84=0,"",D84-I$6) ->  | F84: =IF(กรอกข้อมูล!A84=0,"",E84^2) ->  | T84: =IF(กรอกข้อมูล!AS84>กรอกข้อมูล!AO$2,"",กรอกข้อมูล!AS84) ->  | U84: =IF(กรอกข้อมูล!AS84>กรอกข้อมูล!AO$2,"",กรอกข้อมูล!AT84) -> 
D85: =IF(กรอกข้อมูล!A85=0,"",กรอกข้อมูล!A85) ->  | E85: =IF(กรอกข้อมูล!A85=0,"",D85-I$6) ->  | F85: =IF(กรอกข้อมูล!A85=0,"",E85^2) ->  | T85: =IF(กรอกข้อมูล!AS85>กรอกข้อมูล!AO$2,"",กรอกข้อมูล!AS85) ->  | U85: =IF(กรอกข้อมูล!AS85>กรอกข้อมูล!AO$2,"",กรอกข้อมูล!AT85) -> 
D86: =IF(กรอกข้อมูล!A86=0,"",กรอกข้อมูล!A86) ->  | E86: =IF(กรอกข้อมูล!A86=0,"",D86-I$6) ->  | F86: =IF(กรอกข้อมูล!A86=0,"",E86^2) ->  | T86: =IF(กรอกข้อมูล!AS86>กรอกข้อมูล!AO$2,"",กรอกข้อมูล!AS86) ->  | U86: =IF(กรอกข้อมูล!AS86>กรอกข้อมูล!AO$2,"",กรอกข้อมูล!AT86) -> 
D87: =IF(กรอกข้อมูล!A87=0,"",กรอกข้อมูล!A87) ->  | E87: =IF(กรอกข้อมูล!A87=0,"",D87-I$6) ->  | F87: =IF(กรอกข้อมูล!A87=0,"",E87^2) ->  | T87: =IF(กรอกข้อมูล!AS87>กรอกข้อมูล!AO$2,"",กรอกข้อมูล!AS87) ->  | U87: =IF(กรอกข้อมูล!AS87>กรอกข้อมูล!AO$2,"",กรอกข้อมูล!AT87) -> 
D88: =IF(กรอกข้อมูล!A88=0,"",กรอกข้อมูล!A88) ->  | E88: =IF(กรอกข้อมูล!A88=0,"",D88-I$6) ->  | F88: =IF(กรอกข้อมูล!A88=0,"",E88^2) ->  | T88: =IF(กรอกข้อมูล!AS88>กรอกข้อมูล!AO$2,"",กรอกข้อมูล!AS88) ->  | U88: =IF(กรอกข้อมูล!AS88>กรอกข้อมูล!AO$2,"",กรอกข้อมูล!AT88) -> 
D89: =IF(กรอกข้อมูล!A89=0,"",กรอกข้อมูล!A89) ->  | E89: =IF(กรอกข้อมูล!A89=0,"",D89-I$6) ->  | F89: =IF(กรอกข้อมูล!A89=0,"",E89^2) ->  | T89: =IF(กรอกข้อมูล!AS89>กรอกข้อมูล!AO$2,"",กรอกข้อมูล!AS89) ->  | U89: =IF(กรอกข้อมูล!AS89>กรอกข้อมูล!AO$2,"",กรอกข้อมูล!AT89) -> 
D90: =IF(กรอกข้อมูล!A90=0,"",กรอกข้อมูล!A90) ->  | E90: =IF(กรอกข้อมูล!A90=0,"",D90-I$6) ->  | F90: =IF(กรอกข้อมูล!A90=0,"",E90^2) ->  | T90: =IF(กรอกข้อมูล!AS90>กรอกข้อมูล!AO$2,"",กรอกข้อมูล!AS90) ->  | U90: =IF(กรอกข้อมูล!AS90>กรอกข้อมูล!AO$2,"",กรอกข้อมูล!AT90) -> 
D91: =IF(กรอกข้อมูล!A91=0,"",กรอกข้อมูล!A91) ->  | E91: =IF(กรอกข้อมูล!A91=0,"",D91-I$6) ->  | F91: =IF(กรอกข้อมูล!A91=0,"",E91^2) ->  | T91: =IF(กรอกข้อมูล!AS91>กรอกข้อมูล!AO$2,"",กรอกข้อมูล!AS91) ->  | U91: =IF(กรอกข้อมูล!AS91>กรอกข้อมูล!AO$2,"",กรอกข้อมูล!AT91) -> 
D92: =IF(กรอกข้อมูล!A92=0,"",กรอกข้อมูล!A92) ->  | E92: =IF(กรอกข้อมูล!A92=0,"",D92-I$6) ->  | F92: =IF(กรอกข้อมูล!A92=0,"",E92^2) ->  | T92: =IF(กรอกข้อมูล!AS92>กรอกข้อมูล!AO$2,"",กรอกข้อมูล!AS92) ->  | U92: =IF(กรอกข้อมูล!AS92>กรอกข้อมูล!AO$2,"",กรอกข้อมูล!AT92) -> 
D93: =IF(กรอกข้อมูล!A93=0,"",กรอกข้อมูล!A93) ->  | E93: =IF(กรอกข้อมูล!A93=0,"",D93-I$6) ->  | F93: =IF(กรอกข้อมูล!A93=0,"",E93^2) ->  | T93: =IF(กรอกข้อมูล!AS93>กรอกข้อมูล!AO$2,"",กรอกข้อมูล!AS93) ->  | U93: =IF(กรอกข้อมูล!AS93>กรอกข้อมูล!AO$2,"",กรอกข้อมูล!AT93) -> 
D94: =IF(กรอกข้อมูล!A94=0,"",กรอกข้อมูล!A94) ->  | E94: =IF(กรอกข้อมูล!A94=0,"",D94-I$6) ->  | F94: =IF(กรอกข้อมูล!A94=0,"",E94^2) ->  | T94: =IF(กรอกข้อมูล!AS94>กรอกข้อมูล!AO$2,"",กรอกข้อมูล!AS94) ->  | U94: =IF(กรอกข้อมูล!AS94>กรอกข้อมูล!AO$2,"",กรอกข้อมูล!AT94) -> 
D95: =IF(กรอกข้อมูล!A95=0,"",กรอกข้อมูล!A95) ->  | E95: =IF(กรอกข้อมูล!A95=0,"",D95-I$6) ->  | F95: =IF(กรอกข้อมูล!A95=0,"",E95^2) ->  | T95: =IF(กรอกข้อมูล!AS95>กรอกข้อมูล!AO$2,"",กรอกข้อมูล!AS95) ->  | U95: =IF(กรอกข้อมูล!AS95>กรอกข้อมูล!AO$2,"",กรอกข้อมูล!AT95) -> 
D96: =IF(กรอกข้อมูล!A96=0,"",กรอกข้อมูล!A96) ->  | E96: =IF(กรอกข้อมูล!A96=0,"",D96-I$6) ->  | F96: =IF(กรอกข้อมูล!A96=0,"",E96^2) ->  | T96: =IF(กรอกข้อมูล!AS96>กรอกข้อมูล!AO$2,"",กรอกข้อมูล!AS96) ->  | U96: =IF(กรอกข้อมูล!AS96>กรอกข้อมูล!AO$2,"",กรอกข้อมูล!AT96) -> 
D97: =IF(กรอกข้อมูล!A97=0,"",กรอกข้อมูล!A97) ->  | E97: =IF(กรอกข้อมูล!A97=0,"",D97-I$6) ->  | F97: =IF(กรอกข้อมูล!A97=0,"",E97^2) ->  | T97: =IF(กรอกข้อมูล!AS97>กรอกข้อมูล!AO$2,"",กรอกข้อมูล!AS97) ->  | U97: =IF(กรอกข้อมูล!AS97>กรอกข้อมูล!AO$2,"",กรอกข้อมูล!AT97) -> 
D98: =IF(กรอกข้อมูล!A98=0,"",กรอกข้อมูล!A98) ->  | E98: =IF(กรอกข้อมูล!A98=0,"",D98-I$6) ->  | F98: =IF(กรอกข้อมูล!A98=0,"",E98^2) ->  | T98: =IF(กรอกข้อมูล!AS98>กรอกข้อมูล!AO$2,"",กรอกข้อมูล!AS98) ->  | U98: =IF(กรอกข้อมูล!AS98>กรอกข้อมูล!AO$2,"",กรอกข้อมูล!AT98) -> 
D99: =IF(กรอกข้อมูล!A99=0,"",กรอกข้อมูล!A99) ->  | E99: =IF(กรอกข้อมูล!A99=0,"",D99-I$6) ->  | F99: =IF(กรอกข้อมูล!A99=0,"",E99^2) ->  | T99: =IF(กรอกข้อมูล!AS99>กรอกข้อมูล!AO$2,"",กรอกข้อมูล!AS99) ->  | U99: =IF(กรอกข้อมูล!AS99>กรอกข้อมูล!AO$2,"",กรอกข้อมูล!AT99) -> 
D100: =IF(กรอกข้อมูล!A100=0,"",กรอกข้อมูล!A100) ->  | E100: =IF(กรอกข้อมูล!A100=0,"",D100-I$6) ->  | F100: =IF(กรอกข้อมูล!A100=0,"",E100^2) ->  | T100: =IF(กรอกข้อมูล!AS100>กรอกข้อมูล!AO$2,"",กรอกข้อมูล!AS100) ->  | U100: =IF(กรอกข้อมูล!AS100>กรอกข้อมูล!AO$2,"",กรอกข้อมูล!AT100) -> 
D101: =IF(กรอกข้อมูล!A101=0,"",กรอกข้อมูล!A101) ->  | E101: =IF(กรอกข้อมูล!A101=0,"",D101-I$6) ->  | F101: =IF(กรอกข้อมูล!A101=0,"",E101^2) ->  | T101: =IF(กรอกข้อมูล!AS101>กรอกข้อมูล!AO$2,"",กรอกข้อมูล!AS101) ->  | U101: =IF(กรอกข้อมูล!AS101>กรอกข้อมูล!AO$2,"",กรอกข้อมูล!AT101) -> 
D102: =IF(กรอกข้อมูล!A102=0,"",กรอกข้อมูล!A102) ->  | E102: =IF(กรอกข้อมูล!A102=0,"",D102-I$6) ->  | F102: =IF(กรอกข้อมูล!A102=0,"",E102^2) ->  | T102: =IF(กรอกข้อมูล!AS102>กรอกข้อมูล!AO$2,"",กรอกข้อมูล!AS102) ->  | U102: =IF(กรอกข้อมูล!AS102>กรอกข้อมูล!AO$2,"",กรอกข้อมูล!AT102) -> 
D103: =IF(กรอกข้อมูล!A103=0,"",กรอกข้อมูล!A103) ->  | E103: =IF(กรอกข้อมูล!A103=0,"",D103-I$6) ->  | F103: =IF(กรอกข้อมูล!A103=0,"",E103^2) ->  | T103: =IF(กรอกข้อมูล!AS103>กรอกข้อมูล!AO$2,"",กรอกข้อมูล!AS103) ->  | U103: =IF(กรอกข้อมูล!AS103>กรอกข้อมูล!AO$2,"",กรอกข้อมูล!AT103) -> 
D104: =IF(กรอกข้อมูล!A104=0,"",กรอกข้อมูล!A104) ->  | E104: =IF(กรอกข้อมูล!A104=0,"",D104-I$6) ->  | F104: =IF(กรอกข้อมูล!A104=0,"",E104^2) ->  | T104: =IF(กรอกข้อมูล!AS104>กรอกข้อมูล!AO$2,"",กรอกข้อมูล!AS104) ->  | U104: =IF(กรอกข้อมูล!AS104>กรอกข้อมูล!AO$2,"",กรอกข้อมูล!AT104) -> 
D105: =IF(กรอกข้อมูล!A105=0,"",กรอกข้อมูล!A105) ->  | E105: =IF(กรอกข้อมูล!A105=0,"",D105-I$6) ->  | F105: =IF(กรอกข้อมูล!A105=0,"",E105^2) ->  | T105: =IF(กรอกข้อมูล!AS105>กรอกข้อมูล!AO$2,"",กรอกข้อมูล!AS105) ->  | U105: =IF(กรอกข้อมูล!AS105>กรอกข้อมูล!AO$2,"",กรอกข้อมูล!AT105) -> 
D106: =IF(กรอกข้อมูล!A106=0,"",กรอกข้อมูล!A106) ->  | E106: =IF(กรอกข้อมูล!A106=0,"",D106-I$6) ->  | F106: =IF(กรอกข้อมูล!A106=0,"",E106^2) ->  | T106: =IF(กรอกข้อมูล!AS106>กรอกข้อมูล!AO$2,"",กรอกข้อมูล!AS106) ->  | U106: =IF(กรอกข้อมูล!AS106>กรอกข้อมูล!AO$2,"",กรอกข้อมูล!AT106) -> 
D107: =IF(กรอกข้อมูล!A107=0,"",กรอกข้อมูล!A107) ->  | E107: =IF(กรอกข้อมูล!A107=0,"",D107-I$6) ->  | F107: =IF(กรอกข้อมูล!A107=0,"",E107^2) ->  | T107: =IF(กรอกข้อมูล!AS107>กรอกข้อมูล!AO$2,"",กรอกข้อมูล!AS107) ->  | U107: =IF(กรอกข้อมูล!AS107>กรอกข้อมูล!AO$2,"",กรอกข้อมูล!AT107) -> 
D108: =IF(กรอกข้อมูล!A108=0,"",กรอกข้อมูล!A108) ->  | E108: =IF(กรอกข้อมูล!A108=0,"",D108-I$6) ->  | F108: =IF(กรอกข้อมูล!A108=0,"",E108^2) ->  | T108: =IF(กรอกข้อมูล!AS108>กรอกข้อมูล!AO$2,"",กรอกข้อมูล!AS108) ->  | U108: =IF(กรอกข้อมูล!AS108>กรอกข้อมูล!AO$2,"",กรอกข้อมูล!AT108) -> 
D109: =IF(กรอกข้อมูล!A109=0,"",กรอกข้อมูล!A109) ->  | E109: =IF(กรอกข้อมูล!A109=0,"",D109-I$6) ->  | F109: =IF(กรอกข้อมูล!A109=0,"",E109^2) ->  | T109: =IF(กรอกข้อมูล!AS109>กรอกข้อมูล!AO$2,"",กรอกข้อมูล!AS109) ->  | U109: =IF(กรอกข้อมูล!AS109>กรอกข้อมูล!AO$2,"",กรอกข้อมูล!AT109) -> 
D110: =IF(กรอกข้อมูล!A110=0,"",กรอกข้อมูล!A110) ->  | E110: =IF(กรอกข้อมูล!A110=0,"",D110-I$6) ->  | F110: =IF(กรอกข้อมูล!A110=0,"",E110^2) ->  | T110: =IF(กรอกข้อมูล!AS110>กรอกข้อมูล!AO$2,"",กรอกข้อมูล!AS110) ->  | U110: =IF(กรอกข้อมูล!AS110>กรอกข้อมูล!AO$2,"",กรอกข้อมูล!AT110) -> 
D111: =IF(กรอกข้อมูล!A111=0,"",กรอกข้อมูล!A111) ->  | E111: =IF(กรอกข้อมูล!A111=0,"",D111-I$6) ->  | F111: =IF(กรอกข้อมูล!A111=0,"",E111^2) ->  | T111: =IF(กรอกข้อมูล!AS111>กรอกข้อมูล!AO$2,"",กรอกข้อมูล!AS111) ->  | U111: =IF(กรอกข้อมูล!AS111>กรอกข้อมูล!AO$2,"",กรอกข้อมูล!AT111) -> 
D112: =IF(กรอกข้อมูล!A112=0,"",กรอกข้อมูล!A112) ->  | E112: =IF(กรอกข้อมูล!A112=0,"",D112-I$6) ->  | F112: =IF(กรอกข้อมูล!A112=0,"",E112^2) ->  | T112: =IF(กรอกข้อมูล!AS112>กรอกข้อมูล!AO$2,"",กรอกข้อมูล!AS112) ->  | U112: =IF(กรอกข้อมูล!AS112>กรอกข้อมูล!AO$2,"",กรอกข้อมูล!AT112) -> 
D113: =IF(กรอกข้อมูล!A113=0,"",กรอกข้อมูล!A113) ->  | E113: =IF(กรอกข้อมูล!A113=0,"",D113-I$6) ->  | F113: =IF(กรอกข้อมูล!A113=0,"",E113^2) ->  | T113: =IF(กรอกข้อมูล!AS113>กรอกข้อมูล!AO$2,"",กรอกข้อมูล!AS113) ->  | U113: =IF(กรอกข้อมูล!AS113>กรอกข้อมูล!AO$2,"",กรอกข้อมูล!AT113) -> 
D114: =IF(กรอกข้อมูล!A114=0,"",กรอกข้อมูล!A114) ->  | E114: =IF(กรอกข้อมูล!A114=0,"",D114-I$6) ->  | F114: =IF(กรอกข้อมูล!A114=0,"",E114^2) ->  | T114: =IF(กรอกข้อมูล!AS114>กรอกข้อมูล!AO$2,"",กรอกข้อมูล!AS114) ->  | U114: =IF(กรอกข้อมูล!AS114>กรอกข้อมูล!AO$2,"",กรอกข้อมูล!AT114) -> 
D115: =IF(กรอกข้อมูล!A115=0,"",กรอกข้อมูล!A115) ->  | E115: =IF(กรอกข้อมูล!A115=0,"",D115-I$6) ->  | F115: =IF(กรอกข้อมูล!A115=0,"",E115^2) ->  | T115: =IF(กรอกข้อมูล!AS115>กรอกข้อมูล!AO$2,"",กรอกข้อมูล!AS115) ->  | U115: =IF(กรอกข้อมูล!AS115>กรอกข้อมูล!AO$2,"",กรอกข้อมูล!AT115) -> 
D116: =IF(กรอกข้อมูล!A116=0,"",กรอกข้อมูล!A116) ->  | E116: =IF(กรอกข้อมูล!A116=0,"",D116-I$6) ->  | F116: =IF(กรอกข้อมูล!A116=0,"",E116^2) ->  | T116: =IF(กรอกข้อมูล!AS116>กรอกข้อมูล!AO$2,"",กรอกข้อมูล!AS116) ->  | U116: =IF(กรอกข้อมูล!AS116>กรอกข้อมูล!AO$2,"",กรอกข้อมูล!AT116) -> 
D117: =IF(กรอกข้อมูล!A117=0,"",กรอกข้อมูล!A117) ->  | E117: =IF(กรอกข้อมูล!A117=0,"",D117-I$6) ->  | F117: =IF(กรอกข้อมูล!A117=0,"",E117^2) ->  | T117: =IF(กรอกข้อมูล!AS117>กรอกข้อมูล!AO$2,"",กรอกข้อมูล!AS117) ->  | U117: =IF(กรอกข้อมูล!AS117>กรอกข้อมูล!AO$2,"",กรอกข้อมูล!AT117) -> 
D118: =IF(กรอกข้อมูล!A118=0,"",กรอกข้อมูล!A118) ->  | E118: =IF(กรอกข้อมูล!A118=0,"",D118-I$6) ->  | F118: =IF(กรอกข้อมูล!A118=0,"",E118^2) ->  | T118: =IF(กรอกข้อมูล!AS118>กรอกข้อมูล!AO$2,"",กรอกข้อมูล!AS118) ->  | U118: =IF(กรอกข้อมูล!AS118>กรอกข้อมูล!AO$2,"",กรอกข้อมูล!AT118) -> 
D119: =IF(กรอกข้อมูล!A119=0,"",กรอกข้อมูล!A119) ->  | E119: =IF(กรอกข้อมูล!A119=0,"",D119-I$6) ->  | F119: =IF(กรอกข้อมูล!A119=0,"",E119^2) ->  | T119: =IF(กรอกข้อมูล!AS119>กรอกข้อมูล!AO$2,"",กรอกข้อมูล!AS119) ->  | U119: =IF(กรอกข้อมูล!AS119>กรอกข้อมูล!AO$2,"",กรอกข้อมูล!AT119) -> 
D120: =IF(กรอกข้อมูล!A120=0,"",กรอกข้อมูล!A120) ->  | E120: =IF(กรอกข้อมูล!A120=0,"",D120-I$6) ->  | F120: =IF(กรอกข้อมูล!A120=0,"",E120^2) ->  | T120: =IF(กรอกข้อมูล!AS120>กรอกข้อมูล!AO$2,"",กรอกข้อมูล!AS120) ->  | U120: =IF(กรอกข้อมูล!AS120>กรอกข้อมูล!AO$2,"",กรอกข้อมูล!AT120) -> 
D121: =IF(กรอกข้อมูล!A121=0,"",กรอกข้อมูล!A121) ->  | E121: =IF(กรอกข้อมูล!A121=0,"",D121-I$6) ->  | F121: =IF(กรอกข้อมูล!A121=0,"",E121^2) ->  | T121: =IF(กรอกข้อมูล!AS121>กรอกข้อมูล!AO$2,"",กรอกข้อมูล!AS121) ->  | U121: =IF(กรอกข้อมูล!AS121>กรอกข้อมูล!AO$2,"",กรอกข้อมูล!AT121) -> 
D122: =IF(กรอกข้อมูล!A122=0,"",กรอกข้อมูล!A122) ->  | E122: =IF(กรอกข้อมูล!A122=0,"",D122-I$6) ->  | F122: =IF(กรอกข้อมูล!A122=0,"",E122^2) ->  | T122: =IF(กรอกข้อมูล!AS122>กรอกข้อมูล!AO$2,"",กรอกข้อมูล!AS122) ->  | U122: =IF(กรอกข้อมูล!AS122>กรอกข้อมูล!AO$2,"",กรอกข้อมูล!AT122) -> 
D123: =IF(กรอกข้อมูล!A123=0,"",กรอกข้อมูล!A123) ->  | E123: =IF(กรอกข้อมูล!A123=0,"",D123-I$6) ->  | F123: =IF(กรอกข้อมูล!A123=0,"",E123^2) ->  | T123: =IF(กรอกข้อมูล!AS123>กรอกข้อมูล!AO$2,"",กรอกข้อมูล!AS123) ->  | U123: =IF(กรอกข้อมูล!AS123>กรอกข้อมูล!AO$2,"",กรอกข้อมูล!AT123) -> 
D124: =IF(กรอกข้อมูล!A124=0,"",กรอกข้อมูล!A124) ->  | E124: =IF(กรอกข้อมูล!A124=0,"",D124-I$6) ->  | F124: =IF(กรอกข้อมูล!A124=0,"",E124^2) ->  | T124: =IF(กรอกข้อมูล!AS124>กรอกข้อมูล!AO$2,"",กรอกข้อมูล!AS124) ->  | U124: =IF(กรอกข้อมูล!AS124>กรอกข้อมูล!AO$2,"",กรอกข้อมูล!AT124) -> 
D125: =IF(กรอกข้อมูล!A125=0,"",กรอกข้อมูล!A125) ->  | E125: =IF(กรอกข้อมูล!A125=0,"",D125-I$6) ->  | F125: =IF(กรอกข้อมูล!A125=0,"",E125^2) ->  | T125: =IF(กรอกข้อมูล!AS125>กรอกข้อมูล!AO$2,"",กรอกข้อมูล!AS125) ->  | U125: =IF(กรอกข้อมูล!AS125>กรอกข้อมูล!AO$2,"",กรอกข้อมูล!AT125) -> 
D126: =IF(กรอกข้อมูล!A126=0,"",กรอกข้อมูล!A126) ->  | E126: =IF(กรอกข้อมูล!A126=0,"",D126-I$6) ->  | F126: =IF(กรอกข้อมูล!A126=0,"",E126^2) ->  | T126: =IF(กรอกข้อมูล!AS126>กรอกข้อมูล!AO$2,"",กรอกข้อมูล!AS126) ->  | U126: =IF(กรอกข้อมูล!AS126>กรอกข้อมูล!AO$2,"",กรอกข้อมูล!AT126) -> 
D127: =IF(กรอกข้อมูล!A127=0,"",กรอกข้อมูล!A127) ->  | E127: =IF(กรอกข้อมูล!A127=0,"",D127-I$6) ->  | F127: =IF(กรอกข้อมูล!A127=0,"",E127^2) ->  | T127: =IF(กรอกข้อมูล!AS127>กรอกข้อมูล!AO$2,"",กรอกข้อมูล!AS127) ->  | U127: =IF(กรอกข้อมูล!AS127>กรอกข้อมูล!AO$2,"",กรอกข้อมูล!AT127) -> 
D128: =IF(กรอกข้อมูล!A128=0,"",กรอกข้อมูล!A128) ->  | E128: =IF(กรอกข้อมูล!A128=0,"",D128-I$6) ->  | F128: =IF(กรอกข้อมูล!A128=0,"",E128^2) ->  | T128: =IF(กรอกข้อมูล!AS128>กรอกข้อมูล!AO$2,"",กรอกข้อมูล!AS128) ->  | U128: =IF(กรอกข้อมูล!AS128>กรอกข้อมูล!AO$2,"",กรอกข้อมูล!AT128) -> 
A129: =D129 ->  | B129: =E129 ->  | C129: =F129 ->  | D129: =IF(กรอกข้อมูล!A129=0,"",กรอกข้อมูล!A129) ->  | E129: =IF(กรอกข้อมูล!A129=0,"",D129-I$6) ->  | F129: =IF(กรอกข้อมูล!A129=0,"",E129^2) ->  | T129: =IF(กรอกข้อมูล!AS129>กรอกข้อมูล!AO$2,"",กรอกข้อมูล!AS129) ->  | U129: =IF(กรอกข้อมูล!AS129>กรอกข้อมูล!AO$2,"",กรอกข้อมูล!AT129) -> 
D130: =IF(กรอกข้อมูล!A130=0,"",กรอกข้อมูล!A130) ->  | E130: =IF(กรอกข้อมูล!A130=0,"",D130-I$6) ->  | F130: =IF(กรอกข้อมูล!A130=0,"",E130^2) ->  | R130: =T130 ->  | S130: =U130 ->  | T130: =IF(กรอกข้อมูล!AS130>กรอกข้อมูล!AO$2,"",กรอกข้อมูล!AS130) ->  | U130: =IF(กรอกข้อมูล!AS130>กรอกข้อมูล!AO$2,"",กรอกข้อมูล!AT130) -> 
D131: =IF(กรอกข้อมูล!A131=0,"",กรอกข้อมูล!A131) ->  | E131: =IF(กรอกข้อมูล!A131=0,"",D131-I$6) ->  | F131: =IF(กรอกข้อมูล!A131=0,"",E131^2) ->  | T131: =IF(กรอกข้อมูล!AS131>กรอกข้อมูล!AO$2,"",กรอกข้อมูล!AS131) ->  | U131: =IF(กรอกข้อมูล!AS131>กรอกข้อมูล!AO$2,"",กรอกข้อมูล!AT131) -> 
D132: =IF(กรอกข้อมูล!A132=0,"",กรอกข้อมูล!A132) ->  | E132: =IF(กรอกข้อมูล!A132=0,"",D132-I$6) ->  | F132: =IF(กรอกข้อมูล!A132=0,"",E132^2) ->  | T132: =IF(กรอกข้อมูล!AS132>กรอกข้อมูล!AO$2,"",กรอกข้อมูล!AS132) ->  | U132: =IF(กรอกข้อมูล!AS132>กรอกข้อมูล!AO$2,"",กรอกข้อมูล!AT132) -> 
D133: =IF(กรอกข้อมูล!A133=0,"",กรอกข้อมูล!A133) ->  | E133: =IF(กรอกข้อมูล!A133=0,"",D133-I$6) ->  | F133: =IF(กรอกข้อมูล!A133=0,"",E133^2) ->  | T133: =IF(กรอกข้อมูล!AS133>กรอกข้อมูล!AO$2,"",กรอกข้อมูล!AS133) ->  | U133: =IF(กรอกข้อมูล!AS133>กรอกข้อมูล!AO$2,"",กรอกข้อมูล!AT133) -> 
D134: =IF(กรอกข้อมูล!A134=0,"",กรอกข้อมูล!A134) ->  | E134: =IF(กรอกข้อมูล!A134=0,"",D134-I$6) ->  | F134: =IF(กรอกข้อมูล!A134=0,"",E134^2) ->  | T134: =IF(กรอกข้อมูล!AS134>กรอกข้อมูล!AO$2,"",กรอกข้อมูล!AS134) ->  | U134: =IF(กรอกข้อมูล!AS134>กรอกข้อมูล!AO$2,"",กรอกข้อมูล!AT134) -> 
D135: =IF(กรอกข้อมูล!A135=0,"",กรอกข้อมูล!A135) ->  | E135: =IF(กรอกข้อมูล!A135=0,"",D135-I$6) ->  | F135: =IF(กรอกข้อมูล!A135=0,"",E135^2) ->  | T135: =IF(กรอกข้อมูล!AS135>กรอกข้อมูล!AO$2,"",กรอกข้อมูล!AS135) ->  | U135: =IF(กรอกข้อมูล!AS135>กรอกข้อมูล!AO$2,"",กรอกข้อมูล!AT135) -> 
D136: =IF(กรอกข้อมูล!A136=0,"",กรอกข้อมูล!A136) ->  | E136: =IF(กรอกข้อมูล!A136=0,"",D136-I$6) ->  | F136: =IF(กรอกข้อมูล!A136=0,"",E136^2) ->  | T136: =IF(กรอกข้อมูล!AS136>กรอกข้อมูล!AO$2,"",กรอกข้อมูล!AS136) ->  | U136: =IF(กรอกข้อมูล!AS136>กรอกข้อมูล!AO$2,"",กรอกข้อมูล!AT136) -> 
D137: =IF(กรอกข้อมูล!A137=0,"",กรอกข้อมูล!A137) ->  | E137: =IF(กรอกข้อมูล!A137=0,"",D137-I$6) ->  | F137: =IF(กรอกข้อมูล!A137=0,"",E137^2) ->  | T137: =IF(กรอกข้อมูล!AS137>กรอกข้อมูล!AO$2,"",กรอกข้อมูล!AS137) ->  | U137: =IF(กรอกข้อมูล!AS137>กรอกข้อมูล!AO$2,"",กรอกข้อมูล!AT137) -> 
D138: =IF(กรอกข้อมูล!A138=0,"",กรอกข้อมูล!A138) ->  | E138: =IF(กรอกข้อมูล!A138=0,"",D138-I$6) ->  | F138: =IF(กรอกข้อมูล!A138=0,"",E138^2) ->  | T138: =IF(กรอกข้อมูล!AS138>กรอกข้อมูล!AO$2,"",กรอกข้อมูล!AS138) ->  | U138: =IF(กรอกข้อมูล!AS138>กรอกข้อมูล!AO$2,"",กรอกข้อมูล!AT138) -> 
D139: =IF(กรอกข้อมูล!A139=0,"",กรอกข้อมูล!A139) ->  | E139: =IF(กรอกข้อมูล!A139=0,"",D139-I$6) ->  | F139: =IF(กรอกข้อมูล!A139=0,"",E139^2) ->  | T139: =IF(กรอกข้อมูล!AS139>กรอกข้อมูล!AO$2,"",กรอกข้อมูล!AS139) ->  | U139: =IF(กรอกข้อมูล!AS139>กรอกข้อมูล!AO$2,"",กรอกข้อมูล!AT139) -> 
D140: =IF(กรอกข้อมูล!A140=0,"",กรอกข้อมูล!A140) ->  | E140: =IF(กรอกข้อมูล!A140=0,"",D140-I$6) ->  | F140: =IF(กรอกข้อมูล!A140=0,"",E140^2) ->  | T140: =IF(กรอกข้อมูล!AS140>กรอกข้อมูล!AO$2,"",กรอกข้อมูล!AS140) ->  | U140: =IF(กรอกข้อมูล!AS140>กรอกข้อมูล!AO$2,"",กรอกข้อมูล!AT140) -> 
D141: =IF(กรอกข้อมูล!A141=0,"",กรอกข้อมูล!A141) ->  | E141: =IF(กรอกข้อมูล!A141=0,"",D141-I$6) ->  | F141: =IF(กรอกข้อมูล!A141=0,"",E141^2) ->  | T141: =IF(กรอกข้อมูล!AS141>กรอกข้อมูล!AO$2,"",กรอกข้อมูล!AS141) ->  | U141: =IF(กรอกข้อมูล!AS141>กรอกข้อมูล!AO$2,"",กรอกข้อมูล!AT141) -> 
D142: =IF(กรอกข้อมูล!A142=0,"",กรอกข้อมูล!A142) ->  | E142: =IF(กรอกข้อมูล!A142=0,"",D142-I$6) ->  | F142: =IF(กรอกข้อมูล!A142=0,"",E142^2) ->  | T142: =IF(กรอกข้อมูล!AS142>กรอกข้อมูล!AO$2,"",กรอกข้อมูล!AS142) ->  | U142: =IF(กรอกข้อมูล!AS142>กรอกข้อมูล!AO$2,"",กรอกข้อมูล!AT142) -> 
D143: =IF(กรอกข้อมูล!A143=0,"",กรอกข้อมูล!A143) ->  | E143: =IF(กรอกข้อมูล!A143=0,"",D143-I$6) ->  | F143: =IF(กรอกข้อมูล!A143=0,"",E143^2) ->  | T143: =IF(กรอกข้อมูล!AS143>กรอกข้อมูล!AO$2,"",กรอกข้อมูล!AS143) ->  | U143: =IF(กรอกข้อมูล!AS143>กรอกข้อมูล!AO$2,"",กรอกข้อมูล!AT143) -> 
D144: =IF(กรอกข้อมูล!A144=0,"",กรอกข้อมูล!A144) ->  | E144: =IF(กรอกข้อมูล!A144=0,"",D144-I$6) ->  | F144: =IF(กรอกข้อมูล!A144=0,"",E144^2) ->  | T144: =IF(กรอกข้อมูล!AS144>กรอกข้อมูล!AO$2,"",กรอกข้อมูล!AS144) ->  | U144: =IF(กรอกข้อมูล!AS144>กรอกข้อมูล!AO$2,"",กรอกข้อมูล!AT144) -> 
D145: =IF(กรอกข้อมูล!A145=0,"",กรอกข้อมูล!A145) ->  | E145: =IF(กรอกข้อมูล!A145=0,"",D145-I$6) ->  | F145: =IF(กรอกข้อมูล!A145=0,"",E145^2) ->  | T145: =IF(กรอกข้อมูล!AS145>กรอกข้อมูล!AO$2,"",กรอกข้อมูล!AS145) ->  | U145: =IF(กรอกข้อมูล!AS145>กรอกข้อมูล!AO$2,"",กรอกข้อมูล!AT145) -> 
D146: =IF(กรอกข้อมูล!A146=0,"",กรอกข้อมูล!A146) ->  | E146: =IF(กรอกข้อมูล!A146=0,"",D146-I$6) ->  | F146: =IF(กรอกข้อมูล!A146=0,"",E146^2) ->  | T146: =IF(กรอกข้อมูล!AS146>กรอกข้อมูล!AO$2,"",กรอกข้อมูล!AS146) ->  | U146: =IF(กรอกข้อมูล!AS146>กรอกข้อมูล!AO$2,"",กรอกข้อมูล!AT146) -> 
D147: =IF(กรอกข้อมูล!A147=0,"",กรอกข้อมูล!A147) ->  | E147: =IF(กรอกข้อมูล!A147=0,"",D147-I$6) ->  | F147: =IF(กรอกข้อมูล!A147=0,"",E147^2) ->  | T147: =IF(กรอกข้อมูล!AS147>กรอกข้อมูล!AO$2,"",กรอกข้อมูล!AS147) ->  | U147: =IF(กรอกข้อมูล!AS147>กรอกข้อมูล!AO$2,"",กรอกข้อมูล!AT147) -> 
D148: =IF(กรอกข้อมูล!A148=0,"",กรอกข้อมูล!A148) ->  | E148: =IF(กรอกข้อมูล!A148=0,"",D148-I$6) ->  | F148: =IF(กรอกข้อมูล!A148=0,"",E148^2) ->  | T148: =IF(กรอกข้อมูล!AS148>กรอกข้อมูล!AO$2,"",กรอกข้อมูล!AS148) ->  | U148: =IF(กรอกข้อมูล!AS148>กรอกข้อมูล!AO$2,"",กรอกข้อมูล!AT148) -> 
D149: =IF(กรอกข้อมูล!A149=0,"",กรอกข้อมูล!A149) ->  | E149: =IF(กรอกข้อมูล!A149=0,"",D149-I$6) ->  | F149: =IF(กรอกข้อมูล!A149=0,"",E149^2) ->  | T149: =IF(กรอกข้อมูล!AS149>กรอกข้อมูล!AO$2,"",กรอกข้อมูล!AS149) ->  | U149: =IF(กรอกข้อมูล!AS149>กรอกข้อมูล!AO$2,"",กรอกข้อมูล!AT149) -> 
D150: =IF(กรอกข้อมูล!A150=0,"",กรอกข้อมูล!A150) ->  | E150: =IF(กรอกข้อมูล!A150=0,"",D150-I$6) ->  | F150: =IF(กรอกข้อมูล!A150=0,"",E150^2) ->  | T150: =IF(กรอกข้อมูล!AS150>กรอกข้อมูล!AO$2,"",กรอกข้อมูล!AS150) ->  | U150: =IF(กรอกข้อมูล!AS150>กรอกข้อมูล!AO$2,"",กรอกข้อมูล!AT150) -> 
D151: =IF(กรอกข้อมูล!A151=0,"",กรอกข้อมูล!A151) ->  | E151: =IF(กรอกข้อมูล!A151=0,"",D151-I$6) ->  | F151: =IF(กรอกข้อมูล!A151=0,"",E151^2) ->  | T151: =IF(กรอกข้อมูล!AS151>กรอกข้อมูล!AO$2,"",กรอกข้อมูล!AS151) ->  | U151: =IF(กรอกข้อมูล!AS151>กรอกข้อมูล!AO$2,"",กรอกข้อมูล!AT151) -> 
D152: =IF(กรอกข้อมูล!A152=0,"",กรอกข้อมูล!A152) ->  | E152: =IF(กรอกข้อมูล!A152=0,"",D152-I$6) ->  | F152: =IF(กรอกข้อมูล!A152=0,"",E152^2) ->  | T152: =IF(กรอกข้อมูล!AS152>กรอกข้อมูล!AO$2,"",กรอกข้อมูล!AS152) ->  | U152: =IF(กรอกข้อมูล!AS152>กรอกข้อมูล!AO$2,"",กรอกข้อมูล!AT152) -> 
D153: =IF(กรอกข้อมูล!A153=0,"",กรอกข้อมูล!A153) ->  | E153: =IF(กรอกข้อมูล!A153=0,"",D153-I$6) ->  | F153: =IF(กรอกข้อมูล!A153=0,"",E153^2) ->  | T153: =IF(กรอกข้อมูล!AS153>กรอกข้อมูล!AO$2,"",กรอกข้อมูล!AS153) ->  | U153: =IF(กรอกข้อมูล!AS153>กรอกข้อมูล!AO$2,"",กรอกข้อมูล!AT153) -> 
D154: =IF(กรอกข้อมูล!A154=0,"",กรอกข้อมูล!A154) ->  | E154: =IF(กรอกข้อมูล!A154=0,"",D154-I$6) ->  | F154: =IF(กรอกข้อมูล!A154=0,"",E154^2) ->  | T154: =IF(กรอกข้อมูล!AS154>กรอกข้อมูล!AO$2,"",กรอกข้อมูล!AS154) ->  | U154: =IF(กรอกข้อมูล!AS154>กรอกข้อมูล!AO$2,"",กรอกข้อมูล!AT154) -> 
D155: =IF(กรอกข้อมูล!A155=0,"",กรอกข้อมูล!A155) ->  | E155: =IF(กรอกข้อมูล!A155=0,"",D155-I$6) ->  | F155: =IF(กรอกข้อมูล!A155=0,"",E155^2) ->  | T155: =IF(กรอกข้อมูล!AS155>กรอกข้อมูล!AO$2,"",กรอกข้อมูล!AS155) ->  | U155: =IF(กรอกข้อมูล!AS155>กรอกข้อมูล!AO$2,"",กรอกข้อมูล!AT155) -> 
D156: =IF(กรอกข้อมูล!A156=0,"",กรอกข้อมูล!A156) ->  | E156: =IF(กรอกข้อมูล!A156=0,"",D156-I$6) ->  | F156: =IF(กรอกข้อมูล!A156=0,"",E156^2) ->  | T156: =IF(กรอกข้อมูล!AS156>กรอกข้อมูล!AO$2,"",กรอกข้อมูล!AS156) ->  | U156: =IF(กรอกข้อมูล!AS156>กรอกข้อมูล!AO$2,"",กรอกข้อมูล!AT156) -> 
D157: =IF(กรอกข้อมูล!A157=0,"",กรอกข้อมูล!A157) ->  | E157: =IF(กรอกข้อมูล!A157=0,"",D157-I$6) ->  | F157: =IF(กรอกข้อมูล!A157=0,"",E157^2) ->  | T157: =IF(กรอกข้อมูล!AS157>กรอกข้อมูล!AO$2,"",กรอกข้อมูล!AS157) ->  | U157: =IF(กรอกข้อมูล!AS157>กรอกข้อมูล!AO$2,"",กรอกข้อมูล!AT157) -> 
D158: =IF(กรอกข้อมูล!A158=0,"",กรอกข้อมูล!A158) ->  | E158: =IF(กรอกข้อมูล!A158=0,"",D158-I$6) ->  | F158: =IF(กรอกข้อมูล!A158=0,"",E158^2) ->  | T158: =IF(กรอกข้อมูล!AS158>กรอกข้อมูล!AO$2,"",กรอกข้อมูล!AS158) ->  | U158: =IF(กรอกข้อมูล!AS158>กรอกข้อมูล!AO$2,"",กรอกข้อมูล!AT158) -> 
D159: =IF(กรอกข้อมูล!A159=0,"",กรอกข้อมูล!A159) ->  | E159: =IF(กรอกข้อมูล!A159=0,"",D159-I$6) ->  | F159: =IF(กรอกข้อมูล!A159=0,"",E159^2) ->  | T159: =IF(กรอกข้อมูล!AS159>กรอกข้อมูล!AO$2,"",กรอกข้อมูล!AS159) ->  | U159: =IF(กรอกข้อมูล!AS159>กรอกข้อมูล!AO$2,"",กรอกข้อมูล!AT159) -> 
D160: =IF(กรอกข้อมูล!A160=0,"",กรอกข้อมูล!A160) ->  | E160: =IF(กรอกข้อมูล!A160=0,"",D160-I$6) ->  | F160: =IF(กรอกข้อมูล!A160=0,"",E160^2) ->  | T160: =IF(กรอกข้อมูล!AS160>กรอกข้อมูล!AO$2,"",กรอกข้อมูล!AS160) ->  | U160: =IF(กรอกข้อมูล!AS160>กรอกข้อมูล!AO$2,"",กรอกข้อมูล!AT160) -> 
D161: =IF(กรอกข้อมูล!A161=0,"",กรอกข้อมูล!A161) ->  | E161: =IF(กรอกข้อมูล!A161=0,"",D161-I$6) ->  | F161: =IF(กรอกข้อมูล!A161=0,"",E161^2) ->  | T161: =IF(กรอกข้อมูล!AS161>กรอกข้อมูล!AO$2,"",กรอกข้อมูล!AS161) ->  | U161: =IF(กรอกข้อมูล!AS161>กรอกข้อมูล!AO$2,"",กรอกข้อมูล!AT161) -> 
D162: =IF(กรอกข้อมูล!A162=0,"",กรอกข้อมูล!A162) ->  | E162: =IF(กรอกข้อมูล!A162=0,"",D162-I$6) ->  | F162: =IF(กรอกข้อมูล!A162=0,"",E162^2) ->  | T162: =IF(กรอกข้อมูล!AS162>กรอกข้อมูล!AO$2,"",กรอกข้อมูล!AS162) ->  | U162: =IF(กรอกข้อมูล!AS162>กรอกข้อมูล!AO$2,"",กรอกข้อมูล!AT162) -> 
D163: =IF(กรอกข้อมูล!A163=0,"",กรอกข้อมูล!A163) ->  | E163: =IF(กรอกข้อมูล!A163=0,"",D163-I$6) ->  | F163: =IF(กรอกข้อมูล!A163=0,"",E163^2) ->  | T163: =IF(กรอกข้อมูล!AS163>กรอกข้อมูล!AO$2,"",กรอกข้อมูล!AS163) ->  | U163: =IF(กรอกข้อมูล!AS163>กรอกข้อมูล!AO$2,"",กรอกข้อมูล!AT163) -> 
D164: =IF(กรอกข้อมูล!A164=0,"",กรอกข้อมูล!A164) ->  | E164: =IF(กรอกข้อมูล!A164=0,"",D164-I$6) ->  | F164: =IF(กรอกข้อมูล!A164=0,"",E164^2) ->  | T164: =IF(กรอกข้อมูล!AS164>กรอกข้อมูล!AO$2,"",กรอกข้อมูล!AS164) ->  | U164: =IF(กรอกข้อมูล!AS164>กรอกข้อมูล!AO$2,"",กรอกข้อมูล!AT164) -> 
D165: =IF(กรอกข้อมูล!A165=0,"",กรอกข้อมูล!A165) ->  | E165: =IF(กรอกข้อมูล!A165=0,"",D165-I$6) ->  | F165: =IF(กรอกข้อมูล!A165=0,"",E165^2) ->  | T165: =IF(กรอกข้อมูล!AS165>กรอกข้อมูล!AO$2,"",กรอกข้อมูล!AS165) ->  | U165: =IF(กรอกข้อมูล!AS165>กรอกข้อมูล!AO$2,"",กรอกข้อมูล!AT165) -> 
D166: =IF(กรอกข้อมูล!A166=0,"",กรอกข้อมูล!A166) ->  | E166: =IF(กรอกข้อมูล!A166=0,"",D166-I$6) ->  | F166: =IF(กรอกข้อมูล!A166=0,"",E166^2) ->  | T166: =IF(กรอกข้อมูล!AS166>กรอกข้อมูล!AO$2,"",กรอกข้อมูล!AS166) ->  | U166: =IF(กรอกข้อมูล!AS166>กรอกข้อมูล!AO$2,"",กรอกข้อมูล!AT166) -> 
D167: =IF(กรอกข้อมูล!A167=0,"",กรอกข้อมูล!A167) ->  | E167: =IF(กรอกข้อมูล!A167=0,"",D167-I$6) ->  | F167: =IF(กรอกข้อมูล!A167=0,"",E167^2) ->  | T167: =IF(กรอกข้อมูล!AS167>กรอกข้อมูล!AO$2,"",กรอกข้อมูล!AS167) ->  | U167: =IF(กรอกข้อมูล!AS167>กรอกข้อมูล!AO$2,"",กรอกข้อมูล!AT167) -> 
D168: =IF(กรอกข้อมูล!A168=0,"",กรอกข้อมูล!A168) ->  | E168: =IF(กรอกข้อมูล!A168=0,"",D168-I$6) ->  | F168: =IF(กรอกข้อมูล!A168=0,"",E168^2) ->  | T168: =IF(กรอกข้อมูล!AS168>กรอกข้อมูล!AO$2,"",กรอกข้อมูล!AS168) ->  | U168: =IF(กรอกข้อมูล!AS168>กรอกข้อมูล!AO$2,"",กรอกข้อมูล!AT168) -> 
D169: =IF(กรอกข้อมูล!A169=0,"",กรอกข้อมูล!A169) ->  | E169: =IF(กรอกข้อมูล!A169=0,"",D169-I$6) ->  | F169: =IF(กรอกข้อมูล!A169=0,"",E169^2) ->  | T169: =IF(กรอกข้อมูล!AS169>กรอกข้อมูล!AO$2,"",กรอกข้อมูล!AS169) ->  | U169: =IF(กรอกข้อมูล!AS169>กรอกข้อมูล!AO$2,"",กรอกข้อมูล!AT169) -> 
D170: =IF(กรอกข้อมูล!A170=0,"",กรอกข้อมูล!A170) ->  | E170: =IF(กรอกข้อมูล!A170=0,"",D170-I$6) ->  | F170: =IF(กรอกข้อมูล!A170=0,"",E170^2) ->  | T170: =IF(กรอกข้อมูล!AS170>กรอกข้อมูล!AO$2,"",กรอกข้อมูล!AS170) ->  | U170: =IF(กรอกข้อมูล!AS170>กรอกข้อมูล!AO$2,"",กรอกข้อมูล!AT170) -> 
D171: =IF(กรอกข้อมูล!A171=0,"",กรอกข้อมูล!A171) ->  | E171: =IF(กรอกข้อมูล!A171=0,"",D171-I$6) ->  | F171: =IF(กรอกข้อมูล!A171=0,"",E171^2) ->  | T171: =IF(กรอกข้อมูล!AS171>กรอกข้อมูล!AO$2,"",กรอกข้อมูล!AS171) ->  | U171: =IF(กรอกข้อมูล!AS171>กรอกข้อมูล!AO$2,"",กรอกข้อมูล!AT171) -> 
D172: =IF(กรอกข้อมูล!A172=0,"",กรอกข้อมูล!A172) ->  | E172: =IF(กรอกข้อมูล!A172=0,"",D172-I$6) ->  | F172: =IF(กรอกข้อมูล!A172=0,"",E172^2) ->  | T172: =IF(กรอกข้อมูล!AS172>กรอกข้อมูล!AO$2,"",กรอกข้อมูล!AS172) ->  | U172: =IF(กรอกข้อมูล!AS172>กรอกข้อมูล!AO$2,"",กรอกข้อมูล!AT172) -> 
D173: =IF(กรอกข้อมูล!A173=0,"",กรอกข้อมูล!A173) ->  | E173: =IF(กรอกข้อมูล!A173=0,"",D173-I$6) ->  | F173: =IF(กรอกข้อมูล!A173=0,"",E173^2) ->  | T173: =IF(กรอกข้อมูล!AS173>กรอกข้อมูล!AO$2,"",กรอกข้อมูล!AS173) ->  | U173: =IF(กรอกข้อมูล!AS173>กรอกข้อมูล!AO$2,"",กรอกข้อมูล!AT173) -> 
D174: =IF(กรอกข้อมูล!A174=0,"",กรอกข้อมูล!A174) ->  | E174: =IF(กรอกข้อมูล!A174=0,"",D174-I$6) ->  | F174: =IF(กรอกข้อมูล!A174=0,"",E174^2) ->  | T174: =IF(กรอกข้อมูล!AS174>กรอกข้อมูล!AO$2,"",กรอกข้อมูล!AS174) ->  | U174: =IF(กรอกข้อมูล!AS174>กรอกข้อมูล!AO$2,"",กรอกข้อมูล!AT174) -> 
D175: =IF(กรอกข้อมูล!A175=0,"",กรอกข้อมูล!A175) ->  | E175: =IF(กรอกข้อมูล!A175=0,"",D175-I$6) ->  | F175: =IF(กรอกข้อมูล!A175=0,"",E175^2) ->  | T175: =IF(กรอกข้อมูล!AS175>กรอกข้อมูล!AO$2,"",กรอกข้อมูล!AS175) ->  | U175: =IF(กรอกข้อมูล!AS175>กรอกข้อมูล!AO$2,"",กรอกข้อมูล!AT175) -> 
D176: =IF(กรอกข้อมูล!A176=0,"",กรอกข้อมูล!A176) ->  | E176: =IF(กรอกข้อมูล!A176=0,"",D176-I$6) ->  | F176: =IF(กรอกข้อมูล!A176=0,"",E176^2) ->  | T176: =IF(กรอกข้อมูล!AS176>กรอกข้อมูล!AO$2,"",กรอกข้อมูล!AS176) ->  | U176: =IF(กรอกข้อมูล!AS176>กรอกข้อมูล!AO$2,"",กรอกข้อมูล!AT176) -> 
D177: =IF(กรอกข้อมูล!A177=0,"",กรอกข้อมูล!A177) ->  | E177: =IF(กรอกข้อมูล!A177=0,"",D177-I$6) ->  | F177: =IF(กรอกข้อมูล!A177=0,"",E177^2) ->  | T177: =IF(กรอกข้อมูล!AS177>กรอกข้อมูล!AO$2,"",กรอกข้อมูล!AS177) ->  | U177: =IF(กรอกข้อมูล!AS177>กรอกข้อมูล!AO$2,"",กรอกข้อมูล!AT177) -> 
D178: =IF(กรอกข้อมูล!A178=0,"",กรอกข้อมูล!A178) ->  | E178: =IF(กรอกข้อมูล!A178=0,"",D178-I$6) ->  | F178: =IF(กรอกข้อมูล!A178=0,"",E178^2) ->  | T178: =IF(กรอกข้อมูล!AS178>กรอกข้อมูล!AO$2,"",กรอกข้อมูล!AS178) ->  | U178: =IF(กรอกข้อมูล!AS178>กรอกข้อมูล!AO$2,"",กรอกข้อมูล!AT178) -> 
D179: =IF(กรอกข้อมูล!A179=0,"",กรอกข้อมูล!A179) ->  | E179: =IF(กรอกข้อมูล!A179=0,"",D179-I$6) ->  | F179: =IF(กรอกข้อมูล!A179=0,"",E179^2) ->  | T179: =IF(กรอกข้อมูล!AS179>กรอกข้อมูล!AO$2,"",กรอกข้อมูล!AS179) ->  | U179: =IF(กรอกข้อมูล!AS179>กรอกข้อมูล!AO$2,"",กรอกข้อมูล!AT179) -> 
D180: =IF(กรอกข้อมูล!A180=0,"",กรอกข้อมูล!A180) ->  | E180: =IF(กรอกข้อมูล!A180=0,"",D180-I$6) ->  | F180: =IF(กรอกข้อมูล!A180=0,"",E180^2) ->  | T180: =IF(กรอกข้อมูล!AS180>กรอกข้อมูล!AO$2,"",กรอกข้อมูล!AS180) ->  | U180: =IF(กรอกข้อมูล!AS180>กรอกข้อมูล!AO$2,"",กรอกข้อมูล!AT180) -> 
D181: =IF(กรอกข้อมูล!A181=0,"",กรอกข้อมูล!A181) ->  | E181: =IF(กรอกข้อมูล!A181=0,"",D181-I$6) ->  | F181: =IF(กรอกข้อมูล!A181=0,"",E181^2) ->  | T181: =IF(กรอกข้อมูล!AS181>กรอกข้อมูล!AO$2,"",กรอกข้อมูล!AS181) ->  | U181: =IF(กรอกข้อมูล!AS181>กรอกข้อมูล!AO$2,"",กรอกข้อมูล!AT181) -> 
D182: =IF(กรอกข้อมูล!A182=0,"",กรอกข้อมูล!A182) ->  | E182: =IF(กรอกข้อมูล!A182=0,"",D182-I$6) ->  | F182: =IF(กรอกข้อมูล!A182=0,"",E182^2) ->  | T182: =IF(กรอกข้อมูล!AS182>กรอกข้อมูล!AO$2,"",กรอกข้อมูล!AS182) ->  | U182: =IF(กรอกข้อมูล!AS182>กรอกข้อมูล!AO$2,"",กรอกข้อมูล!AT182) -> 
D183: =IF(กรอกข้อมูล!A183=0,"",กรอกข้อมูล!A183) ->  | E183: =IF(กรอกข้อมูล!A183=0,"",D183-I$6) ->  | F183: =IF(กรอกข้อมูล!A183=0,"",E183^2) ->  | T183: =IF(กรอกข้อมูล!AS183>กรอกข้อมูล!AO$2,"",กรอกข้อมูล!AS183) ->  | U183: =IF(กรอกข้อมูล!AS183>กรอกข้อมูล!AO$2,"",กรอกข้อมูล!AT183) -> 
D184: =IF(กรอกข้อมูล!A184=0,"",กรอกข้อมูล!A184) ->  | E184: =IF(กรอกข้อมูล!A184=0,"",D184-I$6) ->  | F184: =IF(กรอกข้อมูล!A184=0,"",E184^2) ->  | T184: =IF(กรอกข้อมูล!AS184>กรอกข้อมูล!AO$2,"",กรอกข้อมูล!AS184) ->  | U184: =IF(กรอกข้อมูล!AS184>กรอกข้อมูล!AO$2,"",กรอกข้อมูล!AT184) -> 
D185: =IF(กรอกข้อมูล!A185=0,"",กรอกข้อมูล!A185) ->  | E185: =IF(กรอกข้อมูล!A185=0,"",D185-I$6) ->  | F185: =IF(กรอกข้อมูล!A185=0,"",E185^2) ->  | T185: =IF(กรอกข้อมูล!AS185>กรอกข้อมูล!AO$2,"",กรอกข้อมูล!AS185) ->  | U185: =IF(กรอกข้อมูล!AS185>กรอกข้อมูล!AO$2,"",กรอกข้อมูล!AT185) -> 
D186: =IF(กรอกข้อมูล!A186=0,"",กรอกข้อมูล!A186) ->  | E186: =IF(กรอกข้อมูล!A186=0,"",D186-I$6) ->  | F186: =IF(กรอกข้อมูล!A186=0,"",E186^2) ->  | T186: =IF(กรอกข้อมูล!AS186>กรอกข้อมูล!AO$2,"",กรอกข้อมูล!AS186) ->  | U186: =IF(กรอกข้อมูล!AS186>กรอกข้อมูล!AO$2,"",กรอกข้อมูล!AT186) -> 
D187: =IF(กรอกข้อมูล!A187=0,"",กรอกข้อมูล!A187) ->  | E187: =IF(กรอกข้อมูล!A187=0,"",D187-I$6) ->  | F187: =IF(กรอกข้อมูล!A187=0,"",E187^2) ->  | T187: =IF(กรอกข้อมูล!AS187>กรอกข้อมูล!AO$2,"",กรอกข้อมูล!AS187) ->  | U187: =IF(กรอกข้อมูล!AS187>กรอกข้อมูล!AO$2,"",กรอกข้อมูล!AT187) -> 
D188: =IF(กรอกข้อมูล!A188=0,"",กรอกข้อมูล!A188) ->  | E188: =IF(กรอกข้อมูล!A188=0,"",D188-I$6) ->  | F188: =IF(กรอกข้อมูล!A188=0,"",E188^2) ->  | T188: =IF(กรอกข้อมูล!AS188>กรอกข้อมูล!AO$2,"",กรอกข้อมูล!AS188) ->  | U188: =IF(กรอกข้อมูล!AS188>กรอกข้อมูล!AO$2,"",กรอกข้อมูล!AT188) -> 
D189: =IF(กรอกข้อมูล!A189=0,"",กรอกข้อมูล!A189) ->  | E189: =IF(กรอกข้อมูล!A189=0,"",D189-I$6) ->  | F189: =IF(กรอกข้อมูล!A189=0,"",E189^2) ->  | T189: =IF(กรอกข้อมูล!AS189>กรอกข้อมูล!AO$2,"",กรอกข้อมูล!AS189) ->  | U189: =IF(กรอกข้อมูล!AS189>กรอกข้อมูล!AO$2,"",กรอกข้อมูล!AT189) -> 
D190: =IF(กรอกข้อมูล!A190=0,"",กรอกข้อมูล!A190) ->  | E190: =IF(กรอกข้อมูล!A190=0,"",D190-I$6) ->  | F190: =IF(กรอกข้อมูล!A190=0,"",E190^2) ->  | T190: =IF(กรอกข้อมูล!AS190>กรอกข้อมูล!AO$2,"",กรอกข้อมูล!AS190) ->  | U190: =IF(กรอกข้อมูล!AS190>กรอกข้อมูล!AO$2,"",กรอกข้อมูล!AT190) -> 
D191: =IF(กรอกข้อมูล!A191=0,"",กรอกข้อมูล!A191) ->  | E191: =IF(กรอกข้อมูล!A191=0,"",D191-I$6) ->  | F191: =IF(กรอกข้อมูล!A191=0,"",E191^2) ->  | T191: =IF(กรอกข้อมูล!AS191>กรอกข้อมูล!AO$2,"",กรอกข้อมูล!AS191) ->  | U191: =IF(กรอกข้อมูล!AS191>กรอกข้อมูล!AO$2,"",กรอกข้อมูล!AT191) -> 
D192: =IF(กรอกข้อมูล!A192=0,"",กรอกข้อมูล!A192) ->  | E192: =IF(กรอกข้อมูล!A192=0,"",D192-I$6) ->  | F192: =IF(กรอกข้อมูล!A192=0,"",E192^2) ->  | T192: =IF(กรอกข้อมูล!AS192>กรอกข้อมูล!AO$2,"",กรอกข้อมูล!AS192) ->  | U192: =IF(กรอกข้อมูล!AS192>กรอกข้อมูล!AO$2,"",กรอกข้อมูล!AT192) -> 
A193: =D193 ->  | B193: =E193 ->  | C193: =F193 ->  | D193: =IF(กรอกข้อมูล!A193=0,"",กรอกข้อมูล!A193) ->  | E193: =IF(กรอกข้อมูล!A193=0,"",D193-I$6) ->  | F193: =IF(กรอกข้อมูล!A193=0,"",E193^2) ->  | T193: =IF(กรอกข้อมูล!AS193>กรอกข้อมูล!AO$2,"",กรอกข้อมูล!AS193) ->  | U193: =IF(กรอกข้อมูล!AS193>กรอกข้อมูล!AO$2,"",กรอกข้อมูล!AT193) -> 
D194: =IF(กรอกข้อมูล!A194=0,"",กรอกข้อมูล!A194) ->  | E194: =IF(กรอกข้อมูล!A194=0,"",D194-I$6) ->  | F194: =IF(กรอกข้อมูล!A194=0,"",E194^2) ->  | R194: =T194 ->  | S194: =U194 ->  | T194: =IF(กรอกข้อมูล!AS194>กรอกข้อมูล!AO$2,"",กรอกข้อมูล!AS194) ->  | U194: =IF(กรอกข้อมูล!AS194>กรอกข้อมูล!AO$2,"",กรอกข้อมูล!AT194) -> 
D195: =IF(กรอกข้อมูล!A195=0,"",กรอกข้อมูล!A195) ->  | E195: =IF(กรอกข้อมูล!A195=0,"",D195-I$6) ->  | F195: =IF(กรอกข้อมูล!A195=0,"",E195^2) ->  | T195: =IF(กรอกข้อมูล!AS195>กรอกข้อมูล!AO$2,"",กรอกข้อมูล!AS195) ->  | U195: =IF(กรอกข้อมูล!AS195>กรอกข้อมูล!AO$2,"",กรอกข้อมูล!AT195) -> 
D196: =IF(กรอกข้อมูล!A196=0,"",กรอกข้อมูล!A196) ->  | E196: =IF(กรอกข้อมูล!A196=0,"",D196-I$6) ->  | F196: =IF(กรอกข้อมูล!A196=0,"",E196^2) ->  | T196: =IF(กรอกข้อมูล!AS196>กรอกข้อมูล!AO$2,"",กรอกข้อมูล!AS196) ->  | U196: =IF(กรอกข้อมูล!AS196>กรอกข้อมูล!AO$2,"",กรอกข้อมูล!AT196) -> 
D197: =IF(กรอกข้อมูล!A197=0,"",กรอกข้อมูล!A197) ->  | E197: =IF(กรอกข้อมูล!A197=0,"",D197-I$6) ->  | F197: =IF(กรอกข้อมูล!A197=0,"",E197^2) ->  | T197: =IF(กรอกข้อมูล!AS197>กรอกข้อมูล!AO$2,"",กรอกข้อมูล!AS197) ->  | U197: =IF(กรอกข้อมูล!AS197>กรอกข้อมูล!AO$2,"",กรอกข้อมูล!AT197) -> 
D198: =IF(กรอกข้อมูล!A198=0,"",กรอกข้อมูล!A198) ->  | E198: =IF(กรอกข้อมูล!A198=0,"",D198-I$6) ->  | F198: =IF(กรอกข้อมูล!A198=0,"",E198^2) ->  | T198: =IF(กรอกข้อมูล!AS198>กรอกข้อมูล!AO$2,"",กรอกข้อมูล!AS198) ->  | U198: =IF(กรอกข้อมูล!AS198>กรอกข้อมูล!AO$2,"",กรอกข้อมูล!AT198) -> 
D199: =IF(กรอกข้อมูล!A199=0,"",กรอกข้อมูล!A199) ->  | E199: =IF(กรอกข้อมูล!A199=0,"",D199-I$6) ->  | F199: =IF(กรอกข้อมูล!A199=0,"",E199^2) ->  | T199: =IF(กรอกข้อมูล!AS199>กรอกข้อมูล!AO$2,"",กรอกข้อมูล!AS199) ->  | U199: =IF(กรอกข้อมูล!AS199>กรอกข้อมูล!AO$2,"",กรอกข้อมูล!AT199) -> 
D200: =IF(กรอกข้อมูล!A200=0,"",กรอกข้อมูล!A200) ->  | E200: =IF(กรอกข้อมูล!A200=0,"",D200-I$6) ->  | F200: =IF(กรอกข้อมูล!A200=0,"",E200^2) ->  | T200: =IF(กรอกข้อมูล!AS200>กรอกข้อมูล!AO$2,"",กรอกข้อมูล!AS200) ->  | U200: =IF(กรอกข้อมูล!AS200>กรอกข้อมูล!AO$2,"",กรอกข้อมูล!AT200) -> 
... 207 more rows

Sheet แจกแจง I=0 (hidden)
A1: ข้อมูล (X) | B1: ความถี่ (f) | C1: ความถี่สะสม (F) | D1: fX | H1: ค่าเฉลี่ยเลขคณิต (Mean) แบบแจกแจงความถี่ที่ไม่มีอันตรภาคชั้น | M1: ข้อมูล | N1: ความถี่ | O1: ความถี่สะสม | P1: fX
A2: =M2 -> 12 | B2: =N2 -> 2 | C2: =O2 -> 2 | D2: =P2 -> 4 | E2: =R2 -> 14.56 | F2: =S2 -> 29.12 | M2: =IF(กรอกข้อมูล!AS2>กรอกข้อมูล!AO$2,"",กรอกข้อมูล!AS2) -> 12 | N2: =IF(กรอกข้อมูล!AS2>กรอกข้อมูล!AO$2,"",กรอกข้อมูล!AT2) -> 2 | O2: =IF(กรอกข้อมูล!AS2>กรอกข้อมูล!AO$2,"",กรอกข้อมูล!AU2) -> 2 | P2: =IF(กรอกข้อมูล!AS2>กรอกข้อมูล!AO$2,"",N2*O2) -> 4 | Q2: =IF(กรอกข้อมูล!AS2>กรอกข้อมูล!AO$2,"",ABS(M2-I$6)) -> 14.56 | R2: =IF(N2=0,0,Q2) -> 14.56 | S2: =IF(กรอกข้อมูล!AS2>กรอกข้อมูล!AO$2,"",N2*Q2) -> 29.12
A3: 13 | B3: 1 | C3: 3 | D3: 3 | E3: 13.56 | F3: 13.56 | H3: ผลรวม fX = | I3: =$D$402 -> 1328 | M3: =IF(กรอกข้อมูล!AS3>กรอกข้อมูล!AO$2,"",กรอกข้อมูล!AS3) -> 13 | N3: =IF(กรอกข้อมูล!AS3>กรอกข้อมูล!AO$2,"",กรอกข้อมูล!AT3) -> 1 | O3: =IF(กรอกข้อมูล!AS3>กรอกข้อมูล!AO$2,"",กรอกข้อมูล!AU3) -> 3 | P3: =IF(กรอกข้อมูล!AS3>กรอกข้อมูล!AO$2,"",N3*O3) -> 3 | Q3: =IF(กรอกข้อมูล!AS3>กรอกข้อมูล!AO$2,"",ABS(M3-I$6)) -> 13.56 | R3: =IF(N3=0,0,Q3) -> 13.56 | S3: =IF(กรอกข้อมูล!AS3>กรอกข้อมูล!AO$2,"",N3*Q3) -> 13.56
A4: 14 | B4: 1 | C4: 4 | D4: 4 | E4: 12.56 | F4: 12.56 | H4: n = | I4: =กรอกข้อมูล!$AO$7 -> 50 | M4: =IF(กรอกข้อมูล!AS4>กรอกข้อมูล!AO$2,"",กรอกข้อมูล!AS4) -> 14 | N4: =IF(กรอกข้อมูล!AS4>กรอกข้อมูล!AO$2,"",กรอกข้อมูล!AT4) -> 1 | O4: =IF(กรอกข้อมูล!AS4>กรอกข้อมูล!AO$2,"",กรอกข้อมูล!AU4) -> 4 | P4: =IF(กรอกข้อมูล!AS4>กรอกข้อมูล!AO$2,"",N4*O4) -> 4 | Q4: =IF(กรอกข้อมูล!AS4>กรอกข้อมูล!AO$2,"",ABS(M4-I$6)) -> 12.56 | R4: 12.56 | S4: =IF(กรอกข้อมูล!AS4>กรอกข้อมูล!AO$2,"",N4*Q4) -> 12.56
A5: 15 | B5: 2 | C5: 6 | D5: 12 | E5: 11.56 | F5: 23.12 | H5: ค่าเฉลี่ย = | I5: ผลรวม fX/n | M5: =IF(กรอกข้อมูล!AS5>กรอกข้อมูล!AO$2,"",กรอกข้อมูล!AS5) -> 15 | N5: =IF(กรอกข้อมูล!AS5>กรอกข้อมูล!AO$2,"",กรอกข้อมูล!AT5) -> 2 | O5: =IF(กรอกข้อมูล!AS5>กรอกข้อมูล!AO$2,"",กรอกข้อมูล!AU5) -> 6 | P5: =IF(กรอกข้อมูล!AS5>กรอกข้อมูล!AO$2,"",N5*O5) -> 12 | Q5: =IF(กรอกข้อมูล!AS5>กรอกข้อมูล!AO$2,"",ABS(M5-I$6)) -> 11.56 | R5: 11.56 | S5: =IF(กรอกข้อมูล!AS5>กรอกข้อมูล!AO$2,"",N5*Q5) -> 23.12
A6: 16 | B6: 2 | C6: 8 | D6: 16 | E6: 10.56 | F6: 21.12 | H6: ค่าเฉลี่ย = | I6: =I3/I4 -> 26.56 | M6: =IF(กรอกข้อมูล!AS6>กรอกข้อมูล!AO$2,"",กรอกข้อมูล!AS6) -> 16 | N6: =IF(กรอกข้อมูล!AS6>กรอกข้อมูล!AO$2,"",กรอกข้อมูล!AT6) -> 2 | O6: =IF(กรอกข้อมูล!AS6>กรอกข้อมูล!AO$2,"",กรอกข้อมูล!AU6) -> 8 | P6: =IF(กรอกข้อมูล!AS6>กรอกข้อมูล!AO$2,"",N6*O6) -> 16 | Q6: =IF(กรอกข้อมูล!AS6>กรอกข้อมูล!AO$2,"",ABS(M6-I$6)) -> 10.56 | R6: 10.56 | S6: =IF(กรอกข้อมูล!AS6>กรอกข้อมูล!AO$2,"",N6*Q6) -> 21.12
A7: 17 | B7: 3 | C7: 11 | D7: 33 | E7: 9.56 | F7: 28.68 | I7: =$E$402 -> 125.6 | M7: =IF(กรอกข้อมูล!AS7>กรอกข้อมูล!AO$2,"",กรอกข้อมูล!AS7) -> 17 | N7: =IF(กรอกข้อมูล!AS7>กรอกข้อมูล!AO$2,"",กรอกข้อมูล!AT7) -> 3 | O7: =IF(กรอกข้อมูล!AS7>กรอกข้อมูล!AO$2,"",กรอกข้อมูล!AU7) -> 11 | P7: =IF(กรอกข้อมูล!AS7>กรอกข้อมูล!AO$2,"",N7*O7) -> 33 | Q7: =IF(กรอกข้อมูล!AS7>กรอกข้อมูล!AO$2,"",ABS(M7-I$6)) -> 9.56 | R7: 9.56 | S7: =IF(กรอกข้อมูล!AS7>กรอกข้อมูล!AO$2,"",N7*Q7) -> 28.68
A8: 18 | B8: 2 | C8: 13 | D8: 26 | E8: 8.56 | F8: 17.12 | I8: =$F$402 -> 284.04 | M8: =IF(กรอกข้อมูล!AS8>กรอกข้อมูล!AO$2,"",กรอกข้อมูล!AS8) -> 18 | N8: =IF(กรอกข้อมูล!AS8>กรอกข้อมูล!AO$2,"",กรอกข้อมูล!AT8) -> 2 | O8: =IF(กรอกข้อมูล!AS8>กรอกข้อมูล!AO$2,"",กรอกข้อมูล!AU8) -> 13 | P8: =IF(กรอกข้อมูล!AS8>กรอกข้อมูล!AO$2,"",N8*O8) -> 26 | Q8: =IF(กรอกข้อมูล!AS8>กรอกข้อมูล!AO$2,"",ABS(M8-I$6)) -> 8.56 | R8: 8.56 | S8: =IF(กรอกข้อมูล!AS8>กรอกข้อมูล!AO$2,"",N8*Q8) -> 17.12
A9: 19 | B9: 4 | C9: 17 | D9: 68 | E9: 7.56 | F9: 30.24 | H9: ค่าเบี่ยงเบนเฉลี่ย (M.D.) = | J9: =I8/I4 -> 5.6808 | M9: =IF(กรอกข้อมูล!AS9>กรอกข้อมูล!AO$2,"",กรอกข้อมูล!AS9) -> 19 | N9: =IF(กรอกข้อมูล!AS9>กรอกข้อมูล!AO$2,"",กรอกข้อมูล!AT9) -> 4 | O9: =IF(กรอกข้อมูล!AS9>กรอกข้อมูล!AO$2,"",กรอกข้อมูล!AU9) -> 17 | P9: =IF(กรอกข้อมูล!AS9>กรอกข้อมูล!AO$2,"",N9*O9) -> 68 | Q9: =IF(กรอกข้อมูล!AS9>กรอกข้อมูล!AO$2,"",ABS(M9-I$6)) -> 7.56 | R9: 7.56 | S9: =IF(กรอกข้อมูล!AS9>กรอกข้อมูล!AO$2,"",N9*Q9) -> 30.24
A10: 20 | B10: 3 | C10: 20 | D10: 60 | E10: 6.56 | F10: 19.68 | M10: =IF(กรอกข้อมูล!AS10>กรอกข้อมูล!AO$2,"",กรอกข้อมูล!AS10) -> 20 | N10: =IF(กรอกข้อมูล!AS10>กรอกข้อมูล!AO$2,"",กรอกข้อมูล!AT10) -> 3 | O10: =IF(กรอกข้อมูล!AS10>กรอกข้อมูล!AO$2,"",กรอกข้อมูล!AU10) -> 20 | P10: =IF(กรอกข้อมูล!AS10>กรอกข้อมูล!AO$2,"",N10*O10) -> 60 | Q10: =IF(กรอกข้อมูล!AS10>กรอกข้อมูล!AO$2,"",ABS(M10-I$6)) -> 6.56 | R10: 6.56 | S10: =IF(กรอกข้อมูล!AS10>กรอกข้อมูล!AO$2,"",N10*Q10) -> 19.68
A11: 21 | B11: 6 | C11: 26 | D11: 156 | E11: 5.56 | F11: 33.36 | M11: =IF(กรอกข้อมูล!AS11>กรอกข้อมูล!AO$2,"",กรอกข้อมูล!AS11) -> 21 | N11: =IF(กรอกข้อมูล!AS11>กรอกข้อมูล!AO$2,"",กรอกข้อมูล!AT11) -> 6 | O11: =IF(กรอกข้อมูล!AS11>กรอกข้อมูล!AO$2,"",กรอกข้อมูล!AU11) -> 26 | P11: =IF(กรอกข้อมูล!AS11>กรอกข้อมูล!AO$2,"",N11*O11) -> 156 | Q11: =IF(กรอกข้อมูล!AS11>กรอกข้อมูล!AO$2,"",ABS(M11-I$6)) -> 5.56 | R11: 5.56 | S11: =IF(กรอกข้อมูล!AS11>กรอกข้อมูล!AO$2,"",N11*Q11) -> 33.36
A12: 22 | B12: 2 | C12: 28 | D12: 56 | E12: 4.56 | F12: 9.12 | M12: =IF(กรอกข้อมูล!AS12>กรอกข้อมูล!AO$2,"",กรอกข้อมูล!AS12) -> 22 | N12: =IF(กรอกข้อมูล!AS12>กรอกข้อมูล!AO$2,"",กรอกข้อมูล!AT12) -> 2 | O12: =IF(กรอกข้อมูล!AS12>กรอกข้อมูล!AO$2,"",กรอกข้อมูล!AU12) -> 28 | P12: =IF(กรอกข้อมูล!AS12>กรอกข้อมูล!AO$2,"",N12*O12) -> 56 | Q12: =IF(กรอกข้อมูล!AS12>กรอกข้อมูล!AO$2,"",ABS(M12-I$6)) -> 4.56 | R12: 4.56 | S12: =IF(กรอกข้อมูล!AS12>กรอกข้อมูล!AO$2,"",N12*Q12) -> 9.12
A13: 23 | B13: 4 | C13: 32 | D13: 128 | E13: 3.56 | F13: 14.24 | M13: =IF(กรอกข้อมูล!AS13>กรอกข้อมูล!AO$2,"",กรอกข้อมูล!AS13) -> 23 | N13: =IF(กรอกข้อมูล!AS13>กรอกข้อมูล!AO$2,"",กรอกข้อมูล!AT13) -> 4 | O13: =IF(กรอกข้อมูล!AS13>กรอกข้อมูล!AO$2,"",กรอกข้อมูล!AU13) -> 32 | P13: =IF(กรอกข้อมูล!AS13>กรอกข้อมูล!AO$2,"",N13*O13) -> 128 | Q13: =IF(กรอกข้อมูล!AS13>กรอกข้อมูล!AO$2,"",ABS(M13-I$6)) -> 3.56 | R13: 3.56 | S13: =IF(กรอกข้อมูล!AS13>กรอกข้อมูล!AO$2,"",N13*Q13) -> 14.24
A14: 24 | B14: 3 | C14: 35 | D14: 105 | E14: 2.56 | F14: 7.68 | M14: =IF(กรอกข้อมูล!AS14>กรอกข้อมูล!AO$2,"",กรอกข้อมูล!AS14) -> 24 | N14: =IF(กรอกข้อมูล!AS14>กรอกข้อมูล!AO$2,"",กรอกข้อมูล!AT14) -> 3 | O14: =IF(กรอกข้อมูล!AS14>กรอกข้อมูล!AO$2,"",กรอกข้อมูล!AU14) -> 35 | P14: =IF(กรอกข้อมูล!AS14>กรอกข้อมูล!AO$2,"",N14*O14) -> 105 | Q14: =IF(กรอกข้อมูล!AS14>กรอกข้อมูล!AO$2,"",ABS(M14-I$6)) -> 2.56 | R14: 2.56 | S14: =IF(กรอกข้อมูล!AS14>กรอกข้อมูล!AO$2,"",N14*Q14) -> 7.68
A15: 25 | B15: 3 | C15: 38 | D15: 114 | E15: 1.56 | F15: 4.68 | M15: =IF(กรอกข้อมูล!AS15>กรอกข้อมูล!AO$2,"",กรอกข้อมูล!AS15) -> 25 | N15: =IF(กรอกข้อมูล!AS15>กรอกข้อมูล!AO$2,"",กรอกข้อมูล!AT15) -> 3 | O15: =IF(กรอกข้อมูล!AS15>กรอกข้อมูล!AO$2,"",กรอกข้อมูล!AU15) -> 38 | P15: =IF(กรอกข้อมูล!AS15>กรอกข้อมูล!AO$2,"",N15*O15) -> 114 | Q15: =IF(กรอกข้อมูล!AS15>กรอกข้อมูล!AO$2,"",ABS(M15-I$6)) -> 1.56 | R15: 1.56 | S15: =IF(กรอกข้อมูล!AS15>กรอกข้อมูล!AO$2,"",N15*Q15) -> 4.68
A16: 26 | B16: 4 | C16: 42 | D16: 168 | E16: 0.56 | F16: 2.24 | M16: =IF(กรอกข้อมูล!AS16>กรอกข้อมูล!AO$2,"",กรอกข้อมูล!AS16) -> 26 | N16: =IF(กรอกข้อมูล!AS16>กรอกข้อมูล!AO$2,"",กรอกข้อมูล!AT16) -> 4 | O16: =IF(กรอกข้อมูล!AS16>กรอกข้อมูล!AO$2,"",กรอกข้อมูล!AU16) -> 42 | P16: =IF(กรอกข้อมูล!AS16>กรอกข้อมูล!AO$2,"",N16*O16) -> 168 | Q16: =IF(กรอกข้อมูล!AS16>กรอกข้อมูล!AO$2,"",ABS(M16-I$6)) -> 0.56 | R16: 0.56 | S16: =IF(กรอกข้อมูล!AS16>กรอกข้อมูล!AO$2,"",N16*Q16) -> 2.24
A17: 27 | B17: 2 | C17: 44 | D17: 88 | E17: 0.44 | F17: 0.88 | M17: =IF(กรอกข้อมูล!AS17>กรอกข้อมูล!AO$2,"",กรอกข้อมูล!AS17) -> 27 | N17: =IF(กรอกข้อมูล!AS17>กรอกข้อมูล!AO$2,"",กรอกข้อมูล!AT17) -> 2 | O17: =IF(กรอกข้อมูล!AS17>กรอกข้อมูล!AO$2,"",กรอกข้อมูล!AU17) -> 44 | P17: =IF(กรอกข้อมูล!AS17>กรอกข้อมูล!AO$2,"",N17*O17) -> 88 | Q17: =IF(กรอกข้อมูล!AS17>กรอกข้อมูล!AO$2,"",ABS(M17-I$6)) -> 0.44 | R17: 0.44 | S17: =IF(กรอกข้อมูล!AS17>กรอกข้อมูล!AO$2,"",N17*Q17) -> 0.88
A18: 28 | B18: 2 | C18: 46 | D18: 92 | E18: 1.44 | F18: 2.88 | M18: =IF(กรอกข้อมูล!AS18>กรอกข้อมูล!AO$2,"",กรอกข้อมูล!AS18) -> 28 | N18: =IF(กรอกข้อมูล!AS18>กรอกข้อมูล!AO$2,"",กรอกข้อมูล!AT18) -> 2 | O18: =IF(กรอกข้อมูล!AS18>กรอกข้อมูล!AO$2,"",กรอกข้อมูล!AU18) -> 46 | P18: =IF(กรอกข้อมูล!AS18>กรอกข้อมูล!AO$2,"",N18*O18) -> 92 | Q18: =IF(กรอกข้อมูล!AS18>กรอกข้อมูล!AO$2,"",ABS(M18-I$6)) -> 1.44 | R18: 1.44 | S18: =IF(กรอกข้อมูล!AS18>กรอกข้อมูล!AO$2,"",N18*Q18) -> 2.88
A19: 29 | B19: 1 | C19: 47 | D19: 47 | E19: 2.44 | F19: 2.44 | M19: =IF(กรอกข้อมูล!AS19>กรอกข้อมูล!AO$2,"",กรอกข้อมูล!AS19) -> 29 | N19: =IF(กรอกข้อมูล!AS19>กรอกข้อมูล!AO$2,"",กรอกข้อมูล!AT19) -> 1 | O19: =IF(กรอกข้อมูล!AS19>กรอกข้อมูล!AO$2,"",กรอกข้อมูล!AU19) -> 47 | P19: =IF(กรอกข้อมูล!AS19>กรอกข้อมูล!AO$2,"",N19*O19) -> 47 | Q19: =IF(กรอกข้อมูล!AS19>กรอกข้อมูล!AO$2,"",ABS(M19-I$6)) -> 2.44 | R19: 2.44 | S19: =IF(กรอกข้อมูล!AS19>กรอกข้อมูล!AO$2,"",N19*Q19) -> 2.44
A20: 30 | B20: 2 | C20: 49 | D20: 98 | E20: 3.44 | F20: 6.88 | M20: =IF(กรอกข้อมูล!AS20>กรอกข้อมูล!AO$2,"",กรอกข้อมูล!AS20) -> 30 | N20: =IF(กรอกข้อมูล!AS20>กรอกข้อมูล!AO$2,"",กรอกข้อมูล!AT20) -> 2 | O20: =IF(กรอกข้อมูล!AS20>กรอกข้อมูล!AO$2,"",กรอกข้อมูล!AU20) -> 49 | P20: =IF(กรอกข้อมูล!AS20>กรอกข้อมูล!AO$2,"",N20*O20) -> 98 | Q20: =IF(กรอกข้อมูล!AS20>กรอกข้อมูล!AO$2,"",ABS(M20-I$6)) -> 3.44 | R20: 3.44 | S20: =IF(กรอกข้อมูล!AS20>กรอกข้อมูล!AO$2,"",N20*Q20) -> 6.88
A21: 31 | B21: 1 | C21: 50 | D21: 50 | E21: 4.44 | F21: 4.44 | M21: =IF(กรอกข้อมูล!AS21>กรอกข้อมูล!AO$2,"",กรอกข้อมูล!AS21) -> 31 | N21: =IF(กรอกข้อมูล!AS21>กรอกข้อมูล!AO$2,"",กรอกข้อมูล!AT21) -> 1 | O21: =IF(กรอกข้อมูล!AS21>กรอกข้อมูล!AO$2,"",กรอกข้อมูล!AU21) -> 50 | P21: =IF(กรอกข้อมูล!AS21>กรอกข้อมูล!AO$2,"",N21*O21) -> 50 | Q21: =IF(กรอกข้อมูล!AS21>กรอกข้อมูล!AO$2,"",ABS(M21-I$6)) -> 4.44 | R21: 4.44 | S21: =IF(กรอกข้อมูล!AS21>กรอกข้อมูล!AO$2,"",N21*Q21) -> 4.44
M22: =IF(กรอกข้อมูล!AS22>กรอกข้อมูล!AO$2,"",กรอกข้อมูล!AS22) ->  | N22: =IF(กรอกข้อมูล!AS22>กรอกข้อมูล!AO$2,"",กรอกข้อมูล!AT22) ->  | O22: =IF(กรอกข้อมูล!AS22>กรอกข้อมูล!AO$2,"",กรอกข้อมูล!AU22) ->  | P22: =IF(กรอกข้อมูล!AS22>กรอกข้อมูล!AO$2,"",N22*O22) ->  | Q22: =IF(กรอกข้อมูล!AS22>กรอกข้อมูล!AO$2,"",ABS(M22-I$6)) ->  | S22: =IF(กรอกข้อมูล!AS22>กรอกข้อมูล!AO$2,"",N22*Q22) -> 
M23: =IF(กรอกข้อมูล!AS23>กรอกข้อมูล!AO$2,"",กรอกข้อมูล!AS23) ->  | N23: =IF(กรอกข้อมูล!AS23>กรอกข้อมูล!AO$2,"",กรอกข้อมูล!AT23) ->  | O23: =IF(กรอกข้อมูล!AS23>กรอกข้อมูล!AO$2,"",กรอกข้อมูล!AU23) ->  | P23: =IF(กรอกข้อมูล!AS23>กรอกข้อมูล!AO$2,"",N23*O23) ->  | Q23: =IF(กรอกข้อมูล!AS23>กรอกข้อมูล!AO$2,"",ABS(M23-I$6)) ->  | S23: =IF(กรอกข้อมูล!AS23>กรอกข้อมูล!AO$2,"",N23*Q23) -> 
M24: =IF(กรอกข้อมูล!AS24>กรอกข้อมูล!AO$2,"",กรอกข้อมูล!AS24) ->  | N24: =IF(กรอกข้อมูล!AS24>กรอกข้อมูล!AO$2,"",กรอกข้อมูล!AT24) ->  | O24: =IF(กรอกข้อมูล!AS24>กรอกข้อมูล!AO$2,"",กรอกข้อมูล!AU24) ->  | P24: =IF(กรอกข้อมูล!AS24>กรอกข้อมูล!AO$2,"",N24*O24) ->  | Q24: =IF(กรอกข้อมูล!AS24>กรอกข้อมูล!AO$2,"",ABS(M24-I$6)) ->  | S24: =IF(กรอกข้อมูล!AS24>กรอกข้อมูล!AO$2,"",N24*Q24) -> 
M25: =IF(กรอกข้อมูล!AS25>กรอกข้อมูล!AO$2,"",กรอกข้อมูล!AS25) ->  | N25: =IF(กรอกข้อมูล!AS25>กรอกข้อมูล!AO$2,"",กรอกข้อมูล!AT25) ->  | O25: =IF(กรอกข้อมูล!AS25>กรอกข้อมูล!AO$2,"",กรอกข้อมูล!AU25) ->  | P25: =IF(กรอกข้อมูล!AS25>กรอกข้อมูล!AO$2,"",N25*O25) ->  | Q25: =IF(กรอกข้อมูล!AS25>กรอกข้อมูล!AO$2,"",ABS(M25-I$6)) ->  | S25: =IF(กรอกข้อมูล!AS25>กรอกข้อมูล!AO$2,"",N25*Q25) -> 
M26: =IF(กรอกข้อมูล!AS26>กรอกข้อมูล!AO$2,"",กรอกข้อมูล!AS26) ->  | N26: =IF(กรอกข้อมูล!AS26>กรอกข้อมูล!AO$2,"",กรอกข้อมูล!AT26) ->  | O26: =IF(กรอกข้อมูล!AS26>กรอกข้อมูล!AO$2,"",กรอกข้อมูล!AU26) ->  | P26: =IF(กรอกข้อมูล!AS26>กรอกข้อมูล!AO$2,"",N26*O26) ->  | Q26: =IF(กรอกข้อมูล!AS26>กรอกข้อมูล!AO$2,"",ABS(M26-I$6)) ->  | S26: =IF(กรอกข้อมูล!AS26>กรอกข้อมูล!AO$2,"",N26*Q26) -> 
M27: =IF(กรอกข้อมูล!AS27>กรอกข้อมูล!AO$2,"",กรอกข้อมูล!AS27) ->  | N27: =IF(กรอกข้อมูล!AS27>กรอกข้อมูล!AO$2,"",กรอกข้อมูล!AT27) ->  | O27: =IF(กรอกข้อมูล!AS27>กรอกข้อมูล!AO$2,"",กรอกข้อมูล!AU27) ->  | P27: =IF(กรอกข้อมูล!AS27>กรอกข้อมูล!AO$2,"",N27*O27) ->  | Q27: =IF(กรอกข้อมูล!AS27>กรอกข้อมูล!AO$2,"",ABS(M27-I$6)) ->  | S27: =IF(กรอกข้อมูล!AS27>กรอกข้อมูล!AO$2,"",N27*Q27) -> 
M28: =IF(กรอกข้อมูล!AS28>กรอกข้อมูล!AO$2,"",กรอกข้อมูล!AS28) ->  | N28: =IF(กรอกข้อมูล!AS28>กรอกข้อมูล!AO$2,"",กรอกข้อมูล!AT28) ->  | O28: =IF(กรอกข้อมูล!AS28>กรอกข้อมูล!AO$2,"",กรอกข้อมูล!AU28) ->  | P28: =IF(กรอกข้อมูล!AS28>กรอกข้อมูล!AO$2,"",N28*O28) ->  | Q28: =IF(กรอกข้อมูล!AS28>กรอกข้อมูล!AO$2,"",ABS(M28-I$6)) ->  | S28: =IF(กรอกข้อมูล!AS28>กรอกข้อมูล!AO$2,"",N28*Q28) -> 
M29: =IF(กรอกข้อมูล!AS29>กรอกข้อมูล!AO$2,"",กรอกข้อมูล!AS29) ->  | N29: =IF(กรอกข้อมูล!AS29>กรอกข้อมูล!AO$2,"",กรอกข้อมูล!AT29) ->  | O29: =IF(กรอกข้อมูล!AS29>กรอกข้อมูล!AO$2,"",กรอกข้อมูล!AU29) ->  | P29: =IF(กรอกข้อมูล!AS29>กรอกข้อมูล!AO$2,"",N29*O29) ->  | Q29: =IF(กรอกข้อมูล!AS29>กรอกข้อมูล!AO$2,"",ABS(M29-I$6)) ->  | S29: =IF(กรอกข้อมูล!AS29>กรอกข้อมูล!AO$2,"",N29*Q29) -> 
M30: =IF(กรอกข้อมูล!AS30>กรอกข้อมูล!AO$2,"",กรอกข้อมูล!AS30) ->  | N30: =IF(กรอกข้อมูล!AS30>กรอกข้อมูล!AO$2,"",กรอกข้อมูล!AT30) ->  | O30: =IF(กรอกข้อมูล!AS30>กรอกข้อมูล!AO$2,"",กรอกข้อมูล!AU30) ->  | P30: =IF(กรอกข้อมูล!AS30>กรอกข้อมูล!AO$2,"",N30*O30) ->  | Q30: =IF(กรอกข้อมูล!AS30>กรอกข้อมูล!AO$2,"",ABS(M30-I$6)) ->  | S30: =IF(กรอกข้อมูล!AS30>กรอกข้อมูล!AO$2,"",N30*Q30) -> 
M31: =IF(กรอกข้อมูล!AS31>กรอกข้อมูล!AO$2,"",กรอกข้อมูล!AS31) ->  | N31: =IF(กรอกข้อมูล!AS31>กรอกข้อมูล!AO$2,"",กรอกข้อมูล!AT31) ->  | O31: =IF(กรอกข้อมูล!AS31>กรอกข้อมูล!AO$2,"",กรอกข้อมูล!AU31) ->  | P31: =IF(กรอกข้อมูล!AS31>กรอกข้อมูล!AO$2,"",N31*O31) ->  | Q31: =IF(กรอกข้อมูล!AS31>กรอกข้อมูล!AO$2,"",ABS(M31-I$6)) ->  | S31: =IF(กรอกข้อมูล!AS31>กรอกข้อมูล!AO$2,"",N31*Q31) -> 
M32: =IF(กรอกข้อมูล!AS32>กรอกข้อมูล!AO$2,"",กรอกข้อมูล!AS32) ->  | N32: =IF(กรอกข้อมูล!AS32>กรอกข้อมูล!AO$2,"",กรอกข้อมูล!AT32) ->  | O32: =IF(กรอกข้อมูล!AS32>กรอกข้อมูล!AO$2,"",กรอกข้อมูล!AU32) ->  | P32: =IF(กรอกข้อมูล!AS32>กรอกข้อมูล!AO$2,"",N32*O32) ->  | Q32: =IF(กรอกข้อมูล!AS32>กรอกข้อมูล!AO$2,"",ABS(M32-I$6)) ->  | S32: =IF(กรอกข้อมูล!AS32>กรอกข้อมูล!AO$2,"",N32*Q32) -> 
M33: =IF(กรอกข้อมูล!AS33>กรอกข้อมูล!AO$2,"",กรอกข้อมูล!AS33) ->  | N33: =IF(กรอกข้อมูล!AS33>กรอกข้อมูล!AO$2,"",กรอกข้อมูล!AT33) ->  | O33: =IF(กรอกข้อมูล!AS33>กรอกข้อมูล!AO$2,"",กรอกข้อมูล!AU33) ->  | P33: =IF(กรอกข้อมูล!AS33>กรอกข้อมูล!AO$2,"",N33*O33) ->  | Q33: =IF(กรอกข้อมูล!AS33>กรอกข้อมูล!AO$2,"",ABS(M33-I$6)) ->  | S33: =IF(กรอกข้อมูล!AS33>กรอกข้อมูล!AO$2,"",N33*Q33) -> 
M34: =IF(กรอกข้อมูล!AS34>กรอกข้อมูล!AO$2,"",กรอกข้อมูล!AS34) ->  | N34: =IF(กรอกข้อมูล!AS34>กรอกข้อมูล!AO$2,"",กรอกข้อมูล!AT34) ->  | O34: =IF(กรอกข้อมูล!AS34>กรอกข้อมูล!AO$2,"",กรอกข้อมูล!AU34) ->  | P34: =IF(กรอกข้อมูล!AS34>กรอกข้อมูล!AO$2,"",N34*O34) ->  | Q34: =IF(กรอกข้อมูล!AS34>กรอกข้อมูล!AO$2,"",ABS(M34-I$6)) ->  | S34: =IF(กรอกข้อมูล!AS34>กรอกข้อมูล!AO$2,"",N34*Q34) -> 
M35: =IF(กรอกข้อมูล!AS35>กรอกข้อมูล!AO$2,"",กรอกข้อมูล!AS35) ->  | N35: =IF(กรอกข้อมูล!AS35>กรอกข้อมูล!AO$2,"",กรอกข้อมูล!AT35) ->  | O35: =IF(กรอกข้อมูล!AS35>กรอกข้อมูล!AO$2,"",กรอกข้อมูล!AU35) ->  | P35: =IF(กรอกข้อมูล!AS35>กรอกข้อมูล!AO$2,"",N35*O35) ->  | Q35: =IF(กรอกข้อมูล!AS35>กรอกข้อมูล!AO$2,"",ABS(M35-I$6)) ->  | S35: =IF(กรอกข้อมูล!AS35>กรอกข้อมูล!AO$2,"",N35*Q35) -> 
M36: =IF(กรอกข้อมูล!AS36>กรอกข้อมูล!AO$2,"",กรอกข้อมูล!AS36) ->  | N36: =IF(กรอกข้อมูล!AS36>กรอกข้อมูล!AO$2,"",กรอกข้อมูล!AT36) ->  | O36: =IF(กรอกข้อมูล!AS36>กรอกข้อมูล!AO$2,"",กรอกข้อมูล!AU36) ->  | P36: =IF(กรอกข้อมูล!AS36>กรอกข้อมูล!AO$2,"",N36*O36) ->  | Q36: =IF(กรอกข้อมูล!AS36>กรอกข้อมูล!AO$2,"",ABS(M36-I$6)) ->  | S36: =IF(กรอกข้อมูล!AS36>กรอกข้อมูล!AO$2,"",N36*Q36) -> 
M37: =IF(กรอกข้อมูล!AS37>กรอกข้อมูล!AO$2,"",กรอกข้อมูล!AS37) ->  | N37: =IF(กรอกข้อมูล!AS37>กรอกข้อมูล!AO$2,"",กรอกข้อมูล!AT37) ->  | O37: =IF(กรอกข้อมูล!AS37>กรอกข้อมูล!AO$2,"",กรอกข้อมูล!AU37) ->  | P37: =IF(กรอกข้อมูล!AS37>กรอกข้อมูล!AO$2,"",N37*O37) ->  | Q37: =IF(กรอกข้อมูล!AS37>กรอกข้อมูล!AO$2,"",ABS(M37-I$6)) ->  | S37: =IF(กรอกข้อมูล!AS37>กรอกข้อมูล!AO$2,"",N37*Q37) -> 
M38: =IF(กรอกข้อมูล!AS38>กรอกข้อมูล!AO$2,"",กรอกข้อมูล!AS38) ->  | N38: =IF(กรอกข้อมูล!AS38>กรอกข้อมูล!AO$2,"",กรอกข้อมูล!AT38) ->  | O38: =IF(กรอกข้อมูล!AS38>กรอกข้อมูล!AO$2,"",กรอกข้อมูล!AU38) ->  | P38: =IF(กรอกข้อมูล!AS38>กรอกข้อมูล!AO$2,"",N38*O38) ->  | Q38: =IF(กรอกข้อมูล!AS38>กรอกข้อมูล!AO$2,"",ABS(M38-I$6)) ->  | S38: =IF(กรอกข้อมูล!AS38>กรอกข้อมูล!AO$2,"",N38*Q38) -> 
M39: =IF(กรอกข้อมูล!AS39>กรอกข้อมูล!AO$2,"",กรอกข้อมูล!AS39) ->  | N39: =IF(กรอกข้อมูล!AS39>กรอกข้อมูล!AO$2,"",กรอกข้อมูล!AT39) ->  | O39: =IF(กรอกข้อมูล!AS39>กรอกข้อมูล!AO$2,"",กรอกข้อมูล!AU39) ->  | P39: =IF(กรอกข้อมูล!AS39>กรอกข้อมูล!AO$2,"",N39*O39) ->  | Q39: =IF(กรอกข้อมูล!AS39>กรอกข้อมูล!AO$2,"",ABS(M39-I$6)) ->  | S39: =IF(กรอกข้อมูล!AS39>กรอกข้อมูล!AO$2,"",N39*Q39) -> 
M40: =IF(กรอกข้อมูล!AS40>กรอกข้อมูล!AO$2,"",กรอกข้อมูล!AS40) ->  | N40: =IF(กรอกข้อมูล!AS40>กรอกข้อมูล!AO$2,"",กรอกข้อมูล!AT40) ->  | O40: =IF(กรอกข้อมูล!AS40>กรอกข้อมูล!AO$2,"",กรอกข้อมูล!AU40) ->  | P40: =IF(กรอกข้อมูล!AS40>กรอกข้อมูล!AO$2,"",N40*O40) ->  | Q40: =IF(กรอกข้อมูล!AS40>กรอกข้อมูล!AO$2,"",ABS(M40-I$6)) ->  | S40: =IF(กรอกข้อมูล!AS40>กรอกข้อมูล!AO$2,"",N40*Q40) -> 
M41: =IF(กรอกข้อมูล!AS41>กรอกข้อมูล!AO$2,"",กรอกข้อมูล!AS41) ->  | N41: =IF(กรอกข้อมูล!AS41>กรอกข้อมูล!AO$2,"",กรอกข้อมูล!AT41) ->  | O41: =IF(กรอกข้อมูล!AS41>กรอกข้อมูล!AO$2,"",กรอกข้อมูล!AU41) ->  | P41: =IF(กรอกข้อมูล!AS41>กรอกข้อมูล!AO$2,"",N41*O41) ->  | Q41: =IF(กรอกข้อมูล!AS41>กรอกข้อมูล!AO$2,"",ABS(M41-I$6)) ->  | S41: =IF(กรอกข้อมูล!AS41>กรอกข้อมูล!AO$2,"",N41*Q41) -> 
M42: =IF(กรอกข้อมูล!AS42>กรอกข้อมูล!AO$2,"",กรอกข้อมูล!AS42) ->  | N42: =IF(กรอกข้อมูล!AS42>กรอกข้อมูล!AO$2,"",กรอกข้อมูล!AT42) ->  | O42: =IF(กรอกข้อมูล!AS42>กรอกข้อมูล!AO$2,"",กรอกข้อมูล!AU42) ->  | P42: =IF(กรอกข้อมูล!AS42>กรอกข้อมูล!AO$2,"",N42*O42) ->  | Q42: =IF(กรอกข้อมูล!AS42>กรอกข้อมูล!AO$2,"",ABS(M42-I$6)) ->  | S42: =IF(กรอกข้อมูล!AS42>กรอกข้อมูล!AO$2,"",N42*Q42) -> 
M43: =IF(กรอกข้อมูล!AS43>กรอกข้อมูล!AO$2,"",กรอกข้อมูล!AS43) ->  | N43: =IF(กรอกข้อมูล!AS43>กรอกข้อมูล!AO$2,"",กรอกข้อมูล!AT43) ->  | O43: =IF(กรอกข้อมูล!AS43>กรอกข้อมูล!AO$2,"",กรอกข้อมูล!AU43) ->  | P43: =IF(กรอกข้อมูล!AS43>กรอกข้อมูล!AO$2,"",N43*O43) ->  | Q43: =IF(กรอกข้อมูล!AS43>กรอกข้อมูล!AO$2,"",ABS(M43-I$6)) ->  | S43: =IF(กรอกข้อมูล!AS43>กรอกข้อมูล!AO$2,"",N43*Q43) -> 
M44: =IF(กรอกข้อมูล!AS44>กรอกข้อมูล!AO$2,"",กรอกข้อมูล!AS44) ->  | N44: =IF(กรอกข้อมูล!AS44>กรอกข้อมูล!AO$2,"",กรอกข้อมูล!AT44) ->  | O44: =IF(กรอกข้อมูล!AS44>กรอกข้อมูล!AO$2,"",กรอกข้อมูล!AU44) ->  | P44: =IF(กรอกข้อมูล!AS44>กรอกข้อมูล!AO$2,"",N44*O44) ->  | Q44: =IF(กรอกข้อมูล!AS44>กรอกข้อมูล!AO$2,"",ABS(M44-I$6)) ->  | S44: =IF(กรอกข้อมูล!AS44>กรอกข้อมูล!AO$2,"",N44*Q44) -> 
M45: =IF(กรอกข้อมูล!AS45>กรอกข้อมูล!AO$2,"",กรอกข้อมูล!AS45) ->  | N45: =IF(กรอกข้อมูล!AS45>กรอกข้อมูล!AO$2,"",กรอกข้อมูล!AT45) ->  | O45: =IF(กรอกข้อมูล!AS45>กรอกข้อมูล!AO$2,"",กรอกข้อมูล!AU45) ->  | P45: =IF(กรอกข้อมูล!AS45>กรอกข้อมูล!AO$2,"",N45*O45) ->  | Q45: =IF(กรอกข้อมูล!AS45>กรอกข้อมูล!AO$2,"",ABS(M45-I$6)) ->  | S45: =IF(กรอกข้อมูล!AS45>กรอกข้อมูล!AO$2,"",N45*Q45) -> 
M46: =IF(กรอกข้อมูล!AS46>กรอกข้อมูล!AO$2,"",กรอกข้อมูล!AS46) ->  | N46: =IF(กรอกข้อมูล!AS46>กรอกข้อมูล!AO$2,"",กรอกข้อมูล!AT46) ->  | O46: =IF(กรอกข้อมูล!AS46>กรอกข้อมูล!AO$2,"",กรอกข้อมูล!AU46) ->  | P46: =IF(กรอกข้อมูล!AS46>กรอกข้อมูล!AO$2,"",N46*O46) ->  | Q46: =IF(กรอกข้อมูล!AS46>กรอกข้อมูล!AO$2,"",ABS(M46-I$6)) ->  | S46: =IF(กรอกข้อมูล!AS46>กรอกข้อมูล!AO$2,"",N46*Q46) -> 
M47: =IF(กรอกข้อมูล!AS47>กรอกข้อมูล!AO$2,"",กรอกข้อมูล!AS47) ->  | N47: =IF(กรอกข้อมูล!AS47>กรอกข้อมูล!AO$2,"",กรอกข้อมูล!AT47) ->  | O47: =IF(กรอกข้อมูล!AS47>กรอกข้อมูล!AO$2,"",กรอกข้อมูล!AU47) ->  | P47: =IF(กรอกข้อมูล!AS47>กรอกข้อมูล!AO$2,"",N47*O47) ->  | Q47: =IF(กรอกข้อมูล!AS47>กรอกข้อมูล!AO$2,"",ABS(M47-I$6)) ->  | S47: =IF(กรอกข้อมูล!AS47>กรอกข้อมูล!AO$2,"",N47*Q47) -> 
M48: =IF(กรอกข้อมูล!AS48>กรอกข้อมูล!AO$2,"",กรอกข้อมูล!AS48) ->  | N48: =IF(กรอกข้อมูล!AS48>กรอกข้อมูล!AO$2,"",กรอกข้อมูล!AT48) ->  | O48: =IF(กรอกข้อมูล!AS48>กรอกข้อมูล!AO$2,"",กรอกข้อมูล!AU48) ->  | P48: =IF(กรอกข้อมูล!AS48>กรอกข้อมูล!AO$2,"",N48*O48) ->  | Q48: =IF(กรอกข้อมูล!AS48>กรอกข้อมูล!AO$2,"",ABS(M48-I$6)) ->  | S48: =IF(กรอกข้อมูล!AS48>กรอกข้อมูล!AO$2,"",N48*Q48) -> 
M49: =IF(กรอกข้อมูล!AS49>กรอกข้อมูล!AO$2,"",กรอกข้อมูล!AS49) ->  | N49: =IF(กรอกข้อมูล!AS49>กรอกข้อมูล!AO$2,"",กรอกข้อมูล!AT49) ->  | O49: =IF(กรอกข้อมูล!AS49>กรอกข้อมูล!AO$2,"",กรอกข้อมูล!AU49) ->  | P49: =IF(กรอกข้อมูล!AS49>กรอกข้อมูล!AO$2,"",N49*O49) ->  | Q49: =IF(กรอกข้อมูล!AS49>กรอกข้อมูล!AO$2,"",ABS(M49-I$6)) ->  | S49: =IF(กรอกข้อมูล!AS49>กรอกข้อมูล!AO$2,"",N49*Q49) -> 
M50: =IF(กรอกข้อมูล!AS50>กรอกข้อมูล!AO$2,"",กรอกข้อมูล!AS50) ->  | N50: =IF(กรอกข้อมูล!AS50>กรอกข้อมูล!AO$2,"",กรอกข้อมูล!AT50) ->  | O50: =IF(กรอกข้อมูล!AS50>กรอกข้อมูล!AO$2,"",กรอกข้อมูล!AU50) ->  | P50: =IF(กรอกข้อมูล!AS50>กรอกข้อมูล!AO$2,"",N50*O50) ->  | Q50: =IF(กรอกข้อมูล!AS50>กรอกข้อมูล!AO$2,"",ABS(M50-I$6)) ->  | S50: =IF(กรอกข้อมูล!AS50>กรอกข้อมูล!AO$2,"",N50*Q50) -> 
M51: =IF(กรอกข้อมูล!AS51>กรอกข้อมูล!AO$2,"",กรอกข้อมูล!AS51) ->  | N51: =IF(กรอกข้อมูล!AS51>กรอกข้อมูล!AO$2,"",กรอกข้อมูล!AT51) ->  | O51: =IF(กรอกข้อมูล!AS51>กรอกข้อมูล!AO$2,"",กรอกข้อมูล!AU51) ->  | P51: =IF(กรอกข้อมูล!AS51>กรอกข้อมูล!AO$2,"",N51*O51) ->  | Q51: =IF(กรอกข้อมูล!AS51>กรอกข้อมูล!AO$2,"",ABS(M51-I$6)) ->  | S51: =IF(กรอกข้อมูล!AS51>กรอกข้อมูล!AO$2,"",N51*Q51) -> 
M52: =IF(กรอกข้อมูล!AS52>กรอกข้อมูล!AO$2,"",กรอกข้อมูล!AS52) ->  | N52: =IF(กรอกข้อมูล!AS52>กรอกข้อมูล!AO$2,"",กรอกข้อมูล!AT52) ->  | O52: =IF(กรอกข้อมูล!AS52>กรอกข้อมูล!AO$2,"",กรอกข้อมูล!AU52) ->  | P52: =IF(กรอกข้อมูล!AS52>กรอกข้อมูล!AO$2,"",N52*O52) ->  | Q52: =IF(กรอกข้อมูล!AS52>กรอกข้อมูล!AO$2,"",ABS(M52-I$6)) ->  | S52: =IF(กรอกข้อมูล!AS52>กรอกข้อมูล!AO$2,"",N52*Q52) -> 
M53: =IF(กรอกข้อมูล!AS53>กรอกข้อมูล!AO$2,"",กรอกข้อมูล!AS53) ->  | N53: =IF(กรอกข้อมูล!AS53>กรอกข้อมูล!AO$2,"",กรอกข้อมูล!AT53) ->  | O53: =IF(กรอกข้อมูล!AS53>กรอกข้อมูล!AO$2,"",กรอกข้อมูล!AU53) ->  | P53: =IF(กรอกข้อมูล!AS53>กรอกข้อมูล!AO$2,"",N53*O53) ->  | Q53: =IF(กรอกข้อมูล!AS53>กรอกข้อมูล!AO$2,"",ABS(M53-I$6)) ->  | S53: =IF(กรอกข้อมูล!AS53>กรอกข้อมูล!AO$2,"",N53*Q53) -> 
M54: =IF(กรอกข้อมูล!AS54>กรอกข้อมูล!AO$2,"",กรอกข้อมูล!AS54) ->  | N54: =IF(กรอกข้อมูล!AS54>กรอกข้อมูล!AO$2,"",กรอกข้อมูล!AT54) ->  | O54: =IF(กรอกข้อมูล!AS54>กรอกข้อมูล!AO$2,"",กรอกข้อมูล!AU54) ->  | P54: =IF(กรอกข้อมูล!AS54>กรอกข้อมูล!AO$2,"",N54*O54) ->  | Q54: =IF(กรอกข้อมูล!AS54>กรอกข้อมูล!AO$2,"",ABS(M54-I$6)) ->  | S54: =IF(กรอกข้อมูล!AS54>กรอกข้อมูล!AO$2,"",N54*Q54) -> 
M55: =IF(กรอกข้อมูล!AS55>กรอกข้อมูล!AO$2,"",กรอกข้อมูล!AS55) ->  | N55: =IF(กรอกข้อมูล!AS55>กรอกข้อมูล!AO$2,"",กรอกข้อมูล!AT55) ->  | O55: =IF(กรอกข้อมูล!AS55>กรอกข้อมูล!AO$2,"",กรอกข้อมูล!AU55) ->  | P55: =IF(กรอกข้อมูล!AS55>กรอกข้อมูล!AO$2,"",N55*O55) ->  | Q55: =IF(กรอกข้อมูล!AS55>กรอกข้อมูล!AO$2,"",ABS(M55-I$6)) ->  | S55: =IF(กรอกข้อมูล!AS55>กรอกข้อมูล!AO$2,"",N55*Q55) -> 
M56: =IF(กรอกข้อมูล!AS56>กรอกข้อมูล!AO$2,"",กรอกข้อมูล!AS56) ->  | N56: =IF(กรอกข้อมูล!AS56>กรอกข้อมูล!AO$2,"",กรอกข้อมูล!AT56) ->  | O56: =IF(กรอกข้อมูล!AS56>กรอกข้อมูล!AO$2,"",กรอกข้อมูล!AU56) ->  | P56: =IF(กรอกข้อมูล!AS56>กรอกข้อมูล!AO$2,"",N56*O56) ->  | Q56: =IF(กรอกข้อมูล!AS56>กรอกข้อมูล!AO$2,"",ABS(M56-I$6)) ->  | S56: =IF(กรอกข้อมูล!AS56>กรอกข้อมูล!AO$2,"",N56*Q56) -> 
M57: =IF(กรอกข้อมูล!AS57>กรอกข้อมูล!AO$2,"",กรอกข้อมูล!AS57) ->  | N57: =IF(กรอกข้อมูล!AS57>กรอกข้อมูล!AO$2,"",กรอกข้อมูล!AT57) ->  | O57: =IF(กรอกข้อมูล!AS57>กรอกข้อมูล!AO$2,"",กรอกข้อมูล!AU57) ->  | P57: =IF(กรอกข้อมูล!AS57>กรอกข้อมูล!AO$2,"",N57*O57) ->  | Q57: =IF(กรอกข้อมูล!AS57>กรอกข้อมูล!AO$2,"",ABS(M57-I$6)) ->  | S57: =IF(กรอกข้อมูล!AS57>กรอกข้อมูล!AO$2,"",N57*Q57) -> 
M58: =IF(กรอกข้อมูล!AS58>กรอกข้อมูล!AO$2,"",กรอกข้อมูล!AS58) ->  | N58: =IF(กรอกข้อมูล!AS58>กรอกข้อมูล!AO$2,"",กรอกข้อมูล!AT58) ->  | O58: =IF(กรอกข้อมูล!AS58>กรอกข้อมูล!AO$2,"",กรอกข้อมูล!AU58) ->  | P58: =IF(กรอกข้อมูล!AS58>กรอกข้อมูล!AO$2,"",N58*O58) ->  | Q58: =IF(กรอกข้อมูล!AS58>กรอกข้อมูล!AO$2,"",ABS(M58-I$6)) ->  | S58: =IF(กรอกข้อมูล!AS58>กรอกข้อมูล!AO$2,"",N58*Q58) -> 
M59: =IF(กรอกข้อมูล!AS59>กรอกข้อมูล!AO$2,"",กรอกข้อมูล!AS59) ->  | N59: =IF(กรอกข้อมูล!AS59>กรอกข้อมูล!AO$2,"",กรอกข้อมูล!AT59) ->  | O59: =IF(กรอกข้อมูล!AS59>กรอกข้อมูล!AO$2,"",กรอกข้อมูล!AU59) ->  | P59: =IF(กรอกข้อมูล!AS59>กรอกข้อมูล!AO$2,"",N59*O59) ->  | Q59: =IF(กรอกข้อมูล!AS59>กรอกข้อมูล!AO$2,"",ABS(M59-I$6)) ->  | S59: =IF(กรอกข้อมูล!AS59>กรอกข้อมูล!AO$2,"",N59*Q59) -> 
M60: =IF(กรอกข้อมูล!AS60>กรอกข้อมูล!AO$2,"",กรอกข้อมูล!AS60) ->  | N60: =IF(กรอกข้อมูล!AS60>กรอกข้อมูล!AO$2,"",กรอกข้อมูล!AT60) ->  | O60: =IF(กรอกข้อมูล!AS60>กรอกข้อมูล!AO$2,"",กรอกข้อมูล!AU60) ->  | P60: =IF(กรอกข้อมูล!AS60>กรอกข้อมูล!AO$2,"",N60*O60) ->  | Q60: =IF(กรอกข้อมูล!AS60>กรอกข้อมูล!AO$2,"",ABS(M60-I$6)) ->  | S60: =IF(กรอกข้อมูล!AS60>กรอกข้อมูล!AO$2,"",N60*Q60) -> 
M61: =IF(กรอกข้อมูล!AS61>กรอกข้อมูล!AO$2,"",กรอกข้อมูล!AS61) ->  | N61: =IF(กรอกข้อมูล!AS61>กรอกข้อมูล!AO$2,"",กรอกข้อมูล!AT61) ->  | O61: =IF(กรอกข้อมูล!AS61>กรอกข้อมูล!AO$2,"",กรอกข้อมูล!AU61) ->  | P61: =IF(กรอกข้อมูล!AS61>กรอกข้อมูล!AO$2,"",N61*O61) ->  | Q61: =IF(กรอกข้อมูล!AS61>กรอกข้อมูล!AO$2,"",ABS(M61-I$6)) ->  | S61: =IF(กรอกข้อมูล!AS61>กรอกข้อมูล!AO$2,"",N61*Q61) -> 
M62: =IF(กรอกข้อมูล!AS62>กรอกข้อมูล!AO$2,"",กรอกข้อมูล!AS62) ->  | N62: =IF(กรอกข้อมูล!AS62>กรอกข้อมูล!AO$2,"",กรอกข้อมูล!AT62) ->  | O62: =IF(กรอกข้อมูล!AS62>กรอกข้อมูล!AO$2,"",กรอกข้อมูล!AU62) ->  | P62: =IF(กรอกข้อมูล!AS62>กรอกข้อมูล!AO$2,"",N62*O62) ->  | Q62: =IF(กรอกข้อมูล!AS62>กรอกข้อมูล!AO$2,"",ABS(M62-I$6)) ->  | S62: =IF(กรอกข้อมูล!AS62>กรอกข้อมูล!AO$2,"",N62*Q62) -> 
M63: =IF(กรอกข้อมูล!AS63>กรอกข้อมูล!AO$2,"",กรอกข้อมูล!AS63) ->  | N63: =IF(กรอกข้อมูล!AS63>กรอกข้อมูล!AO$2,"",กรอกข้อมูล!AT63) ->  | O63: =IF(กรอกข้อมูล!AS63>กรอกข้อมูล!AO$2,"",กรอกข้อมูล!AU63) ->  | P63: =IF(กรอกข้อมูล!AS63>กรอกข้อมูล!AO$2,"",N63*O63) ->  | Q63: =IF(กรอกข้อมูล!AS63>กรอกข้อมูล!AO$2,"",ABS(M63-I$6)) ->  | S63: =IF(กรอกข้อมูล!AS63>กรอกข้อมูล!AO$2,"",N63*Q63) -> 
M64: =IF(กรอกข้อมูล!AS64>กรอกข้อมูล!AO$2,"",กรอกข้อมูล!AS64) ->  | N64: =IF(กรอกข้อมูล!AS64>กรอกข้อมูล!AO$2,"",กรอกข้อมูล!AT64) ->  | O64: =IF(กรอกข้อมูล!AS64>กรอกข้อมูล!AO$2,"",กรอกข้อมูล!AU64) ->  | P64: =IF(กรอกข้อมูล!AS64>กรอกข้อมูล!AO$2,"",N64*O64) ->  | Q64: =IF(กรอกข้อมูล!AS64>กรอกข้อมูล!AO$2,"",ABS(M64-I$6)) ->  | S64: =IF(กรอกข้อมูล!AS64>กรอกข้อมูล!AO$2,"",N64*Q64) -> 
M65: =IF(กรอกข้อมูล!AS65>กรอกข้อมูล!AO$2,"",กรอกข้อมูล!AS65) ->  | N65: =IF(กรอกข้อมูล!AS65>กรอกข้อมูล!AO$2,"",กรอกข้อมูล!AT65) ->  | O65: =IF(กรอกข้อมูล!AS65>กรอกข้อมูล!AO$2,"",กรอกข้อมูล!AU65) ->  | P65: =IF(กรอกข้อมูล!AS65>กรอกข้อมูล!AO$2,"",N65*O65) ->  | Q65: =IF(กรอกข้อมูล!AS65>กรอกข้อมูล!AO$2,"",ABS(M65-I$6)) ->  | S65: =IF(กรอกข้อมูล!AS65>กรอกข้อมูล!AO$2,"",N65*Q65) -> 
A66: =M66 ->  | B66: =N66 ->  | C66: =O66 ->  | D66: =P66 ->  | E66: =R66 ->  | F66: =S66 ->  | M66: =IF(กรอกข้อมูล!AS66>กรอกข้อมูล!AO$2,"",กรอกข้อมูล!AS66) ->  | N66: =IF(กรอกข้อมูล!AS66>กรอกข้อมูล!AO$2,"",กรอกข้อมูล!AT66) ->  | O66: =IF(กรอกข้อมูล!AS66>กรอกข้อมูล!AO$2,"",กรอกข้อมูล!AU66) ->  | P66: =IF(กรอกข้อมูล!AS66>กรอกข้อมูล!AO$2,"",N66*O66) ->  | Q66: =IF(กรอกข้อมูล!AS66>กรอกข้อมูล!AO$2,"",ABS(M66-I$6)) ->  | S66: =IF(กรอกข้อมูล!AS66>กรอกข้อมูล!AO$2,"",N66*Q66) -> 
M67: =IF(กรอกข้อมูล!AS67>กรอกข้อมูล!AO$2,"",กรอกข้อมูล!AS67) ->  | N67: =IF(กรอกข้อมูล!AS67>กรอกข้อมูล!AO$2,"",กรอกข้อมูล!AT67) ->  | O67: =IF(กรอกข้อมูล!AS67>กรอกข้อมูล!AO$2,"",กรอกข้อมูล!AU67) ->  | P67: =IF(กรอกข้อมูล!AS67>กรอกข้อมูล!AO$2,"",N67*O67) ->  | Q67: =IF(กรอกข้อมูล!AS67>กรอกข้อมูล!AO$2,"",ABS(M67-I$6)) ->  | R67: =IF(N67=0,0,Q67) ->  | S67: =IF(กรอกข้อมูล!AS67>กรอกข้อมูล!AO$2,"",N67*Q67) -> 
M68: =IF(กรอกข้อมูล!AS68>กรอกข้อมูล!AO$2,"",กรอกข้อมูล!AS68) ->  | N68: =IF(กรอกข้อมูล!AS68>กรอกข้อมูล!AO$2,"",กรอกข้อมูล!AT68) ->  | O68: =IF(กรอกข้อมูล!AS68>กรอกข้อมูล!AO$2,"",กรอกข้อมูล!AU68) ->  | P68: =IF(กรอกข้อมูล!AS68>กรอกข้อมูล!AO$2,"",N68*O68) ->  | Q68: =IF(กรอกข้อมูล!AS68>กรอกข้อมูล!AO$2,"",ABS(M68-I$6)) ->  | S68: =IF(กรอกข้อมูล!AS68>กรอกข้อมูล!AO$2,"",N68*Q68) -> 
M69: =IF(กรอกข้อมูล!AS69>กรอกข้อมูล!AO$2,"",กรอกข้อมูล!AS69) ->  | N69: =IF(กรอกข้อมูล!AS69>กรอกข้อมูล!AO$2,"",กรอกข้อมูล!AT69) ->  | O69: =IF(กรอกข้อมูล!AS69>กรอกข้อมูล!AO$2,"",กรอกข้อมูล!AU69) ->  | P69: =IF(กรอกข้อมูล!AS69>กรอกข้อมูล!AO$2,"",N69*O69) ->  | Q69: =IF(กรอกข้อมูล!AS69>กรอกข้อมูล!AO$2,"",ABS(M69-I$6)) ->  | S69: =IF(กรอกข้อมูล!AS69>กรอกข้อมูล!AO$2,"",N69*Q69) -> 
M70: =IF(กรอกข้อมูล!AS70>กรอกข้อมูล!AO$2,"",กรอกข้อมูล!AS70) ->  | N70: =IF(กรอกข้อมูล!AS70>กรอกข้อมูล!AO$2,"",กรอกข้อมูล!AT70) ->  | O70: =IF(กรอกข้อมูล!AS70>กรอกข้อมูล!AO$2,"",กรอกข้อมูล!AU70) ->  | P70: =IF(กรอกข้อมูล!AS70>กรอกข้อมูล!AO$2,"",N70*O70) ->  | Q70: =IF(กรอกข้อมูล!AS70>กรอกข้อมูล!AO$2,"",ABS(M70-I$6)) ->  | S70: =IF(กรอกข้อมูล!AS70>กรอกข้อมูล!AO$2,"",N70*Q70) -> 
M71: =IF(กรอกข้อมูล!AS71>กรอกข้อมูล!AO$2,"",กรอกข้อมูล!AS71) ->  | N71: =IF(กรอกข้อมูล!AS71>กรอกข้อมูล!AO$2,"",กรอกข้อมูล!AT71) ->  | O71: =IF(กรอกข้อมูล!AS71>กรอกข้อมูล!AO$2,"",กรอกข้อมูล!AU71) ->  | P71: =IF(กรอกข้อมูล!AS71>กรอกข้อมูล!AO$2,"",N71*O71) ->  | Q71: =IF(กรอกข้อมูล!AS71>กรอกข้อมูล!AO$2,"",ABS(M71-I$6)) ->  | S71: =IF(กรอกข้อมูล!AS71>กรอกข้อมูล!AO$2,"",N71*Q71) -> 
M72: =IF(กรอกข้อมูล!AS72>กรอกข้อมูล!AO$2,"",กรอกข้อมูล!AS72) ->  | N72: =IF(กรอกข้อมูล!AS72>กรอกข้อมูล!AO$2,"",กรอกข้อมูล!AT72) ->  | O72: =IF(กรอกข้อมูล!AS72>กรอกข้อมูล!AO$2,"",กรอกข้อมูล!AU72) ->  | P72: =IF(กรอกข้อมูล!AS72>กรอกข้อมูล!AO$2,"",N72*O72) ->  | Q72: =IF(กรอกข้อมูล!AS72>กรอกข้อมูล!AO$2,"",ABS(M72-I$6)) ->  | S72: =IF(กรอกข้อมูล!AS72>กรอกข้อมูล!AO$2,"",N72*Q72) -> 
M73: =IF(กรอกข้อมูล!AS73>กรอกข้อมูล!AO$2,"",กรอกข้อมูล!AS73) ->  | N73: =IF(กรอกข้อมูล!AS73>กรอกข้อมูล!AO$2,"",กรอกข้อมูล!AT73) ->  | O73: =IF(กรอกข้อมูล!AS73>กรอกข้อมูล!AO$2,"",กรอกข้อมูล!AU73) ->  | P73: =IF(กรอกข้อมูล!AS73>กรอกข้อมูล!AO$2,"",N73*O73) ->  | Q73: =IF(กรอกข้อมูล!AS73>กรอกข้อมูล!AO$2,"",ABS(M73-I$6)) ->  | S73: =IF(กรอกข้อมูล!AS73>กรอกข้อมูล!AO$2,"",N73*Q73) -> 
M74: =IF(กรอกข้อมูล!AS74>กรอกข้อมูล!AO$2,"",กรอกข้อมูล!AS74) ->  | N74: =IF(กรอกข้อมูล!AS74>กรอกข้อมูล!AO$2,"",กรอกข้อมูล!AT74) ->  | O74: =IF(กรอกข้อมูล!AS74>กรอกข้อมูล!AO$2,"",กรอกข้อมูล!AU74) ->  | P74: =IF(กรอกข้อมูล!AS74>กรอกข้อมูล!AO$2,"",N74*O74) ->  | Q74: =IF(กรอกข้อมูล!AS74>กรอกข้อมูล!AO$2,"",ABS(M74-I$6)) ->  | S74: =IF(กรอกข้อมูล!AS74>กรอกข้อมูล!AO$2,"",N74*Q74) -> 
M75: =IF(กรอกข้อมูล!AS75>กรอกข้อมูล!AO$2,"",กรอกข้อมูล!AS75) ->  | N75: =IF(กรอกข้อมูล!AS75>กรอกข้อมูล!AO$2,"",กรอกข้อมูล!AT75) ->  | O75: =IF(กรอกข้อมูล!AS75>กรอกข้อมูล!AO$2,"",กรอกข้อมูล!AU75) ->  | P75: =IF(กรอกข้อมูล!AS75>กรอกข้อมูล!AO$2,"",N75*O75) ->  | Q75: =IF(กรอกข้อมูล!AS75>กรอกข้อมูล!AO$2,"",ABS(M75-I$6)) ->  | S75: =IF(กรอกข้อมูล!AS75>กรอกข้อมูล!AO$2,"",N75*Q75) -> 
M76: =IF(กรอกข้อมูล!AS76>กรอกข้อมูล!AO$2,"",กรอกข้อมูล!AS76) ->  | N76: =IF(กรอกข้อมูล!AS76>กรอกข้อมูล!AO$2,"",กรอกข้อมูล!AT76) ->  | O76: =IF(กรอกข้อมูล!AS76>กรอกข้อมูล!AO$2,"",กรอกข้อมูล!AU76) ->  | P76: =IF(กรอกข้อมูล!AS76>กรอกข้อมูล!AO$2,"",N76*O76) ->  | Q76: =IF(กรอกข้อมูล!AS76>กรอกข้อมูล!AO$2,"",ABS(M76-I$6)) ->  | S76: =IF(กรอกข้อมูล!AS76>กรอกข้อมูล!AO$2,"",N76*Q76) -> 
M77: =IF(กรอกข้อมูล!AS77>กรอกข้อมูล!AO$2,"",กรอกข้อมูล!AS77) ->  | N77: =IF(กรอกข้อมูล!AS77>กรอกข้อมูล!AO$2,"",กรอกข้อมูล!AT77) ->  | O77: =IF(กรอกข้อมูล!AS77>กรอกข้อมูล!AO$2,"",กรอกข้อมูล!AU77) ->  | P77: =IF(กรอกข้อมูล!AS77>กรอกข้อมูล!AO$2,"",N77*O77) ->  | Q77: =IF(กรอกข้อมูล!AS77>กรอกข้อมูล!AO$2,"",ABS(M77-I$6)) ->  | S77: =IF(กรอกข้อมูล!AS77>กรอกข้อมูล!AO$2,"",N77*Q77) -> 
M78: =IF(กรอกข้อมูล!AS78>กรอกข้อมูล!AO$2,"",กรอกข้อมูล!AS78) ->  | N78: =IF(กรอกข้อมูล!AS78>กรอกข้อมูล!AO$2,"",กรอกข้อมูล!AT78) ->  | O78: =IF(กรอกข้อมูล!AS78>กรอกข้อมูล!AO$2,"",กรอกข้อมูล!AU78) ->  | P78: =IF(กรอกข้อมูล!AS78>กรอกข้อมูล!AO$2,"",N78*O78) ->  | Q78: =IF(กรอกข้อมูล!AS78>กรอกข้อมูล!AO$2,"",ABS(M78-I$6)) ->  | S78: =IF(กรอกข้อมูล!AS78>กรอกข้อมูล!AO$2,"",N78*Q78) -> 
M79: =IF(กรอกข้อมูล!AS79>กรอกข้อมูล!AO$2,"",กรอกข้อมูล!AS79) ->  | N79: =IF(กรอกข้อมูล!AS79>กรอกข้อมูล!AO$2,"",กรอกข้อมูล!AT79) ->  | O79: =IF(กรอกข้อมูล!AS79>กรอกข้อมูล!AO$2,"",กรอกข้อมูล!AU79) ->  | P79: =IF(กรอกข้อมูล!AS79>กรอกข้อมูล!AO$2,"",N79*O79) ->  | Q79: =IF(กรอกข้อมูล!AS79>กรอกข้อมูล!AO$2,"",ABS(M79-I$6)) ->  | S79: =IF(กรอกข้อมูล!AS79>กรอกข้อมูล!AO$2,"",N79*Q79) -> 
M80: =IF(กรอกข้อมูล!AS80>กรอกข้อมูล!AO$2,"",กรอกข้อมูล!AS80) ->  | N80: =IF(กรอกข้อมูล!AS80>กรอกข้อมูล!AO$2,"",กรอกข้อมูล!AT80) ->  | O80: =IF(กรอกข้อมูล!AS80>กรอกข้อมูล!AO$2,"",กรอกข้อมูล!AU80) ->  | P80: =IF(กรอกข้อมูล!AS80>กรอกข้อมูล!AO$2,"",N80*O80) ->  | Q80: =IF(กรอกข้อมูล!AS80>กรอกข้อมูล!AO$2,"",ABS(M80-I$6)) ->  | S80: =IF(กรอกข้อมูล!AS80>กรอกข้อมูล!AO$2,"",N80*Q80) -> 
M81: =IF(กรอกข้อมูล!AS81>กรอกข้อมูล!AO$2,"",กรอกข้อมูล!AS81) ->  | N81: =IF(กรอกข้อมูล!AS81>กรอกข้อมูล!AO$2,"",กรอกข้อมูล!AT81) ->  | O81: =IF(กรอกข้อมูล!AS81>กรอกข้อมูล!AO$2,"",กรอกข้อมูล!AU81) ->  | P81: =IF(กรอกข้อมูล!AS81>กรอกข้อมูล!AO$2,"",N81*O81) ->  | Q81: =IF(กรอกข้อมูล!AS81>กรอกข้อมูล!AO$2,"",ABS(M81-I$6)) ->  | S81: =IF(กรอกข้อมูล!AS81>กรอกข้อมูล!AO$2,"",N81*Q81) -> 
M82: =IF(กรอกข้อมูล!AS82>กรอกข้อมูล!AO$2,"",กรอกข้อมูล!AS82) ->  | N82: =IF(กรอกข้อมูล!AS82>กรอกข้อมูล!AO$2,"",กรอกข้อมูล!AT82) ->  | O82: =IF(กรอกข้อมูล!AS82>กรอกข้อมูล!AO$2,"",กรอกข้อมูล!AU82) ->  | P82: =IF(กรอกข้อมูล!AS82>กรอกข้อมูล!AO$2,"",N82*O82) ->  | Q82: =IF(กรอกข้อมูล!AS82>กรอกข้อมูล!AO$2,"",ABS(M82-I$6)) ->  | S82: =IF(กรอกข้อมูล!AS82>กรอกข้อมูล!AO$2,"",N82*Q82) -> 
M83: =IF(กรอกข้อมูล!AS83>กรอกข้อมูล!AO$2,"",กรอกข้อมูล!AS83) ->  | N83: =IF(กรอกข้อมูล!AS83>กรอกข้อมูล!AO$2,"",กรอกข้อมูล!AT83) ->  | O83: =IF(กรอกข้อมูล!AS83>กรอกข้อมูล!AO$2,"",กรอกข้อมูล!AU83) ->  | P83: =IF(กรอกข้อมูล!AS83>กรอกข้อมูล!AO$2,"",N83*O83) ->  | Q83: =IF(กรอกข้อมูล!AS83>กรอกข้อมูล!AO$2,"",ABS(M83-I$6)) ->  | S83: =IF(กรอกข้อมูล!AS83>กรอกข้อมูล!AO$2,"",N83*Q83) -> 
M84: =IF(กรอกข้อมูล!AS84>กรอกข้อมูล!AO$2,"",กรอกข้อมูล!AS84) ->  | N84: =IF(กรอกข้อมูล!AS84>กรอกข้อมูล!AO$2,"",กรอกข้อมูล!AT84) ->  | O84: =IF(กรอกข้อมูล!AS84>กรอกข้อมูล!AO$2,"",กรอกข้อมูล!AU84) ->  | P84: =IF(กรอกข้อมูล!AS84>กรอกข้อมูล!AO$2,"",N84*O84) ->  | Q84: =IF(กรอกข้อมูล!AS84>กรอกข้อมูล!AO$2,"",ABS(M84-I$6)) ->  | S84: =IF(กรอกข้อมูล!AS84>กรอกข้อมูล!AO$2,"",N84*Q84) -> 
M85: =IF(กรอกข้อมูล!AS85>กรอกข้อมูล!AO$2,"",กรอกข้อมูล!AS85) ->  | N85: =IF(กรอกข้อมูล!AS85>กรอกข้อมูล!AO$2,"",กรอกข้อมูล!AT85) ->  | O85: =IF(กรอกข้อมูล!AS85>กรอกข้อมูล!AO$2,"",กรอกข้อมูล!AU85) ->  | P85: =IF(กรอกข้อมูล!AS85>กรอกข้อมูล!AO$2,"",N85*O85) ->  | Q85: =IF(กรอกข้อมูล!AS85>กรอกข้อมูล!AO$2,"",ABS(M85-I$6)) ->  | S85: =IF(กรอกข้อมูล!AS85>กรอกข้อมูล!AO$2,"",N85*Q85) -> 
M86: =IF(กรอกข้อมูล!AS86>กรอกข้อมูล!AO$2,"",กรอกข้อมูล!AS86) ->  | N86: =IF(กรอกข้อมูล!AS86>กรอกข้อมูล!AO$2,"",กรอกข้อมูล!AT86) ->  | O86: =IF(กรอกข้อมูล!AS86>กรอกข้อมูล!AO$2,"",กรอกข้อมูล!AU86) ->  | P86: =IF(กรอกข้อมูล!AS86>กรอกข้อมูล!AO$2,"",N86*O86) ->  | Q86: =IF(กรอกข้อมูล!AS86>กรอกข้อมูล!AO$2,"",ABS(M86-I$6)) ->  | S86: =IF(กรอกข้อมูล!AS86>กรอกข้อมูล!AO$2,"",N86*Q86) -> 
M87: =IF(กรอกข้อมูล!AS87>กรอกข้อมูล!AO$2,"",กรอกข้อมูล!AS87) ->  | N87: =IF(กรอกข้อมูล!AS87>กรอกข้อมูล!AO$2,"",กรอกข้อมูล!AT87) ->  | O87: =IF(กรอกข้อมูล!AS87>กรอกข้อมูล!AO$2,"",กรอกข้อมูล!AU87) ->  | P87: =IF(กรอกข้อมูล!AS87>กรอกข้อมูล!AO$2,"",N87*O87) ->  | Q87: =IF(กรอกข้อมูล!AS87>กรอกข้อมูล!AO$2,"",ABS(M87-I$6)) ->  | S87: =IF(กรอกข้อมูล!AS87>กรอกข้อมูล!AO$2,"",N87*Q87) -> 
M88: =IF(กรอกข้อมูล!AS88>กรอกข้อมูล!AO$2,"",กรอกข้อมูล!AS88) ->  | N88: =IF(กรอกข้อมูล!AS88>กรอกข้อมูล!AO$2,"",กรอกข้อมูล!AT88) ->  | O88: =IF(กรอกข้อมูล!AS88>กรอกข้อมูล!AO$2,"",กรอกข้อมูล!AU88) ->  | P88: =IF(กรอกข้อมูล!AS88>กรอกข้อมูล!AO$2,"",N88*O88) ->  | Q88: =IF(กรอกข้อมูล!AS88>กรอกข้อมูล!AO$2,"",ABS(M88-I$6)) ->  | S88: =IF(กรอกข้อมูล!AS88>กรอกข้อมูล!AO$2,"",N88*Q88) -> 
M89: =IF(กรอกข้อมูล!AS89>กรอกข้อมูล!AO$2,"",กรอกข้อมูล!AS89) ->  | N89: =IF(กรอกข้อมูล!AS89>กรอกข้อมูล!AO$2,"",กรอกข้อมูล!AT89) ->  | O89: =IF(กรอกข้อมูล!AS89>กรอกข้อมูล!AO$2,"",กรอกข้อมูล!AU89) ->  | P89: =IF(กรอกข้อมูล!AS89>กรอกข้อมูล!AO$2,"",N89*O89) ->  | Q89: =IF(กรอกข้อมูล!AS89>กรอกข้อมูล!AO$2,"",ABS(M89-I$6)) ->  | S89: =IF(กรอกข้อมูล!AS89>กรอกข้อมูล!AO$2,"",N89*Q89) -> 
M90: =IF(กรอกข้อมูล!AS90>กรอกข้อมูล!AO$2,"",กรอกข้อมูล!AS90) ->  | N90: =IF(กรอกข้อมูล!AS90>กรอกข้อมูล!AO$2,"",กรอกข้อมูล!AT90) ->  | O90: =IF(กรอกข้อมูล!AS90>กรอกข้อมูล!AO$2,"",กรอกข้อมูล!AU90) ->  | P90: =IF(กรอกข้อมูล!AS90>กรอกข้อมูล!AO$2,"",N90*O90) ->  | Q90: =IF(กรอกข้อมูล!AS90>กรอกข้อมูล!AO$2,"",ABS(M90-I$6)) ->  | S90: =IF(กรอกข้อมูล!AS90>กรอกข้อมูล!AO$2,"",N90*Q90) -> 
M91: =IF(กรอกข้อมูล!AS91>กรอกข้อมูล!AO$2,"",กรอกข้อมูล!AS91) ->  | N91: =IF(กรอกข้อมูล!AS91>กรอกข้อมูล!AO$2,"",กรอกข้อมูล!AT91) ->  | O91: =IF(กรอกข้อมูล!AS91>กรอกข้อมูล!AO$2,"",กรอกข้อมูล!AU91) ->  | P91: =IF(กรอกข้อมูล!AS91>กรอกข้อมูล!AO$2,"",N91*O91) ->  | Q91: =IF(กรอกข้อมูล!AS91>กรอกข้อมูล!AO$2,"",ABS(M91-I$6)) ->  | S91: =IF(กรอกข้อมูล!AS91>กรอกข้อมูล!AO$2,"",N91*Q91) -> 
M92: =IF(กรอกข้อมูล!AS92>กรอกข้อมูล!AO$2,"",กรอกข้อมูล!AS92) ->  | N92: =IF(กรอกข้อมูล!AS92>กรอกข้อมูล!AO$2,"",กรอกข้อมูล!AT92) ->  | O92: =IF(กรอกข้อมูล!AS92>กรอกข้อมูล!AO$2,"",กรอกข้อมูล!AU92) ->  | P92: =IF(กรอกข้อมูล!AS92>กรอกข้อมูล!AO$2,"",N92*O92) ->  | Q92: =IF(กรอกข้อมูล!AS92>กรอกข้อมูล!AO$2,"",ABS(M92-I$6)) ->  | S92: =IF(กรอกข้อมูล!AS92>กรอกข้อมูล!AO$2,"",N92*Q92) -> 
M93: =IF(กรอกข้อมูล!AS93>กรอกข้อมูล!AO$2,"",กรอกข้อมูล!AS93) ->  | N93: =IF(กรอกข้อมูล!AS93>กรอกข้อมูล!AO$2,"",กรอกข้อมูล!AT93) ->  | O93: =IF(กรอกข้อมูล!AS93>กรอกข้อมูล!AO$2,"",กรอกข้อมูล!AU93) ->  | P93: =IF(กรอกข้อมูล!AS93>กรอกข้อมูล!AO$2,"",N93*O93) ->  | Q93: =IF(กรอกข้อมูล!AS93>กรอกข้อมูล!AO$2,"",ABS(M93-I$6)) ->  | S93: =IF(กรอกข้อมูล!AS93>กรอกข้อมูล!AO$2,"",N93*Q93) -> 
M94: =IF(กรอกข้อมูล!AS94>กรอกข้อมูล!AO$2,"",กรอกข้อมูล!AS94) ->  | N94: =IF(กรอกข้อมูล!AS94>กรอกข้อมูล!AO$2,"",กรอกข้อมูล!AT94) ->  | O94: =IF(กรอกข้อมูล!AS94>กรอกข้อมูล!AO$2,"",กรอกข้อมูล!AU94) ->  | P94: =IF(กรอกข้อมูล!AS94>กรอกข้อมูล!AO$2,"",N94*O94) ->  | Q94: =IF(กรอกข้อมูล!AS94>กรอกข้อมูล!AO$2,"",ABS(M94-I$6)) ->  | S94: =IF(กรอกข้อมูล!AS94>กรอกข้อมูล!AO$2,"",N94*Q94) -> 
M95: =IF(กรอกข้อมูล!AS95>กรอกข้อมูล!AO$2,"",กรอกข้อมูล!AS95) ->  | N95: =IF(กรอกข้อมูล!AS95>กรอกข้อมูล!AO$2,"",กรอกข้อมูล!AT95) ->  | O95: =IF(กรอกข้อมูล!AS95>กรอกข้อมูล!AO$2,"",กรอกข้อมูล!AU95) ->  | P95: =IF(กรอกข้อมูล!AS95>กรอกข้อมูล!AO$2,"",N95*O95) ->  | Q95: =IF(กรอกข้อมูล!AS95>กรอกข้อมูล!AO$2,"",ABS(M95-I$6)) ->  | S95: =IF(กรอกข้อมูล!AS95>กรอกข้อมูล!AO$2,"",N95*Q95) -> 
M96: =IF(กรอกข้อมูล!AS96>กรอกข้อมูล!AO$2,"",กรอกข้อมูล!AS96) ->  | N96: =IF(กรอกข้อมูล!AS96>กรอกข้อมูล!AO$2,"",กรอกข้อมูล!AT96) ->  | O96: =IF(กรอกข้อมูล!AS96>กรอกข้อมูล!AO$2,"",กรอกข้อมูล!AU96) ->  | P96: =IF(กรอกข้อมูล!AS96>กรอกข้อมูล!AO$2,"",N96*O96) ->  | Q96: =IF(กรอกข้อมูล!AS96>กรอกข้อมูล!AO$2,"",ABS(M96-I$6)) ->  | S96: =IF(กรอกข้อมูล!AS96>กรอกข้อมูล!AO$2,"",N96*Q96) -> 
M97: =IF(กรอกข้อมูล!AS97>กรอกข้อมูล!AO$2,"",กรอกข้อมูล!AS97) ->  | N97: =IF(กรอกข้อมูล!AS97>กรอกข้อมูล!AO$2,"",กรอกข้อมูล!AT97) ->  | O97: =IF(กรอกข้อมูล!AS97>กรอกข้อมูล!AO$2,"",กรอกข้อมูล!AU97) ->  | P97: =IF(กรอกข้อมูล!AS97>กรอกข้อมูล!AO$2,"",N97*O97) ->  | Q97: =IF(กรอกข้อมูล!AS97>กรอกข้อมูล!AO$2,"",ABS(M97-I$6)) ->  | S97: =IF(กรอกข้อมูล!AS97>กรอกข้อมูล!AO$2,"",N97*Q97) -> 
M98: =IF(กรอกข้อมูล!AS98>กรอกข้อมูล!AO$2,"",กรอกข้อมูล!AS98) ->  | N98: =IF(กรอกข้อมูล!AS98>กรอกข้อมูล!AO$2,"",กรอกข้อมูล!AT98) ->  | O98: =IF(กรอกข้อมูล!AS98>กรอกข้อมูล!AO$2,"",กรอกข้อมูล!AU98) ->  | P98: =IF(กรอกข้อมูล!AS98>กรอกข้อมูล!AO$2,"",N98*O98) ->  | Q98: =IF(กรอกข้อมูล!AS98>กรอกข้อมูล!AO$2,"",ABS(M98-I$6)) ->  | S98: =IF(กรอกข้อมูล!AS98>กรอกข้อมูล!AO$2,"",N98*Q98) -> 
M99: =IF(กรอกข้อมูล!AS99>กรอกข้อมูล!AO$2,"",กรอกข้อมูล!AS99) ->  | N99: =IF(กรอกข้อมูล!AS99>กรอกข้อมูล!AO$2,"",กรอกข้อมูล!AT99) ->  | O99: =IF(กรอกข้อมูล!AS99>กรอกข้อมูล!AO$2,"",กรอกข้อมูล!AU99) ->  | P99: =IF(กรอกข้อมูล!AS99>กรอกข้อมูล!AO$2,"",N99*O99) ->  | Q99: =IF(กรอกข้อมูล!AS99>กรอกข้อมูล!AO$2,"",ABS(M99-I$6)) ->  | S99: =IF(กรอกข้อมูล!AS99>กรอกข้อมูล!AO$2,"",N99*Q99) -> 
M100: =IF(กรอกข้อมูล!AS100>กรอกข้อมูล!AO$2,"",กรอกข้อมูล!AS100) ->  | N100: =IF(กรอกข้อมูล!AS100>กรอกข้อมูล!AO$2,"",กรอกข้อมูล!AT100) ->  | O100: =IF(กรอกข้อมูล!AS100>กรอกข้อมูล!AO$2,"",กรอกข้อมูล!AU100) ->  | P100: =IF(กรอกข้อมูล!AS100>กรอกข้อมูล!AO$2,"",N100*O100) ->  | Q100: =IF(กรอกข้อมูล!AS100>กรอกข้อมูล!AO$2,"",ABS(M100-I$6)) ->  | S100: =IF(กรอกข้อมูล!AS100>กรอกข้อมูล!AO$2,"",N100*Q100) -> 
M101: =IF(กรอกข้อมูล!AS101>กรอกข้อมูล!AO$2,"",กรอกข้อมูล!AS101) ->  | N101: =IF(กรอกข้อมูล!AS101>กรอกข้อมูล!AO$2,"",กรอกข้อมูล!AT101) ->  | O101: =IF(กรอกข้อมูล!AS101>กรอกข้อมูล!AO$2,"",กรอกข้อมูล!AU101) ->  | P101: =IF(กรอกข้อมูล!AS101>กรอกข้อมูล!AO$2,"",N101*O101) ->  | Q101: =IF(กรอกข้อมูล!AS101>กรอกข้อมูล!AO$2,"",ABS(M101-I$6)) ->  | S101: =IF(กรอกข้อมูล!AS101>กรอกข้อมูล!AO$2,"",N101*Q101) -> 
M102: =IF(กรอกข้อมูล!AS102>กรอกข้อมูล!AO$2,"",กรอกข้อมูล!AS102) ->  | N102: =IF(กรอกข้อมูล!AS102>กรอกข้อมูล!AO$2,"",กรอกข้อมูล!AT102) ->  | O102: =IF(กรอกข้อมูล!AS102>กรอกข้อมูล!AO$2,"",กรอกข้อมูล!AU102) ->  | P102: =IF(กรอกข้อมูล!AS102>กรอกข้อมูล!AO$2,"",N102*O102) ->  | Q102: =IF(กรอกข้อมูล!AS102>กรอกข้อมูล!AO$2,"",ABS(M102-I$6)) ->  | S102: =IF(กรอกข้อมูล!AS102>กรอกข้อมูล!AO$2,"",N102*Q102) -> 
M103: =IF(กรอกข้อมูล!AS103>กรอกข้อมูล!AO$2,"",กรอกข้อมูล!AS103) ->  | N103: =IF(กรอกข้อมูล!AS103>กรอกข้อมูล!AO$2,"",กรอกข้อมูล!AT103) ->  | O103: =IF(กรอกข้อมูล!AS103>กรอกข้อมูล!AO$2,"",กรอกข้อมูล!AU103) ->  | P103: =IF(กรอกข้อมูล!AS103>กรอกข้อมูล!AO$2,"",N103*O103) ->  | Q103: =IF(กรอกข้อมูล!AS103>กรอกข้อมูล!AO$2,"",ABS(M103-I$6)) ->  | S103: =IF(กรอกข้อมูล!AS103>กรอกข้อมูล!AO$2,"",N103*Q103) -> 
M104: =IF(กรอกข้อมูล!AS104>กรอกข้อมูล!AO$2,"",กรอกข้อมูล!AS104) ->  | N104: =IF(กรอกข้อมูล!AS104>กรอกข้อมูล!AO$2,"",กรอกข้อมูล!AT104) ->  | O104: =IF(กรอกข้อมูล!AS104>กรอกข้อมูล!AO$2,"",กรอกข้อมูล!AU104) ->  | P104: =IF(กรอกข้อมูล!AS104>กรอกข้อมูล!AO$2,"",N104*O104) ->  | Q104: =IF(กรอกข้อมูล!AS104>กรอกข้อมูล!AO$2,"",ABS(M104-I$6)) ->  | S104: =IF(กรอกข้อมูล!AS104>กรอกข้อมูล!AO$2,"",N104*Q104) -> 
M105: =IF(กรอกข้อมูล!AS105>กรอกข้อมูล!AO$2,"",กรอกข้อมูล!AS105) ->  | N105: =IF(กรอกข้อมูล!AS105>กรอกข้อมูล!AO$2,"",กรอกข้อมูล!AT105) ->  | O105: =IF(กรอกข้อมูล!AS105>กรอกข้อมูล!AO$2,"",กรอกข้อมูล!AU105) ->  | P105: =IF(กรอกข้อมูล!AS105>กรอกข้อมูล!AO$2,"",N105*O105) ->  | Q105: =IF(กรอกข้อมูล!AS105>กรอกข้อมูล!AO$2,"",ABS(M105-I$6)) ->  | S105: =IF(กรอกข้อมูล!AS105>กรอกข้อมูล!AO$2,"",N105*Q105) -> 
M106: =IF(กรอกข้อมูล!AS106>กรอกข้อมูล!AO$2,"",กรอกข้อมูล!AS106) ->  | N106: =IF(กรอกข้อมูล!AS106>กรอกข้อมูล!AO$2,"",กรอกข้อมูล!AT106) ->  | O106: =IF(กรอกข้อมูล!AS106>กรอกข้อมูล!AO$2,"",กรอกข้อมูล!AU106) ->  | P106: =IF(กรอกข้อมูล!AS106>กรอกข้อมูล!AO$2,"",N106*O106) ->  | Q106: =IF(กรอกข้อมูล!AS106>กรอกข้อมูล!AO$2,"",ABS(M106-I$6)) ->  | S106: =IF(กรอกข้อมูล!AS106>กรอกข้อมูล!AO$2,"",N106*Q106) -> 
M107: =IF(กรอกข้อมูล!AS107>กรอกข้อมูล!AO$2,"",กรอกข้อมูล!AS107) ->  | N107: =IF(กรอกข้อมูล!AS107>กรอกข้อมูล!AO$2,"",กรอกข้อมูล!AT107) ->  | O107: =IF(กรอกข้อมูล!AS107>กรอกข้อมูล!AO$2,"",กรอกข้อมูล!AU107) ->  | P107: =IF(กรอกข้อมูล!AS107>กรอกข้อมูล!AO$2,"",N107*O107) ->  | Q107: =IF(กรอกข้อมูล!AS107>กรอกข้อมูล!AO$2,"",ABS(M107-I$6)) ->  | S107: =IF(กรอกข้อมูล!AS107>กรอกข้อมูล!AO$2,"",N107*Q107) -> 
M108: =IF(กรอกข้อมูล!AS108>กรอกข้อมูล!AO$2,"",กรอกข้อมูล!AS108) ->  | N108: =IF(กรอกข้อมูล!AS108>กรอกข้อมูล!AO$2,"",กรอกข้อมูล!AT108) ->  | O108: =IF(กรอกข้อมูล!AS108>กรอกข้อมูล!AO$2,"",กรอกข้อมูล!AU108) ->  | P108: =IF(กรอกข้อมูล!AS108>กรอกข้อมูล!AO$2,"",N108*O108) ->  | Q108: =IF(กรอกข้อมูล!AS108>กรอกข้อมูล!AO$2,"",ABS(M108-I$6)) ->  | S108: =IF(กรอกข้อมูล!AS108>กรอกข้อมูล!AO$2,"",N108*Q108) -> 
M109: =IF(กรอกข้อมูล!AS109>กรอกข้อมูล!AO$2,"",กรอกข้อมูล!AS109) ->  | N109: =IF(กรอกข้อมูล!AS109>กรอกข้อมูล!AO$2,"",กรอกข้อมูล!AT109) ->  | O109: =IF(กรอกข้อมูล!AS109>กรอกข้อมูล!AO$2,"",กรอกข้อมูล!AU109) ->  | P109: =IF(กรอกข้อมูล!AS109>กรอกข้อมูล!AO$2,"",N109*O109) ->  | Q109: =IF(กรอกข้อมูล!AS109>กรอกข้อมูล!AO$2,"",ABS(M109-I$6)) ->  | S109: =IF(กรอกข้อมูล!AS109>กรอกข้อมูล!AO$2,"",N109*Q109) -> 
M110: =IF(กรอกข้อมูล!AS110>กรอกข้อมูล!AO$2,"",กรอกข้อมูล!AS110) ->  | N110: =IF(กรอกข้อมูล!AS110>กรอกข้อมูล!AO$2,"",กรอกข้อมูล!AT110) ->  | O110: =IF(กรอกข้อมูล!AS110>กรอกข้อมูล!AO$2,"",กรอกข้อมูล!AU110) ->  | P110: =IF(กรอกข้อมูล!AS110>กรอกข้อมูล!AO$2,"",N110*O110) ->  | Q110: =IF(กรอกข้อมูล!AS110>กรอกข้อมูล!AO$2,"",ABS(M110-I$6)) ->  | S110: =IF(กรอกข้อมูล!AS110>กรอกข้อมูล!AO$2,"",N110*Q110) -> 
M111: =IF(กรอกข้อมูล!AS111>กรอกข้อมูล!AO$2,"",กรอกข้อมูล!AS111) ->  | N111: =IF(กรอกข้อมูล!AS111>กรอกข้อมูล!AO$2,"",กรอกข้อมูล!AT111) ->  | O111: =IF(กรอกข้อมูล!AS111>กรอกข้อมูล!AO$2,"",กรอกข้อมูล!AU111) ->  | P111: =IF(กรอกข้อมูล!AS111>กรอกข้อมูล!AO$2,"",N111*O111) ->  | Q111: =IF(กรอกข้อมูล!AS111>กรอกข้อมูล!AO$2,"",ABS(M111-I$6)) ->  | S111: =IF(กรอกข้อมูล!AS111>กรอกข้อมูล!AO$2,"",N111*Q111) -> 
M112: =IF(กรอกข้อมูล!AS112>กรอกข้อมูล!AO$2,"",กรอกข้อมูล!AS112) ->  | N112: =IF(กรอกข้อมูล!AS112>กรอกข้อมูล!AO$2,"",กรอกข้อมูล!AT112) ->  | O112: =IF(กรอกข้อมูล!AS112>กรอกข้อมูล!AO$2,"",กรอกข้อมูล!AU112) ->  | P112: =IF(กรอกข้อมูล!AS112>กรอกข้อมูล!AO$2,"",N112*O112) ->  | Q112: =IF(กรอกข้อมูล!AS112>กรอกข้อมูล!AO$2,"",ABS(M112-I$6)) ->  | S112: =IF(กรอกข้อมูล!AS112>กรอกข้อมูล!AO$2,"",N112*Q112) -> 
M113: =IF(กรอกข้อมูล!AS113>กรอกข้อมูล!AO$2,"",กรอกข้อมูล!AS113) ->  | N113: =IF(กรอกข้อมูล!AS113>กรอกข้อมูล!AO$2,"",กรอกข้อมูล!AT113) ->  | O113: =IF(กรอกข้อมูล!AS113>กรอกข้อมูล!AO$2,"",กรอกข้อมูล!AU113) ->  | P113: =IF(กรอกข้อมูล!AS113>กรอกข้อมูล!AO$2,"",N113*O113) ->  | Q113: =IF(กรอกข้อมูล!AS113>กรอกข้อมูล!AO$2,"",ABS(M113-I$6)) ->  | S113: =IF(กรอกข้อมูล!AS113>กรอกข้อมูล!AO$2,"",N113*Q113) -> 
M114: =IF(กรอกข้อมูล!AS114>กรอกข้อมูล!AO$2,"",กรอกข้อมูล!AS114) ->  | N114: =IF(กรอกข้อมูล!AS114>กรอกข้อมูล!AO$2,"",กรอกข้อมูล!AT114) ->  | O114: =IF(กรอกข้อมูล!AS114>กรอกข้อมูล!AO$2,"",กรอกข้อมูล!AU114) ->  | P114: =IF(กรอกข้อมูล!AS114>กรอกข้อมูล!AO$2,"",N114*O114) ->  | Q114: =IF(กรอกข้อมูล!AS114>กรอกข้อมูล!AO$2,"",ABS(M114-I$6)) ->  | S114: =IF(กรอกข้อมูล!AS114>กรอกข้อมูล!AO$2,"",N114*Q114) -> 
M115: =IF(กรอกข้อมูล!AS115>กรอกข้อมูล!AO$2,"",กรอกข้อมูล!AS115) ->  | N115: =IF(กรอกข้อมูล!AS115>กรอกข้อมูล!AO$2,"",กรอกข้อมูล!AT115) ->  | O115: =IF(กรอกข้อมูล!AS115>กรอกข้อมูล!AO$2,"",กรอกข้อมูล!AU115) ->  | P115: =IF(กรอกข้อมูล!AS115>กรอกข้อมูล!AO$2,"",N115*O115) ->  | Q115: =IF(กรอกข้อมูล!AS115>กรอกข้อมูล!AO$2,"",ABS(M115-I$6)) ->  | S115: =IF(กรอกข้อมูล!AS115>กรอกข้อมูล!AO$2,"",N115*Q115) -> 
M116: =IF(กรอกข้อมูล!AS116>กรอกข้อมูล!AO$2,"",กรอกข้อมูล!AS116) ->  | N116: =IF(กรอกข้อมูล!AS116>กรอกข้อมูล!AO$2,"",กรอกข้อมูล!AT116) ->  | O116: =IF(กรอกข้อมูล!AS116>กรอกข้อมูล!AO$2,"",กรอกข้อมูล!AU116) ->  | P116: =IF(กรอกข้อมูล!AS116>กรอกข้อมูล!AO$2,"",N116*O116) ->  | Q116: =IF(กรอกข้อมูล!AS116>กรอกข้อมูล!AO$2,"",ABS(M116-I$6)) ->  | S116: =IF(กรอกข้อมูล!AS116>กรอกข้อมูล!AO$2,"",N116*Q116) -> 
M117: =IF(กรอกข้อมูล!AS117>กรอกข้อมูล!AO$2,"",กรอกข้อมูล!AS117) ->  | N117: =IF(กรอกข้อมูล!AS117>กรอกข้อมูล!AO$2,"",กรอกข้อมูล!AT117) ->  | O117: =IF(กรอกข้อมูล!AS117>กรอกข้อมูล!AO$2,"",กรอกข้อมูล!AU117) ->  | P117: =IF(กรอกข้อมูล!AS117>กรอกข้อมูล!AO$2,"",N117*O117) ->  | Q117: =IF(กรอกข้อมูล!AS117>กรอกข้อมูล!AO$2,"",ABS(M117-I$6)) ->  | S117: =IF(กรอกข้อมูล!AS117>กรอกข้อมูล!AO$2,"",N117*Q117) -> 
M118: =IF(กรอกข้อมูล!AS118>กรอกข้อมูล!AO$2,"",กรอกข้อมูล!AS118) ->  | N118: =IF(กรอกข้อมูล!AS118>กรอกข้อมูล!AO$2,"",กรอกข้อมูล!AT118) ->  | O118: =IF(กรอกข้อมูล!AS118>กรอกข้อมูล!AO$2,"",กรอกข้อมูล!AU118) ->  | P118: =IF(กรอกข้อมูล!AS118>กรอกข้อมูล!AO$2,"",N118*O118) ->  | Q118: =IF(กรอกข้อมูล!AS118>กรอกข้อมูล!AO$2,"",ABS(M118-I$6)) ->  | S118: =IF(กรอกข้อมูล!AS118>กรอกข้อมูล!AO$2,"",N118*Q118) -> 
M119: =IF(กรอกข้อมูล!AS119>กรอกข้อมูล!AO$2,"",กรอกข้อมูล!AS119) ->  | N119: =IF(กรอกข้อมูล!AS119>กรอกข้อมูล!AO$2,"",กรอกข้อมูล!AT119) ->  | O119: =IF(กรอกข้อมูล!AS119>กรอกข้อมูล!AO$2,"",กรอกข้อมูล!AU119) ->  | P119: =IF(กรอกข้อมูล!AS119>กรอกข้อมูล!AO$2,"",N119*O119) ->  | Q119: =IF(กรอกข้อมูล!AS119>กรอกข้อมูล!AO$2,"",ABS(M119-I$6)) ->  | S119: =IF(กรอกข้อมูล!AS119>กรอกข้อมูล!AO$2,"",N119*Q119) -> 
M120: =IF(กรอกข้อมูล!AS120>กรอกข้อมูล!AO$2,"",กรอกข้อมูล!AS120) ->  | N120: =IF(กรอกข้อมูล!AS120>กรอกข้อมูล!AO$2,"",กรอกข้อมูล!AT120) ->  | O120: =IF(กรอกข้อมูล!AS120>กรอกข้อมูล!AO$2,"",กรอกข้อมูล!AU120) ->  | P120: =IF(กรอกข้อมูล!AS120>กรอกข้อมูล!AO$2,"",N120*O120) ->  | Q120: =IF(กรอกข้อมูล!AS120>กรอกข้อมูล!AO$2,"",ABS(M120-I$6)) ->  | S120: =IF(กรอกข้อมูล!AS120>กรอกข้อมูล!AO$2,"",N120*Q120) -> 
M121: =IF(กรอกข้อมูล!AS121>กรอกข้อมูล!AO$2,"",กรอกข้อมูล!AS121) ->  | N121: =IF(กรอกข้อมูล!AS121>กรอกข้อมูล!AO$2,"",กรอกข้อมูล!AT121) ->  | O121: =IF(กรอกข้อมูล!AS121>กรอกข้อมูล!AO$2,"",กรอกข้อมูล!AU121) ->  | P121: =IF(กรอกข้อมูล!AS121>กรอกข้อมูล!AO$2,"",N121*O121) ->  | Q121: =IF(กรอกข้อมูล!AS121>กรอกข้อมูล!AO$2,"",ABS(M121-I$6)) ->  | S121: =IF(กรอกข้อมูล!AS121>กรอกข้อมูล!AO$2,"",N121*Q121) -> 
M122: =IF(กรอกข้อมูล!AS122>กรอกข้อมูล!AO$2,"",กรอกข้อมูล!AS122) ->  | N122: =IF(กรอกข้อมูล!AS122>กรอกข้อมูล!AO$2,"",กรอกข้อมูล!AT122) ->  | O122: =IF(กรอกข้อมูล!AS122>กรอกข้อมูล!AO$2,"",กรอกข้อมูล!AU122) ->  | P122: =IF(กรอกข้อมูล!AS122>กรอกข้อมูล!AO$2,"",N122*O122) ->  | Q122: =IF(กรอกข้อมูล!AS122>กรอกข้อมูล!AO$2,"",ABS(M122-I$6)) ->  | S122: =IF(กรอกข้อมูล!AS122>กรอกข้อมูล!AO$2,"",N122*Q122) -> 
M123: =IF(กรอกข้อมูล!AS123>กรอกข้อมูล!AO$2,"",กรอกข้อมูล!AS123) ->  | N123: =IF(กรอกข้อมูล!AS123>กรอกข้อมูล!AO$2,"",กรอกข้อมูล!AT123) ->  | O123: =IF(กรอกข้อมูล!AS123>กรอกข้อมูล!AO$2,"",กรอกข้อมูล!AU123) ->  | P123: =IF(กรอกข้อมูล!AS123>กรอกข้อมูล!AO$2,"",N123*O123) ->  | Q123: =IF(กรอกข้อมูล!AS123>กรอกข้อมูล!AO$2,"",ABS(M123-I$6)) ->  | S123: =IF(กรอกข้อมูล!AS123>กรอกข้อมูล!AO$2,"",N123*Q123) -> 
M124: =IF(กรอกข้อมูล!AS124>กรอกข้อมูล!AO$2,"",กรอกข้อมูล!AS124) ->  | N124: =IF(กรอกข้อมูล!AS124>กรอกข้อมูล!AO$2,"",กรอกข้อมูล!AT124) ->  | O124: =IF(กรอกข้อมูล!AS124>กรอกข้อมูล!AO$2,"",กรอกข้อมูล!AU124) ->  | P124: =IF(กรอกข้อมูล!AS124>กรอกข้อมูล!AO$2,"",N124*O124) ->  | Q124: =IF(กรอกข้อมูล!AS124>กรอกข้อมูล!AO$2,"",ABS(M124-I$6)) ->  | S124: =IF(กรอกข้อมูล!AS124>กรอกข้อมูล!AO$2,"",N124*Q124) -> 
M125: =IF(กรอกข้อมูล!AS125>กรอกข้อมูล!AO$2,"",กรอกข้อมูล!AS125) ->  | N125: =IF(กรอกข้อมูล!AS125>กรอกข้อมูล!AO$2,"",กรอกข้อมูล!AT125) ->  | O125: =IF(กรอกข้อมูล!AS125>กรอกข้อมูล!AO$2,"",กรอกข้อมูล!AU125) ->  | P125: =IF(กรอกข้อมูล!AS125>กรอกข้อมูล!AO$2,"",N125*O125) ->  | Q125: =IF(กรอกข้อมูล!AS125>กรอกข้อมูล!AO$2,"",ABS(M125-I$6)) ->  | S125: =IF(กรอกข้อมูล!AS125>กรอกข้อมูล!AO$2,"",N125*Q125) -> 
M126: =IF(กรอกข้อมูล!AS126>กรอกข้อมูล!AO$2,"",กรอกข้อมูล!AS126) ->  | N126: =IF(กรอกข้อมูล!AS126>กรอกข้อมูล!AO$2,"",กรอกข้อมูล!AT126) ->  | O126: =IF(กรอกข้อมูล!AS126>กรอกข้อมูล!AO$2,"",กรอกข้อมูล!AU126) ->  | P126: =IF(กรอกข้อมูล!AS126>กรอกข้อมูล!AO$2,"",N126*O126) ->  | Q126: =IF(กรอกข้อมูล!AS126>กรอกข้อมูล!AO$2,"",ABS(M126-I$6)) ->  | S126: =IF(กรอกข้อมูล!AS126>กรอกข้อมูล!AO$2,"",N126*Q126) -> 
M127: =IF(กรอกข้อมูล!AS127>กรอกข้อมูล!AO$2,"",กรอกข้อมูล!AS127) ->  | N127: =IF(กรอกข้อมูล!AS127>กรอกข้อมูล!AO$2,"",กรอกข้อมูล!AT127) ->  | O127: =IF(กรอกข้อมูล!AS127>กรอกข้อมูล!AO$2,"",กรอกข้อมูล!AU127) ->  | P127: =IF(กรอกข้อมูล!AS127>กรอกข้อมูล!AO$2,"",N127*O127) ->  | Q127: =IF(กรอกข้อมูล!AS127>กรอกข้อมูล!AO$2,"",ABS(M127-I$6)) ->  | S127: =IF(กรอกข้อมูล!AS127>กรอกข้อมูล!AO$2,"",N127*Q127) -> 
M128: =IF(กรอกข้อมูล!AS128>กรอกข้อมูล!AO$2,"",กรอกข้อมูล!AS128) ->  | N128: =IF(กรอกข้อมูล!AS128>กรอกข้อมูล!AO$2,"",กรอกข้อมูล!AT128) ->  | O128: =IF(กรอกข้อมูล!AS128>กรอกข้อมูล!AO$2,"",กรอกข้อมูล!AU128) ->  | P128: =IF(กรอกข้อมูล!AS128>กรอกข้อมูล!AO$2,"",N128*O128) ->  | Q128: =IF(กรอกข้อมูล!AS128>กรอกข้อมูล!AO$2,"",ABS(M128-I$6)) ->  | S128: =IF(กรอกข้อมูล!AS128>กรอกข้อมูล!AO$2,"",N128*Q128) -> 
M129: =IF(กรอกข้อมูล!AS129>กรอกข้อมูล!AO$2,"",กรอกข้อมูล!AS129) ->  | N129: =IF(กรอกข้อมูล!AS129>กรอกข้อมูล!AO$2,"",กรอกข้อมูล!AT129) ->  | O129: =IF(กรอกข้อมูล!AS129>กรอกข้อมูล!AO$2,"",กรอกข้อมูล!AU129) ->  | P129: =IF(กรอกข้อมูล!AS129>กรอกข้อมูล!AO$2,"",N129*O129) ->  | Q129: =IF(กรอกข้อมูล!AS129>กรอกข้อมูล!AO$2,"",ABS(M129-I$6)) ->  | S129: =IF(กรอกข้อมูล!AS129>กรอกข้อมูล!AO$2,"",N129*Q129) -> 
A130: =M130 ->  | B130: =N130 ->  | C130: =O130 ->  | D130: =P130 ->  | E130: =R130 ->  | F130: =S130 ->  | M130: =IF(กรอกข้อมูล!AS130>กรอกข้อมูล!AO$2,"",กรอกข้อมูล!AS130) ->  | N130: =IF(กรอกข้อมูล!AS130>กรอกข้อมูล!AO$2,"",กรอกข้อมูล!AT130) ->  | O130: =IF(กรอกข้อมูล!AS130>กรอกข้อมูล!AO$2,"",กรอกข้อมูล!AU130) ->  | P130: =IF(กรอกข้อมูล!AS130>กรอกข้อมูล!AO$2,"",N130*O130) ->  | Q130: =IF(กรอกข้อมูล!AS130>กรอกข้อมูล!AO$2,"",ABS(M130-I$6)) ->  | S130: =IF(กรอกข้อมูล!AS130>กรอกข้อมูล!AO$2,"",N130*Q130) -> 
M131: =IF(กรอกข้อมูล!AS131>กรอกข้อมูล!AO$2,"",กรอกข้อมูล!AS131) ->  | N131: =IF(กรอกข้อมูล!AS131>กรอกข้อมูล!AO$2,"",กรอกข้อมูล!AT131) ->  | O131: =IF(กรอกข้อมูล!AS131>กรอกข้อมูล!AO$2,"",กรอกข้อมูล!AU131) ->  | P131: =IF(กรอกข้อมูล!AS131>กรอกข้อมูล!AO$2,"",N131*O131) ->  | Q131: =IF(กรอกข้อมูล!AS131>กรอกข้อมูล!AO$2,"",ABS(M131-I$6)) ->  | R131: =IF(N131=0,0,Q131) ->  | S131: =IF(กรอกข้อมูล!AS131>กรอกข้อมูล!AO$2,"",N131*Q131) -> 
M132: =IF(กรอกข้อมูล!AS132>กรอกข้อมูล!AO$2,"",กรอกข้อมูล!AS132) ->  | N132: =IF(กรอกข้อมูล!AS132>กรอกข้อมูล!AO$2,"",กรอกข้อมูล!AT132) ->  | O132: =IF(กรอกข้อมูล!AS132>กรอกข้อมูล!AO$2,"",กรอกข้อมูล!AU132) ->  | P132: =IF(กรอกข้อมูล!AS132>กรอกข้อมูล!AO$2,"",N132*O132) ->  | Q132: =IF(กรอกข้อมูล!AS132>กรอกข้อมูล!AO$2,"",ABS(M132-I$6)) ->  | S132: =IF(กรอกข้อมูล!AS132>กรอกข้อมูล!AO$2,"",N132*Q132) -> 
M133: =IF(กรอกข้อมูล!AS133>กรอกข้อมูล!AO$2,"",กรอกข้อมูล!AS133) ->  | N133: =IF(กรอกข้อมูล!AS133>กรอกข้อมูล!AO$2,"",กรอกข้อมูล!AT133) ->  | O133: =IF(กรอกข้อมูล!AS133>กรอกข้อมูล!AO$2,"",กรอกข้อมูล!AU133) ->  | P133: =IF(กรอกข้อมูล!AS133>กรอกข้อมูล!AO$2,"",N133*O133) ->  | Q133: =IF(กรอกข้อมูล!AS133>กรอกข้อมูล!AO$2,"",ABS(M133-I$6)) ->  | S133: =IF(กรอกข้อมูล!AS133>กรอกข้อมูล!AO$2,"",N133*Q133) -> 
M134: =IF(กรอกข้อมูล!AS134>กรอกข้อมูล!AO$2,"",กรอกข้อมูล!AS134) ->  | N134: =IF(กรอกข้อมูล!AS134>กรอกข้อมูล!AO$2,"",กรอกข้อมูล!AT134) ->  | O134: =IF(กรอกข้อมูล!AS134>กรอกข้อมูล!AO$2,"",กรอกข้อมูล!AU134) ->  | P134: =IF(กรอกข้อมูล!AS134>กรอกข้อมูล!AO$2,"",N134*O134) ->  | Q134: =IF(กรอกข้อมูล!AS134>กรอกข้อมูล!AO$2,"",ABS(M134-I$6)) ->  | S134: =IF(กรอกข้อมูล!AS134>กรอกข้อมูล!AO$2,"",N134*Q134) -> 
M135: =IF(กรอกข้อมูล!AS135>กรอกข้อมูล!AO$2,"",กรอกข้อมูล!AS135) ->  | N135: =IF(กรอกข้อมูล!AS135>กรอกข้อมูล!AO$2,"",กรอกข้อมูล!AT135) ->  | O135: =IF(กรอกข้อมูล!AS135>กรอกข้อมูล!AO$2,"",กรอกข้อมูล!AU135) ->  | P135: =IF(กรอกข้อมูล!AS135>กรอกข้อมูล!AO$2,"",N135*O135) ->  | Q135: =IF(กรอกข้อมูล!AS135>กรอกข้อมูล!AO$2,"",ABS(M135-I$6)) ->  | S135: =IF(กรอกข้อมูล!AS135>กรอกข้อมูล!AO$2,"",N135*Q135) -> 
M136: =IF(กรอกข้อมูล!AS136>กรอกข้อมูล!AO$2,"",กรอกข้อมูล!AS136) ->  | N136: =IF(กรอกข้อมูล!AS136>กรอกข้อมูล!AO$2,"",กรอกข้อมูล!AT136) ->  | O136: =IF(กรอกข้อมูล!AS136>กรอกข้อมูล!AO$2,"",กรอกข้อมูล!AU136) ->  | P136: =IF(กรอกข้อมูล!AS136>กรอกข้อมูล!AO$2,"",N136*O136) ->  | Q136: =IF(กรอกข้อมูล!AS136>กรอกข้อมูล!AO$2,"",ABS(M136-I$6)) ->  | S136: =IF(กรอกข้อมูล!AS136>กรอกข้อมูล!AO$2,"",N136*Q136) -> 
M137: =IF(กรอกข้อมูล!AS137>กรอกข้อมูล!AO$2,"",กรอกข้อมูล!AS137) ->  | N137: =IF(กรอกข้อมูล!AS137>กรอกข้อมูล!AO$2,"",กรอกข้อมูล!AT137) ->  | O137: =IF(กรอกข้อมูล!AS137>กรอกข้อมูล!AO$2,"",กรอกข้อมูล!AU137) ->  | P137: =IF(กรอกข้อมูล!AS137>กรอกข้อมูล!AO$2,"",N137*O137) ->  | Q137: =IF(กรอกข้อมูล!AS137>กรอกข้อมูล!AO$2,"",ABS(M137-I$6)) ->  | S137: =IF(กรอกข้อมูล!AS137>กรอกข้อมูล!AO$2,"",N137*Q137) -> 
M138: =IF(กรอกข้อมูล!AS138>กรอกข้อมูล!AO$2,"",กรอกข้อมูล!AS138) ->  | N138: =IF(กรอกข้อมูล!AS138>กรอกข้อมูล!AO$2,"",กรอกข้อมูล!AT138) ->  | O138: =IF(กรอกข้อมูล!AS138>กรอกข้อมูล!AO$2,"",กรอกข้อมูล!AU138) ->  | P138: =IF(กรอกข้อมูล!AS138>กรอกข้อมูล!AO$2,"",N138*O138) ->  | Q138: =IF(กรอกข้อมูล!AS138>กรอกข้อมูล!AO$2,"",ABS(M138-I$6)) ->  | S138: =IF(กรอกข้อมูล!AS138>กรอกข้อมูล!AO$2,"",N138*Q138) -> 
M139: =IF(กรอกข้อมูล!AS139>กรอกข้อมูล!AO$2,"",กรอกข้อมูล!AS139) ->  | N139: =IF(กรอกข้อมูล!AS139>กรอกข้อมูล!AO$2,"",กรอกข้อมูล!AT139) ->  | O139: =IF(กรอกข้อมูล!AS139>กรอกข้อมูล!AO$2,"",กรอกข้อมูล!AU139) ->  | P139: =IF(กรอกข้อมูล!AS139>กรอกข้อมูล!AO$2,"",N139*O139) ->  | Q139: =IF(กรอกข้อมูล!AS139>กรอกข้อมูล!AO$2,"",ABS(M139-I$6)) ->  | S139: =IF(กรอกข้อมูล!AS139>กรอกข้อมูล!AO$2,"",N139*Q139) -> 
M140: =IF(กรอกข้อมูล!AS140>กรอกข้อมูล!AO$2,"",กรอกข้อมูล!AS140) ->  | N140: =IF(กรอกข้อมูล!AS140>กรอกข้อมูล!AO$2,"",กรอกข้อมูล!AT140) ->  | O140: =IF(กรอกข้อมูล!AS140>กรอกข้อมูล!AO$2,"",กรอกข้อมูล!AU140) ->  | P140: =IF(กรอกข้อมูล!AS140>กรอกข้อมูล!AO$2,"",N140*O140) ->  | Q140: =IF(กรอกข้อมูล!AS140>กรอกข้อมูล!AO$2,"",ABS(M140-I$6)) ->  | S140: =IF(กรอกข้อมูล!AS140>กรอกข้อมูล!AO$2,"",N140*Q140) -> 
M141: =IF(กรอกข้อมูล!AS141>กรอกข้อมูล!AO$2,"",กรอกข้อมูล!AS141) ->  | N141: =IF(กรอกข้อมูล!AS141>กรอกข้อมูล!AO$2,"",กรอกข้อมูล!AT141) ->  | O141: =IF(กรอกข้อมูล!AS141>กรอกข้อมูล!AO$2,"",กรอกข้อมูล!AU141) ->  | P141: =IF(กรอกข้อมูล!AS141>กรอกข้อมูล!AO$2,"",N141*O141) ->  | Q141: =IF(กรอกข้อมูล!AS141>กรอกข้อมูล!AO$2,"",ABS(M141-I$6)) ->  | S141: =IF(กรอกข้อมูล!AS141>กรอกข้อมูล!AO$2,"",N141*Q141) -> 
M142: =IF(กรอกข้อมูล!AS142>กรอกข้อมูล!AO$2,"",กรอกข้อมูล!AS142) ->  | N142: =IF(กรอกข้อมูล!AS142>กรอกข้อมูล!AO$2,"",กรอกข้อมูล!AT142) ->  | O142: =IF(กรอกข้อมูล!AS142>กรอกข้อมูล!AO$2,"",กรอกข้อมูล!AU142) ->  | P142: =IF(กรอกข้อมูล!AS142>กรอกข้อมูล!AO$2,"",N142*O142) ->  | Q142: =IF(กรอกข้อมูล!AS142>กรอกข้อมูล!AO$2,"",ABS(M142-I$6)) ->  | S142: =IF(กรอกข้อมูล!AS142>กรอกข้อมูล!AO$2,"",N142*Q142) -> 
M143: =IF(กรอกข้อมูล!AS143>กรอกข้อมูล!AO$2,"",กรอกข้อมูล!AS143) ->  | N143: =IF(กรอกข้อมูล!AS143>กรอกข้อมูล!AO$2,"",กรอกข้อมูล!AT143) ->  | O143: =IF(กรอกข้อมูล!AS143>กรอกข้อมูล!AO$2,"",กรอกข้อมูล!AU143) ->  | P143: =IF(กรอกข้อมูล!AS143>กรอกข้อมูล!AO$2,"",N143*O143) ->  | Q143: =IF(กรอกข้อมูล!AS143>กรอกข้อมูล!AO$2,"",ABS(M143-I$6)) ->  | S143: =IF(กรอกข้อมูล!AS143>กรอกข้อมูล!AO$2,"",N143*Q143) -> 
M144: =IF(กรอกข้อมูล!AS144>กรอกข้อมูล!AO$2,"",กรอกข้อมูล!AS144) ->  | N144: =IF(กรอกข้อมูล!AS144>กรอกข้อมูล!AO$2,"",กรอกข้อมูล!AT144) ->  | O144: =IF(กรอกข้อมูล!AS144>กรอกข้อมูล!AO$2,"",กรอกข้อมูล!AU144) ->  | P144: =IF(กรอกข้อมูล!AS144>กรอกข้อมูล!AO$2,"",N144*O144) ->  | Q144: =IF(กรอกข้อมูล!AS144>กรอกข้อมูล!AO$2,"",ABS(M144-I$6)) ->  | S144: =IF(กรอกข้อมูล!AS144>กรอกข้อมูล!AO$2,"",N144*Q144) -> 
M145: =IF(กรอกข้อมูล!AS145>กรอกข้อมูล!AO$2,"",กรอกข้อมูล!AS145) ->  | N145: =IF(กรอกข้อมูล!AS145>กรอกข้อมูล!AO$2,"",กรอกข้อมูล!AT145) ->  | O145: =IF(กรอกข้อมูล!AS145>กรอกข้อมูล!AO$2,"",กรอกข้อมูล!AU145) ->  | P145: =IF(กรอกข้อมูล!AS145>กรอกข้อมูล!AO$2,"",N145*O145) ->  | Q145: =IF(กรอกข้อมูล!AS145>กรอกข้อมูล!AO$2,"",ABS(M145-I$6)) ->  | S145: =IF(กรอกข้อมูล!AS145>กรอกข้อมูล!AO$2,"",N145*Q145) -> 
M146: =IF(กรอกข้อมูล!AS146>กรอกข้อมูล!AO$2,"",กรอกข้อมูล!AS146) ->  | N146: =IF(กรอกข้อมูล!AS146>กรอกข้อมูล!AO$2,"",กรอกข้อมูล!AT146) ->  | O146: =IF(กรอกข้อมูล!AS146>กรอกข้อมูล!AO$2,"",กรอกข้อมูล!AU146) ->  | P146: =IF(กรอกข้อมูล!AS146>กรอกข้อมูล!AO$2,"",N146*O146) ->  | Q146: =IF(กรอกข้อมูล!AS146>กรอกข้อมูล!AO$2,"",ABS(M146-I$6)) ->  | S146: =IF(กรอกข้อมูล!AS146>กรอกข้อมูล!AO$2,"",N146*Q146) -> 
M147: =IF(กรอกข้อมูล!AS147>กรอกข้อมูล!AO$2,"",กรอกข้อมูล!AS147) ->  | N147: =IF(กรอกข้อมูล!AS147>กรอกข้อมูล!AO$2,"",กรอกข้อมูล!AT147) ->  | O147: =IF(กรอกข้อมูล!AS147>กรอกข้อมูล!AO$2,"",กรอกข้อมูล!AU147) ->  | P147: =IF(กรอกข้อมูล!AS147>กรอกข้อมูล!AO$2,"",N147*O147) ->  | Q147: =IF(กรอกข้อมูล!AS147>กรอกข้อมูล!AO$2,"",ABS(M147-I$6)) ->  | S147: =IF(กรอกข้อมูล!AS147>กรอกข้อมูล!AO$2,"",N147*Q147) -> 
M148: =IF(กรอกข้อมูล!AS148>กรอกข้อมูล!AO$2,"",กรอกข้อมูล!AS148) ->  | N148: =IF(กรอกข้อมูล!AS148>กรอกข้อมูล!AO$2,"",กรอกข้อมูล!AT148) ->  | O148: =IF(กรอกข้อมูล!AS148>กรอกข้อมูล!AO$2,"",กรอกข้อมูล!AU148) ->  | P148: =IF(กรอกข้อมูล!AS148>กรอกข้อมูล!AO$2,"",N148*O148) ->  | Q148: =IF(กรอกข้อมูล!AS148>กรอกข้อมูล!AO$2,"",ABS(M148-I$6)) ->  | S148: =IF(กรอกข้อมูล!AS148>กรอกข้อมูล!AO$2,"",N148*Q148) -> 
M149: =IF(กรอกข้อมูล!AS149>กรอกข้อมูล!AO$2,"",กรอกข้อมูล!AS149) ->  | N149: =IF(กรอกข้อมูล!AS149>กรอกข้อมูล!AO$2,"",กรอกข้อมูล!AT149) ->  | O149: =IF(กรอกข้อมูล!AS149>กรอกข้อมูล!AO$2,"",กรอกข้อมูล!AU149) ->  | P149: =IF(กรอกข้อมูล!AS149>กรอกข้อมูล!AO$2,"",N149*O149) ->  | Q149: =IF(กรอกข้อมูล!AS149>กรอกข้อมูล!AO$2,"",ABS(M149-I$6)) ->  | S149: =IF(กรอกข้อมูล!AS149>กรอกข้อมูล!AO$2,"",N149*Q149) -> 
M150: =IF(กรอกข้อมูล!AS150>กรอกข้อมูล!AO$2,"",กรอกข้อมูล!AS150) ->  | N150: =IF(กรอกข้อมูล!AS150>กรอกข้อมูล!AO$2,"",กรอกข้อมูล!AT150) ->  | O150: =IF(กรอกข้อมูล!AS150>กรอกข้อมูล!AO$2,"",กรอกข้อมูล!AU150) ->  | P150: =IF(กรอกข้อมูล!AS150>กรอกข้อมูล!AO$2,"",N150*O150) ->  | Q150: =IF(กรอกข้อมูล!AS150>กรอกข้อมูล!AO$2,"",ABS(M150-I$6)) ->  | S150: =IF(กรอกข้อมูล!AS150>กรอกข้อมูล!AO$2,"",N150*Q150) -> 
M151: =IF(กรอกข้อมูล!AS151>กรอกข้อมูล!AO$2,"",กรอกข้อมูล!AS151) ->  | N151: =IF(กรอกข้อมูล!AS151>กรอกข้อมูล!AO$2,"",กรอกข้อมูล!AT151) ->  | O151: =IF(กรอกข้อมูล!AS151>กรอกข้อมูล!AO$2,"",กรอกข้อมูล!AU151) ->  | P151: =IF(กรอกข้อมูล!AS151>กรอกข้อมูล!AO$2,"",N151*O151) ->  | Q151: =IF(กรอกข้อมูล!AS151>กรอกข้อมูล!AO$2,"",ABS(M151-I$6)) ->  | S151: =IF(กรอกข้อมูล!AS151>กรอกข้อมูล!AO$2,"",N151*Q151) -> 
M152: =IF(กรอกข้อมูล!AS152>กรอกข้อมูล!AO$2,"",กรอกข้อมูล!AS152) ->  | N152: =IF(กรอกข้อมูล!AS152>กรอกข้อมูล!AO$2,"",กรอกข้อมูล!AT152) ->  | O152: =IF(กรอกข้อมูล!AS152>กรอกข้อมูล!AO$2,"",กรอกข้อมูล!AU152) ->  | P152: =IF(กรอกข้อมูล!AS152>กรอกข้อมูล!AO$2,"",N152*O152) ->  | Q152: =IF(กรอกข้อมูล!AS152>กรอกข้อมูล!AO$2,"",ABS(M152-I$6)) ->  | S152: =IF(กรอกข้อมูล!AS152>กรอกข้อมูล!AO$2,"",N152*Q152) -> 
M153: =IF(กรอกข้อมูล!AS153>กรอกข้อมูล!AO$2,"",กรอกข้อมูล!AS153) ->  | N153: =IF(กรอกข้อมูล!AS153>กรอกข้อมูล!AO$2,"",กรอกข้อมูล!AT153) ->  | O153: =IF(กรอกข้อมูล!AS153>กรอกข้อมูล!AO$2,"",กรอกข้อมูล!AU153) ->  | P153: =IF(กรอกข้อมูล!AS153>กรอกข้อมูล!AO$2,"",N153*O153) ->  | Q153: =IF(กรอกข้อมูล!AS153>กรอกข้อมูล!AO$2,"",ABS(M153-I$6)) ->  | S153: =IF(กรอกข้อมูล!AS153>กรอกข้อมูล!AO$2,"",N153*Q153) -> 
M154: =IF(กรอกข้อมูล!AS154>กรอกข้อมูล!AO$2,"",กรอกข้อมูล!AS154) ->  | N154: =IF(กรอกข้อมูล!AS154>กรอกข้อมูล!AO$2,"",กรอกข้อมูล!AT154) ->  | O154: =IF(กรอกข้อมูล!AS154>กรอกข้อมูล!AO$2,"",กรอกข้อมูล!AU154) ->  | P154: =IF(กรอกข้อมูล!AS154>กรอกข้อมูล!AO$2,"",N154*O154) ->  | Q154: =IF(กรอกข้อมูล!AS154>กรอกข้อมูล!AO$2,"",ABS(M154-I$6)) ->  | S154: =IF(กรอกข้อมูล!AS154>กรอกข้อมูล!AO$2,"",N154*Q154) -> 
M155: =IF(กรอกข้อมูล!AS155>กรอกข้อมูล!AO$2,"",กรอกข้อมูล!AS155) ->  | N155: =IF(กรอกข้อมูล!AS155>กรอกข้อมูล!AO$2,"",กรอกข้อมูล!AT155) ->  | O155: =IF(กรอกข้อมูล!AS155>กรอกข้อมูล!AO$2,"",กรอกข้อมูล!AU155) ->  | P155: =IF(กรอกข้อมูล!AS155>กรอกข้อมูล!AO$2,"",N155*O155) ->  | Q155: =IF(กรอกข้อมูล!AS155>กรอกข้อมูล!AO$2,"",ABS(M155-I$6)) ->  | S155: =IF(กรอกข้อมูล!AS155>กรอกข้อมูล!AO$2,"",N155*Q155) -> 
M156: =IF(กรอกข้อมูล!AS156>กรอกข้อมูล!AO$2,"",กรอกข้อมูล!AS156) ->  | N156: =IF(กรอกข้อมูล!AS156>กรอกข้อมูล!AO$2,"",กรอกข้อมูล!AT156) ->  | O156: =IF(กรอกข้อมูล!AS156>กรอกข้อมูล!AO$2,"",กรอกข้อมูล!AU156) ->  | P156: =IF(กรอกข้อมูล!AS156>กรอกข้อมูล!AO$2,"",N156*O156) ->  | Q156: =IF(กรอกข้อมูล!AS156>กรอกข้อมูล!AO$2,"",ABS(M156-I$6)) ->  | S156: =IF(กรอกข้อมูล!AS156>กรอกข้อมูล!AO$2,"",N156*Q156) -> 
M157: =IF(กรอกข้อมูล!AS157>กรอกข้อมูล!AO$2,"",กรอกข้อมูล!AS157) ->  | N157: =IF(กรอกข้อมูล!AS157>กรอกข้อมูล!AO$2,"",กรอกข้อมูล!AT157) ->  | O157: =IF(กรอกข้อมูล!AS157>กรอกข้อมูล!AO$2,"",กรอกข้อมูล!AU157) ->  | P157: =IF(กรอกข้อมูล!AS157>กรอกข้อมูล!AO$2,"",N157*O157) ->  | Q157: =IF(กรอกข้อมูล!AS157>กรอกข้อมูล!AO$2,"",ABS(M157-I$6)) ->  | S157: =IF(กรอกข้อมูล!AS157>กรอกข้อมูล!AO$2,"",N157*Q157) -> 
M158: =IF(กรอกข้อมูล!AS158>กรอกข้อมูล!AO$2,"",กรอกข้อมูล!AS158) ->  | N158: =IF(กรอกข้อมูล!AS158>กรอกข้อมูล!AO$2,"",กรอกข้อมูล!AT158) ->  | O158: =IF(กรอกข้อมูล!AS158>กรอกข้อมูล!AO$2,"",กรอกข้อมูล!AU158) ->  | P158: =IF(กรอกข้อมูล!AS158>กรอกข้อมูล!AO$2,"",N158*O158) ->  | Q158: =IF(กรอกข้อมูล!AS158>กรอกข้อมูล!AO$2,"",ABS(M158-I$6)) ->  | S158: =IF(กรอกข้อมูล!AS158>กรอกข้อมูล!AO$2,"",N158*Q158) -> 
M159: =IF(กรอกข้อมูล!AS159>กรอกข้อมูล!AO$2,"",กรอกข้อมูล!AS159) ->  | N159: =IF(กรอกข้อมูล!AS159>กรอกข้อมูล!AO$2,"",กรอกข้อมูล!AT159) ->  | O159: =IF(กรอกข้อมูล!AS159>กรอกข้อมูล!AO$2,"",กรอกข้อมูล!AU159) ->  | P159: =IF(กรอกข้อมูล!AS159>กรอกข้อมูล!AO$2,"",N159*O159) ->  | Q159: =IF(กรอกข้อมูล!AS159>กรอกข้อมูล!AO$2,"",ABS(M159-I$6)) ->  | S159: =IF(กรอกข้อมูล!AS159>กรอกข้อมูล!AO$2,"",N159*Q159) -> 
M160: =IF(กรอกข้อมูล!AS160>กรอกข้อมูล!AO$2,"",กรอกข้อมูล!AS160) ->  | N160: =IF(กรอกข้อมูล!AS160>กรอกข้อมูล!AO$2,"",กรอกข้อมูล!AT160) ->  | O160: =IF(กรอกข้อมูล!AS160>กรอกข้อมูล!AO$2,"",กรอกข้อมูล!AU160) ->  | P160: =IF(กรอกข้อมูล!AS160>กรอกข้อมูล!AO$2,"",N160*O160) ->  | Q160: =IF(กรอกข้อมูล!AS160>กรอกข้อมูล!AO$2,"",ABS(M160-I$6)) ->  | S160: =IF(กรอกข้อมูล!AS160>กรอกข้อมูล!AO$2,"",N160*Q160) -> 
M161: =IF(กรอกข้อมูล!AS161>กรอกข้อมูล!AO$2,"",กรอกข้อมูล!AS161) ->  | N161: =IF(กรอกข้อมูล!AS161>กรอกข้อมูล!AO$2,"",กรอกข้อมูล!AT161) ->  | O161: =IF(กรอกข้อมูล!AS161>กรอกข้อมูล!AO$2,"",กรอกข้อมูล!AU161) ->  | P161: =IF(กรอกข้อมูล!AS161>กรอกข้อมูล!AO$2,"",N161*O161) ->  | Q161: =IF(กรอกข้อมูล!AS161>กรอกข้อมูล!AO$2,"",ABS(M161-I$6)) ->  | S161: =IF(กรอกข้อมูล!AS161>กรอกข้อมูล!AO$2,"",N161*Q161) -> 
M162: =IF(กรอกข้อมูล!AS162>กรอกข้อมูล!AO$2,"",กรอกข้อมูล!AS162) ->  | N162: =IF(กรอกข้อมูล!AS162>กรอกข้อมูล!AO$2,"",กรอกข้อมูล!AT162) ->  | O162: =IF(กรอกข้อมูล!AS162>กรอกข้อมูล!AO$2,"",กรอกข้อมูล!AU162) ->  | P162: =IF(กรอกข้อมูล!AS162>กรอกข้อมูล!AO$2,"",N162*O162) ->  | Q162: =IF(กรอกข้อมูล!AS162>กรอกข้อมูล!AO$2,"",ABS(M162-I$6)) ->  | S162: =IF(กรอกข้อมูล!AS162>กรอกข้อมูล!AO$2,"",N162*Q162) -> 
M163: =IF(กรอกข้อมูล!AS163>กรอกข้อมูล!AO$2,"",กรอกข้อมูล!AS163) ->  | N163: =IF(กรอกข้อมูล!AS163>กรอกข้อมูล!AO$2,"",กรอกข้อมูล!AT163) ->  | O163: =IF(กรอกข้อมูล!AS163>กรอกข้อมูล!AO$2,"",กรอกข้อมูล!AU163) ->  | P163: =IF(กรอกข้อมูล!AS163>กรอกข้อมูล!AO$2,"",N163*O163) ->  | Q163: =IF(กรอกข้อมูล!AS163>กรอกข้อมูล!AO$2,"",ABS(M163-I$6)) ->  | S163: =IF(กรอกข้อมูล!AS163>กรอกข้อมูล!AO$2,"",N163*Q163) -> 
M164: =IF(กรอกข้อมูล!AS164>กรอกข้อมูล!AO$2,"",กรอกข้อมูล!AS164) ->  | N164: =IF(กรอกข้อมูล!AS164>กรอกข้อมูล!AO$2,"",กรอกข้อมูล!AT164) ->  | O164: =IF(กรอกข้อมูล!AS164>กรอกข้อมูล!AO$2,"",กรอกข้อมูล!AU164) ->  | P164: =IF(กรอกข้อมูล!AS164>กรอกข้อมูล!AO$2,"",N164*O164) ->  | Q164: =IF(กรอกข้อมูล!AS164>กรอกข้อมูล!AO$2,"",ABS(M164-I$6)) ->  | S164: =IF(กรอกข้อมูล!AS164>กรอกข้อมูล!AO$2,"",N164*Q164) -> 
M165: =IF(กรอกข้อมูล!AS165>กรอกข้อมูล!AO$2,"",กรอกข้อมูล!AS165) ->  | N165: =IF(กรอกข้อมูล!AS165>กรอกข้อมูล!AO$2,"",กรอกข้อมูล!AT165) ->  | O165: =IF(กรอกข้อมูล!AS165>กรอกข้อมูล!AO$2,"",กรอกข้อมูล!AU165) ->  | P165: =IF(กรอกข้อมูล!AS165>กรอกข้อมูล!AO$2,"",N165*O165) ->  | Q165: =IF(กรอกข้อมูล!AS165>กรอกข้อมูล!AO$2,"",ABS(M165-I$6)) ->  | S165: =IF(กรอกข้อมูล!AS165>กรอกข้อมูล!AO$2,"",N165*Q165) -> 
M166: =IF(กรอกข้อมูล!AS166>กรอกข้อมูล!AO$2,"",กรอกข้อมูล!AS166) ->  | N166: =IF(กรอกข้อมูล!AS166>กรอกข้อมูล!AO$2,"",กรอกข้อมูล!AT166) ->  | O166: =IF(กรอกข้อมูล!AS166>กรอกข้อมูล!AO$2,"",กรอกข้อมูล!AU166) ->  | P166: =IF(กรอกข้อมูล!AS166>กรอกข้อมูล!AO$2,"",N166*O166) ->  | Q166: =IF(กรอกข้อมูล!AS166>กรอกข้อมูล!AO$2,"",ABS(M166-I$6)) ->  | S166: =IF(กรอกข้อมูล!AS166>กรอกข้อมูล!AO$2,"",N166*Q166) -> 
M167: =IF(กรอกข้อมูล!AS167>กรอกข้อมูล!AO$2,"",กรอกข้อมูล!AS167) ->  | N167: =IF(กรอกข้อมูล!AS167>กรอกข้อมูล!AO$2,"",กรอกข้อมูล!AT167) ->  | O167: =IF(กรอกข้อมูล!AS167>กรอกข้อมูล!AO$2,"",กรอกข้อมูล!AU167) ->  | P167: =IF(กรอกข้อมูล!AS167>กรอกข้อมูล!AO$2,"",N167*O167) ->  | Q167: =IF(กรอกข้อมูล!AS167>กรอกข้อมูล!AO$2,"",ABS(M167-I$6)) ->  | S167: =IF(กรอกข้อมูล!AS167>กรอกข้อมูล!AO$2,"",N167*Q167) -> 
M168: =IF(กรอกข้อมูล!AS168>กรอกข้อมูล!AO$2,"",กรอกข้อมูล!AS168) ->  | N168: =IF(กรอกข้อมูล!AS168>กรอกข้อมูล!AO$2,"",กรอกข้อมูล!AT168) ->  | O168: =IF(กรอกข้อมูล!AS168>กรอกข้อมูล!AO$2,"",กรอกข้อมูล!AU168) ->  | P168: =IF(กรอกข้อมูล!AS168>กรอกข้อมูล!AO$2,"",N168*O168) ->  | Q168: =IF(กรอกข้อมูล!AS168>กรอกข้อมูล!AO$2,"",ABS(M168-I$6)) ->  | S168: =IF(กรอกข้อมูล!AS168>กรอกข้อมูล!AO$2,"",N168*Q168) -> 
M169: =IF(กรอกข้อมูล!AS169>กรอกข้อมูล!AO$2,"",กรอกข้อมูล!AS169) ->  | N169: =IF(กรอกข้อมูล!AS169>กรอกข้อมูล!AO$2,"",กรอกข้อมูล!AT169) ->  | O169: =IF(กรอกข้อมูล!AS169>กรอกข้อมูล!AO$2,"",กรอกข้อมูล!AU169) ->  | P169: =IF(กรอกข้อมูล!AS169>กรอกข้อมูล!AO$2,"",N169*O169) ->  | Q169: =IF(กรอกข้อมูล!AS169>กรอกข้อมูล!AO$2,"",ABS(M169-I$6)) ->  | S169: =IF(กรอกข้อมูล!AS169>กรอกข้อมูล!AO$2,"",N169*Q169) -> 
M170: =IF(กรอกข้อมูล!AS170>กรอกข้อมูล!AO$2,"",กรอกข้อมูล!AS170) ->  | N170: =IF(กรอกข้อมูล!AS170>กรอกข้อมูล!AO$2,"",กรอกข้อมูล!AT170) ->  | O170: =IF(กรอกข้อมูล!AS170>กรอกข้อมูล!AO$2,"",กรอกข้อมูล!AU170) ->  | P170: =IF(กรอกข้อมูล!AS170>กรอกข้อมูล!AO$2,"",N170*O170) ->  | Q170: =IF(กรอกข้อมูล!AS170>กรอกข้อมูล!AO$2,"",ABS(M170-I$6)) ->  | S170: =IF(กรอกข้อมูล!AS170>กรอกข้อมูล!AO$2,"",N170*Q170) -> 
M171: =IF(กรอกข้อมูล!AS171>กรอกข้อมูล!AO$2,"",กรอกข้อมูล!AS171) ->  | N171: =IF(กรอกข้อมูล!AS171>กรอกข้อมูล!AO$2,"",กรอกข้อมูล!AT171) ->  | O171: =IF(กรอกข้อมูล!AS171>กรอกข้อมูล!AO$2,"",กรอกข้อมูล!AU171) ->  | P171: =IF(กรอกข้อมูล!AS171>กรอกข้อมูล!AO$2,"",N171*O171) ->  | Q171: =IF(กรอกข้อมูล!AS171>กรอกข้อมูล!AO$2,"",ABS(M171-I$6)) ->  | S171: =IF(กรอกข้อมูล!AS171>กรอกข้อมูล!AO$2,"",N171*Q171) -> 
M172: =IF(กรอกข้อมูล!AS172>กรอกข้อมูล!AO$2,"",กรอกข้อมูล!AS172) ->  | N172: =IF(กรอกข้อมูล!AS172>กรอกข้อมูล!AO$2,"",กรอกข้อมูล!AT172) ->  | O172: =IF(กรอกข้อมูล!AS172>กรอกข้อมูล!AO$2,"",กรอกข้อมูล!AU172) ->  | P172: =IF(กรอกข้อมูล!AS172>กรอกข้อมูล!AO$2,"",N172*O172) ->  | Q172: =IF(กรอกข้อมูล!AS172>กรอกข้อมูล!AO$2,"",ABS(M172-I$6)) ->  | S172: =IF(กรอกข้อมูล!AS172>กรอกข้อมูล!AO$2,"",N172*Q172) -> 
M173: =IF(กรอกข้อมูล!AS173>กรอกข้อมูล!AO$2,"",กรอกข้อมูล!AS173) ->  | N173: =IF(กรอกข้อมูล!AS173>กรอกข้อมูล!AO$2,"",กรอกข้อมูล!AT173) ->  | O173: =IF(กรอกข้อมูล!AS173>กรอกข้อมูล!AO$2,"",กรอกข้อมูล!AU173) ->  | P173: =IF(กรอกข้อมูล!AS173>กรอกข้อมูล!AO$2,"",N173*O173) ->  | Q173: =IF(กรอกข้อมูล!AS173>กรอกข้อมูล!AO$2,"",ABS(M173-I$6)) ->  | S173: =IF(กรอกข้อมูล!AS173>กรอกข้อมูล!AO$2,"",N173*Q173) -> 
M174: =IF(กรอกข้อมูล!AS174>กรอกข้อมูล!AO$2,"",กรอกข้อมูล!AS174) ->  | N174: =IF(กรอกข้อมูล!AS174>กรอกข้อมูล!AO$2,"",กรอกข้อมูล!AT174) ->  | O174: =IF(กรอกข้อมูล!AS174>กรอกข้อมูล!AO$2,"",กรอกข้อมูล!AU174) ->  | P174: =IF(กรอกข้อมูล!AS174>กรอกข้อมูล!AO$2,"",N174*O174) ->  | Q174: =IF(กรอกข้อมูล!AS174>กรอกข้อมูล!AO$2,"",ABS(M174-I$6)) ->  | S174: =IF(กรอกข้อมูล!AS174>กรอกข้อมูล!AO$2,"",N174*Q174) -> 
M175: =IF(กรอกข้อมูล!AS175>กรอกข้อมูล!AO$2,"",กรอกข้อมูล!AS175) ->  | N175: =IF(กรอกข้อมูล!AS175>กรอกข้อมูล!AO$2,"",กรอกข้อมูล!AT175) ->  | O175: =IF(กรอกข้อมูล!AS175>กรอกข้อมูล!AO$2,"",กรอกข้อมูล!AU175) ->  | P175: =IF(กรอกข้อมูล!AS175>กรอกข้อมูล!AO$2,"",N175*O175) ->  | Q175: =IF(กรอกข้อมูล!AS175>กรอกข้อมูล!AO$2,"",ABS(M175-I$6)) ->  | S175: =IF(กรอกข้อมูล!AS175>กรอกข้อมูล!AO$2,"",N175*Q175) -> 
M176: =IF(กรอกข้อมูล!AS176>กรอกข้อมูล!AO$2,"",กรอกข้อมูล!AS176) ->  | N176: =IF(กรอกข้อมูล!AS176>กรอกข้อมูล!AO$2,"",กรอกข้อมูล!AT176) ->  | O176: =IF(กรอกข้อมูล!AS176>กรอกข้อมูล!AO$2,"",กรอกข้อมูล!AU176) ->  | P176: =IF(กรอกข้อมูล!AS176>กรอกข้อมูล!AO$2,"",N176*O176) ->  | Q176: =IF(กรอกข้อมูล!AS176>กรอกข้อมูล!AO$2,"",ABS(M176-I$6)) ->  | S176: =IF(กรอกข้อมูล!AS176>กรอกข้อมูล!AO$2,"",N176*Q176) -> 
M177: =IF(กรอกข้อมูล!AS177>กรอกข้อมูล!AO$2,"",กรอกข้อมูล!AS177) ->  | N177: =IF(กรอกข้อมูล!AS177>กรอกข้อมูล!AO$2,"",กรอกข้อมูล!AT177) ->  | O177: =IF(กรอกข้อมูล!AS177>กรอกข้อมูล!AO$2,"",กรอกข้อมูล!AU177) ->  | P177: =IF(กรอกข้อมูล!AS177>กรอกข้อมูล!AO$2,"",N177*O177) ->  | Q177: =IF(กรอกข้อมูล!AS177>กรอกข้อมูล!AO$2,"",ABS(M177-I$6)) ->  | S177: =IF(กรอกข้อมูล!AS177>กรอกข้อมูล!AO$2,"",N177*Q177) -> 
M178: =IF(กรอกข้อมูล!AS178>กรอกข้อมูล!AO$2,"",กรอกข้อมูล!AS178) ->  | N178: =IF(กรอกข้อมูล!AS178>กรอกข้อมูล!AO$2,"",กรอกข้อมูล!AT178) ->  | O178: =IF(กรอกข้อมูล!AS178>กรอกข้อมูล!AO$2,"",กรอกข้อมูล!AU178) ->  | P178: =IF(กรอกข้อมูล!AS178>กรอกข้อมูล!AO$2,"",N178*O178) ->  | Q178: =IF(กรอกข้อมูล!AS178>กรอกข้อมูล!AO$2,"",ABS(M178-I$6)) ->  | S178: =IF(กรอกข้อมูล!AS178>กรอกข้อมูล!AO$2,"",N178*Q178) -> 
M179: =IF(กรอกข้อมูล!AS179>กรอกข้อมูล!AO$2,"",กรอกข้อมูล!AS179) ->  | N179: =IF(กรอกข้อมูล!AS179>กรอกข้อมูล!AO$2,"",กรอกข้อมูล!AT179) ->  | O179: =IF(กรอกข้อมูล!AS179>กรอกข้อมูล!AO$2,"",กรอกข้อมูล!AU179) ->  | P179: =IF(กรอกข้อมูล!AS179>กรอกข้อมูล!AO$2,"",N179*O179) ->  | Q179: =IF(กรอกข้อมูล!AS179>กรอกข้อมูล!AO$2,"",ABS(M179-I$6)) ->  | S179: =IF(กรอกข้อมูล!AS179>กรอกข้อมูล!AO$2,"",N179*Q179) -> 
M180: =IF(กรอกข้อมูล!AS180>กรอกข้อมูล!AO$2,"",กรอกข้อมูล!AS180) ->  | N180: =IF(กรอกข้อมูล!AS180>กรอกข้อมูล!AO$2,"",กรอกข้อมูล!AT180) ->  | O180: =IF(กรอกข้อมูล!AS180>กรอกข้อมูล!AO$2,"",กรอกข้อมูล!AU180) ->  | P180: =IF(กรอกข้อมูล!AS180>กรอกข้อมูล!AO$2,"",N180*O180) ->  | Q180: =IF(กรอกข้อมูล!AS180>กรอกข้อมูล!AO$2,"",ABS(M180-I$6)) ->  | S180: =IF(กรอกข้อมูล!AS180>กรอกข้อมูล!AO$2,"",N180*Q180) -> 
M181: =IF(กรอกข้อมูล!AS181>กรอกข้อมูล!AO$2,"",กรอกข้อมูล!AS181) ->  | N181: =IF(กรอกข้อมูล!AS181>กรอกข้อมูล!AO$2,"",กรอกข้อมูล!AT181) ->  | O181: =IF(กรอกข้อมูล!AS181>กรอกข้อมูล!AO$2,"",กรอกข้อมูล!AU181) ->  | P181: =IF(กรอกข้อมูล!AS181>กรอกข้อมูล!AO$2,"",N181*O181) ->  | Q181: =IF(กรอกข้อมูล!AS181>กรอกข้อมูล!AO$2,"",ABS(M181-I$6)) ->  | S181: =IF(กรอกข้อมูล!AS181>กรอกข้อมูล!AO$2,"",N181*Q181) -> 
M182: =IF(กรอกข้อมูล!AS182>กรอกข้อมูล!AO$2,"",กรอกข้อมูล!AS182) ->  | N182: =IF(กรอกข้อมูล!AS182>กรอกข้อมูล!AO$2,"",กรอกข้อมูล!AT182) ->  | O182: =IF(กรอกข้อมูล!AS182>กรอกข้อมูล!AO$2,"",กรอกข้อมูล!AU182) ->  | P182: =IF(กรอกข้อมูล!AS182>กรอกข้อมูล!AO$2,"",N182*O182) ->  | Q182: =IF(กรอกข้อมูล!AS182>กรอกข้อมูล!AO$2,"",ABS(M182-I$6)) ->  | S182: =IF(กรอกข้อมูล!AS182>กรอกข้อมูล!AO$2,"",N182*Q182) -> 
M183: =IF(กรอกข้อมูล!AS183>กรอกข้อมูล!AO$2,"",กรอกข้อมูล!AS183) ->  | N183: =IF(กรอกข้อมูล!AS183>กรอกข้อมูล!AO$2,"",กรอกข้อมูล!AT183) ->  | O183: =IF(กรอกข้อมูล!AS183>กรอกข้อมูล!AO$2,"",กรอกข้อมูล!AU183) ->  | P183: =IF(กรอกข้อมูล!AS183>กรอกข้อมูล!AO$2,"",N183*O183) ->  | Q183: =IF(กรอกข้อมูล!AS183>กรอกข้อมูล!AO$2,"",ABS(M183-I$6)) ->  | S183: =IF(กรอกข้อมูล!AS183>กรอกข้อมูล!AO$2,"",N183*Q183) -> 
M184: =IF(กรอกข้อมูล!AS184>กรอกข้อมูล!AO$2,"",กรอกข้อมูล!AS184) ->  | N184: =IF(กรอกข้อมูล!AS184>กรอกข้อมูล!AO$2,"",กรอกข้อมูล!AT184) ->  | O184: =IF(กรอกข้อมูล!AS184>กรอกข้อมูล!AO$2,"",กรอกข้อมูล!AU184) ->  | P184: =IF(กรอกข้อมูล!AS184>กรอกข้อมูล!AO$2,"",N184*O184) ->  | Q184: =IF(กรอกข้อมูล!AS184>กรอกข้อมูล!AO$2,"",ABS(M184-I$6)) ->  | S184: =IF(กรอกข้อมูล!AS184>กรอกข้อมูล!AO$2,"",N184*Q184) -> 
M185: =IF(กรอกข้อมูล!AS185>กรอกข้อมูล!AO$2,"",กรอกข้อมูล!AS185) ->  | N185: =IF(กรอกข้อมูล!AS185>กรอกข้อมูล!AO$2,"",กรอกข้อมูล!AT185) ->  | O185: =IF(กรอกข้อมูล!AS185>กรอกข้อมูล!AO$2,"",กรอกข้อมูล!AU185) ->  | P185: =IF(กรอกข้อมูล!AS185>กรอกข้อมูล!AO$2,"",N185*O185) ->  | Q185: =IF(กรอกข้อมูล!AS185>กรอกข้อมูล!AO$2,"",ABS(M185-I$6)) ->  | S185: =IF(กรอกข้อมูล!AS185>กรอกข้อมูล!AO$2,"",N185*Q185) -> 
M186: =IF(กรอกข้อมูล!AS186>กรอกข้อมูล!AO$2,"",กรอกข้อมูล!AS186) ->  | N186: =IF(กรอกข้อมูล!AS186>กรอกข้อมูล!AO$2,"",กรอกข้อมูล!AT186) ->  | O186: =IF(กรอกข้อมูล!AS186>กรอกข้อมูล!AO$2,"",กรอกข้อมูล!AU186) ->  | P186: =IF(กรอกข้อมูล!AS186>กรอกข้อมูล!AO$2,"",N186*O186) ->  | Q186: =IF(กรอกข้อมูล!AS186>กรอกข้อมูล!AO$2,"",ABS(M186-I$6)) ->  | S186: =IF(กรอกข้อมูล!AS186>กรอกข้อมูล!AO$2,"",N186*Q186) -> 
M187: =IF(กรอกข้อมูล!AS187>กรอกข้อมูล!AO$2,"",กรอกข้อมูล!AS187) ->  | N187: =IF(กรอกข้อมูล!AS187>กรอกข้อมูล!AO$2,"",กรอกข้อมูล!AT187) ->  | O187: =IF(กรอกข้อมูล!AS187>กรอกข้อมูล!AO$2,"",กรอกข้อมูล!AU187) ->  | P187: =IF(กรอกข้อมูล!AS187>กรอกข้อมูล!AO$2,"",N187*O187) ->  | Q187: =IF(กรอกข้อมูล!AS187>กรอกข้อมูล!AO$2,"",ABS(M187-I$6)) ->  | S187: =IF(กรอกข้อมูล!AS187>กรอกข้อมูล!AO$2,"",N187*Q187) -> 
M188: =IF(กรอกข้อมูล!AS188>กรอกข้อมูล!AO$2,"",กรอกข้อมูล!AS188) ->  | N188: =IF(กรอกข้อมูล!AS188>กรอกข้อมูล!AO$2,"",กรอกข้อมูล!AT188) ->  | O188: =IF(กรอกข้อมูล!AS188>กรอกข้อมูล!AO$2,"",กรอกข้อมูล!AU188) ->  | P188: =IF(กรอกข้อมูล!AS188>กรอกข้อมูล!AO$2,"",N188*O188) ->  | Q188: =IF(กรอกข้อมูล!AS188>กรอกข้อมูล!AO$2,"",ABS(M188-I$6)) ->  | S188: =IF(กรอกข้อมูล!AS188>กรอกข้อมูล!AO$2,"",N188*Q188) -> 
M189: =IF(กรอกข้อมูล!AS189>กรอกข้อมูล!AO$2,"",กรอกข้อมูล!AS189) ->  | N189: =IF(กรอกข้อมูล!AS189>กรอกข้อมูล!AO$2,"",กรอกข้อมูล!AT189) ->  | O189: =IF(กรอกข้อมูล!AS189>กรอกข้อมูล!AO$2,"",กรอกข้อมูล!AU189) ->  | P189: =IF(กรอกข้อมูล!AS189>กรอกข้อมูล!AO$2,"",N189*O189) ->  | Q189: =IF(กรอกข้อมูล!AS189>กรอกข้อมูล!AO$2,"",ABS(M189-I$6)) ->  | S189: =IF(กรอกข้อมูล!AS189>กรอกข้อมูล!AO$2,"",N189*Q189) -> 
M190: =IF(กรอกข้อมูล!AS190>กรอกข้อมูล!AO$2,"",กรอกข้อมูล!AS190) ->  | N190: =IF(กรอกข้อมูล!AS190>กรอกข้อมูล!AO$2,"",กรอกข้อมูล!AT190) ->  | O190: =IF(กรอกข้อมูล!AS190>กรอกข้อมูล!AO$2,"",กรอกข้อมูล!AU190) ->  | P190: =IF(กรอกข้อมูล!AS190>กรอกข้อมูล!AO$2,"",N190*O190) ->  | Q190: =IF(กรอกข้อมูล!AS190>กรอกข้อมูล!AO$2,"",ABS(M190-I$6)) ->  | S190: =IF(กรอกข้อมูล!AS190>กรอกข้อมูล!AO$2,"",N190*Q190) -> 
M191: =IF(กรอกข้อมูล!AS191>กรอกข้อมูล!AO$2,"",กรอกข้อมูล!AS191) ->  | N191: =IF(กรอกข้อมูล!AS191>กรอกข้อมูล!AO$2,"",กรอกข้อมูล!AT191) ->  | O191: =IF(กรอกข้อมูล!AS191>กรอกข้อมูล!AO$2,"",กรอกข้อมูล!AU191) ->  | P191: =IF(กรอกข้อมูล!AS191>กรอกข้อมูล!AO$2,"",N191*O191) ->  | Q191: =IF(กรอกข้อมูล!AS191>กรอกข้อมูล!AO$2,"",ABS(M191-I$6)) ->  | S191: =IF(กรอกข้อมูล!AS191>กรอกข้อมูล!AO$2,"",N191*Q191) -> 
M192: =IF(กรอกข้อมูล!AS192>กรอกข้อมูล!AO$2,"",กรอกข้อมูล!AS192) ->  | N192: =IF(กรอกข้อมูล!AS192>กรอกข้อมูล!AO$2,"",กรอกข้อมูล!AT192) ->  | O192: =IF(กรอกข้อมูล!AS192>กรอกข้อมูล!AO$2,"",กรอกข้อมูล!AU192) ->  | P192: =IF(กรอกข้อมูล!AS192>กรอกข้อมูล!AO$2,"",N192*O192) ->  | Q192: =IF(กรอกข้อมูล!AS192>กรอกข้อมูล!AO$2,"",ABS(M192-I$6)) ->  | S192: =IF(กรอกข้อมูล!AS192>กรอกข้อมูล!AO$2,"",N192*Q192) -> 
M193: =IF(กรอกข้อมูล!AS193>กรอกข้อมูล!AO$2,"",กรอกข้อมูล!AS193) ->  | N193: =IF(กรอกข้อมูล!AS193>กรอกข้อมูล!AO$2,"",กรอกข้อมูล!AT193) ->  | O193: =IF(กรอกข้อมูล!AS193>กรอกข้อมูล!AO$2,"",กรอกข้อมูล!AU193) ->  | P193: =IF(กรอกข้อมูล!AS193>กรอกข้อมูล!AO$2,"",N193*O193) ->  | Q193: =IF(กรอกข้อมูล!AS193>กรอกข้อมูล!AO$2,"",ABS(M193-I$6)) ->  | S193: =IF(กรอกข้อมูล!AS193>กรอกข้อมูล!AO$2,"",N193*Q193) -> 
A194: =M194 ->  | B194: =N194 ->  | C194: =O194 ->  | D194: =P194 ->  | E194: =R194 ->  | F194: =S194 ->  | M194: =IF(กรอกข้อมูล!AS194>กรอกข้อมูล!AO$2,"",กรอกข้อมูล!AS194) ->  | N194: =IF(กรอกข้อมูล!AS194>กรอกข้อมูล!AO$2,"",กรอกข้อมูล!AT194) ->  | O194: =IF(กรอกข้อมูล!AS194>กรอกข้อมูล!AO$2,"",กรอกข้อมูล!AU194) ->  | P194: =IF(กรอกข้อมูล!AS194>กรอกข้อมูล!AO$2,"",N194*O194) ->  | Q194: =IF(กรอกข้อมูล!AS194>กรอกข้อมูล!AO$2,"",ABS(M194-I$6)) ->  | S194: =IF(กรอกข้อมูล!AS194>กรอกข้อมูล!AO$2,"",N194*Q194) -> 
M195: =IF(กรอกข้อมูล!AS195>กรอกข้อมูล!AO$2,"",กรอกข้อมูล!AS195) ->  | N195: =IF(กรอกข้อมูล!AS195>กรอกข้อมูล!AO$2,"",กรอกข้อมูล!AT195) ->  | O195: =IF(กรอกข้อมูล!AS195>กรอกข้อมูล!AO$2,"",กรอกข้อมูล!AU195) ->  | P195: =IF(กรอกข้อมูล!AS195>กรอกข้อมูล!AO$2,"",N195*O195) ->  | Q195: =IF(กรอกข้อมูล!AS195>กรอกข้อมูล!AO$2,"",ABS(M195-I$6)) ->  | R195: =IF(N195=0,0,Q195) ->  | S195: =IF(กรอกข้อมูล!AS195>กรอกข้อมูล!AO$2,"",N195*Q195) -> 
M196: =IF(กรอกข้อมูล!AS196>กรอกข้อมูล!AO$2,"",กรอกข้อมูล!AS196) ->  | N196: =IF(กรอกข้อมูล!AS196>กรอกข้อมูล!AO$2,"",กรอกข้อมูล!AT196) ->  | O196: =IF(กรอกข้อมูล!AS196>กรอกข้อมูล!AO$2,"",กรอกข้อมูล!AU196) ->  | P196: =IF(กรอกข้อมูล!AS196>กรอกข้อมูล!AO$2,"",N196*O196) ->  | Q196: =IF(กรอกข้อมูล!AS196>กรอกข้อมูล!AO$2,"",ABS(M196-I$6)) ->  | S196: =IF(กรอกข้อมูล!AS196>กรอกข้อมูล!AO$2,"",N196*Q196) -> 
M197: =IF(กรอกข้อมูล!AS197>กรอกข้อมูล!AO$2,"",กรอกข้อมูล!AS197) ->  | N197: =IF(กรอกข้อมูล!AS197>กรอกข้อมูล!AO$2,"",กรอกข้อมูล!AT197) ->  | O197: =IF(กรอกข้อมูล!AS197>กรอกข้อมูล!AO$2,"",กรอกข้อมูล!AU197) ->  | P197: =IF(กรอกข้อมูล!AS197>กรอกข้อมูล!AO$2,"",N197*O197) ->  | Q197: =IF(กรอกข้อมูล!AS197>กรอกข้อมูล!AO$2,"",ABS(M197-I$6)) ->  | S197: =IF(กรอกข้อมูล!AS197>กรอกข้อมูล!AO$2,"",N197*Q197) -> 
M198: =IF(กรอกข้อมูล!AS198>กรอกข้อมูล!AO$2,"",กรอกข้อมูล!AS198) ->  | N198: =IF(กรอกข้อมูล!AS198>กรอกข้อมูล!AO$2,"",กรอกข้อมูล!AT198) ->  | O198: =IF(กรอกข้อมูล!AS198>กรอกข้อมูล!AO$2,"",กรอกข้อมูล!AU198) ->  | P198: =IF(กรอกข้อมูล!AS198>กรอกข้อมูล!AO$2,"",N198*O198) ->  | Q198: =IF(กรอกข้อมูล!AS198>กรอกข้อมูล!AO$2,"",ABS(M198-I$6)) ->  | S198: =IF(กรอกข้อมูล!AS198>กรอกข้อมูล!AO$2,"",N198*Q198) -> 
M199: =IF(กรอกข้อมูล!AS199>กรอกข้อมูล!AO$2,"",กรอกข้อมูล!AS199) ->  | N199: =IF(กรอกข้อมูล!AS199>กรอกข้อมูล!AO$2,"",กรอกข้อมูล!AT199) ->  | O199: =IF(กรอกข้อมูล!AS199>กรอกข้อมูล!AO$2,"",กรอกข้อมูล!AU199) ->  | P199: =IF(กรอกข้อมูล!AS199>กรอกข้อมูล!AO$2,"",N199*O199) ->  | Q199: =IF(กรอกข้อมูล!AS199>กรอกข้อมูล!AO$2,"",ABS(M199-I$6)) ->  | S199: =IF(กรอกข้อมูล!AS199>กรอกข้อมูล!AO$2,"",N199*Q199) -> 
M200: =IF(กรอกข้อมูล!AS200>กรอกข้อมูล!AO$2,"",กรอกข้อมูล!AS200) ->  | N200: =IF(กรอกข้อมูล!AS200>กรอกข้อมูล!AO$2,"",กรอกข้อมูล!AT200) ->  | O200: =IF(กรอกข้อมูล!AS200>กรอกข้อมูล!AO$2,"",กรอกข้อมูล!AU200) ->  | P200: =IF(กรอกข้อมูล!AS200>กรอกข้อมูล!AO$2,"",N200*O200) ->  | Q200: =IF(กรอกข้อมูล!AS200>กรอกข้อมูล!AO$2,"",ABS(M200-I$6)) ->  | S200: =IF(กรอกข้อมูล!AS200>กรอกข้อมูล!AO$2,"",N200*Q200) -> 
... 203 more rows

Sheet แจกแจง I>0 (hidden)
A1: ช่วงข้อมูล | D1: ช่วงข้อมูลที่แท้จริง | G1: จุดกึ่งกลาง (X) | H1: ความถี่ (f) | I1: ความถี่สะสม (F) | J1: fX | K1: fX2 | L1: X-m | M1: (X-m)2 | N1: f(X-m)2 | O1: ความถี่สัมพัทธ์ | P1: %ความถี่สัมพัทธ์ | V1: ค่าเฉลี่ยเลขคณิต (Mean) | Y1: ค่าเฉลี่ยเลขคณิต (Mean) โดยวิธีลัด | AA1: ค่ามัธยฐาน (Median)
A2: =กรอกข้อมูล!O2 -> 12 | B2: =กรอกข้อมูล!P2 -> - | C2: =กรอกข้อมูล!Q2 -> 14 | D2: =กรอกข้อมูล!R2 -> 11.5 | E2: =กรอกข้อมูล!S2 -> - | F2: =กรอกข้อมูล!T2 -> 14.5 | G2: =กรอกข้อมูล!Z2 -> 13 | H2: =กรอกข้อมูล!W2 -> 4 | I2: =กรอกข้อมูล!X2 -> 4 | J2: =กรอกข้อมูล!AA2 -> 52 | K2: =กรอกข้อมูล!AB2 -> 676 | L2: =กรอกข้อมูล!AC2 -> -8.64 | M2: =กรอกข้อมูล!AD2 -> 74.6496 | N2: =กรอกข้อมูล!AE2 -> 298.5984 | O2: =กรอกข้อมูล!AF2 -> 0.08 | P2: =กรอกข้อมูล!AG2 -> 8 | Q2: =กรอกข้อมูล!AI2 -> -3 | R2: =กรอกข้อมูล!AJ2 -> -12 | S2: =กรอกข้อมูล!AK2 -> 9 | T2: =กรอกข้อมูล!AL2 -> 36
A3: =กรอกข้อมูล!O3 -> 15 | B3: =กรอกข้อมูล!P3 -> - | C3: =กรอกข้อมูล!Q3 -> 17 | D3: =กรอกข้อมูล!R3 -> 14.5 | E3: =กรอกข้อมูล!S3 -> - | F3: =กรอกข้อมูล!T3 -> 17.5 | G3: =กรอกข้อมูล!Z3 -> 16 | H3: =กรอกข้อมูล!W3 -> 7 | I3: =กรอกข้อมูล!X3 -> 11 | J3: =กรอกข้อมูล!AA3 -> 112 | K3: =กรอกข้อมูล!AB3 -> 1792 | L3: =กรอกข้อมูล!AC3 -> -5.64 | M3: =กรอกข้อมูล!AD3 -> 31.8096 | N3: =กรอกข้อมูล!AE3 -> 222.6672 | O3: =กรอกข้อมูล!AF3 -> 0.14 | P3: =กรอกข้อมูล!AG3 -> 14 | Q3: =กรอกข้อมูล!AI3 -> -2 | R3: =กรอกข้อมูล!AJ3 -> -14 | S3: =กรอกข้อมูล!AK3 -> 4 | T3: =กรอกข้อมูล!AL3 -> 28 | Y3: a = จุดกึ่งกลางของอันตรภาคชั้น
A4: =กรอกข้อมูล!O4 -> 18 | B4: =กรอกข้อมูล!P4 -> - | C4: =กรอกข้อมูล!Q4 -> 20 | D4: =กรอกข้อมูล!R4 -> 17.5 | E4: =กรอกข้อมูล!S4 -> - | F4: =กรอกข้อมูล!T4 -> 20.5 | G4: =กรอกข้อมูล!Z4 -> 19 | H4: =กรอกข้อมูล!W4 -> 9 | I4: =กรอกข้อมูล!X4 -> 20 | J4: =กรอกข้อมูล!AA4 -> 171 | K4: =กรอกข้อมูล!AB4 -> 3249 | L4: =กรอกข้อมูล!AC4 -> -2.64 | M4: =กรอกข้อมูล!AD4 -> 6.9696 | N4: =กรอกข้อมูล!AE4 -> 62.7264 | O4: =กรอกข้อมูล!AF4 -> 0.18 | P4: =กรอกข้อมูล!AG4 -> 18 | Q4: =กรอกข้อมูล!AI4 -> -1 | R4: =กรอกข้อมูล!AJ4 -> -9 | S4: =กรอกข้อมูล!AK4 -> 1 | T4: =กรอกข้อมูล!AL4 -> 9 | W4: =กรอกข้อมูล!$AA$52 -> 1082 | Y4: =กรอกข้อมูล!$AH$53 -> 22
A5: =กรอกข้อมูล!O5 -> 21 | B5: =กรอกข้อมูล!P5 -> - | C5: =กรอกข้อมูล!Q5 -> 23 | D5: =กรอกข้อมูล!R5 -> 20.5 | E5: =กรอกข้อมูล!S5 -> - | F5: =กรอกข้อมูล!T5 -> 23.5 | G5: =กรอกข้อมูล!Z5 -> 22 | H5: =กรอกข้อมูล!W5 -> 12 | I5: =กรอกข้อมูล!X5 -> 32 | J5: =กรอกข้อมูล!AA5 -> 264 | K5: =กรอกข้อมูล!AB5 -> 5808 | L5: =กรอกข้อมูล!AC5 -> 0.36 | M5: =กรอกข้อมูล!AD5 -> 0.1296 | N5: =กรอกข้อมูล!AE5 -> 1.5552 | O5: =กรอกข้อมูล!AF5 -> 0.24 | P5: =กรอกข้อมูล!AG5 -> 24 | Q5: =กรอกข้อมูล!AI5 -> 0 | R5: =กรอกข้อมูล!AJ5 -> 0 | S5: =กรอกข้อมูล!AK5 -> 0 | T5: =กรอกข้อมูล!AL5 -> 0 | V5: N | W5: =$H$52 -> 50 | Y5: I = อันตรภาคชั้น | Z5: =กรอกข้อมูล!$AQ$3 -> 3 | AA5: L | AB5: ขอบล่างของคะแนนที่มีมัธยฐาน | AE5: =กรอกข้อมูล!$AQ$10 -> 17.5
A6: =กรอกข้อมูล!O6 -> 24 | B6: =กรอกข้อมูล!P6 -> - | C6: =กรอกข้อมูล!Q6 -> 26 | D6: =กรอกข้อมูล!R6 -> 23.5 | E6: =กรอกข้อมูล!S6 -> - | F6: =กรอกข้อมูล!T6 -> 26.5 | G6: =กรอกข้อมูล!Z6 -> 25 | H6: =กรอกข้อมูล!W6 -> 10 | I6: =กรอกข้อมูล!X6 -> 42 | J6: =กรอกข้อมูล!AA6 -> 250 | K6: =กรอกข้อมูล!AB6 -> 6250 | L6: =กรอกข้อมูล!AC6 -> 3.36 | M6: =กรอกข้อมูล!AD6 -> 11.2896 | N6: =กรอกข้อมูล!AE6 -> 112.896 | O6: =กรอกข้อมูล!AF6 -> 0.2 | P6: =กรอกข้อมูล!AG6 -> 20 | Q6: =กรอกข้อมูล!AI6 -> 1 | R6: =กรอกข้อมูล!AJ6 -> 10 | S6: =กรอกข้อมูล!AK6 -> 1 | T6: =กรอกข้อมูล!AL6 -> 10 | V6: m | W6: =W4/W5 -> 21.64 | Y6: = ค่าเฉลี่ยข้อมูลที่ได้ตัดทอนแล้ว | AA6: i | AB6: ความกว้างของอันตรภาคชั้นที่มีมัธยฐาน | AE6: =กรอกข้อมูล!$AQ$3 -> 3
A7: =กรอกข้อมูล!O7 -> 27 | B7: =กรอกข้อมูล!P7 -> - | C7: =กรอกข้อมูล!Q7 -> 29 | D7: =กรอกข้อมูล!R7 -> 26.5 | E7: =กรอกข้อมูล!S7 -> - | F7: =กรอกข้อมูล!T7 -> 29.5 | G7: =กรอกข้อมูล!Z7 -> 28 | H7: =กรอกข้อมูล!W7 -> 5 | I7: =กรอกข้อมูล!X7 -> 47 | J7: =กรอกข้อมูล!AA7 -> 140 | K7: =กรอกข้อมูล!AB7 -> 3920 | L7: =กรอกข้อมูล!AC7 -> 6.36 | M7: =กรอกข้อมูล!AD7 -> 40.4496 | N7: =กรอกข้อมูล!AE7 -> 202.248 | O7: =กรอกข้อมูล!AF7 -> 0.1 | P7: =กรอกข้อมูล!AG7 -> 10 | Q7: =กรอกข้อมูล!AI7 -> 2 | R7: =กรอกข้อมูล!AJ7 -> 10 | S7: =กรอกข้อมูล!AK7 -> 4 | T7: =กรอกข้อมูล!AL7 -> 20 | Y7: =R52/W5 -> -0.12 | AA7: fL | AB7: ความถี่สะสมของชั้นคะแนนต่ำสุดถึงชั้น
A8: =กรอกข้อมูล!O8 -> 30 | B8: =กรอกข้อมูล!P8 -> - | C8: =กรอกข้อมูล!Q8 -> 32 | D8: =กรอกข้อมูล!R8 -> 29.5 | E8: =กรอกข้อมูล!S8 -> - | F8: =กรอกข้อมูล!T8 -> 32.5 | G8: =กรอกข้อมูล!Z8 -> 31 | H8: =กรอกข้อมูล!W8 -> 3 | I8: =กรอกข้อมูล!X8 -> 50 | J8: =กรอกข้อมูล!AA8 -> 93 | K8: =กรอกข้อมูล!AB8 -> 2883 | L8: =กรอกข้อมูล!AC8 -> 9.36 | M8: =กรอกข้อมูล!AD8 -> 87.6096 | N8: =กรอกข้อมูล!AE8 -> 262.8288 | O8: =กรอกข้อมูล!AF8 -> 0.06 | P8: =กรอกข้อมูล!AG8 -> 6 | Q8: =กรอกข้อมูล!AI8 -> 3 | R8: =กรอกข้อมูล!AJ8 -> 9 | S8: =กรอกข้อมูล!AK8 -> 9 | T8: =กรอกข้อมูล!AL8 -> 27 | Y8: m | Z8: =Y4+Z5*Y7 -> 21.64 | AB8: ก่อนที่มีมัธยฐาน | AE8: =กรอกข้อมูล!$AQ$12 -> 11
A9: =กรอกข้อมูล!O9 ->  | B9: =กรอกข้อมูล!P9 ->  | C9: =กรอกข้อมูล!Q9 ->  | D9: =กรอกข้อมูล!R9 ->  | E9: =กรอกข้อมูล!S9 ->  | F9: =กรอกข้อมูล!T9 ->  | G9: =กรอกข้อมูล!Z9 ->  | H9: =กรอกข้อมูล!W9 ->  | I9: =กรอกข้อมูล!X9 ->  | J9: =กรอกข้อมูล!AA9 ->  | K9: =กรอกข้อมูล!AB9 ->  | L9: =กรอกข้อมูล!AC9 ->  | M9: =กรอกข้อมูล!AD9 ->  | N9: =กรอกข้อมูล!AE9 ->  | O9: =กรอกข้อมูล!AF9 ->  | P9: =กรอกข้อมูล!AG9 ->  | Q9: =กรอกข้อมูล!AI9 ->  | R9: =กรอกข้อมูล!AJ9 ->  | S9: =กรอกข้อมูล!AK9 ->  | T9: =กรอกข้อมูล!AL9 ->  | V9: ส่วนเบี่ยงเบนมาตรฐาน (Standard Deviation)/ | Z9: โดยวิธีลัด | AA9: fM | AB9: ความถี่ของคะแนนในชั้นที่มีมัธยฐาน | AE9: =กรอกข้อมูล!$AQ$11 -> 9
A10: =กรอกข้อมูล!O10 ->  | B10: =กรอกข้อมูล!P10 ->  | C10: =กรอกข้อมูล!Q10 ->  | D10: =กรอกข้อมูล!R10 ->  | E10: =กรอกข้อมูล!S10 ->  | F10: =กรอกข้อมูล!T10 ->  | G10: =กรอกข้อมูล!Z10 ->  | H10: =กรอกข้อมูล!W10 ->  | I10: =กรอกข้อมูล!X10 ->  | J10: =กรอกข้อมูล!AA10 ->  | K10: =กรอกข้อมูล!AB10 ->  | L10: =กรอกข้อมูล!AC10 ->  | M10: =กรอกข้อมูล!AD10 ->  | N10: =กรอกข้อมูล!AE10 ->  | O10: =กรอกข้อมูล!AF10 ->  | P10: =กรอกข้อมูล!AG10 ->  | Q10: =กรอกข้อมูล!AI10 ->  | R10: =กรอกข้อมูล!AJ10 ->  | S10: =กรอกข้อมูล!AK10 ->  | T10: =กรอกข้อมูล!AL10 ->  | V10: ประชากร : | AA10: N | AB10: จำนวนความถี่ทั้งหมด | AE10: =กรอกข้อมูล!$AQ$7 -> 50
A11: =กรอกข้อมูล!O11 ->  | B11: =กรอกข้อมูล!P11 ->  | C11: =กรอกข้อมูล!Q11 ->  | D11: =กรอกข้อมูล!R11 ->  | E11: =กรอกข้อมูล!S11 ->  | F11: =กรอกข้อมูล!T11 ->  | G11: =กรอกข้อมูล!Z11 ->  | H11: =กรอกข้อมูล!W11 ->  | I11: =กรอกข้อมูล!X11 ->  | J11: =กรอกข้อมูล!AA11 ->  | K11: =กรอกข้อมูล!AB11 ->  | L11: =กรอกข้อมูล!AC11 ->  | M11: =กรอกข้อมูล!AD11 ->  | N11: =กรอกข้อมูล!AE11 ->  | O11: =กรอกข้อมูล!AF11 ->  | P11: =กรอกข้อมูล!AG11 ->  | Q11: =กรอกข้อมูล!AI11 ->  | R11: =กรอกข้อมูล!AJ11 ->  | S11: =กรอกข้อมูล!AK11 ->  | T11: =กรอกข้อมูล!AL11 ->  | AA11: Med | AB11: =AE5+AE6*((AE10/2-AE8)/AE9) -> 22.16666667
A12: =กรอกข้อมูล!O12 ->  | B12: =กรอกข้อมูล!P12 ->  | C12: =กรอกข้อมูล!Q12 ->  | D12: =กรอกข้อมูล!R12 ->  | E12: =กรอกข้อมูล!S12 ->  | F12: =กรอกข้อมูล!T12 ->  | G12: =กรอกข้อมูล!Z12 ->  | H12: =กรอกข้อมูล!W12 ->  | I12: =กรอกข้อมูล!X12 ->  | J12: =กรอกข้อมูล!AA12 ->  | K12: =กรอกข้อมูล!AB12 ->  | L12: =กรอกข้อมูล!AC12 ->  | M12: =กรอกข้อมูล!AD12 ->  | N12: =กรอกข้อมูล!AE12 ->  | O12: =กรอกข้อมูล!AF12 ->  | P12: =กรอกข้อมูล!AG12 ->  | Q12: =กรอกข้อมูล!AI12 ->  | R12: =กรอกข้อมูล!AJ12 ->  | S12: =กรอกข้อมูล!AK12 ->  | T12: =กรอกข้อมูล!AL12 -> 
A13: =กรอกข้อมูล!O13 ->  | B13: =กรอกข้อมูล!P13 ->  | C13: =กรอกข้อมูล!Q13 ->  | D13: =กรอกข้อมูล!R13 ->  | E13: =กรอกข้อมูล!S13 ->  | F13: =กรอกข้อมูล!T13 ->  | G13: =กรอกข้อมูล!Z13 ->  | H13: =กรอกข้อมูล!W13 ->  | I13: =กรอกข้อมูล!X13 ->  | J13: =กรอกข้อมูล!AA13 ->  | K13: =กรอกข้อมูล!AB13 ->  | L13: =กรอกข้อมูล!AC13 ->  | M13: =กรอกข้อมูล!AD13 ->  | N13: =กรอกข้อมูล!AE13 ->  | O13: =กรอกข้อมูล!AF13 ->  | P13: =กรอกข้อมูล!AG13 ->  | Q13: =กรอกข้อมูล!AI13 ->  | R13: =กรอกข้อมูล!AJ13 ->  | S13: =กรอกข้อมูล!AK13 ->  | T13: =กรอกข้อมูล!AL13 ->  | W13: =$N$52 -> 1163.52 | Z13: =$T$52 -> 130 | AA13: ค่าฐานนิยม (Mode)
A14: =กรอกข้อมูล!O14 ->  | B14: =กรอกข้อมูล!P14 ->  | C14: =กรอกข้อมูล!Q14 ->  | D14: =กรอกข้อมูล!R14 ->  | E14: =กรอกข้อมูล!S14 ->  | F14: =กรอกข้อมูล!T14 ->  | G14: =กรอกข้อมูล!Z14 ->  | H14: =กรอกข้อมูล!W14 ->  | I14: =กรอกข้อมูล!X14 ->  | J14: =กรอกข้อมูล!AA14 ->  | K14: =กรอกข้อมูล!AB14 ->  | L14: =กรอกข้อมูล!AC14 ->  | M14: =กรอกข้อมูล!AD14 ->  | N14: =กรอกข้อมูล!AE14 ->  | O14: =กรอกข้อมูล!AF14 ->  | P14: =กรอกข้อมูล!AG14 ->  | Q14: =กรอกข้อมูล!AI14 ->  | R14: =กรอกข้อมูล!AJ14 ->  | S14: =กรอกข้อมูล!AK14 ->  | T14: =กรอกข้อมูล!AL14 ->  | V14: N | W14: =$H$52 -> 50
A15: =กรอกข้อมูล!O15 ->  | B15: =กรอกข้อมูล!P15 ->  | C15: =กรอกข้อมูล!Q15 ->  | D15: =กรอกข้อมูล!R15 ->  | E15: =กรอกข้อมูล!S15 ->  | F15: =กรอกข้อมูล!T15 ->  | G15: =กรอกข้อมูล!Z15 ->  | H15: =กรอกข้อมูล!W15 ->  | I15: =กรอกข้อมูล!X15 ->  | J15: =กรอกข้อมูล!AA15 ->  | K15: =กรอกข้อมูล!AB15 ->  | L15: =กรอกข้อมูล!AC15 ->  | M15: =กรอกข้อมูล!AD15 ->  | N15: =กรอกข้อมูล!AE15 ->  | O15: =กรอกข้อมูล!AF15 ->  | P15: =กรอกข้อมูล!AG15 ->  | Q15: =กรอกข้อมูล!AI15 ->  | R15: =กรอกข้อมูล!AJ15 ->  | S15: =กรอกข้อมูล!AK15 ->  | T15: =กรอกข้อมูล!AL15 ->  | V15: s | W15: =SQRT(W13/W14) -> 4.823940298 | Y15: s | Z15: =Z5*SQRT((Z13/W5)-(Y7^2)) -> 4.823940298
A16: =กรอกข้อมูล!O16 ->  | B16: =กรอกข้อมูล!P16 ->  | C16: =กรอกข้อมูล!Q16 ->  | D16: =กรอกข้อมูล!R16 ->  | E16: =กรอกข้อมูล!S16 ->  | F16: =กรอกข้อมูล!T16 ->  | G16: =กรอกข้อมูล!Z16 ->  | H16: =กรอกข้อมูล!W16 ->  | I16: =กรอกข้อมูล!X16 ->  | J16: =กรอกข้อมูล!AA16 ->  | K16: =กรอกข้อมูล!AB16 ->  | L16: =กรอกข้อมูล!AC16 ->  | M16: =กรอกข้อมูล!AD16 ->  | N16: =กรอกข้อมูล!AE16 ->  | O16: =กรอกข้อมูล!AF16 ->  | P16: =กรอกข้อมูล!AG16 ->  | Q16: =กรอกข้อมูล!AI16 ->  | R16: =กรอกข้อมูล!AJ16 ->  | S16: =กรอกข้อมูล!AK16 ->  | T16: =กรอกข้อมูล!AL16 ->  | V16: ความแปรปรวน (Variance) | Y16: ความแปรปรวน (Variance) | AA16: L | AB16: ขอบล่างของชั้นที่มีฐานนิยมอยู่ | AE16: =กรอกข้อมูล!$AQ$18 -> 20.5
A17: =กรอกข้อมูล!O17 ->  | B17: =กรอกข้อมูล!P17 ->  | C17: =กรอกข้อมูล!Q17 ->  | D17: =กรอกข้อมูล!R17 ->  | E17: =กรอกข้อมูล!S17 ->  | F17: =กรอกข้อมูล!T17 ->  | G17: =กรอกข้อมูล!Z17 ->  | H17: =กรอกข้อมูล!W17 ->  | I17: =กรอกข้อมูล!X17 ->  | J17: =กรอกข้อมูล!AA17 ->  | K17: =กรอกข้อมูล!AB17 ->  | L17: =กรอกข้อมูล!AC17 ->  | M17: =กรอกข้อมูล!AD17 ->  | N17: =กรอกข้อมูล!AE17 ->  | O17: =กรอกข้อมูล!AF17 ->  | P17: =กรอกข้อมูล!AG17 ->  | Q17: =กรอกข้อมูล!AI17 ->  | R17: =กรอกข้อมูล!AJ17 ->  | S17: =กรอกข้อมูล!AK17 ->  | T17: =กรอกข้อมูล!AL17 ->  | V17: s2 | W17: =W13/W14 -> 23.2704 | Y17: s2 | Z17: =Z15^2 -> 23.2704 | AA17: i | AB17: ความกว้างของอันตรภาคชั้นที่มีฐานนิยม | AE17: =กรอกข้อมูล!$AQ$3 -> 3
A18: =กรอกข้อมูล!O18 ->  | B18: =กรอกข้อมูล!P18 ->  | C18: =กรอกข้อมูล!Q18 ->  | D18: =กรอกข้อมูล!R18 ->  | E18: =กรอกข้อมูล!S18 ->  | F18: =กรอกข้อมูล!T18 ->  | G18: =กรอกข้อมูล!Z18 ->  | H18: =กรอกข้อมูล!W18 ->  | I18: =กรอกข้อมูล!X18 ->  | J18: =กรอกข้อมูล!AA18 ->  | K18: =กรอกข้อมูล!AB18 ->  | L18: =กรอกข้อมูล!AC18 ->  | M18: =กรอกข้อมูล!AD18 ->  | N18: =กรอกข้อมูล!AE18 ->  | O18: =กรอกข้อมูล!AF18 ->  | P18: =กรอกข้อมูล!AG18 ->  | Q18: =กรอกข้อมูล!AI18 ->  | R18: =กรอกข้อมูล!AJ18 ->  | S18: =กรอกข้อมูล!AK18 ->  | T18: =กรอกข้อมูล!AL18 ->  | V18: ตัวอย่าง : | AA18: d1 | AB18: ความถี่ของชั้นที่มีฐานนิยมอยู่ -
A19: =กรอกข้อมูล!O19 ->  | B19: =กรอกข้อมูล!P19 ->  | C19: =กรอกข้อมูล!Q19 ->  | D19: =กรอกข้อมูล!R19 ->  | E19: =กรอกข้อมูล!S19 ->  | F19: =กรอกข้อมูล!T19 ->  | G19: =กรอกข้อมูล!Z19 ->  | H19: =กรอกข้อมูล!W19 ->  | I19: =กรอกข้อมูล!X19 ->  | J19: =กรอกข้อมูล!AA19 ->  | K19: =กรอกข้อมูล!AB19 ->  | L19: =กรอกข้อมูล!AC19 ->  | M19: =กรอกข้อมูล!AD19 ->  | N19: =กรอกข้อมูล!AE19 ->  | O19: =กรอกข้อมูล!AF19 ->  | P19: =กรอกข้อมูล!AG19 ->  | Q19: =กรอกข้อมูล!AI19 ->  | R19: =กรอกข้อมูล!AJ19 ->  | S19: =กรอกข้อมูล!AK19 ->  | T19: =กรอกข้อมูล!AL19 ->  | AB19: ความถี่ของชั้นติดกันที่มีช่วงคะแนนต่ำกว่า | AE19: =AE22-AE23 -> 3
A20: =กรอกข้อมูล!O20 ->  | B20: =กรอกข้อมูล!P20 ->  | C20: =กรอกข้อมูล!Q20 ->  | D20: =กรอกข้อมูล!R20 ->  | E20: =กรอกข้อมูล!S20 ->  | F20: =กรอกข้อมูล!T20 ->  | G20: =กรอกข้อมูล!Z20 ->  | H20: =กรอกข้อมูล!W20 ->  | I20: =กรอกข้อมูล!X20 ->  | J20: =กรอกข้อมูล!AA20 ->  | K20: =กรอกข้อมูล!AB20 ->  | L20: =กรอกข้อมูล!AC20 ->  | M20: =กรอกข้อมูล!AD20 ->  | N20: =กรอกข้อมูล!AE20 ->  | O20: =กรอกข้อมูล!AF20 ->  | P20: =กรอกข้อมูล!AG20 ->  | Q20: =กรอกข้อมูล!AI20 ->  | R20: =กรอกข้อมูล!AJ20 ->  | S20: =กรอกข้อมูล!AK20 ->  | T20: =กรอกข้อมูล!AL20 ->  | AA20: d2 | AB20: ความถี่ของชั้นที่มีฐานนิยมอยู่ -
A21: =กรอกข้อมูล!O21 ->  | B21: =กรอกข้อมูล!P21 ->  | C21: =กรอกข้อมูล!Q21 ->  | D21: =กรอกข้อมูล!R21 ->  | E21: =กรอกข้อมูล!S21 ->  | F21: =กรอกข้อมูล!T21 ->  | G21: =กรอกข้อมูล!Z21 ->  | H21: =กรอกข้อมูล!W21 ->  | I21: =กรอกข้อมูล!X21 ->  | J21: =กรอกข้อมูล!AA21 ->  | K21: =กรอกข้อมูล!AB21 ->  | L21: =กรอกข้อมูล!AC21 ->  | M21: =กรอกข้อมูล!AD21 ->  | N21: =กรอกข้อมูล!AE21 ->  | O21: =กรอกข้อมูล!AF21 ->  | P21: =กรอกข้อมูล!AG21 ->  | Q21: =กรอกข้อมูล!AI21 ->  | R21: =กรอกข้อมูล!AJ21 ->  | S21: =กรอกข้อมูล!AK21 ->  | T21: =กรอกข้อมูล!AL21 ->  | W21: =$N$52 -> 1163.52 | AB21: ความถี่ของชั้นติดกันที่มีช่วงคะแนนสูงกว่า | AE21: =AE22-AE24 -> 2
A22: =กรอกข้อมูล!O22 ->  | B22: =กรอกข้อมูล!P22 ->  | C22: =กรอกข้อมูล!Q22 ->  | D22: =กรอกข้อมูล!R22 ->  | E22: =กรอกข้อมูล!S22 ->  | F22: =กรอกข้อมูล!T22 ->  | G22: =กรอกข้อมูล!Z22 ->  | H22: =กรอกข้อมูล!W22 ->  | I22: =กรอกข้อมูล!X22 ->  | J22: =กรอกข้อมูล!AA22 ->  | K22: =กรอกข้อมูล!AB22 ->  | L22: =กรอกข้อมูล!AC22 ->  | M22: =กรอกข้อมูล!AD22 ->  | N22: =กรอกข้อมูล!AE22 ->  | O22: =กรอกข้อมูล!AF22 ->  | P22: =กรอกข้อมูล!AG22 ->  | Q22: =กรอกข้อมูล!AI22 ->  | R22: =กรอกข้อมูล!AJ22 ->  | S22: =กรอกข้อมูล!AK22 ->  | T22: =กรอกข้อมูล!AL22 ->  | V22: N-1 | W22: =$H$52-1 -> 49 | AA22: ความถี่ของชั้นที่มีฐานนิยมอยู่ | AE22: =กรอกข้อมูล!$AQ$16 -> 12
A23: =กรอกข้อมูล!O23 ->  | B23: =กรอกข้อมูล!P23 ->  | C23: =กรอกข้อมูล!Q23 ->  | D23: =กรอกข้อมูล!R23 ->  | E23: =กรอกข้อมูล!S23 ->  | F23: =กรอกข้อมูล!T23 ->  | G23: =กรอกข้อมูล!Z23 ->  | H23: =กรอกข้อมูล!W23 ->  | I23: =กรอกข้อมูล!X23 ->  | J23: =กรอกข้อมูล!AA23 ->  | K23: =กรอกข้อมูล!AB23 ->  | L23: =กรอกข้อมูล!AC23 ->  | M23: =กรอกข้อมูล!AD23 ->  | N23: =กรอกข้อมูล!AE23 ->  | O23: =กรอกข้อมูล!AF23 ->  | P23: =กรอกข้อมูล!AG23 ->  | Q23: =กรอกข้อมูล!AI23 ->  | R23: =กรอกข้อมูล!AJ23 ->  | S23: =กรอกข้อมูล!AK23 ->  | T23: =กรอกข้อมูล!AL23 ->  | V23: S | W23: =SQRT(W21/W22) -> 4.872915567 | AA23: ความถี่ของชั้นติดกันที่มีช่วงคะแนนต่ำกว่า | AE23: =กรอกข้อมูล!$AQ$21 -> 9
A24: =กรอกข้อมูล!O24 ->  | B24: =กรอกข้อมูล!P24 ->  | C24: =กรอกข้อมูล!Q24 ->  | D24: =กรอกข้อมูล!R24 ->  | E24: =กรอกข้อมูล!S24 ->  | F24: =กรอกข้อมูล!T24 ->  | G24: =กรอกข้อมูล!Z24 ->  | H24: =กรอกข้อมูล!W24 ->  | I24: =กรอกข้อมูล!X24 ->  | J24: =กรอกข้อมูล!AA24 ->  | K24: =กรอกข้อมูล!AB24 ->  | L24: =กรอกข้อมูล!AC24 ->  | M24: =กรอกข้อมูล!AD24 ->  | N24: =กรอกข้อมูล!AE24 ->  | O24: =กรอกข้อมูล!AF24 ->  | P24: =กรอกข้อมูล!AG24 ->  | Q24: =กรอกข้อมูล!AI24 ->  | R24: =กรอกข้อมูล!AJ24 ->  | S24: =กรอกข้อมูล!AK24 ->  | T24: =กรอกข้อมูล!AL24 ->  | V24: ความแปรปรวน (Variance) | AA24: ความถี่ของชั้นติดกันที่มีช่วงคะแนนสูงกว่า | AE24: =กรอกข้อมูล!$AQ$22 -> 10
A25: =กรอกข้อมูล!O25 ->  | B25: =กรอกข้อมูล!P25 ->  | C25: =กรอกข้อมูล!Q25 ->  | D25: =กรอกข้อมูล!R25 ->  | E25: =กรอกข้อมูล!S25 ->  | F25: =กรอกข้อมูล!T25 ->  | G25: =กรอกข้อมูล!Z25 ->  | H25: =กรอกข้อมูล!W25 ->  | I25: =กรอกข้อมูล!X25 ->  | J25: =กรอกข้อมูล!AA25 ->  | K25: =กรอกข้อมูล!AB25 ->  | L25: =กรอกข้อมูล!AC25 ->  | M25: =กรอกข้อมูล!AD25 ->  | N25: =กรอกข้อมูล!AE25 ->  | O25: =กรอกข้อมูล!AF25 ->  | P25: =กรอกข้อมูล!AG25 ->  | Q25: =กรอกข้อมูล!AI25 ->  | R25: =กรอกข้อมูล!AJ25 ->  | S25: =กรอกข้อมูล!AK25 ->  | T25: =กรอกข้อมูล!AL25 ->  | V25: S2 | W25: =W21/W22 -> 23.74530612 | AA25: Mod | AB25: =AE16+AE17*(AE19/(AE19+AE21)) -> 22.3
A26: =กรอกข้อมูล!O26 ->  | B26: =กรอกข้อมูล!P26 ->  | C26: =กรอกข้อมูล!Q26 ->  | D26: =กรอกข้อมูล!R26 ->  | E26: =กรอกข้อมูล!S26 ->  | F26: =กรอกข้อมูล!T26 ->  | G26: =กรอกข้อมูล!Z26 ->  | H26: =กรอกข้อมูล!W26 ->  | I26: =กรอกข้อมูล!X26 ->  | J26: =กรอกข้อมูล!AA26 ->  | K26: =กรอกข้อมูล!AB26 ->  | L26: =กรอกข้อมูล!AC26 ->  | M26: =กรอกข้อมูล!AD26 ->  | N26: =กรอกข้อมูล!AE26 ->  | O26: =กรอกข้อมูล!AF26 ->  | P26: =กรอกข้อมูล!AG26 ->  | Q26: =กรอกข้อมูล!AI26 ->  | R26: =กรอกข้อมูล!AJ26 ->  | S26: =กรอกข้อมูล!AK26 ->  | T26: =กรอกข้อมูล!AL26 ->  | V26: สัมประสิทธิ์ของความแปรผัน (Coefficient of Variation: C.V.)
A27: =กรอกข้อมูล!O27 ->  | B27: =กรอกข้อมูล!P27 ->  | C27: =กรอกข้อมูล!Q27 ->  | D27: =กรอกข้อมูล!R27 ->  | E27: =กรอกข้อมูล!S27 ->  | F27: =กรอกข้อมูล!T27 ->  | G27: =กรอกข้อมูล!Z27 ->  | H27: =กรอกข้อมูล!W27 ->  | I27: =กรอกข้อมูล!X27 ->  | J27: =กรอกข้อมูล!AA27 ->  | K27: =กรอกข้อมูล!AB27 ->  | L27: =กรอกข้อมูล!AC27 ->  | M27: =กรอกข้อมูล!AD27 ->  | N27: =กรอกข้อมูล!AE27 ->  | O27: =กรอกข้อมูล!AF27 ->  | P27: =กรอกข้อมูล!AG27 ->  | Q27: =กรอกข้อมูล!AI27 ->  | R27: =กรอกข้อมูล!AJ27 ->  | S27: =กรอกข้อมูล!AK27 ->  | T27: =กรอกข้อมูล!AL27 -> 
A28: =กรอกข้อมูล!O28 ->  | B28: =กรอกข้อมูล!P28 ->  | C28: =กรอกข้อมูล!Q28 ->  | D28: =กรอกข้อมูล!R28 ->  | E28: =กรอกข้อมูล!S28 ->  | F28: =กรอกข้อมูล!T28 ->  | G28: =กรอกข้อมูล!Z28 ->  | H28: =กรอกข้อมูล!W28 ->  | I28: =กรอกข้อมูล!X28 ->  | J28: =กรอกข้อมูล!AA28 ->  | K28: =กรอกข้อมูล!AB28 ->  | L28: =กรอกข้อมูล!AC28 ->  | M28: =กรอกข้อมูล!AD28 ->  | N28: =กรอกข้อมูล!AE28 ->  | O28: =กรอกข้อมูล!AF28 ->  | P28: =กรอกข้อมูล!AG28 ->  | Q28: =กรอกข้อมูล!AI28 ->  | R28: =กรอกข้อมูล!AJ28 ->  | S28: =กรอกข้อมูล!AK28 ->  | T28: =กรอกข้อมูล!AL28 -> 
A29: =กรอกข้อมูล!O29 ->  | B29: =กรอกข้อมูล!P29 ->  | C29: =กรอกข้อมูล!Q29 ->  | D29: =กรอกข้อมูล!R29 ->  | E29: =กรอกข้อมูล!S29 ->  | F29: =กรอกข้อมูล!T29 ->  | G29: =กรอกข้อมูล!Z29 ->  | H29: =กรอกข้อมูล!W29 ->  | I29: =กรอกข้อมูล!X29 ->  | J29: =กรอกข้อมูล!AA29 ->  | K29: =กรอกข้อมูล!AB29 ->  | L29: =กรอกข้อมูล!AC29 ->  | M29: =กรอกข้อมูล!AD29 ->  | N29: =กรอกข้อมูล!AE29 ->  | O29: =กรอกข้อมูล!AF29 ->  | P29: =กรอกข้อมูล!AG29 ->  | Q29: =กรอกข้อมูล!AI29 ->  | R29: =กรอกข้อมูล!AJ29 ->  | S29: =กรอกข้อมูล!AK29 ->  | T29: =กรอกข้อมูล!AL29 ->  | V29: s | W29: =$W$23 -> 4.872915567
A30: =กรอกข้อมูล!O30 ->  | B30: =กรอกข้อมูล!P30 ->  | C30: =กรอกข้อมูล!Q30 ->  | D30: =กรอกข้อมูล!R30 ->  | E30: =กรอกข้อมูล!S30 ->  | F30: =กรอกข้อมูล!T30 ->  | G30: =กรอกข้อมูล!Z30 ->  | H30: =กรอกข้อมูล!W30 ->  | I30: =กรอกข้อมูล!X30 ->  | J30: =กรอกข้อมูล!AA30 ->  | K30: =กรอกข้อมูล!AB30 ->  | L30: =กรอกข้อมูล!AC30 ->  | M30: =กรอกข้อมูล!AD30 ->  | N30: =กรอกข้อมูล!AE30 ->  | O30: =กรอกข้อมูล!AF30 ->  | P30: =กรอกข้อมูล!AG30 ->  | Q30: =กรอกข้อมูล!AI30 ->  | R30: =กรอกข้อมูล!AJ30 ->  | S30: =กรอกข้อมูล!AK30 ->  | T30: =กรอกข้อมูล!AL30 ->  | V30: m | W30: =$W$6 -> 21.64
A31: =กรอกข้อมูล!O31 ->  | B31: =กรอกข้อมูล!P31 ->  | C31: =กรอกข้อมูล!Q31 ->  | D31: =กรอกข้อมูล!R31 ->  | E31: =กรอกข้อมูล!S31 ->  | F31: =กรอกข้อมูล!T31 ->  | G31: =กรอกข้อมูล!Z31 ->  | H31: =กรอกข้อมูล!W31 ->  | I31: =กรอกข้อมูล!X31 ->  | J31: =กรอกข้อมูล!AA31 ->  | K31: =กรอกข้อมูล!AB31 ->  | L31: =กรอกข้อมูล!AC31 ->  | M31: =กรอกข้อมูล!AD31 ->  | N31: =กรอกข้อมูล!AE31 ->  | O31: =กรอกข้อมูล!AF31 ->  | P31: =กรอกข้อมูล!AG31 ->  | Q31: =กรอกข้อมูล!AI31 ->  | R31: =กรอกข้อมูล!AJ31 ->  | S31: =กรอกข้อมูล!AK31 ->  | T31: =กรอกข้อมูล!AL31 ->  | V31: C.V. | W31: =W29/W30*100 -> 22.51809412 | X31: %
A32: =กรอกข้อมูล!O32 ->  | B32: =กรอกข้อมูล!P32 ->  | C32: =กรอกข้อมูล!Q32 ->  | D32: =กรอกข้อมูล!R32 ->  | E32: =กรอกข้อมูล!S32 ->  | F32: =กรอกข้อมูล!T32 ->  | G32: =กรอกข้อมูล!Z32 ->  | H32: =กรอกข้อมูล!W32 ->  | I32: =กรอกข้อมูล!X32 ->  | J32: =กรอกข้อมูล!AA32 ->  | K32: =กรอกข้อมูล!AB32 ->  | L32: =กรอกข้อมูล!AC32 ->  | M32: =กรอกข้อมูล!AD32 ->  | N32: =กรอกข้อมูล!AE32 ->  | O32: =กรอกข้อมูล!AF32 ->  | P32: =กรอกข้อมูล!AG32 ->  | Q32: =กรอกข้อมูล!AI32 ->  | R32: =กรอกข้อมูล!AJ32 ->  | S32: =กรอกข้อมูล!AK32 ->  | T32: =กรอกข้อมูล!AL32 -> 
A33: =กรอกข้อมูล!O33 ->  | B33: =กรอกข้อมูล!P33 ->  | C33: =กรอกข้อมูล!Q33 ->  | D33: =กรอกข้อมูล!R33 ->  | E33: =กรอกข้อมูล!S33 ->  | F33: =กรอกข้อมูล!T33 ->  | G33: =กรอกข้อมูล!Z33 ->  | H33: =กรอกข้อมูล!W33 ->  | I33: =กรอกข้อมูล!X33 ->  | J33: =กรอกข้อมูล!AA33 ->  | K33: =กรอกข้อมูล!AB33 ->  | L33: =กรอกข้อมูล!AC33 ->  | M33: =กรอกข้อมูล!AD33 ->  | N33: =กรอกข้อมูล!AE33 ->  | O33: =กรอกข้อมูล!AF33 ->  | P33: =กรอกข้อมูล!AG33 ->  | Q33: =กรอกข้อมูล!AI33 ->  | R33: =กรอกข้อมูล!AJ33 ->  | S33: =กรอกข้อมูล!AK33 ->  | T33: =กรอกข้อมูล!AL33 -> 
A34: =กรอกข้อมูล!O34 ->  | B34: =กรอกข้อมูล!P34 ->  | C34: =กรอกข้อมูล!Q34 ->  | D34: =กรอกข้อมูล!R34 ->  | E34: =กรอกข้อมูล!S34 ->  | F34: =กรอกข้อมูล!T34 ->  | G34: =กรอกข้อมูล!Z34 ->  | H34: =กรอกข้อมูล!W34 ->  | I34: =กรอกข้อมูล!X34 ->  | J34: =กรอกข้อมูล!AA34 ->  | K34: =กรอกข้อมูล!AB34 ->  | L34: =กรอกข้อมูล!AC34 ->  | M34: =กรอกข้อมูล!AD34 ->  | N34: =กรอกข้อมูล!AE34 ->  | O34: =กรอกข้อมูล!AF34 ->  | P34: =กรอกข้อมูล!AG34 ->  | Q34: =กรอกข้อมูล!AI34 ->  | R34: =กรอกข้อมูล!AJ34 ->  | S34: =กรอกข้อมูล!AK34 ->  | T34: =กรอกข้อมูล!AL34 -> 
A35: =กรอกข้อมูล!O35 ->  | B35: =กรอกข้อมูล!P35 ->  | C35: =กรอกข้อมูล!Q35 ->  | D35: =กรอกข้อมูล!R35 ->  | E35: =กรอกข้อมูล!S35 ->  | F35: =กรอกข้อมูล!T35 ->  | G35: =กรอกข้อมูล!Z35 ->  | H35: =กรอกข้อมูล!W35 ->  | I35: =กรอกข้อมูล!X35 ->  | J35: =กรอกข้อมูล!AA35 ->  | K35: =กรอกข้อมูล!AB35 ->  | L35: =กรอกข้อมูล!AC35 ->  | M35: =กรอกข้อมูล!AD35 ->  | N35: =กรอกข้อมูล!AE35 ->  | O35: =กรอกข้อมูล!AF35 ->  | P35: =กรอกข้อมูล!AG35 ->  | Q35: =กรอกข้อมูล!AI35 ->  | R35: =กรอกข้อมูล!AJ35 ->  | S35: =กรอกข้อมูล!AK35 ->  | T35: =กรอกข้อมูล!AL35 -> 
A36: =กรอกข้อมูล!O36 ->  | B36: =กรอกข้อมูล!P36 ->  | C36: =กรอกข้อมูล!Q36 ->  | D36: =กรอกข้อมูล!R36 ->  | E36: =กรอกข้อมูล!S36 ->  | F36: =กรอกข้อมูล!T36 ->  | G36: =กรอกข้อมูล!Z36 ->  | H36: =กรอกข้อมูล!W36 ->  | I36: =กรอกข้อมูล!X36 ->  | J36: =กรอกข้อมูล!AA36 ->  | K36: =กรอกข้อมูล!AB36 ->  | L36: =กรอกข้อมูล!AC36 ->  | M36: =กรอกข้อมูล!AD36 ->  | N36: =กรอกข้อมูล!AE36 ->  | O36: =กรอกข้อมูล!AF36 ->  | P36: =กรอกข้อมูล!AG36 ->  | Q36: =กรอกข้อมูล!AI36 ->  | R36: =กรอกข้อมูล!AJ36 ->  | S36: =กรอกข้อมูล!AK36 ->  | T36: =กรอกข้อมูล!AL36 -> 
A37: =กรอกข้อมูล!O37 ->  | B37: =กรอกข้อมูล!P37 ->  | C37: =กรอกข้อมูล!Q37 ->  | D37: =กรอกข้อมูล!R37 ->  | E37: =กรอกข้อมูล!S37 ->  | F37: =กรอกข้อมูล!T37 ->  | G37: =กรอกข้อมูล!Z37 ->  | H37: =กรอกข้อมูล!W37 ->  | I37: =กรอกข้อมูล!X37 ->  | J37: =กรอกข้อมูล!AA37 ->  | K37: =กรอกข้อมูล!AB37 ->  | L37: =กรอกข้อมูล!AC37 ->  | M37: =กรอกข้อมูล!AD37 ->  | N37: =กรอกข้อมูล!AE37 ->  | O37: =กรอกข้อมูล!AF37 ->  | P37: =กรอกข้อมูล!AG37 ->  | Q37: =กรอกข้อมูล!AI37 ->  | R37: =กรอกข้อมูล!AJ37 ->  | S37: =กรอกข้อมูล!AK37 ->  | T37: =กรอกข้อมูล!AL37 -> 
A38: =กรอกข้อมูล!O38 ->  | B38: =กรอกข้อมูล!P38 ->  | C38: =กรอกข้อมูล!Q38 ->  | D38: =กรอกข้อมูล!R38 ->  | E38: =กรอกข้อมูล!S38 ->  | F38: =กรอกข้อมูล!T38 ->  | G38: =กรอกข้อมูล!Z38 ->  | H38: =กรอกข้อมูล!W38 ->  | I38: =กรอกข้อมูล!X38 ->  | J38: =กรอกข้อมูล!AA38 ->  | K38: =กรอกข้อมูล!AB38 ->  | L38: =กรอกข้อมูล!AC38 ->  | M38: =กรอกข้อมูล!AD38 ->  | N38: =กรอกข้อมูล!AE38 ->  | O38: =กรอกข้อมูล!AF38 ->  | P38: =กรอกข้อมูล!AG38 ->  | Q38: =กรอกข้อมูล!AI38 ->  | R38: =กรอกข้อมูล!AJ38 ->  | S38: =กรอกข้อมูล!AK38 ->  | T38: =กรอกข้อมูล!AL38 -> 
A39: =กรอกข้อมูล!O39 ->  | B39: =กรอกข้อมูล!P39 ->  | C39: =กรอกข้อมูล!Q39 ->  | D39: =กรอกข้อมูล!R39 ->  | E39: =กรอกข้อมูล!S39 ->  | F39: =กรอกข้อมูล!T39 ->  | G39: =กรอกข้อมูล!Z39 ->  | H39: =กรอกข้อมูล!W39 ->  | I39: =กรอกข้อมูล!X39 ->  | J39: =กรอกข้อมูล!AA39 ->  | K39: =กรอกข้อมูล!AB39 ->  | L39: =กรอกข้อมูล!AC39 ->  | M39: =กรอกข้อมูล!AD39 ->  | N39: =กรอกข้อมูล!AE39 ->  | O39: =กรอกข้อมูล!AF39 ->  | P39: =กรอกข้อมูล!AG39 ->  | Q39: =กรอกข้อมูล!AI39 ->  | R39: =กรอกข้อมูล!AJ39 ->  | S39: =กรอกข้อมูล!AK39 ->  | T39: =กรอกข้อมูล!AL39 -> 
A40: =กรอกข้อมูล!O40 ->  | B40: =กรอกข้อมูล!P40 ->  | C40: =กรอกข้อมูล!Q40 ->  | D40: =กรอกข้อมูล!R40 ->  | E40: =กรอกข้อมูล!S40 ->  | F40: =กรอกข้อมูล!T40 ->  | G40: =กรอกข้อมูล!Z40 ->  | H40: =กรอกข้อมูล!W40 ->  | I40: =กรอกข้อมูล!X40 ->  | J40: =กรอกข้อมูล!AA40 ->  | K40: =กรอกข้อมูล!AB40 ->  | L40: =กรอกข้อมูล!AC40 ->  | M40: =กรอกข้อมูล!AD40 ->  | N40: =กรอกข้อมูล!AE40 ->  | O40: =กรอกข้อมูล!AF40 ->  | P40: =กรอกข้อมูล!AG40 ->  | Q40: =กรอกข้อมูล!AI40 ->  | R40: =กรอกข้อมูล!AJ40 ->  | S40: =กรอกข้อมูล!AK40 ->  | T40: =กรอกข้อมูล!AL40 -> 
A41: =กรอกข้อมูล!O41 ->  | B41: =กรอกข้อมูล!P41 ->  | C41: =กรอกข้อมูล!Q41 ->  | D41: =กรอกข้อมูล!R41 ->  | E41: =กรอกข้อมูล!S41 ->  | F41: =กรอกข้อมูล!T41 ->  | G41: =กรอกข้อมูล!Z41 ->  | H41: =กรอกข้อมูล!W41 ->  | I41: =กรอกข้อมูล!X41 ->  | J41: =กรอกข้อมูล!AA41 ->  | K41: =กรอกข้อมูล!AB41 ->  | L41: =กรอกข้อมูล!AC41 ->  | M41: =กรอกข้อมูล!AD41 ->  | N41: =กรอกข้อมูล!AE41 ->  | O41: =กรอกข้อมูล!AF41 ->  | P41: =กรอกข้อมูล!AG41 ->  | Q41: =กรอกข้อมูล!AI41 ->  | R41: =กรอกข้อมูล!AJ41 ->  | S41: =กรอกข้อมูล!AK41 ->  | T41: =กรอกข้อมูล!AL41 -> 
A42: =กรอกข้อมูล!O42 ->  | B42: =กรอกข้อมูล!P42 ->  | C42: =กรอกข้อมูล!Q42 ->  | D42: =กรอกข้อมูล!R42 ->  | E42: =กรอกข้อมูล!S42 ->  | F42: =กรอกข้อมูล!T42 ->  | G42: =กรอกข้อมูล!Z42 ->  | H42: =กรอกข้อมูล!W42 ->  | I42: =กรอกข้อมูล!X42 ->  | J42: =กรอกข้อมูล!AA42 ->  | K42: =กรอกข้อมูล!AB42 ->  | L42: =กรอกข้อมูล!AC42 ->  | M42: =กรอกข้อมูล!AD42 ->  | N42: =กรอกข้อมูล!AE42 ->  | O42: =กรอกข้อมูล!AF42 ->  | P42: =กรอกข้อมูล!AG42 ->  | Q42: =กรอกข้อมูล!AI42 ->  | R42: =กรอกข้อมูล!AJ42 ->  | S42: =กรอกข้อมูล!AK42 ->  | T42: =กรอกข้อมูล!AL42 -> 
A43: =กรอกข้อมูล!O43 ->  | B43: =กรอกข้อมูล!P43 ->  | C43: =กรอกข้อมูล!Q43 ->  | D43: =กรอกข้อมูล!R43 ->  | E43: =กรอกข้อมูล!S43 ->  | F43: =กรอกข้อมูล!T43 ->  | G43: =กรอกข้อมูล!Z43 ->  | H43: =กรอกข้อมูล!W43 ->  | I43: =กรอกข้อมูล!X43 ->  | J43: =กรอกข้อมูล!AA43 ->  | K43: =กรอกข้อมูล!AB43 ->  | L43: =กรอกข้อมูล!AC43 ->  | M43: =กรอกข้อมูล!AD43 ->  | N43: =กรอกข้อมูล!AE43 ->  | O43: =กรอกข้อมูล!AF43 ->  | P43: =กรอกข้อมูล!AG43 ->  | Q43: =กรอกข้อมูล!AI43 ->  | R43: =กรอกข้อมูล!AJ43 ->  | S43: =กรอกข้อมูล!AK43 ->  | T43: =กรอกข้อมูล!AL43 -> 
A44: =กรอกข้อมูล!O44 ->  | B44: =กรอกข้อมูล!P44 ->  | C44: =กรอกข้อมูล!Q44 ->  | D44: =กรอกข้อมูล!R44 ->  | E44: =กรอกข้อมูล!S44 ->  | F44: =กรอกข้อมูล!T44 ->  | G44: =กรอกข้อมูล!Z44 ->  | H44: =กรอกข้อมูล!W44 ->  | I44: =กรอกข้อมูล!X44 ->  | J44: =กรอกข้อมูล!AA44 ->  | K44: =กรอกข้อมูล!AB44 ->  | L44: =กรอกข้อมูล!AC44 ->  | M44: =กรอกข้อมูล!AD44 ->  | N44: =กรอกข้อมูล!AE44 ->  | O44: =กรอกข้อมูล!AF44 ->  | P44: =กรอกข้อมูล!AG44 ->  | Q44: =กรอกข้อมูล!AI44 ->  | R44: =กรอกข้อมูล!AJ44 ->  | S44: =กรอกข้อมูล!AK44 ->  | T44: =กรอกข้อมูล!AL44 -> 
A45: =กรอกข้อมูล!O45 ->  | B45: =กรอกข้อมูล!P45 ->  | C45: =กรอกข้อมูล!Q45 ->  | D45: =กรอกข้อมูล!R45 ->  | E45: =กรอกข้อมูล!S45 ->  | F45: =กรอกข้อมูล!T45 ->  | G45: =กรอกข้อมูล!Z45 ->  | H45: =กรอกข้อมูล!W45 ->  | I45: =กรอกข้อมูล!X45 ->  | J45: =กรอกข้อมูล!AA45 ->  | K45: =กรอกข้อมูล!AB45 ->  | L45: =กรอกข้อมูล!AC45 ->  | M45: =กรอกข้อมูล!AD45 ->  | N45: =กรอกข้อมูล!AE45 ->  | O45: =กรอกข้อมูล!AF45 ->  | P45: =กรอกข้อมูล!AG45 ->  | Q45: =กรอกข้อมูล!AI45 ->  | R45: =กรอกข้อมูล!AJ45 ->  | S45: =กรอกข้อมูล!AK45 ->  | T45: =กรอกข้อมูล!AL45 -> 
A46: =กรอกข้อมูล!O46 ->  | B46: =กรอกข้อมูล!P46 ->  | C46: =กรอกข้อมูล!Q46 ->  | D46: =กรอกข้อมูล!R46 ->  | E46: =กรอกข้อมูล!S46 ->  | F46: =กรอกข้อมูล!T46 ->  | G46: =กรอกข้อมูล!Z46 ->  | H46: =กรอกข้อมูล!W46 ->  | I46: =กรอกข้อมูล!X46 ->  | J46: =กรอกข้อมูล!AA46 ->  | K46: =กรอกข้อมูล!AB46 ->  | L46: =กรอกข้อมูล!AC46 ->  | M46: =กรอกข้อมูล!AD46 ->  | N46: =กรอกข้อมูล!AE46 ->  | O46: =กรอกข้อมูล!AF46 ->  | P46: =กรอกข้อมูล!AG46 ->  | Q46: =กรอกข้อมูล!AI46 ->  | R46: =กรอกข้อมูล!AJ46 ->  | S46: =กรอกข้อมูล!AK46 ->  | T46: =กรอกข้อมูล!AL46 -> 
A47: =กรอกข้อมูล!O47 ->  | B47: =กรอกข้อมูล!P47 ->  | C47: =กรอกข้อมูล!Q47 ->  | D47: =กรอกข้อมูล!R47 ->  | E47: =กรอกข้อมูล!S47 ->  | F47: =กรอกข้อมูล!T47 ->  | G47: =กรอกข้อมูล!Z47 ->  | H47: =กรอกข้อมูล!W47 ->  | I47: =กรอกข้อมูล!X47 ->  | J47: =กรอกข้อมูล!AA47 ->  | K47: =กรอกข้อมูล!AB47 ->  | L47: =กรอกข้อมูล!AC47 ->  | M47: =กรอกข้อมูล!AD47 ->  | N47: =กรอกข้อมูล!AE47 ->  | O47: =กรอกข้อมูล!AF47 ->  | P47: =กรอกข้อมูล!AG47 ->  | Q47: =กรอกข้อมูล!AI47 ->  | R47: =กรอกข้อมูล!AJ47 ->  | S47: =กรอกข้อมูล!AK47 ->  | T47: =กรอกข้อมูล!AL47 -> 
A48: =กรอกข้อมูล!O48 ->  | B48: =กรอกข้อมูล!P48 ->  | C48: =กรอกข้อมูล!Q48 ->  | D48: =กรอกข้อมูล!R48 ->  | E48: =กรอกข้อมูล!S48 ->  | F48: =กรอกข้อมูล!T48 ->  | G48: =กรอกข้อมูล!Z48 ->  | H48: =กรอกข้อมูล!W48 ->  | I48: =กรอกข้อมูล!X48 ->  | J48: =กรอกข้อมูล!AA48 ->  | K48: =กรอกข้อมูล!AB48 ->  | L48: =กรอกข้อมูล!AC48 ->  | M48: =กรอกข้อมูล!AD48 ->  | N48: =กรอกข้อมูล!AE48 ->  | O48: =กรอกข้อมูล!AF48 ->  | P48: =กรอกข้อมูล!AG48 ->  | Q48: =กรอกข้อมูล!AI48 ->  | R48: =กรอกข้อมูล!AJ48 ->  | S48: =กรอกข้อมูล!AK48 ->  | T48: =กรอกข้อมูล!AL48 -> 
A49: =กรอกข้อมูล!O49 ->  | B49: =กรอกข้อมูล!P49 ->  | C49: =กรอกข้อมูล!Q49 ->  | D49: =กรอกข้อมูล!R49 ->  | E49: =กรอกข้อมูล!S49 ->  | F49: =กรอกข้อมูล!T49 ->  | G49: =กรอกข้อมูล!Z49 ->  | H49: =กรอกข้อมูล!W49 ->  | I49: =กรอกข้อมูล!X49 ->  | J49: =กรอกข้อมูล!AA49 ->  | K49: =กรอกข้อมูล!AB49 ->  | L49: =กรอกข้อมูล!AC49 ->  | M49: =กรอกข้อมูล!AD49 ->  | N49: =กรอกข้อมูล!AE49 ->  | O49: =กรอกข้อมูล!AF49 ->  | P49: =กรอกข้อมูล!AG49 ->  | Q49: =กรอกข้อมูล!AI49 ->  | R49: =กรอกข้อมูล!AJ49 ->  | S49: =กรอกข้อมูล!AK49 ->  | T49: =กรอกข้อมูล!AL49 -> 
A50: =กรอกข้อมูล!O50 ->  | B50: =กรอกข้อมูล!P50 ->  | C50: =กรอกข้อมูล!Q50 ->  | D50: =กรอกข้อมูล!R50 ->  | E50: =กรอกข้อมูล!S50 ->  | F50: =กรอกข้อมูล!T50 ->  | G50: =กรอกข้อมูล!Z50 ->  | H50: =กรอกข้อมูล!W50 ->  | I50: =กรอกข้อมูล!X50 ->  | J50: =กรอกข้อมูล!AA50 ->  | K50: =กรอกข้อมูล!AB50 ->  | L50: =กรอกข้อมูล!AC50 ->  | M50: =กรอกข้อมูล!AD50 ->  | N50: =กรอกข้อมูล!AE50 ->  | O50: =กรอกข้อมูล!AF50 ->  | P50: =กรอกข้อมูล!AG50 ->  | Q50: =กรอกข้อมูล!AI50 ->  | R50: =กรอกข้อมูล!AJ50 ->  | S50: =กรอกข้อมูล!AK50 ->  | T50: =กรอกข้อมูล!AL50 -> 
A51: =กรอกข้อมูล!O51 ->  | B51: =กรอกข้อมูล!P51 ->  | C51: =กรอกข้อมูล!Q51 ->  | D51: =กรอกข้อมูล!R51 ->  | E51: =กรอกข้อมูล!S51 ->  | F51: =กรอกข้อมูล!T51 ->  | G51: =กรอกข้อมูล!Z51 ->  | H51: =กรอกข้อมูล!W51 ->  | I51: =กรอกข้อมูล!X51 ->  | J51: =กรอกข้อมูล!AA51 ->  | K51: =กรอกข้อมูล!AB51 ->  | L51: =กรอกข้อมูล!AC51 ->  | M51: =กรอกข้อมูล!AD51 ->  | N51: =กรอกข้อมูล!AE51 ->  | O51: =กรอกข้อมูล!AF51 ->  | P51: =กรอกข้อมูล!AG51 ->  | Q51: =กรอกข้อมูล!AI51 ->  | R51: =กรอกข้อมูล!AJ51 ->  | S51: =กรอกข้อมูล!AK51 ->  | T51: =กรอกข้อมูล!AL51 -> 
A52: รวม | G52: =กรอกข้อมูล!Z52 -> 154 | H52: =กรอกข้อมูล!W52 -> 50 | I52: =กรอกข้อมูล!X52 -> 206 | J52: =กรอกข้อมูล!AA52 -> 1082 | K52: =กรอกข้อมูล!AB52 -> 24578 | L52: =กรอกข้อมูล!AC52 -> 2.52 | M52: =กรอกข้อมูล!AD52 -> 252.9072 | N52: =กรอกข้อมูล!AE52 -> 1163.52 | O52: =กรอกข้อมูล!AF52 -> 1 | P52: =กรอกข้อมูล!AG52 -> 100 | Q52: =กรอกข้อมูล!AI52 -> 0 | R52: =กรอกข้อมูล!AJ52 -> -6 | S52: =กรอกข้อมูล!AK52 -> 28 | T52: =กรอกข้อมูล!AL52 -> 130
G53: =VLOOKUP(MAX(H2:H51),H2:P51,2,FALSE) -> 32 | H53: =MAX(H2:H51) -> 12

Sheet PDQไม่แจกแจง (hidden)
A1: การคำนวณหาคะแนน ณ ตำแหน่งเปอร์เซ็นไทล์ เดไซล์ และควอไทล์ ที่กำหนด
A3: สูตรการคำนวณหาตำแหน่งเปอร์เซ็นไทล์ (Percentile = P)
A6: สูตรการคำนวณหาตำแหน่งเดไซล์ (Dacile = D)
A9: สูตรการคำนวณหาตำแหน่งะควอไทล์ (Quartile = Q)
A12: N = | B12: จำนวนข้อมูลทั้งหมด = | D12: =กรอกข้อมูล!AO52 -> 50
B13: ตรงกับตำแหน่ง PDQ ที่ = | D13: =(C16/100)*(D12+1) -> 12.75 | E13: =(C19/10)*(D12+1) -> 12.75 | F13: =(C20/4)*(D12+1) -> 12.75
B14: อยู่ระหว่างตำแหน่งที่ = | D14: =กรอกข้อมูล!$AP$37 -> 12 | E14: กับ | F14: =กรอกข้อมูล!$AR$37 -> 13
B15: ตรงกับข้อมูลค่าคะแนน = | D15: =กรอกข้อมูล!$AP$38 -> 18 | E15: กับ | F15: =กรอกข้อมูล!$AR$38 -> 18
A16: r = ตำแหน่งของข้อมูล P = | C16: 25 | D16: <= กรอกคะแนน
A17: ซึ่งจะมีตำแหน่งของข้อมูล ได้แก่ | D17: เทียบเป็นค่าคะแนนได้
B18: P = | C18: =$C$16 -> 25 | D18: =D15+((F15-D15)/(F14-D14))*(D13-D14) -> 18
B19: D = | C19: =C16/10 -> 2.5 | D19: =$D$18 -> 18
B20: Q = | C20: =C16/25 -> 1 | D20: =$D$18 -> 18

Sheet PDQ (hidden)
A1: การคำนวณหาตำแหน่งเปอร์เซ็นไทล์ เดไซล์ และควอไทล์ ของคะแนนที่กำหนด | G1: การคำนวณหาคะแนน ณ ตำแหน่งเปอร์เซ็นไทล์ เดไซล์ และควอไทล์ ที่กำหนด
A3: สูตรการคำนวณหาตำแหน่งเปอร์เซ็นไทล์ (Percentile = P) | H3: สูตรการคำนวณหาคะแนน ณ ตำแหน่งเปอร์เซ็นไทล์ที่กำหนด
A6: สูตรการคำนวณหาตำแหน่งเดไซล์ (Dacile = D) | H6: สูตรการคำนวณหาคะแนน ณ ตำแหน่งเดไซล์ ที่กำหนด
A9: สูตรการคำนวณหาตำแหน่งะควอไทล์ (Quartile = Q) | H9: สูตรการคำนวณหาคะแนน ณ ตำแหน่งควอไทล์ ที่กำหนด
A13: F = | B13: ความถี่สะสมของคะแนนต่ำสุดถึง L = | E13: =กรอกข้อมูล!AO50 -> 32 | H13: ถ้ากำหนดให้ P = | J13: 75 | K13: <= กรอกคะแนน P
A14: f = | B14: ความถี่ของคะแนนในชั้นที่ X อยู่ = | E14: =กรอกข้อมูล!AO51 -> 10 | H14: ดังนั้นจะมีค่าคะแนน = | J14: =กรอกข้อมูล!AQ54 -> 25.15
A15: L = | B15: ขีดจำกัดล่างที่แท้จริงที่คะแนน X อยู่ = | E15: =กรอกข้อมูล!$AO$48 -> 23.5 | H15: ถ้ากำหนดให้ D = | J15: 7.5 | K15: <= กรอกคะแนน D
A16: i = | B16: อันตรภาคชั้น = | E16: =กรอกข้อมูล!$AQ$3 -> 3 | H16: ดังนั้นจะมีค่าคะแนน = | J16: =กรอกข้อมูล!AQ55 -> 25.15
A17: N = | B17: จำนวนข้อมูลทั้งหมด = | E17: =กรอกข้อมูล!AO52 -> 50 | H17: ถ้ากำหนดให้ Q = | J17: 3 | K17: <= กรอกคะแนน Q
H18: ดังนั้นจะมีค่าคะแนน = | J18: =กรอกข้อมูล!AQ56 -> 25.15
A19: ถ้ากำหนดให้มีค่าคะแนน = | C19: 25 | D19: <= กรอกคะแนน
A20: ดังนั้นจะมีตำแหน่งของคะแนน ดังนี้
B21: P = | C21: =กรอกข้อมูล!AO54 -> 74
B22: D = | C22: =กรอกข้อมูล!AO55 -> 7.4
B23: Q = | C23: =กรอกข้อมูล!AO56 -> 2.96

Sheet TมาตรฐานT
A1: คะแนน | B1: ความถี่ (f) | C1: cf | D1: cf+1/2f | E1: Percentile | F1: T-score | G1: ความถี่ (f) | H1: ความถี่ (f) | I1: cf | J1: cf | K1: cf+1/2f | L1: cf+1/2f | M1: Percentile | N1: Percentile | O1: T-score | P1: T-score | Q1: =gradeD!AL3 -> Grade (5/5) | R1: =gradeD!AM3 -> Grade (8/8) | S1: =gradeD!AP3 -> Gradeคะแนนดิบ (5) | T1: =gradeD!AR3 -> Gradeคะแนนดิบ (8) | W1: คะแนนที่ได้ | X1: T-score
A2: 100 | B2: =H2 ->  | C2: =J2 ->  | D2: =L2 ->  | E2: =N2 ->  | F2: =P2 ->  | G2: =COUNTIF(กรอกข้อมูล!A$2:A$401,A2) -> 0 | H2: =IF(G2=0,"",G2) ->  | I2: =I3+G2 -> 50 | J2: =IF(G2=0,"",I2) ->  | K2: =I3+1/2*G2 -> 50 | L2: =IF(G2=0,"",K2) ->  | M2: =K2*100/กรอกข้อมูล!AO$7 -> 100 | N2: =IF(G2=0,"",M2) ->  | O2: =VLOOKUP(M2,Ttable!A$2:B$82,2) -> 90 | P2: =IF(G2=0,"",O2) ->  | Q2: =gradeD!AL4 ->  | R2: =gradeD!AM4 ->  | S2: =gradeD!AP4 ->  | T2: =gradeD!AR4 ->  | V2: ค่าคะแนนเฉลี่ย | W2: =Z2 -> 21.58 | X2: 19.82 | Z2: =SUM(กรอกข้อมูล!A2:A401)/กรอกข้อมูล!D12 -> 21.58 | AA2: =SUM(F2:F102)/กรอกข้อมูล!D12 -> 19.82
A3: 99 | G3: =COUNTIF(กรอกข้อมูล!A$2:A$401,A3) -> 0 | H3: =IF(G3=0,"",G3) ->  | I3: 50 | J3: =IF(G3=0,"",I3) ->  | K3: 50 | L3: =IF(G3=0,"",K3) ->  | M3: =K3*100/กรอกข้อมูล!AO$7 -> 100 | N3: =IF(G3=0,"",M3) ->  | O3: =VLOOKUP(M3,Ttable!A$2:B$82,2) -> 90 | P3: =IF(G3=0,"",O3) ->  | Q3: =gradeD!AL5 ->  | R3: =gradeD!AM5 ->  | S3: =gradeD!AP5 ->  | T3: =gradeD!AR5 ->  | V3: ค่า S.D. | W3: 4.853317822 | X3: 12.18486982 | Z3: =STDEV(กรอกข้อมูล!A2:A401) -> 4.853317822 | AA3: =STDEV(F2:F102) -> 12.18486982
A4: 98 | G4: =COUNTIF(กรอกข้อมูล!A$2:A$401,A4) -> 0 | I4: 50 | K4: 50 | M4: =K4*100/กรอกข้อมูล!AO$7 -> 100 | O4: =VLOOKUP(M4,Ttable!A$2:B$82,2) -> 90 | Q4: =gradeD!AL6 ->  | R4: =gradeD!AM6 ->  | S4: =gradeD!AP6 ->  | T4: =gradeD!AR6 ->  | V4: ค่ามากที่สุด | W4: 31 | X4: 73 | Z4: =MAX(กรอกข้อมูล!A2:A401) -> 31 | AA4: =MAX(F2:F102) -> 73
A5: 97 | G5: =COUNTIF(กรอกข้อมูล!A$2:A$401,A5) -> 0 | I5: 50 | K5: 50 | M5: =K5*100/กรอกข้อมูล!AO$7 -> 100 | O5: =VLOOKUP(M5,Ttable!A$2:B$82,2) -> 90 | Q5: =gradeD!AL7 ->  | R5: =gradeD!AM7 ->  | S5: =gradeD!AP7 ->  | T5: =gradeD!AR7 ->  | V5: ค่าน้อยที่สุด | W5: 12 | X5: 29 | Z5: =MIN(กรอกข้อมูล!A2:A401) -> 12 | AA5: =MIN(F2:F102) -> 29
A6: 96 | G6: =COUNTIF(กรอกข้อมูล!A$2:A$401,A6) -> 0 | I6: 50 | K6: 50 | M6: =K6*100/กรอกข้อมูล!AO$7 -> 100 | O6: =VLOOKUP(M6,Ttable!A$2:B$82,2) -> 90 | Q6: =gradeD!AL8 ->  | R6: =gradeD!AM8 ->  | S6: =gradeD!AP8 ->  | T6: =gradeD!AR8 -> 
A7: 95 | G7: =COUNTIF(กรอกข้อมูล!A$2:A$401,A7) -> 0 | I7: 50 | K7: 50 | M7: =K7*100/กรอกข้อมูล!AO$7 -> 100 | O7: =VLOOKUP(M7,Ttable!A$2:B$82,2) -> 90 | Q7: =gradeD!AL9 ->  | R7: =gradeD!AM9 ->  | S7: =gradeD!AP9 ->  | T7: =gradeD!AR9 -> 
A8: 94 | G8: =COUNTIF(กรอกข้อมูล!A$2:A$401,A8) -> 0 | I8: 50 | K8: 50 | M8: =K8*100/กรอกข้อมูล!AO$7 -> 100 | O8: =VLOOKUP(M8,Ttable!A$2:B$82,2) -> 90 | Q8: =gradeD!AL10 ->  | R8: =gradeD!AM10 ->  | S8: =gradeD!AP10 ->  | T8: =gradeD!AR10 -> 
A9: 93 | G9: =COUNTIF(กรอกข้อมูล!A$2:A$401,A9) -> 0 | I9: 50 | K9: 50 | M9: =K9*100/กรอกข้อมูล!AO$7 -> 100 | O9: =VLOOKUP(M9,Ttable!A$2:B$82,2) -> 90 | Q9: =gradeD!AL11 ->  | R9: =gradeD!AM11 ->  | S9: =gradeD!AP11 ->  | T9: =gradeD!AR11 -> 
A10: 92 | G10: =COUNTIF(กรอกข้อมูล!A$2:A$401,A10) -> 0 | I10: 50 | K10: 50 | M10: =K10*100/กรอกข้อมูล!AO$7 -> 100 | O10: =VLOOKUP(M10,Ttable!A$2:B$82,2) -> 90 | Q10: =gradeD!AL12 ->  | R10: =gradeD!AM12 ->  | S10: =gradeD!AP12 ->  | T10: =gradeD!AR12 -> 
A11: 91 | G11: =COUNTIF(กรอกข้อมูล!A$2:A$401,A11) -> 0 | I11: 50 | K11: 50 | M11: =K11*100/กรอกข้อมูล!AO$7 -> 100 | O11: =VLOOKUP(M11,Ttable!A$2:B$82,2) -> 90 | Q11: =gradeD!AL13 ->  | R11: =gradeD!AM13 ->  | S11: =gradeD!AP13 ->  | T11: =gradeD!AR13 -> 
A12: 90 | G12: =COUNTIF(กรอกข้อมูล!A$2:A$401,A12) -> 0 | I12: 50 | K12: 50 | M12: =K12*100/กรอกข้อมูล!AO$7 -> 100 | O12: =VLOOKUP(M12,Ttable!A$2:B$82,2) -> 90 | Q12: =gradeD!AL14 ->  | R12: =gradeD!AM14 ->  | S12: =gradeD!AP14 ->  | T12: =gradeD!AR14 -> 
A13: 89 | G13: =COUNTIF(กรอกข้อมูล!A$2:A$401,A13) -> 0 | I13: 50 | K13: 50 | M13: =K13*100/กรอกข้อมูล!AO$7 -> 100 | O13: =VLOOKUP(M13,Ttable!A$2:B$82,2) -> 90 | Q13: =gradeD!AL15 ->  | R13: =gradeD!AM15 ->  | S13: =gradeD!AP15 ->  | T13: =gradeD!AR15 -> 
A14: 88 | G14: =COUNTIF(กรอกข้อมูล!A$2:A$401,A14) -> 0 | I14: 50 | K14: 50 | M14: =K14*100/กรอกข้อมูล!AO$7 -> 100 | O14: =VLOOKUP(M14,Ttable!A$2:B$82,2) -> 90 | Q14: =gradeD!AL16 ->  | R14: =gradeD!AM16 ->  | S14: =gradeD!AP16 ->  | T14: =gradeD!AR16 -> 
A15: 87 | G15: =COUNTIF(กรอกข้อมูล!A$2:A$401,A15) -> 0 | I15: 50 | K15: 50 | M15: =K15*100/กรอกข้อมูล!AO$7 -> 100 | O15: =VLOOKUP(M15,Ttable!A$2:B$82,2) -> 90 | Q15: =gradeD!AL17 ->  | R15: =gradeD!AM17 ->  | S15: =gradeD!AP17 ->  | T15: =gradeD!AR17 -> 
A16: 86 | G16: =COUNTIF(กรอกข้อมูล!A$2:A$401,A16) -> 0 | I16: 50 | K16: 50 | M16: =K16*100/กรอกข้อมูล!AO$7 -> 100 | O16: =VLOOKUP(M16,Ttable!A$2:B$82,2) -> 90 | Q16: =gradeD!AL18 ->  | R16: =gradeD!AM18 ->  | S16: =gradeD!AP18 ->  | T16: =gradeD!AR18 -> 
A17: 85 | G17: =COUNTIF(กรอกข้อมูล!A$2:A$401,A17) -> 0 | I17: 50 | K17: 50 | M17: =K17*100/กรอกข้อมูล!AO$7 -> 100 | O17: =VLOOKUP(M17,Ttable!A$2:B$82,2) -> 90 | Q17: =gradeD!AL19 ->  | R17: =gradeD!AM19 ->  | S17: =gradeD!AP19 ->  | T17: =gradeD!AR19 -> 
A18: 84 | G18: =COUNTIF(กรอกข้อมูล!A$2:A$401,A18) -> 0 | I18: 50 | K18: 50 | M18: =K18*100/กรอกข้อมูล!AO$7 -> 100 | O18: =VLOOKUP(M18,Ttable!A$2:B$82,2) -> 90 | Q18: =gradeD!AL20 ->  | R18: =gradeD!AM20 ->  | S18: =gradeD!AP20 ->  | T18: =gradeD!AR20 -> 
A19: 83 | G19: =COUNTIF(กรอกข้อมูล!A$2:A$401,A19) -> 0 | I19: 50 | K19: 50 | M19: =K19*100/กรอกข้อมูล!AO$7 -> 100 | O19: =VLOOKUP(M19,Ttable!A$2:B$82,2) -> 90 | Q19: =gradeD!AL21 ->  | R19: =gradeD!AM21 ->  | S19: =gradeD!AP21 ->  | T19: =gradeD!AR21 -> 
A20: 82 | G20: =COUNTIF(กรอกข้อมูล!A$2:A$401,A20) -> 0 | I20: 50 | K20: 50 | M20: =K20*100/กรอกข้อมูล!AO$7 -> 100 | O20: =VLOOKUP(M20,Ttable!A$2:B$82,2) -> 90 | Q20: =gradeD!AL22 ->  | R20: =gradeD!AM22 ->  | S20: =gradeD!AP22 ->  | T20: =gradeD!AR22 -> 
A21: 81 | G21: =COUNTIF(กรอกข้อมูล!A$2:A$401,A21) -> 0 | I21: 50 | K21: 50 | M21: =K21*100/กรอกข้อมูล!AO$7 -> 100 | O21: =VLOOKUP(M21,Ttable!A$2:B$82,2) -> 90 | Q21: =gradeD!AL23 ->  | R21: =gradeD!AM23 ->  | S21: =gradeD!AP23 ->  | T21: =gradeD!AR23 -> 
A22: 80 | G22: =COUNTIF(กรอกข้อมูล!A$2:A$401,A22) -> 0 | I22: 50 | K22: 50 | M22: =K22*100/กรอกข้อมูล!AO$7 -> 100 | O22: =VLOOKUP(M22,Ttable!A$2:B$82,2) -> 90 | Q22: =gradeD!AL24 ->  | R22: =gradeD!AM24 ->  | S22: =gradeD!AP24 ->  | T22: =gradeD!AR24 -> 
A23: 79 | G23: =COUNTIF(กรอกข้อมูล!A$2:A$401,A23) -> 0 | I23: 50 | K23: 50 | M23: =K23*100/กรอกข้อมูล!AO$7 -> 100 | O23: =VLOOKUP(M23,Ttable!A$2:B$82,2) -> 90 | Q23: =gradeD!AL25 ->  | R23: =gradeD!AM25 ->  | S23: =gradeD!AP25 ->  | T23: =gradeD!AR25 -> 
A24: 78 | G24: =COUNTIF(กรอกข้อมูล!A$2:A$401,A24) -> 0 | I24: 50 | K24: 50 | M24: =K24*100/กรอกข้อมูล!AO$7 -> 100 | O24: =VLOOKUP(M24,Ttable!A$2:B$82,2) -> 90 | Q24: =gradeD!AL26 ->  | R24: =gradeD!AM26 ->  | S24: =gradeD!AP26 ->  | T24: =gradeD!AR26 -> 
A25: 77 | G25: =COUNTIF(กรอกข้อมูล!A$2:A$401,A25) -> 0 | I25: 50 | K25: 50 | M25: =K25*100/กรอกข้อมูล!AO$7 -> 100 | O25: =VLOOKUP(M25,Ttable!A$2:B$82,2) -> 90 | Q25: =gradeD!AL27 ->  | R25: =gradeD!AM27 ->  | S25: =gradeD!AP27 ->  | T25: =gradeD!AR27 -> 
A26: 76 | G26: =COUNTIF(กรอกข้อมูล!A$2:A$401,A26) -> 0 | I26: 50 | K26: 50 | M26: =K26*100/กรอกข้อมูล!AO$7 -> 100 | O26: =VLOOKUP(M26,Ttable!A$2:B$82,2) -> 90 | Q26: =gradeD!AL28 ->  | R26: =gradeD!AM28 ->  | S26: =gradeD!AP28 ->  | T26: =gradeD!AR28 -> 
A27: 75 | G27: =COUNTIF(กรอกข้อมูล!A$2:A$401,A27) -> 0 | I27: 50 | K27: 50 | M27: =K27*100/กรอกข้อมูล!AO$7 -> 100 | O27: =VLOOKUP(M27,Ttable!A$2:B$82,2) -> 90 | Q27: =gradeD!AL29 ->  | R27: =gradeD!AM29 ->  | S27: =gradeD!AP29 ->  | T27: =gradeD!AR29 -> 
A28: 74 | G28: =COUNTIF(กรอกข้อมูล!A$2:A$401,A28) -> 0 | I28: 50 | K28: 50 | M28: =K28*100/กรอกข้อมูล!AO$7 -> 100 | O28: =VLOOKUP(M28,Ttable!A$2:B$82,2) -> 90 | Q28: =gradeD!AL30 ->  | R28: =gradeD!AM30 ->  | S28: =gradeD!AP30 ->  | T28: =gradeD!AR30 -> 
A29: 73 | G29: =COUNTIF(กรอกข้อมูล!A$2:A$401,A29) -> 0 | I29: 50 | K29: 50 | M29: =K29*100/กรอกข้อมูล!AO$7 -> 100 | O29: =VLOOKUP(M29,Ttable!A$2:B$82,2) -> 90 | Q29: =gradeD!AL31 ->  | R29: =gradeD!AM31 ->  | S29: =gradeD!AP31 ->  | T29: =gradeD!AR31 -> 
A30: 72 | G30: =COUNTIF(กรอกข้อมูล!A$2:A$401,A30) -> 0 | I30: 50 | K30: 50 | M30: =K30*100/กรอกข้อมูล!AO$7 -> 100 | O30: =VLOOKUP(M30,Ttable!A$2:B$82,2) -> 90 | Q30: =gradeD!AL32 ->  | R30: =gradeD!AM32 ->  | S30: =gradeD!AP32 ->  | T30: =gradeD!AR32 -> 
A31: 71 | G31: =COUNTIF(กรอกข้อมูล!A$2:A$401,A31) -> 0 | I31: 50 | K31: 50 | M31: =K31*100/กรอกข้อมูล!AO$7 -> 100 | O31: =VLOOKUP(M31,Ttable!A$2:B$82,2) -> 90 | Q31: =gradeD!AL33 ->  | R31: =gradeD!AM33 ->  | S31: =gradeD!AP33 ->  | T31: =gradeD!AR33 -> 
A32: 70 | G32: =COUNTIF(กรอกข้อมูล!A$2:A$401,A32) -> 0 | I32: 50 | K32: 50 | M32: =K32*100/กรอกข้อมูล!AO$7 -> 100 | O32: =VLOOKUP(M32,Ttable!A$2:B$82,2) -> 90 | Q32: =gradeD!AL34 ->  | R32: =gradeD!AM34 ->  | S32: =gradeD!AP34 ->  | T32: =gradeD!AR34 ->  | W32: =W1 -> คะแนนที่ได้ | X32: T-score
A33: 69 | G33: =COUNTIF(กรอกข้อมูล!A$2:A$401,A33) -> 0 | I33: 50 | K33: 50 | M33: =K33*100/กรอกข้อมูล!AO$7 -> 100 | O33: =VLOOKUP(M33,Ttable!A$2:B$82,2) -> 90 | Q33: =gradeD!AL35 ->  | R33: =gradeD!AM35 ->  | S33: =gradeD!AP35 ->  | T33: =gradeD!AR35 ->  | V33: ค่าคะแนนเฉลี่ย | W33: 21.58 | X33: 19.82
A34: 68 | B34: =H34 ->  | C34: =J34 ->  | D34: =L34 ->  | E34: =N34 ->  | F34: =P34 ->  | G34: =COUNTIF(กรอกข้อมูล!A$2:A$401,A34) -> 0 | I34: 50 | K34: 50 | M34: =K34*100/กรอกข้อมูล!AO$7 -> 100 | O34: =VLOOKUP(M34,Ttable!A$2:B$82,2) -> 90 | Q34: =gradeD!AL36 ->  | R34: =gradeD!AM36 ->  | S34: =gradeD!AP36 ->  | T34: =gradeD!AR36 ->  | V34: ค่า S.D. | W34: 4.853317822 | X34: 12.18486982
A35: 67 | G35: =COUNTIF(กรอกข้อมูล!A$2:A$401,A35) -> 0 | I35: 50 | K35: 50 | M35: =K35*100/กรอกข้อมูล!AO$7 -> 100 | O35: =VLOOKUP(M35,Ttable!A$2:B$82,2) -> 90 | Q35: =gradeD!AL37 ->  | R35: =gradeD!AM37 ->  | S35: =gradeD!AP37 ->  | T35: =gradeD!AR37 ->  | V35: ค่ามากที่สุด | W35: 31 | X35: 73
A36: 66 | G36: =COUNTIF(กรอกข้อมูล!A$2:A$401,A36) -> 0 | I36: 50 | K36: 50 | M36: =K36*100/กรอกข้อมูล!AO$7 -> 100 | O36: =VLOOKUP(M36,Ttable!A$2:B$82,2) -> 90 | Q36: =gradeD!AL38 ->  | R36: =gradeD!AM38 ->  | S36: =gradeD!AP38 ->  | T36: =gradeD!AR38 ->  | V36: ค่าน้อยที่สุด | W36: 12 | X36: 29
A37: 65 | G37: =COUNTIF(กรอกข้อมูล!A$2:A$401,A37) -> 0 | I37: 50 | K37: 50 | M37: =K37*100/กรอกข้อมูล!AO$7 -> 100 | O37: =VLOOKUP(M37,Ttable!A$2:B$82,2) -> 90 | Q37: =gradeD!AL39 ->  | R37: =gradeD!AM39 ->  | S37: =gradeD!AP39 ->  | T37: =gradeD!AR39 -> 
A38: 64 | G38: =COUNTIF(กรอกข้อมูล!A$2:A$401,A38) -> 0 | I38: 50 | K38: 50 | M38: =K38*100/กรอกข้อมูล!AO$7 -> 100 | O38: =VLOOKUP(M38,Ttable!A$2:B$82,2) -> 90 | Q38: =gradeD!AL40 ->  | R38: =gradeD!AM40 ->  | S38: =gradeD!AP40 ->  | T38: =gradeD!AR40 -> 
A39: 63 | G39: =COUNTIF(กรอกข้อมูล!A$2:A$401,A39) -> 0 | I39: 50 | K39: 50 | M39: =K39*100/กรอกข้อมูล!AO$7 -> 100 | O39: =VLOOKUP(M39,Ttable!A$2:B$82,2) -> 90 | Q39: =gradeD!AL41 ->  | R39: =gradeD!AM41 ->  | S39: =gradeD!AP41 ->  | T39: =gradeD!AR41 -> 
A40: 62 | G40: =COUNTIF(กรอกข้อมูล!A$2:A$401,A40) -> 0 | I40: 50 | K40: 50 | M40: =K40*100/กรอกข้อมูล!AO$7 -> 100 | O40: =VLOOKUP(M40,Ttable!A$2:B$82,2) -> 90 | Q40: =gradeD!AL42 ->  | R40: =gradeD!AM42 ->  | S40: =gradeD!AP42 ->  | T40: =gradeD!AR42 -> 
A41: 61 | G41: =COUNTIF(กรอกข้อมูล!A$2:A$401,A41) -> 0 | I41: 50 | K41: 50 | M41: =K41*100/กรอกข้อมูล!AO$7 -> 100 | O41: =VLOOKUP(M41,Ttable!A$2:B$82,2) -> 90 | Q41: =gradeD!AL43 ->  | R41: =gradeD!AM43 ->  | S41: =gradeD!AP43 ->  | T41: =gradeD!AR43 -> 
A42: 60 | G42: =COUNTIF(กรอกข้อมูล!A$2:A$401,A42) -> 0 | I42: 50 | K42: 50 | M42: =K42*100/กรอกข้อมูล!AO$7 -> 100 | O42: =VLOOKUP(M42,Ttable!A$2:B$82,2) -> 90 | Q42: =gradeD!AL44 ->  | R42: =gradeD!AM44 ->  | S42: =gradeD!AP44 ->  | T42: =gradeD!AR44 -> 
A43: 59 | G43: =COUNTIF(กรอกข้อมูล!A$2:A$401,A43) -> 0 | I43: 50 | K43: 50 | M43: =K43*100/กรอกข้อมูล!AO$7 -> 100 | O43: =VLOOKUP(M43,Ttable!A$2:B$82,2) -> 90 | Q43: =gradeD!AL45 ->  | R43: =gradeD!AM45 ->  | S43: =gradeD!AP45 ->  | T43: =gradeD!AR45 -> 
A44: 58 | G44: =COUNTIF(กรอกข้อมูล!A$2:A$401,A44) -> 0 | I44: 50 | K44: 50 | M44: =K44*100/กรอกข้อมูล!AO$7 -> 100 | O44: =VLOOKUP(M44,Ttable!A$2:B$82,2) -> 90 | Q44: =gradeD!AL46 ->  | R44: =gradeD!AM46 ->  | S44: =gradeD!AP46 ->  | T44: =gradeD!AR46 -> 
A45: 57 | G45: =COUNTIF(กรอกข้อมูล!A$2:A$401,A45) -> 0 | I45: 50 | K45: 50 | M45: =K45*100/กรอกข้อมูล!AO$7 -> 100 | O45: =VLOOKUP(M45,Ttable!A$2:B$82,2) -> 90 | Q45: =gradeD!AL47 ->  | R45: =gradeD!AM47 ->  | S45: =gradeD!AP47 ->  | T45: =gradeD!AR47 -> 
A46: 56 | G46: =COUNTIF(กรอกข้อมูล!A$2:A$401,A46) -> 0 | I46: 50 | K46: 50 | M46: =K46*100/กรอกข้อมูล!AO$7 -> 100 | O46: =VLOOKUP(M46,Ttable!A$2:B$82,2) -> 90 | Q46: =gradeD!AL48 ->  | R46: =gradeD!AM48 ->  | S46: =gradeD!AP48 ->  | T46: =gradeD!AR48 -> 
A47: 55 | G47: =COUNTIF(กรอกข้อมูล!A$2:A$401,A47) -> 0 | I47: 50 | K47: 50 | M47: =K47*100/กรอกข้อมูล!AO$7 -> 100 | O47: =VLOOKUP(M47,Ttable!A$2:B$82,2) -> 90 | Q47: =gradeD!AL49 ->  | R47: =gradeD!AM49 ->  | S47: =gradeD!AP49 ->  | T47: =gradeD!AR49 -> 
A48: 54 | G48: =COUNTIF(กรอกข้อมูล!A$2:A$401,A48) -> 0 | I48: 50 | K48: 50 | M48: =K48*100/กรอกข้อมูล!AO$7 -> 100 | O48: =VLOOKUP(M48,Ttable!A$2:B$82,2) -> 90 | Q48: =gradeD!AL50 ->  | R48: =gradeD!AM50 ->  | S48: =gradeD!AP50 ->  | T48: =gradeD!AR50 -> 
A49: 53 | G49: =COUNTIF(กรอกข้อมูล!A$2:A$401,A49) -> 0 | I49: 50 | K49: 50 | M49: =K49*100/กรอกข้อมูล!AO$7 -> 100 | O49: =VLOOKUP(M49,Ttable!A$2:B$82,2) -> 90 | Q49: =gradeD!AL51 ->  | R49: =gradeD!AM51 ->  | S49: =gradeD!AP51 ->  | T49: =gradeD!AR51 -> 
A50: 52 | G50: =COUNTIF(กรอกข้อมูล!A$2:A$401,A50) -> 0 | I50: 50 | K50: 50 | M50: =K50*100/กรอกข้อมูล!AO$7 -> 100 | O50: =VLOOKUP(M50,Ttable!A$2:B$82,2) -> 90 | Q50: =gradeD!AL52 ->  | R50: =gradeD!AM52 ->  | S50: =gradeD!AP52 ->  | T50: =gradeD!AR52 -> 
A51: 51 | G51: =COUNTIF(กรอกข้อมูล!A$2:A$401,A51) -> 0 | I51: 50 | K51: 50 | M51: =K51*100/กรอกข้อมูล!AO$7 -> 100 | O51: =VLOOKUP(M51,Ttable!A$2:B$82,2) -> 90 | Q51: =gradeD!AL53 ->  | R51: =gradeD!AM53 ->  | S51: =gradeD!AP53 ->  | T51: =gradeD!AR53 -> 
A52: 50 | G52: =COUNTIF(กรอกข้อมูล!A$2:A$401,A52) -> 0 | I52: 50 | K52: 50 | M52: =K52*100/กรอกข้อมูล!AO$7 -> 100 | O52: =VLOOKUP(M52,Ttable!A$2:B$82,2) -> 90 | Q52: =gradeD!AL54 ->  | R52: =gradeD!AM54 ->  | S52: =gradeD!AP54 ->  | T52: =gradeD!AR54 ->  | W52: =W1 -> คะแนนที่ได้ | X52: T-score
A53: 49 | G53: =COUNTIF(กรอกข้อมูล!A$2:A$401,A53) -> 0 | I53: 50 | K53: 50 | M53: =K53*100/กรอกข้อมูล!AO$7 -> 100 | O53: =VLOOKUP(M53,Ttable!A$2:B$82,2) -> 90 | Q53: =gradeD!AL55 ->  | R53: =gradeD!AM55 ->  | S53: =gradeD!AP55 ->  | T53: =gradeD!AR55 ->  | V53: ค่าคะแนนเฉลี่ย | W53: 21.58 | X53: 19.82
A54: 48 | G54: =COUNTIF(กรอกข้อมูล!A$2:A$401,A54) -> 0 | I54: 50 | K54: 50 | M54: =K54*100/กรอกข้อมูล!AO$7 -> 100 | O54: =VLOOKUP(M54,Ttable!A$2:B$82,2) -> 90 | Q54: =gradeD!AL56 ->  | R54: =gradeD!AM56 ->  | S54: =gradeD!AP56 ->  | T54: =gradeD!AR56 ->  | V54: ค่า S.D. | W54: 4.853317822 | X54: 12.18486982
A55: 47 | G55: =COUNTIF(กรอกข้อมูล!A$2:A$401,A55) -> 0 | I55: 50 | K55: 50 | M55: =K55*100/กรอกข้อมูล!AO$7 -> 100 | O55: =VLOOKUP(M55,Ttable!A$2:B$82,2) -> 90 | Q55: =gradeD!AL57 ->  | R55: =gradeD!AM57 ->  | S55: =gradeD!AP57 ->  | T55: =gradeD!AR57 ->  | V55: ค่ามากที่สุด | W55: 31 | X55: 73
A56: 46 | G56: =COUNTIF(กรอกข้อมูล!A$2:A$401,A56) -> 0 | I56: 50 | K56: 50 | M56: =K56*100/กรอกข้อมูล!AO$7 -> 100 | O56: =VLOOKUP(M56,Ttable!A$2:B$82,2) -> 90 | Q56: =gradeD!AL58 ->  | R56: =gradeD!AM58 ->  | S56: =gradeD!AP58 ->  | T56: =gradeD!AR58 ->  | V56: ค่าน้อยที่สุด | W56: 12 | X56: 29
A57: 45 | G57: =COUNTIF(กรอกข้อมูล!A$2:A$401,A57) -> 0 | I57: 50 | K57: 50 | M57: =K57*100/กรอกข้อมูล!AO$7 -> 100 | O57: =VLOOKUP(M57,Ttable!A$2:B$82,2) -> 90 | Q57: =gradeD!AL59 ->  | R57: =gradeD!AM59 ->  | S57: =gradeD!AP59 ->  | T57: =gradeD!AR59 -> 
A58: 44 | G58: =COUNTIF(กรอกข้อมูล!A$2:A$401,A58) -> 0 | I58: 50 | K58: 50 | M58: =K58*100/กรอกข้อมูล!AO$7 -> 100 | O58: =VLOOKUP(M58,Ttable!A$2:B$82,2) -> 90 | Q58: =gradeD!AL60 ->  | R58: =gradeD!AM60 ->  | S58: =gradeD!AP60 ->  | T58: =gradeD!AR60 -> 
A59: 43 | G59: =COUNTIF(กรอกข้อมูล!A$2:A$401,A59) -> 0 | I59: 50 | K59: 50 | M59: =K59*100/กรอกข้อมูล!AO$7 -> 100 | O59: =VLOOKUP(M59,Ttable!A$2:B$82,2) -> 90 | Q59: =gradeD!AL61 ->  | R59: =gradeD!AM61 ->  | S59: =gradeD!AP61 ->  | T59: =gradeD!AR61 -> 
A60: 42 | G60: =COUNTIF(กรอกข้อมูล!A$2:A$401,A60) -> 0 | I60: 50 | K60: 50 | M60: =K60*100/กรอกข้อมูล!AO$7 -> 100 | O60: =VLOOKUP(M60,Ttable!A$2:B$82,2) -> 90 | Q60: =gradeD!AL62 ->  | R60: =gradeD!AM62 ->  | S60: =gradeD!AP62 ->  | T60: =gradeD!AR62 -> 
A61: 41 | G61: =COUNTIF(กรอกข้อมูล!A$2:A$401,A61) -> 0 | I61: 50 | K61: 50 | M61: =K61*100/กรอกข้อมูล!AO$7 -> 100 | O61: =VLOOKUP(M61,Ttable!A$2:B$82,2) -> 90 | Q61: =gradeD!AL63 ->  | R61: =gradeD!AM63 ->  | S61: =gradeD!AP63 ->  | T61: =gradeD!AR63 -> 
A62: 40 | G62: =COUNTIF(กรอกข้อมูล!A$2:A$401,A62) -> 0 | I62: 50 | K62: 50 | M62: =K62*100/กรอกข้อมูล!AO$7 -> 100 | O62: =VLOOKUP(M62,Ttable!A$2:B$82,2) -> 90 | Q62: =gradeD!AL64 ->  | R62: =gradeD!AM64 ->  | S62: =gradeD!AP64 ->  | T62: =gradeD!AR64 -> 
A63: 39 | G63: =COUNTIF(กรอกข้อมูล!A$2:A$401,A63) -> 0 | I63: 50 | K63: 50 | M63: =K63*100/กรอกข้อมูล!AO$7 -> 100 | O63: =VLOOKUP(M63,Ttable!A$2:B$82,2) -> 90 | Q63: =gradeD!AL65 ->  | R63: =gradeD!AM65 ->  | S63: =gradeD!AP65 ->  | T63: =gradeD!AR65 -> 
A64: 38 | G64: =COUNTIF(กรอกข้อมูล!A$2:A$401,A64) -> 0 | I64: 50 | K64: 50 | M64: =K64*100/กรอกข้อมูล!AO$7 -> 100 | O64: =VLOOKUP(M64,Ttable!A$2:B$82,2) -> 90 | Q64: =gradeD!AL66 ->  | R64: =gradeD!AM66 ->  | S64: =gradeD!AP66 ->  | T64: =gradeD!AR66 -> 
A65: 37 | G65: =COUNTIF(กรอกข้อมูล!A$2:A$401,A65) -> 0 | I65: 50 | K65: 50 | M65: =K65*100/กรอกข้อมูล!AO$7 -> 100 | O65: =VLOOKUP(M65,Ttable!A$2:B$82,2) -> 90 | Q65: =gradeD!AL67 ->  | R65: =gradeD!AM67 ->  | S65: =gradeD!AP67 ->  | T65: =gradeD!AR67 -> 
A66: 36 | B66: =H66 ->  | C66: =J66 ->  | D66: =L66 ->  | E66: =N66 ->  | F66: =P66 ->  | G66: =COUNTIF(กรอกข้อมูล!A$2:A$401,A66) -> 0 | I66: =I67+G66 -> 50 | K66: =I67+1/2*G66 -> 50 | M66: =K66*100/กรอกข้อมูล!AO$7 -> 100 | O66: =VLOOKUP(M66,Ttable!A$2:B$82,2) -> 90 | Q66: =gradeD!AL68 ->  | R66: =gradeD!AM68 ->  | S66: =gradeD!AP68 ->  | T66: =gradeD!AR68 -> 
A67: 35 | G67: =COUNTIF(กรอกข้อมูล!A$2:A$401,A67) -> 0 | H67: =IF(G67=0,"",G67) ->  | I67: 50 | J67: =IF(G67=0,"",I67) ->  | K67: 50 | L67: =IF(G67=0,"",K67) ->  | M67: =K67*100/กรอกข้อมูล!AO$7 -> 100 | N67: =IF(G67=0,"",M67) ->  | O67: =VLOOKUP(M67,Ttable!A$2:B$82,2) -> 90 | P67: =IF(G67=0,"",O67) ->  | Q67: =gradeD!AL69 ->  | R67: =gradeD!AM69 ->  | S67: =gradeD!AP69 ->  | T67: =gradeD!AR69 -> 
A68: 34 | G68: =COUNTIF(กรอกข้อมูล!A$2:A$401,A68) -> 0 | I68: 50 | K68: 50 | M68: =K68*100/กรอกข้อมูล!AO$7 -> 100 | O68: =VLOOKUP(M68,Ttable!A$2:B$82,2) -> 90 | Q68: =gradeD!AL70 ->  | R68: =gradeD!AM70 ->  | S68: =gradeD!AP70 ->  | T68: =gradeD!AR70 -> 
A69: 33 | G69: =COUNTIF(กรอกข้อมูล!A$2:A$401,A69) -> 0 | I69: 50 | K69: 50 | M69: =K69*100/กรอกข้อมูล!AO$7 -> 100 | O69: =VLOOKUP(M69,Ttable!A$2:B$82,2) -> 90 | Q69: =gradeD!AL71 ->  | R69: =gradeD!AM71 ->  | S69: =gradeD!AP71 ->  | T69: =gradeD!AR71 -> 
A70: 32 | G70: =COUNTIF(กรอกข้อมูล!A$2:A$401,A70) -> 0 | I70: 50 | K70: 50 | M70: =K70*100/กรอกข้อมูล!AO$7 -> 100 | O70: =VLOOKUP(M70,Ttable!A$2:B$82,2) -> 90 | Q70: =gradeD!AL72 ->  | R70: =gradeD!AM72 ->  | S70: =gradeD!AP72 ->  | T70: =gradeD!AR72 -> 
A71: 31 | B71: 1 | C71: 50 | D71: 49.5 | E71: 99 | F71: 73 | G71: =COUNTIF(กรอกข้อมูล!A$2:A$401,A71) -> 1 | H71: 1 | I71: 50 | J71: 50 | K71: 49.5 | L71: 49.5 | M71: =K71*100/กรอกข้อมูล!AO$7 -> 99 | N71: 99 | O71: =VLOOKUP(M71,Ttable!A$2:B$82,2) -> 73 | P71: 73 | Q71: =gradeD!AL73 -> 4 | R71: =gradeD!AM73 -> 4 | S71: =gradeD!AP73 -> 0 | T71: =gradeD!AR73 -> 0
A72: 30 | B72: 2 | C72: 49 | D72: 48 | E72: 96 | F72: 67 | G72: =COUNTIF(กรอกข้อมูล!A$2:A$401,A72) -> 2 | H72: 2 | I72: 49 | J72: 49 | K72: 48 | L72: 48 | M72: =K72*100/กรอกข้อมูล!AO$7 -> 96 | N72: 96 | O72: =VLOOKUP(M72,Ttable!A$2:B$82,2) -> 67 | P72: 67 | Q72: =gradeD!AL74 -> 4 | R72: =gradeD!AM74 -> 4 | S72: =gradeD!AP74 -> 0 | T72: =gradeD!AR74 -> 0 | W72: =W1 -> คะแนนที่ได้ | X72: T-score
A73: 29 | B73: 1 | C73: 47 | D73: 46.5 | E73: 93 | F73: 64 | G73: =COUNTIF(กรอกข้อมูล!A$2:A$401,A73) -> 1 | H73: 1 | I73: 47 | J73: 47 | K73: 46.5 | L73: 46.5 | M73: =K73*100/กรอกข้อมูล!AO$7 -> 93 | N73: 93 | O73: =VLOOKUP(M73,Ttable!A$2:B$82,2) -> 64 | P73: 64 | Q73: =gradeD!AL75 -> 3 | R73: =gradeD!AM75 -> 3.5 | S73: =gradeD!AP75 -> 0 | T73: =gradeD!AR75 -> 0 | V73: ค่าคะแนนเฉลี่ย | W73: 21.58 | X73: 19.82
A74: 28 | B74: 2 | C74: 46 | D74: 45 | E74: 90 | F74: 62 | G74: =COUNTIF(กรอกข้อมูล!A$2:A$401,A74) -> 2 | H74: 2 | I74: 46 | J74: 46 | K74: 45 | L74: 45 | M74: =K74*100/กรอกข้อมูล!AO$7 -> 90 | N74: 90 | O74: =VLOOKUP(M74,Ttable!A$2:B$82,2) -> 62 | P74: 62 | Q74: =gradeD!AL76 -> 3 | R74: =gradeD!AM76 -> 3 | S74: =gradeD!AP76 -> 0 | T74: =gradeD!AR76 -> 0 | V74: ค่า S.D. | W74: 4.853317822 | X74: 12.18486982
A75: 27 | B75: 2 | C75: 44 | D75: 43 | E75: 86 | F75: 60 | G75: =COUNTIF(กรอกข้อมูล!A$2:A$401,A75) -> 2 | H75: 2 | I75: 44 | J75: 44 | K75: 43 | L75: 43 | M75: =K75*100/กรอกข้อมูล!AO$7 -> 86 | N75: 86 | O75: =VLOOKUP(M75,Ttable!A$2:B$82,2) -> 60 | P75: 60 | Q75: =gradeD!AL77 -> 3 | R75: =gradeD!AM77 -> 3 | S75: =gradeD!AP77 -> 0 | T75: =gradeD!AR77 -> 0 | V75: ค่ามากที่สุด | W75: 31 | X75: 73
A76: 26 | B76: 4 | C76: 42 | D76: 40 | E76: 80 | F76: 58 | G76: =COUNTIF(กรอกข้อมูล!A$2:A$401,A76) -> 4 | H76: 4 | I76: 42 | J76: 42 | K76: 40 | L76: 40 | M76: =K76*100/กรอกข้อมูล!AO$7 -> 80 | N76: 80 | O76: =VLOOKUP(M76,Ttable!A$2:B$82,2) -> 58 | P76: 58 | Q76: =gradeD!AL78 -> 2 | R76: =gradeD!AM78 -> 2.5 | S76: =gradeD!AP78 -> 0 | T76: =gradeD!AR78 -> 0 | V76: ค่าน้อยที่สุด | W76: 12 | X76: 29
A77: 25 | B77: 3 | C77: 38 | D77: 36.5 | E77: 73 | F77: 56 | G77: =COUNTIF(กรอกข้อมูล!A$2:A$401,A77) -> 3 | H77: 3 | I77: 38 | J77: 38 | K77: 36.5 | L77: 36.5 | M77: =K77*100/กรอกข้อมูล!AO$7 -> 73 | N77: 73 | O77: =VLOOKUP(M77,Ttable!A$2:B$82,2) -> 56 | P77: 56 | Q77: =gradeD!AL79 -> 2 | R77: =gradeD!AM79 -> 2.5 | S77: =gradeD!AP79 -> 0 | T77: =gradeD!AR79 -> 0
A78: 24 | B78: 3 | C78: 35 | D78: 33.5 | E78: 67 | F78: 54 | G78: =COUNTIF(กรอกข้อมูล!A$2:A$401,A78) -> 3 | H78: 3 | I78: 35 | J78: 35 | K78: 33.5 | L78: 33.5 | M78: =K78*100/กรอกข้อมูล!AO$7 -> 67 | N78: 67 | O78: =VLOOKUP(M78,Ttable!A$2:B$82,2) -> 54 | P78: 54 | Q78: =gradeD!AL80 -> 2 | R78: =gradeD!AM80 -> 2.5 | S78: =gradeD!AP80 -> 0 | T78: =gradeD!AR80 -> 0
A79: 23 | B79: 4 | C79: 32 | D79: 30 | E79: 60 | F79: 52 | G79: =COUNTIF(กรอกข้อมูล!A$2:A$401,A79) -> 4 | H79: 4 | I79: 32 | J79: 32 | K79: 30 | L79: 30 | M79: =K79*100/กรอกข้อมูล!AO$7 -> 60 | N79: 60 | O79: =VLOOKUP(M79,Ttable!A$2:B$82,2) -> 52 | P79: 52 | Q79: =gradeD!AL81 -> 2 | R79: =gradeD!AM81 -> 2.5 | S79: =gradeD!AP81 -> 0 | T79: =gradeD!AR81 -> 0
A80: 22 | B80: 2 | C80: 28 | D80: 27 | E80: 54 | F80: 51 | G80: =COUNTIF(กรอกข้อมูล!A$2:A$401,A80) -> 2 | H80: 2 | I80: 28 | J80: 28 | K80: 27 | L80: 27 | M80: =K80*100/กรอกข้อมูล!AO$7 -> 54 | N80: 54 | O80: =VLOOKUP(M80,Ttable!A$2:B$82,2) -> 51 | P80: 51 | Q80: =gradeD!AL82 -> 2 | R80: =gradeD!AM82 -> 2 | S80: =gradeD!AP82 -> 0 | T80: =gradeD!AR82 -> 0
A81: 21 | B81: 6 | C81: 26 | D81: 23 | E81: 46 | F81: 48 | G81: =COUNTIF(กรอกข้อมูล!A$2:A$401,A81) -> 6 | H81: 6 | I81: 26 | J81: 26 | K81: 23 | L81: 23 | M81: =K81*100/กรอกข้อมูล!AO$7 -> 46 | N81: 46 | O81: =VLOOKUP(M81,Ttable!A$2:B$82,2) -> 48 | P81: 48 | Q81: =gradeD!AL83 -> 2 | R81: =gradeD!AM83 -> 2 | S81: =gradeD!AP83 -> 0 | T81: =gradeD!AR83 -> 0
A82: 20 | B82: 3 | C82: 20 | D82: 18.5 | E82: 37 | F82: 46 | G82: =COUNTIF(กรอกข้อมูล!A$2:A$401,A82) -> 3 | H82: 3 | I82: 20 | J82: 20 | K82: 18.5 | L82: 18.5 | M82: =K82*100/กรอกข้อมูล!AO$7 -> 37 | N82: 37 | O82: =VLOOKUP(M82,Ttable!A$2:B$82,2) -> 46 | P82: 46 | Q82: =gradeD!AL84 -> 2 | R82: =gradeD!AM84 -> 2 | S82: =gradeD!AP84 -> 0 | T82: =gradeD!AR84 -> 0
A83: 19 | B83: 4 | C83: 17 | D83: 15 | E83: 30 | F83: 44 | G83: =COUNTIF(กรอกข้อมูล!A$2:A$401,A83) -> 4 | H83: 4 | I83: 17 | J83: 17 | K83: 15 | L83: 15 | M83: =K83*100/กรอกข้อมูล!AO$7 -> 30 | N83: 30 | O83: =VLOOKUP(M83,Ttable!A$2:B$82,2) -> 44 | P83: 44 | Q83: =gradeD!AL85 -> 2 | R83: =gradeD!AM85 -> 2 | S83: =gradeD!AP85 -> 0 | T83: =gradeD!AR85 -> 0
A84: 18 | B84: 2 | C84: 13 | D84: 12 | E84: 24 | F84: 42 | G84: =COUNTIF(กรอกข้อมูล!A$2:A$401,A84) -> 2 | H84: 2 | I84: 13 | J84: 13 | K84: 12 | L84: 12 | M84: =K84*100/กรอกข้อมูล!AO$7 -> 24 | N84: 24 | O84: =VLOOKUP(M84,Ttable!A$2:B$82,2) -> 42 | P84: 42 | Q84: =gradeD!AL86 -> 1 | R84: =gradeD!AM86 -> 1.5 | S84: =gradeD!AP86 -> 0 | T84: =gradeD!AR86 -> 0
A85: 17 | B85: 3 | C85: 11 | D85: 9.5 | E85: 19 | F85: 41 | G85: =COUNTIF(กรอกข้อมูล!A$2:A$401,A85) -> 3 | H85: 3 | I85: 11 | J85: 11 | K85: 9.5 | L85: 9.5 | M85: =K85*100/กรอกข้อมูล!AO$7 -> 19 | N85: 19 | O85: =VLOOKUP(M85,Ttable!A$2:B$82,2) -> 41 | P85: 41 | Q85: =gradeD!AL87 -> 1 | R85: =gradeD!AM87 -> 1.5 | S85: =gradeD!AP87 -> 0 | T85: =gradeD!AR87 -> 0
A86: 16 | B86: 2 | C86: 8 | D86: 7 | E86: 14 | F86: 39 | G86: =COUNTIF(กรอกข้อมูล!A$2:A$401,A86) -> 2 | H86: 2 | I86: 8 | J86: 8 | K86: 7 | L86: 7 | M86: =K86*100/กรอกข้อมูล!AO$7 -> 14 | N86: 14 | O86: =VLOOKUP(M86,Ttable!A$2:B$82,2) -> 39 | P86: 39 | Q86: =gradeD!AL88 -> 1 | R86: =gradeD!AM88 -> 1 | S86: =gradeD!AP88 -> 0 | T86: =gradeD!AR88 -> 0
A87: 15 | B87: 2 | C87: 6 | D87: 5 | E87: 10 | F87: 37 | G87: =COUNTIF(กรอกข้อมูล!A$2:A$401,A87) -> 2 | H87: 2 | I87: 6 | J87: 6 | K87: 5 | L87: 5 | M87: =K87*100/กรอกข้อมูล!AO$7 -> 10 | N87: 10 | O87: =VLOOKUP(M87,Ttable!A$2:B$82,2) -> 37 | P87: 37 | Q87: =gradeD!AL89 -> 1 | R87: =gradeD!AM89 -> 1 | S87: =gradeD!AP89 -> 0 | T87: =gradeD!AR89 -> 0
A88: 14 | B88: 1 | C88: 4 | D88: 3.5 | E88: 7 | F88: 35 | G88: =COUNTIF(กรอกข้อมูล!A$2:A$401,A88) -> 1 | H88: 1 | I88: 4 | J88: 4 | K88: 3.5 | L88: 3.5 | M88: =K88*100/กรอกข้อมูล!AO$7 -> 7 | N88: 7 | O88: =VLOOKUP(M88,Ttable!A$2:B$82,2) -> 35 | P88: 35 | Q88: =gradeD!AL90 -> 0 | R88: =gradeD!AM90 -> 0 | S88: =gradeD!AP90 -> 0 | T88: =gradeD!AR90 -> 0
A89: 13 | B89: 1 | C89: 3 | D89: 2.5 | E89: 5 | F89: 33 | G89: =COUNTIF(กรอกข้อมูล!A$2:A$401,A89) -> 1 | H89: 1 | I89: 3 | J89: 3 | K89: 2.5 | L89: 2.5 | M89: =K89*100/กรอกข้อมูล!AO$7 -> 5 | N89: 5 | O89: =VLOOKUP(M89,Ttable!A$2:B$82,2) -> 33 | P89: 33 | Q89: =gradeD!AL91 -> 0 | R89: =gradeD!AM91 -> 0 | S89: =gradeD!AP91 -> 0 | T89: =gradeD!AR91 -> 0
A90: 12 | B90: 2 | C90: 2 | D90: 1 | E90: 2 | F90: 29 | G90: =COUNTIF(กรอกข้อมูล!A$2:A$401,A90) -> 2 | H90: 2 | I90: 2 | J90: 2 | K90: 1 | L90: 1 | M90: =K90*100/กรอกข้อมูล!AO$7 -> 2 | N90: 2 | O90: =VLOOKUP(M90,Ttable!A$2:B$82,2) -> 29 | P90: 29 | Q90: =gradeD!AL92 -> 0 | R90: =gradeD!AM92 -> 0 | S90: =gradeD!AP92 -> 0 | T90: =gradeD!AR92 -> 0
A91: 11 | G91: =COUNTIF(กรอกข้อมูล!A$2:A$401,A91) -> 0 | I91: 0 | K91: 0 | M91: =K91*100/กรอกข้อมูล!AO$7 -> 0 | O91: =VLOOKUP(M91,Ttable!A$2:B$82,2) ->  | Q91: =gradeD!AL93 ->  | R91: =gradeD!AM93 ->  | S91: =gradeD!AP93 ->  | T91: =gradeD!AR93 -> 
A92: 10 | G92: =COUNTIF(กรอกข้อมูล!A$2:A$401,A92) -> 0 | I92: 0 | K92: 0 | M92: =K92*100/กรอกข้อมูล!AO$7 -> 0 | O92: =VLOOKUP(M92,Ttable!A$2:B$82,2) ->  | Q92: =gradeD!AL94 ->  | R92: =gradeD!AM94 ->  | S92: =gradeD!AP94 ->  | T92: =gradeD!AR94 ->  | W92: =W1 -> คะแนนที่ได้ | X92: T-score
A93: 9 | G93: =COUNTIF(กรอกข้อมูล!A$2:A$401,A93) -> 0 | I93: =I94+G93 -> 0 | K93: =I94+1/2*G93 -> 0 | M93: =K93*100/กรอกข้อมูล!AO$7 -> 0 | O93: =VLOOKUP(M93,Ttable!A$2:B$82,2) ->  | Q93: =gradeD!AL95 ->  | R93: =gradeD!AM95 ->  | S93: =gradeD!AP95 ->  | T93: =gradeD!AR95 ->  | V93: ค่าคะแนนเฉลี่ย | W93: 21.58 | X93: 19.82
A94: 8 | G94: =COUNTIF(กรอกข้อมูล!A$2:A$401,A94) -> 0 | I94: =I95+G94 -> 0 | K94: 0 | M94: =K94*100/กรอกข้อมูล!AO$7 -> 0 | O94: =VLOOKUP(M94,Ttable!A$2:B$82,2) ->  | Q94: =gradeD!AL96 ->  | R94: =gradeD!AM96 ->  | S94: =gradeD!AP96 ->  | T94: =gradeD!AR96 ->  | V94: ค่า S.D. | W94: 4.853317822 | X94: 12.18486982
A95: 7 | G95: =COUNTIF(กรอกข้อมูล!A$2:A$401,A95) -> 0 | I95: 0 | K95: 0 | M95: =K95*100/กรอกข้อมูล!AO$7 -> 0 | O95: =VLOOKUP(M95,Ttable!A$2:B$82,2) ->  | Q95: =gradeD!AL97 ->  | R95: =gradeD!AM97 ->  | S95: =gradeD!AP97 ->  | T95: =gradeD!AR97 ->  | V95: ค่ามากที่สุด | W95: 31 | X95: 73
A96: 6 | G96: =COUNTIF(กรอกข้อมูล!A$2:A$401,A96) -> 0 | I96: 0 | K96: 0 | M96: =K96*100/กรอกข้อมูล!AO$7 -> 0 | O96: =VLOOKUP(M96,Ttable!A$2:B$82,2) ->  | Q96: =gradeD!AL98 ->  | R96: =gradeD!AM98 ->  | S96: =gradeD!AP98 ->  | T96: =gradeD!AR98 ->  | V96: ค่าน้อยที่สุด | W96: 12 | X96: 29
A97: 5 | G97: =COUNTIF(กรอกข้อมูล!A$2:A$401,A97) -> 0 | I97: 0 | K97: 0 | M97: =K97*100/กรอกข้อมูล!AO$7 -> 0 | O97: =VLOOKUP(M97,Ttable!A$2:B$82,2) ->  | Q97: =gradeD!AL99 ->  | R97: =gradeD!AM99 ->  | S97: =gradeD!AP99 ->  | T97: =gradeD!AR99 -> 
A98: 4 | G98: =COUNTIF(กรอกข้อมูล!A$2:A$401,A98) -> 0 | I98: 0 | K98: 0 | M98: =K98*100/กรอกข้อมูล!AO$7 -> 0 | O98: =VLOOKUP(M98,Ttable!A$2:B$82,2) ->  | Q98: =gradeD!AL100 ->  | R98: =gradeD!AM100 ->  | S98: =gradeD!AP100 ->  | T98: =gradeD!AR100 -> 
A99: 3 | G99: =COUNTIF(กรอกข้อมูล!A$2:A$401,A99) -> 0 | I99: 0 | K99: 0 | M99: =K99*100/กรอกข้อมูล!AO$7 -> 0 | O99: =VLOOKUP(M99,Ttable!A$2:B$82,2) ->  | Q99: =gradeD!AL101 ->  | R99: =gradeD!AM101 ->  | S99: =gradeD!AP101 ->  | T99: =gradeD!AR101 -> 
A100: 2 | G100: =COUNTIF(กรอกข้อมูล!A$2:A$401,A100) -> 0 | I100: 0 | K100: 0 | M100: =K100*100/กรอกข้อมูล!AO$7 -> 0 | O100: =VLOOKUP(M100,Ttable!A$2:B$82,2) ->  | Q100: =gradeD!AL102 ->  | R100: =gradeD!AM102 ->  | S100: =gradeD!AP102 ->  | T100: =gradeD!AR102 -> 
A101: 1 | G101: =COUNTIF(กรอกข้อมูล!A$2:A$401,A101) -> 0 | I101: =I102+G101 -> 0 | K101: =I102+1/2*G101 -> 0 | M101: =K101*100/กรอกข้อมูล!AO$7 -> 0 | O101: =VLOOKUP(M101,Ttable!A$2:B$82,2) ->  | Q101: =gradeD!AL103 ->  | R101: =gradeD!AM103 ->  | S101: =gradeD!AP103 ->  | T101: =gradeD!AR103 -> 
A102: 0 | G102: =COUNTIF(กรอกข้อมูล!A$2:A$401,A102) -> 0 | I102: 0 | K102: =I103+1/2*G102 -> 0

Sheet gradeD
A1: การคำนวณจำนวนเกรดจากวิธีของดักลาส (Douglas Method) สำหรับแผ่นงาน TมาตรฐานT
A3: ตารางเทียบจำนวนเกรด แบบ 5 เกรด | G3: คำนวณแบบ 5 เกรดตามเกณฑ์ | L3: คำนวณแบบ 8 เกรดตามเกณฑ์ | S3: =TมาตรฐานT!G1 -> ความถี่ (f) | T3: =TมาตรฐานT!P1 -> T-score | U3: Grade (5/5) | V3: Grade (5/5) | W3: Grade (8/8) | X3: Grade (8/8) | Y3: Grade (3/5) | Z3: Grade (3/5) | AA3: Grade (3/8) | AB3: Grade (3/8) | AC3: Grade (4/5) | AD3: Grade (4/5) | AE3: Grade (4/8) | AF3: Grade (4/8) | AG3: Grade (2/5) | AH3: Grade (2/5) | AI3: Grade (2/8) | AJ3: Grade (2/8) | AL3: =IF($D$10=5,V3,IF($D$10=4,AD3,IF($D$10=3,Z3,AH3))) -> Grade (5/5) | AM3: =IF($D$10=5,X3,IF($D$10=4,AF3,IF($D$10=3,AB3,AJ3))) -> Grade (8/8) | AN3: =TมาตรฐานT!A1 -> คะแนน | AO3: Gradeคะแนนดิบ (5) | AP3: Gradeคะแนนดิบ (5) | AQ3: Gradeคะแนนดิบ (8) | AR3: Gradeคะแนนดิบ (8)
A4: Min/Max | D4: จำนวนเกรด | E4: ตัวหารพิสัย | H4: ค่าคะแนน | J4: เกรด | M4: ค่าคะแนน | O4: เกรด | S4: =TมาตรฐานT!G2 -> 0 | T4: =TมาตรฐานT!O2 -> 90 | U4: =IF(T4>=gradeD!B$37,gradeD!D$37,IF(T4>=gradeD!B$38,gradeD!D$38,IF(T4>=gradeD!B$39,gradeD!D$39,IF(T4>=gradeD!B$40,gradeD!D$40,gradeD!D$41)))) -> 4 | V4: =IF(S4=0,"",U4) ->  | W4: =IF(T4>=gradeD!E$37,gradeD!G$37,IF(T4>=gradeD!E$38,gradeD!G$38,IF(T4>=gradeD!E$39,gradeD!G$39,IF(T4>=gradeD!E$40,gradeD!G$40,IF(T4>=gradeD!E$41,gradeD!G$41,IF(T4>=gradeD!E$42,gradeD!G$42,IF(T4>=gradeD!E$43,gradeD!G$43,gradeD!G$44))))))) -> 4 | X4: =IF(S4=0,"",W4) ->  | Y4: =IF(T4>=gradeD!I$42,gradeD!K$42,IF(T4>=gradeD!I$43,gradeD!K$43,gradeD!K$44)) -> 3 | Z4: =IF(S4=0,"",Y4) ->  | AA4: =IF(T4>=L$38,N$38,IF(T4>=L$39,N$39,IF(T4>=L$40,N$40,IF(T4>=L$41,N$41,N$42)))) -> 3 | AB4: =IF(S4=0,"",AA4) ->  | AC4: =IF(T4>=B$47,D$47,IF(T4>=B$48,D$48,IF(T4>=B$49,D$49,D$50))) -> 4 | AD4: =IF(S4=0,"",AC4) ->  | AE4: =IF(T4>=B$52,D$52,IF(T4>=B$53,D$53,IF(T4>=B$54,D$54,IF(T4>=B$55,D$55,IF(T4>=B$56,D$56,IF(T4>=B$57,D$57,D$58)))))) -> 4 | AF4: =IF(S4=0,"",AE4) ->  | AG4: =IF(T4>=F$48,G$48,G$49) -> 3 | AH4: =IF(S4=0,"",AG4) ->  | AI4: =IF(T4>=E$52,G$52,IF(T4>=E$53,G$53,G$54)) -> 3 | AJ4: =IF(S4=0,"",AI4) ->  | AL4: =IF($D$10=5,V4,IF($D$10=4,AD4,IF($D$10=3,Z4,AH4))) ->  | AM4: =IF($D$10=5,X4,IF($D$10=4,AF4,IF($D$10=3,AB4,AJ4))) ->  | AN4: =TมาตรฐานT!A2 -> 100 | AO4: =IF(AN4>=G$9,J$9,IF(AN4>=G$8,J$8,IF(AN4>=G$7,J$7,IF(AN4>=G$6,J$6,J$5)))) -> 4 | AP4: =IF(S4=0,"",AO4) ->  | AQ4: =IF(AN4>=L$12,O$12,IF(AN4>=L$11,O$11,IF(AN4>=L$10,O$10,IF(AN4>=L$9,O$9,IF(AN4>=L$8,O$8,IF(AN4>=L$7,O$7,IF(AN4>=L$6,O$6,O$5))))))) -> 4 | AR4: =IF(S4=0,"",AQ4) -> 
A5: 0 | B5: - | C5: 0.49 | D5: 5 | E5: 6 | G5: 0 | H5: - | I5: 49 | J5: 0 | L5: 0 | M5: - | N5: 49 | O5: 0 | S5: =TมาตรฐานT!G3 -> 0 | T5: =TมาตรฐานT!O3 -> 90 | U5: =IF(T5>=gradeD!B$37,gradeD!D$37,IF(T5>=gradeD!B$38,gradeD!D$38,IF(T5>=gradeD!B$39,gradeD!D$39,IF(T5>=gradeD!B$40,gradeD!D$40,gradeD!D$41)))) -> 4 | V5: =IF(S5=0,"",U5) ->  | W5: =IF(T5>=gradeD!E$37,gradeD!G$37,IF(T5>=gradeD!E$38,gradeD!G$38,IF(T5>=gradeD!E$39,gradeD!G$39,IF(T5>=gradeD!E$40,gradeD!G$40,IF(T5>=gradeD!E$41,gradeD!G$41,IF(T5>=gradeD!E$42,gradeD!G$42,IF(T5>=gradeD!E$43,gradeD!G$43,gradeD!G$44))))))) -> 4 | X5: =IF(S5=0,"",W5) ->  | Y5: =IF(T5>=gradeD!I$42,gradeD!K$42,IF(T5>=gradeD!I$43,gradeD!K$43,gradeD!K$44)) -> 3 | Z5: =IF(S5=0,"",Y5) ->  | AA5: 3 | AB5: =IF(S5=0,"",AA5) ->  | AC5: 4 | AD5: =IF(S5=0,"",AC5) ->  | AE5: 4 | AF5: =IF(S5=0,"",AE5) ->  | AG5: 3 | AH5: =IF(S5=0,"",AG5) ->  | AI5: 3 | AJ5: =IF(S5=0,"",AI5) ->  | AN5: =TมาตรฐานT!A3 -> 99 | AO5: =IF(AN5>=G$9,J$9,IF(AN5>=G$8,J$8,IF(AN5>=G$7,J$7,IF(AN5>=G$6,J$6,J$5)))) -> 4 | AP5: =IF(S5=0,"",AO5) ->  | AQ5: =IF(AN5>=L$12,O$12,IF(AN5>=L$11,O$11,IF(AN5>=L$10,O$10,IF(AN5>=L$9,O$9,IF(AN5>=L$8,O$8,IF(AN5>=L$7,O$7,IF(AN5>=L$6,O$6,O$5))))))) -> 4 | AR5: =IF(S5=0,"",AQ5) -> 
A6: 0.5 | B6: - | C6: 0.69 | D6: 4 | E6: 5 | G6: 50 | H6: - | I6: 59 | J6: 1 | L6: 50 | N6: 54 | O6: 1 | S6: =TมาตรฐานT!G4 -> 0 | T6: =TมาตรฐานT!O4 -> 90 | U6: =IF(T6>=gradeD!B$37,gradeD!D$37,IF(T6>=gradeD!B$38,gradeD!D$38,IF(T6>=gradeD!B$39,gradeD!D$39,IF(T6>=gradeD!B$40,gradeD!D$40,gradeD!D$41)))) -> 4 | W6: =IF(T6>=gradeD!E$37,gradeD!G$37,IF(T6>=gradeD!E$38,gradeD!G$38,IF(T6>=gradeD!E$39,gradeD!G$39,IF(T6>=gradeD!E$40,gradeD!G$40,IF(T6>=gradeD!E$41,gradeD!G$41,IF(T6>=gradeD!E$42,gradeD!G$42,IF(T6>=gradeD!E$43,gradeD!G$43,gradeD!G$44))))))) -> 4 | Y6: =IF(T6>=gradeD!I$42,gradeD!K$42,IF(T6>=gradeD!I$43,gradeD!K$43,gradeD!K$44)) -> 3 | AA6: 3 | AC6: 4 | AE6: 4 | AG6: 3 | AI6: 3 | AN6: =TมาตรฐานT!A4 -> 98 | AO6: 4 | AQ6: 4
A7: 0.7 | B7: - | C7: 0.89 | D7: 3 | E7: 4 | G7: 60 | H7: - | I7: 69 | J7: 2 | L7: 55 | M7: - | N7: 59 | O7: 1.5 | S7: =TมาตรฐานT!G5 -> 0 | T7: =TมาตรฐานT!O5 -> 90 | U7: =IF(T7>=gradeD!B$37,gradeD!D$37,IF(T7>=gradeD!B$38,gradeD!D$38,IF(T7>=gradeD!B$39,gradeD!D$39,IF(T7>=gradeD!B$40,gradeD!D$40,gradeD!D$41)))) -> 4 | W7: =IF(T7>=gradeD!E$37,gradeD!G$37,IF(T7>=gradeD!E$38,gradeD!G$38,IF(T7>=gradeD!E$39,gradeD!G$39,IF(T7>=gradeD!E$40,gradeD!G$40,IF(T7>=gradeD!E$41,gradeD!G$41,IF(T7>=gradeD!E$42,gradeD!G$42,IF(T7>=gradeD!E$43,gradeD!G$43,gradeD!G$44))))))) -> 4 | Y7: =IF(T7>=gradeD!I$42,gradeD!K$42,IF(T7>=gradeD!I$43,gradeD!K$43,gradeD!K$44)) -> 3 | AA7: 3 | AC7: 4 | AE7: 4 | AG7: 3 | AI7: 3 | AN7: =TมาตรฐานT!A5 -> 97 | AO7: 4 | AQ7: 4
A8: 0.9 | B8: - | C8: 0.94 | D8: 2 | E8: 3 | G8: 70 | H8: - | I8: 79 | J8: 3 | L8: 60 | N8: 64 | O8: 2 | S8: =TมาตรฐานT!G6 -> 0 | T8: =TมาตรฐานT!O6 -> 90 | U8: =IF(T8>=gradeD!B$37,gradeD!D$37,IF(T8>=gradeD!B$38,gradeD!D$38,IF(T8>=gradeD!B$39,gradeD!D$39,IF(T8>=gradeD!B$40,gradeD!D$40,gradeD!D$41)))) -> 4 | W8: =IF(T8>=gradeD!E$37,gradeD!G$37,IF(T8>=gradeD!E$38,gradeD!G$38,IF(T8>=gradeD!E$39,gradeD!G$39,IF(T8>=gradeD!E$40,gradeD!G$40,IF(T8>=gradeD!E$41,gradeD!G$41,IF(T8>=gradeD!E$42,gradeD!G$42,IF(T8>=gradeD!E$43,gradeD!G$43,gradeD!G$44))))))) -> 4 | Y8: =IF(T8>=gradeD!I$42,gradeD!K$42,IF(T8>=gradeD!I$43,gradeD!K$43,gradeD!K$44)) -> 3 | AA8: 3 | AC8: 4 | AE8: 4 | AG8: 3 | AI8: 3 | AN8: =TมาตรฐานT!A6 -> 96 | AO8: 4 | AQ8: 4
A9: 0.95 | B9: - | C9: 1 | D9: 1 | E9: 2 | G9: 80 | H9: - | I9: 100 | J9: 4 | L9: 65 | M9: - | N9: 69 | O9: 2.5 | S9: =TมาตรฐานT!G7 -> 0 | T9: =TมาตรฐานT!O7 -> 90 | U9: =IF(T9>=gradeD!B$37,gradeD!D$37,IF(T9>=gradeD!B$38,gradeD!D$38,IF(T9>=gradeD!B$39,gradeD!D$39,IF(T9>=gradeD!B$40,gradeD!D$40,gradeD!D$41)))) -> 4 | W9: =IF(T9>=gradeD!E$37,gradeD!G$37,IF(T9>=gradeD!E$38,gradeD!G$38,IF(T9>=gradeD!E$39,gradeD!G$39,IF(T9>=gradeD!E$40,gradeD!G$40,IF(T9>=gradeD!E$41,gradeD!G$41,IF(T9>=gradeD!E$42,gradeD!G$42,IF(T9>=gradeD!E$43,gradeD!G$43,gradeD!G$44))))))) -> 4 | Y9: =IF(T9>=gradeD!I$42,gradeD!K$42,IF(T9>=gradeD!I$43,gradeD!K$43,gradeD!K$44)) -> 3 | AA9: 3 | AC9: 4 | AE9: 4 | AG9: 3 | AI9: 3 | AN9: =TมาตรฐานT!A7 -> 95 | AO9: 4 | AQ9: 4
A10: Min/Max = | B10: =MIN(TมาตรฐานT!P2:P101)/MAX(TมาตรฐานT!P2:P101) -> 0.397260274 | D10: =VLOOKUP(B10,A5:D9,4) -> 5 | E10: =VLOOKUP(B10,A5:E9,5) -> 6 | L10: 70 | N10: 74 | O10: 3 | S10: =TมาตรฐานT!G8 -> 0 | T10: =TมาตรฐานT!O8 -> 90 | U10: =IF(T10>=gradeD!B$37,gradeD!D$37,IF(T10>=gradeD!B$38,gradeD!D$38,IF(T10>=gradeD!B$39,gradeD!D$39,IF(T10>=gradeD!B$40,gradeD!D$40,gradeD!D$41)))) -> 4 | W10: =IF(T10>=gradeD!E$37,gradeD!G$37,IF(T10>=gradeD!E$38,gradeD!G$38,IF(T10>=gradeD!E$39,gradeD!G$39,IF(T10>=gradeD!E$40,gradeD!G$40,IF(T10>=gradeD!E$41,gradeD!G$41,IF(T10>=gradeD!E$42,gradeD!G$42,IF(T10>=gradeD!E$43,gradeD!G$43,gradeD!G$44))))))) -> 4 | Y10: =IF(T10>=gradeD!I$42,gradeD!K$42,IF(T10>=gradeD!I$43,gradeD!K$43,gradeD!K$44)) -> 3 | AA10: 3 | AC10: 4 | AE10: 4 | AG10: 3 | AI10: 3 | AN10: =TมาตรฐานT!A8 -> 94 | AO10: 4 | AQ10: 4
L11: 75 | M11: - | N11: 79 | O11: 3.5 | S11: =TมาตรฐานT!G9 -> 0 | T11: =TมาตรฐานT!O9 -> 90 | U11: =IF(T11>=gradeD!B$37,gradeD!D$37,IF(T11>=gradeD!B$38,gradeD!D$38,IF(T11>=gradeD!B$39,gradeD!D$39,IF(T11>=gradeD!B$40,gradeD!D$40,gradeD!D$41)))) -> 4 | W11: =IF(T11>=gradeD!E$37,gradeD!G$37,IF(T11>=gradeD!E$38,gradeD!G$38,IF(T11>=gradeD!E$39,gradeD!G$39,IF(T11>=gradeD!E$40,gradeD!G$40,IF(T11>=gradeD!E$41,gradeD!G$41,IF(T11>=gradeD!E$42,gradeD!G$42,IF(T11>=gradeD!E$43,gradeD!G$43,gradeD!G$44))))))) -> 4 | Y11: =IF(T11>=gradeD!I$42,gradeD!K$42,IF(T11>=gradeD!I$43,gradeD!K$43,gradeD!K$44)) -> 3 | AA11: 3 | AC11: 4 | AE11: 4 | AG11: 3 | AI11: 3 | AN11: =TมาตรฐานT!A9 -> 93 | AO11: 4 | AQ11: 4
A12: พิสัย = | B12: =MAX(TมาตรฐานT!P2:P101)-MIN(TมาตรฐานT!P2:P101)+1 -> 45 | D12: เกรดเลขคู่/คี่ | L12: 80 | M12: - | N12: 100 | O12: 4 | S12: =TมาตรฐานT!G10 -> 0 | T12: =TมาตรฐานT!O10 -> 90 | U12: =IF(T12>=gradeD!B$37,gradeD!D$37,IF(T12>=gradeD!B$38,gradeD!D$38,IF(T12>=gradeD!B$39,gradeD!D$39,IF(T12>=gradeD!B$40,gradeD!D$40,gradeD!D$41)))) -> 4 | W12: =IF(T12>=gradeD!E$37,gradeD!G$37,IF(T12>=gradeD!E$38,gradeD!G$38,IF(T12>=gradeD!E$39,gradeD!G$39,IF(T12>=gradeD!E$40,gradeD!G$40,IF(T12>=gradeD!E$41,gradeD!G$41,IF(T12>=gradeD!E$42,gradeD!G$42,IF(T12>=gradeD!E$43,gradeD!G$43,gradeD!G$44))))))) -> 4 | Y12: =IF(T12>=gradeD!I$42,gradeD!K$42,IF(T12>=gradeD!I$43,gradeD!K$43,gradeD!K$44)) -> 3 | AA12: 3 | AC12: 4 | AE12: 4 | AG12: 3 | AI12: 3 | AN12: =TมาตรฐานT!A10 -> 92 | AO12: 4 | AQ12: 4
A13: อันตรภาคชั้น (I) = | B13: =B12/E10 -> 7.5 | C13: =CEILING(B13,0.5) -> 7.5 | D13: =ISEVEN(D10) -> FALSE | S13: =TมาตรฐานT!G11 -> 0 | T13: =TมาตรฐานT!O11 -> 90 | U13: =IF(T13>=gradeD!B$37,gradeD!D$37,IF(T13>=gradeD!B$38,gradeD!D$38,IF(T13>=gradeD!B$39,gradeD!D$39,IF(T13>=gradeD!B$40,gradeD!D$40,gradeD!D$41)))) -> 4 | W13: =IF(T13>=gradeD!E$37,gradeD!G$37,IF(T13>=gradeD!E$38,gradeD!G$38,IF(T13>=gradeD!E$39,gradeD!G$39,IF(T13>=gradeD!E$40,gradeD!G$40,IF(T13>=gradeD!E$41,gradeD!G$41,IF(T13>=gradeD!E$42,gradeD!G$42,IF(T13>=gradeD!E$43,gradeD!G$43,gradeD!G$44))))))) -> 4 | Y13: =IF(T13>=gradeD!I$42,gradeD!K$42,IF(T13>=gradeD!I$43,gradeD!K$43,gradeD!K$44)) -> 3 | AA13: 3 | AC13: 4 | AE13: 4 | AG13: 3 | AI13: 3 | AN13: =TมาตรฐานT!A11 -> 91 | AO13: 4 | AQ13: 4
S14: =TมาตรฐานT!G12 -> 0 | T14: =TมาตรฐานT!O12 -> 90 | U14: =IF(T14>=gradeD!B$37,gradeD!D$37,IF(T14>=gradeD!B$38,gradeD!D$38,IF(T14>=gradeD!B$39,gradeD!D$39,IF(T14>=gradeD!B$40,gradeD!D$40,gradeD!D$41)))) -> 4 | W14: =IF(T14>=gradeD!E$37,gradeD!G$37,IF(T14>=gradeD!E$38,gradeD!G$38,IF(T14>=gradeD!E$39,gradeD!G$39,IF(T14>=gradeD!E$40,gradeD!G$40,IF(T14>=gradeD!E$41,gradeD!G$41,IF(T14>=gradeD!E$42,gradeD!G$42,IF(T14>=gradeD!E$43,gradeD!G$43,gradeD!G$44))))))) -> 4 | Y14: =IF(T14>=gradeD!I$42,gradeD!K$42,IF(T14>=gradeD!I$43,gradeD!K$43,gradeD!K$44)) -> 3 | AA14: 3 | AC14: 4 | AE14: 4 | AG14: 3 | AI14: 3 | AN14: =TมาตรฐานT!A12 -> 90 | AO14: 4 | AQ14: 4
A15: ถ้าจำนวนเกรดเป็นเลขคี่ ค่าอันตรภาคชั้น (I) ของเกรดตัวกลางจะมีจำนวน 2 เท่าของอันตรภาคชั้น (I) | S15: =TมาตรฐานT!G13 -> 0 | T15: =TมาตรฐานT!O13 -> 90 | U15: =IF(T15>=gradeD!B$37,gradeD!D$37,IF(T15>=gradeD!B$38,gradeD!D$38,IF(T15>=gradeD!B$39,gradeD!D$39,IF(T15>=gradeD!B$40,gradeD!D$40,gradeD!D$41)))) -> 4 | W15: =IF(T15>=gradeD!E$37,gradeD!G$37,IF(T15>=gradeD!E$38,gradeD!G$38,IF(T15>=gradeD!E$39,gradeD!G$39,IF(T15>=gradeD!E$40,gradeD!G$40,IF(T15>=gradeD!E$41,gradeD!G$41,IF(T15>=gradeD!E$42,gradeD!G$42,IF(T15>=gradeD!E$43,gradeD!G$43,gradeD!G$44))))))) -> 4 | Y15: =IF(T15>=gradeD!I$42,gradeD!K$42,IF(T15>=gradeD!I$43,gradeD!K$43,gradeD!K$44)) -> 3 | AA15: 3 | AC15: 4 | AE15: 4 | AG15: 3 | AI15: 3 | AN15: =TมาตรฐานT!A13 -> 89 | AO15: 4 | AQ15: 4
A16: ท่านสามารถเปลี่ยนตัวเลขเกรดตามความสามารถของกลุ่มผู้เรียนได้ เช่น จำนวนเกรดเป็น 3 เกรด อาจจะเป็น 4 3 2 หรือ 3 2 1 หรือ 2 1 0 เป็นต้น | S16: =TมาตรฐานT!G14 -> 0 | T16: =TมาตรฐานT!O14 -> 90 | U16: =IF(T16>=gradeD!B$37,gradeD!D$37,IF(T16>=gradeD!B$38,gradeD!D$38,IF(T16>=gradeD!B$39,gradeD!D$39,IF(T16>=gradeD!B$40,gradeD!D$40,gradeD!D$41)))) -> 4 | W16: =IF(T16>=gradeD!E$37,gradeD!G$37,IF(T16>=gradeD!E$38,gradeD!G$38,IF(T16>=gradeD!E$39,gradeD!G$39,IF(T16>=gradeD!E$40,gradeD!G$40,IF(T16>=gradeD!E$41,gradeD!G$41,IF(T16>=gradeD!E$42,gradeD!G$42,IF(T16>=gradeD!E$43,gradeD!G$43,gradeD!G$44))))))) -> 4 | Y16: =IF(T16>=gradeD!I$42,gradeD!K$42,IF(T16>=gradeD!I$43,gradeD!K$43,gradeD!K$44)) -> 3 | AA16: 3 | AC16: 4 | AE16: 4 | AG16: 3 | AI16: 3 | AN16: =TมาตรฐานT!A14 -> 88 | AO16: 4 | AQ16: 4
S17: =TมาตรฐานT!G15 -> 0 | T17: =TมาตรฐานT!O15 -> 90 | U17: =IF(T17>=gradeD!B$37,gradeD!D$37,IF(T17>=gradeD!B$38,gradeD!D$38,IF(T17>=gradeD!B$39,gradeD!D$39,IF(T17>=gradeD!B$40,gradeD!D$40,gradeD!D$41)))) -> 4 | W17: =IF(T17>=gradeD!E$37,gradeD!G$37,IF(T17>=gradeD!E$38,gradeD!G$38,IF(T17>=gradeD!E$39,gradeD!G$39,IF(T17>=gradeD!E$40,gradeD!G$40,IF(T17>=gradeD!E$41,gradeD!G$41,IF(T17>=gradeD!E$42,gradeD!G$42,IF(T17>=gradeD!E$43,gradeD!G$43,gradeD!G$44))))))) -> 4 | Y17: =IF(T17>=gradeD!I$42,gradeD!K$42,IF(T17>=gradeD!I$43,gradeD!K$43,gradeD!K$44)) -> 3 | AA17: 3 | AC17: 4 | AE17: 4 | AG17: 3 | AI17: 3 | AN17: =TมาตรฐานT!A15 -> 87 | AO17: 4 | AQ17: 4
B18: เกรด | C18: I (5 เกรด) | D18: I (3 เกรด) | S18: =TมาตรฐานT!G16 -> 0 | T18: =TมาตรฐานT!O16 -> 90 | U18: =IF(T18>=gradeD!B$37,gradeD!D$37,IF(T18>=gradeD!B$38,gradeD!D$38,IF(T18>=gradeD!B$39,gradeD!D$39,IF(T18>=gradeD!B$40,gradeD!D$40,gradeD!D$41)))) -> 4 | W18: =IF(T18>=gradeD!E$37,gradeD!G$37,IF(T18>=gradeD!E$38,gradeD!G$38,IF(T18>=gradeD!E$39,gradeD!G$39,IF(T18>=gradeD!E$40,gradeD!G$40,IF(T18>=gradeD!E$41,gradeD!G$41,IF(T18>=gradeD!E$42,gradeD!G$42,IF(T18>=gradeD!E$43,gradeD!G$43,gradeD!G$44))))))) -> 4 | Y18: =IF(T18>=gradeD!I$42,gradeD!K$42,IF(T18>=gradeD!I$43,gradeD!K$43,gradeD!K$44)) -> 3 | AA18: 3 | AC18: 4 | AE18: 4 | AG18: 3 | AI18: 3 | AN18: =TมาตรฐานT!A16 -> 86 | AO18: 4 | AQ18: 4
A19: ถ้าจำนวน 3 เกรด | B19: 4 | C19: =C$13 -> 7.5 | S19: =TมาตรฐานT!G17 -> 0 | T19: =TมาตรฐานT!O17 -> 90 | U19: =IF(T19>=gradeD!B$37,gradeD!D$37,IF(T19>=gradeD!B$38,gradeD!D$38,IF(T19>=gradeD!B$39,gradeD!D$39,IF(T19>=gradeD!B$40,gradeD!D$40,gradeD!D$41)))) -> 4 | W19: =IF(T19>=gradeD!E$37,gradeD!G$37,IF(T19>=gradeD!E$38,gradeD!G$38,IF(T19>=gradeD!E$39,gradeD!G$39,IF(T19>=gradeD!E$40,gradeD!G$40,IF(T19>=gradeD!E$41,gradeD!G$41,IF(T19>=gradeD!E$42,gradeD!G$42,IF(T19>=gradeD!E$43,gradeD!G$43,gradeD!G$44))))))) -> 4 | Y19: =IF(T19>=gradeD!I$42,gradeD!K$42,IF(T19>=gradeD!I$43,gradeD!K$43,gradeD!K$44)) -> 3 | AA19: 3 | AC19: 4 | AE19: 4 | AG19: 3 | AI19: 3 | AN19: =TมาตรฐานT!A17 -> 85 | AO19: 4 | AQ19: 4
A20: พิมพ์เปลี่ยนที่นี่ => | B20: 3 | C20: =C$13 -> 7.5 | D20: =$C$13 -> 7.5 | S20: =TมาตรฐานT!G18 -> 0 | T20: =TมาตรฐานT!O18 -> 90 | U20: =IF(T20>=gradeD!B$37,gradeD!D$37,IF(T20>=gradeD!B$38,gradeD!D$38,IF(T20>=gradeD!B$39,gradeD!D$39,IF(T20>=gradeD!B$40,gradeD!D$40,gradeD!D$41)))) -> 4 | W20: =IF(T20>=gradeD!E$37,gradeD!G$37,IF(T20>=gradeD!E$38,gradeD!G$38,IF(T20>=gradeD!E$39,gradeD!G$39,IF(T20>=gradeD!E$40,gradeD!G$40,IF(T20>=gradeD!E$41,gradeD!G$41,IF(T20>=gradeD!E$42,gradeD!G$42,IF(T20>=gradeD!E$43,gradeD!G$43,gradeD!G$44))))))) -> 4 | Y20: =IF(T20>=gradeD!I$42,gradeD!K$42,IF(T20>=gradeD!I$43,gradeD!K$43,gradeD!K$44)) -> 3 | AA20: 3 | AC20: 4 | AE20: 4 | AG20: 3 | AI20: 3 | AN20: =TมาตรฐานT!A18 -> 84 | AO20: 4 | AQ20: 4
A21: พิมพ์เปลี่ยนที่นี่ => | B21: 2 | C21: =C$13*2 -> 15 | D21: =$C$13*2 -> 15 | E21: 2 เท่า | S21: =TมาตรฐานT!G19 -> 0 | T21: =TมาตรฐานT!O19 -> 90 | U21: =IF(T21>=gradeD!B$37,gradeD!D$37,IF(T21>=gradeD!B$38,gradeD!D$38,IF(T21>=gradeD!B$39,gradeD!D$39,IF(T21>=gradeD!B$40,gradeD!D$40,gradeD!D$41)))) -> 4 | W21: =IF(T21>=gradeD!E$37,gradeD!G$37,IF(T21>=gradeD!E$38,gradeD!G$38,IF(T21>=gradeD!E$39,gradeD!G$39,IF(T21>=gradeD!E$40,gradeD!G$40,IF(T21>=gradeD!E$41,gradeD!G$41,IF(T21>=gradeD!E$42,gradeD!G$42,IF(T21>=gradeD!E$43,gradeD!G$43,gradeD!G$44))))))) -> 4 | Y21: =IF(T21>=gradeD!I$42,gradeD!K$42,IF(T21>=gradeD!I$43,gradeD!K$43,gradeD!K$44)) -> 3 | AA21: 3 | AC21: 4 | AE21: 4 | AG21: 3 | AI21: 3 | AN21: =TมาตรฐานT!A19 -> 83 | AO21: 4 | AQ21: 4
A22: พิมพ์เปลี่ยนที่นี่ => | B22: 1 | C22: =C$13 -> 7.5 | D22: =$C$13 -> 7.5 | S22: =TมาตรฐานT!G20 -> 0 | T22: =TมาตรฐานT!O20 -> 90 | U22: =IF(T22>=gradeD!B$37,gradeD!D$37,IF(T22>=gradeD!B$38,gradeD!D$38,IF(T22>=gradeD!B$39,gradeD!D$39,IF(T22>=gradeD!B$40,gradeD!D$40,gradeD!D$41)))) -> 4 | W22: =IF(T22>=gradeD!E$37,gradeD!G$37,IF(T22>=gradeD!E$38,gradeD!G$38,IF(T22>=gradeD!E$39,gradeD!G$39,IF(T22>=gradeD!E$40,gradeD!G$40,IF(T22>=gradeD!E$41,gradeD!G$41,IF(T22>=gradeD!E$42,gradeD!G$42,IF(T22>=gradeD!E$43,gradeD!G$43,gradeD!G$44))))))) -> 4 | Y22: =IF(T22>=gradeD!I$42,gradeD!K$42,IF(T22>=gradeD!I$43,gradeD!K$43,gradeD!K$44)) -> 3 | AA22: 3 | AC22: 4 | AE22: 4 | AG22: 3 | AI22: 3 | AN22: =TมาตรฐานT!A20 -> 82 | AO22: 4 | AQ22: 4
B23: 0 | C23: =C$13 -> 7.5 | S23: =TมาตรฐานT!G21 -> 0 | T23: =TมาตรฐานT!O21 -> 90 | U23: =IF(T23>=gradeD!B$37,gradeD!D$37,IF(T23>=gradeD!B$38,gradeD!D$38,IF(T23>=gradeD!B$39,gradeD!D$39,IF(T23>=gradeD!B$40,gradeD!D$40,gradeD!D$41)))) -> 4 | W23: =IF(T23>=gradeD!E$37,gradeD!G$37,IF(T23>=gradeD!E$38,gradeD!G$38,IF(T23>=gradeD!E$39,gradeD!G$39,IF(T23>=gradeD!E$40,gradeD!G$40,IF(T23>=gradeD!E$41,gradeD!G$41,IF(T23>=gradeD!E$42,gradeD!G$42,IF(T23>=gradeD!E$43,gradeD!G$43,gradeD!G$44))))))) -> 4 | Y23: =IF(T23>=gradeD!I$42,gradeD!K$42,IF(T23>=gradeD!I$43,gradeD!K$43,gradeD!K$44)) -> 3 | AA23: 3 | AC23: 4 | AE23: 4 | AG23: 3 | AI23: 3 | AN23: =TมาตรฐานT!A21 -> 81 | AO23: 4 | AQ23: 4
B24: รวม | C24: =SUM(C19:C23) -> 45 | D24: =SUM(D19:D23) -> 30 | S24: =TมาตรฐานT!G22 -> 0 | T24: =TมาตรฐานT!O22 -> 90 | U24: =IF(T24>=gradeD!B$37,gradeD!D$37,IF(T24>=gradeD!B$38,gradeD!D$38,IF(T24>=gradeD!B$39,gradeD!D$39,IF(T24>=gradeD!B$40,gradeD!D$40,gradeD!D$41)))) -> 4 | W24: =IF(T24>=gradeD!E$37,gradeD!G$37,IF(T24>=gradeD!E$38,gradeD!G$38,IF(T24>=gradeD!E$39,gradeD!G$39,IF(T24>=gradeD!E$40,gradeD!G$40,IF(T24>=gradeD!E$41,gradeD!G$41,IF(T24>=gradeD!E$42,gradeD!G$42,IF(T24>=gradeD!E$43,gradeD!G$43,gradeD!G$44))))))) -> 4 | Y24: =IF(T24>=gradeD!I$42,gradeD!K$42,IF(T24>=gradeD!I$43,gradeD!K$43,gradeD!K$44)) -> 3 | AA24: 3 | AC24: 4 | AE24: 4 | AG24: 3 | AI24: 3 | AN24: =TมาตรฐานT!A22 -> 80 | AO24: 4 | AQ24: 4
S25: =TมาตรฐานT!G23 -> 0 | T25: =TมาตรฐานT!O23 -> 90 | U25: =IF(T25>=gradeD!B$37,gradeD!D$37,IF(T25>=gradeD!B$38,gradeD!D$38,IF(T25>=gradeD!B$39,gradeD!D$39,IF(T25>=gradeD!B$40,gradeD!D$40,gradeD!D$41)))) -> 4 | W25: =IF(T25>=gradeD!E$37,gradeD!G$37,IF(T25>=gradeD!E$38,gradeD!G$38,IF(T25>=gradeD!E$39,gradeD!G$39,IF(T25>=gradeD!E$40,gradeD!G$40,IF(T25>=gradeD!E$41,gradeD!G$41,IF(T25>=gradeD!E$42,gradeD!G$42,IF(T25>=gradeD!E$43,gradeD!G$43,gradeD!G$44))))))) -> 4 | Y25: =IF(T25>=gradeD!I$42,gradeD!K$42,IF(T25>=gradeD!I$43,gradeD!K$43,gradeD!K$44)) -> 3 | AA25: 3 | AC25: 4 | AE25: 4 | AG25: 3 | AI25: 3 | AN25: =TมาตรฐานT!A23 -> 79 | AO25: 3 | AQ25: 3.5
A26: ถ้าจำนวนเกรดเป็นเลขคู่ ค่าอันตรภาคชั้น (I) ของเกรดตัวกลางที่มี 2 ค่าจะมีจำนวนอันตรภาคชั้น (I) เป็น 1.5 | S26: =TมาตรฐานT!G24 -> 0 | T26: =TมาตรฐานT!O24 -> 90 | U26: =IF(T26>=gradeD!B$37,gradeD!D$37,IF(T26>=gradeD!B$38,gradeD!D$38,IF(T26>=gradeD!B$39,gradeD!D$39,IF(T26>=gradeD!B$40,gradeD!D$40,gradeD!D$41)))) -> 4 | W26: =IF(T26>=gradeD!E$37,gradeD!G$37,IF(T26>=gradeD!E$38,gradeD!G$38,IF(T26>=gradeD!E$39,gradeD!G$39,IF(T26>=gradeD!E$40,gradeD!G$40,IF(T26>=gradeD!E$41,gradeD!G$41,IF(T26>=gradeD!E$42,gradeD!G$42,IF(T26>=gradeD!E$43,gradeD!G$43,gradeD!G$44))))))) -> 4 | Y26: =IF(T26>=gradeD!I$42,gradeD!K$42,IF(T26>=gradeD!I$43,gradeD!K$43,gradeD!K$44)) -> 3 | AA26: 3 | AC26: 4 | AE26: 4 | AG26: 3 | AI26: 3 | AN26: =TมาตรฐานT!A24 -> 78 | AO26: 3 | AQ26: 3.5
S27: =TมาตรฐานT!G25 -> 0 | T27: =TมาตรฐานT!O25 -> 90 | U27: =IF(T27>=gradeD!B$37,gradeD!D$37,IF(T27>=gradeD!B$38,gradeD!D$38,IF(T27>=gradeD!B$39,gradeD!D$39,IF(T27>=gradeD!B$40,gradeD!D$40,gradeD!D$41)))) -> 4 | W27: =IF(T27>=gradeD!E$37,gradeD!G$37,IF(T27>=gradeD!E$38,gradeD!G$38,IF(T27>=gradeD!E$39,gradeD!G$39,IF(T27>=gradeD!E$40,gradeD!G$40,IF(T27>=gradeD!E$41,gradeD!G$41,IF(T27>=gradeD!E$42,gradeD!G$42,IF(T27>=gradeD!E$43,gradeD!G$43,gradeD!G$44))))))) -> 4 | Y27: =IF(T27>=gradeD!I$42,gradeD!K$42,IF(T27>=gradeD!I$43,gradeD!K$43,gradeD!K$44)) -> 3 | AA27: 3 | AC27: 4 | AE27: 4 | AG27: 3 | AI27: 3 | AN27: =TมาตรฐานT!A25 -> 77 | AO27: 3 | AQ27: 3.5
B28: เกรด | C28: I (4 เกรด) | D28: I (2 เกรด) | S28: =TมาตรฐานT!G26 -> 0 | T28: =TมาตรฐานT!O26 -> 90 | U28: =IF(T28>=gradeD!B$37,gradeD!D$37,IF(T28>=gradeD!B$38,gradeD!D$38,IF(T28>=gradeD!B$39,gradeD!D$39,IF(T28>=gradeD!B$40,gradeD!D$40,gradeD!D$41)))) -> 4 | W28: =IF(T28>=gradeD!E$37,gradeD!G$37,IF(T28>=gradeD!E$38,gradeD!G$38,IF(T28>=gradeD!E$39,gradeD!G$39,IF(T28>=gradeD!E$40,gradeD!G$40,IF(T28>=gradeD!E$41,gradeD!G$41,IF(T28>=gradeD!E$42,gradeD!G$42,IF(T28>=gradeD!E$43,gradeD!G$43,gradeD!G$44))))))) -> 4 | Y28: =IF(T28>=gradeD!I$42,gradeD!K$42,IF(T28>=gradeD!I$43,gradeD!K$43,gradeD!K$44)) -> 3 | AA28: 3 | AC28: 4 | AE28: 4 | AG28: 3 | AI28: 3 | AN28: =TมาตรฐานT!A26 -> 76 | AO28: 3 | AQ28: 3.5
A29: พิมพ์เปลี่ยนที่นี่ => | B29: 4 | C29: =$C$13 -> 7.5 | S29: =TมาตรฐานT!G27 -> 0 | T29: =TมาตรฐานT!O27 -> 90 | U29: =IF(T29>=gradeD!B$37,gradeD!D$37,IF(T29>=gradeD!B$38,gradeD!D$38,IF(T29>=gradeD!B$39,gradeD!D$39,IF(T29>=gradeD!B$40,gradeD!D$40,gradeD!D$41)))) -> 4 | W29: =IF(T29>=gradeD!E$37,gradeD!G$37,IF(T29>=gradeD!E$38,gradeD!G$38,IF(T29>=gradeD!E$39,gradeD!G$39,IF(T29>=gradeD!E$40,gradeD!G$40,IF(T29>=gradeD!E$41,gradeD!G$41,IF(T29>=gradeD!E$42,gradeD!G$42,IF(T29>=gradeD!E$43,gradeD!G$43,gradeD!G$44))))))) -> 4 | Y29: =IF(T29>=gradeD!I$42,gradeD!K$42,IF(T29>=gradeD!I$43,gradeD!K$43,gradeD!K$44)) -> 3 | AA29: 3 | AC29: 4 | AE29: 4 | AG29: 3 | AI29: 3 | AN29: =TมาตรฐานT!A27 -> 75 | AO29: 3 | AQ29: 3.5
A30: พิมพ์เปลี่ยนที่นี่ => | B30: 3 | C30: =$C$13+$C$13/2 -> 11.25 | D30: =$C$13+$C$13/2 -> 11.25 | E30: 1.5 เท่า | S30: =TมาตรฐานT!G28 -> 0 | T30: =TมาตรฐานT!O28 -> 90 | U30: =IF(T30>=gradeD!B$37,gradeD!D$37,IF(T30>=gradeD!B$38,gradeD!D$38,IF(T30>=gradeD!B$39,gradeD!D$39,IF(T30>=gradeD!B$40,gradeD!D$40,gradeD!D$41)))) -> 4 | W30: =IF(T30>=gradeD!E$37,gradeD!G$37,IF(T30>=gradeD!E$38,gradeD!G$38,IF(T30>=gradeD!E$39,gradeD!G$39,IF(T30>=gradeD!E$40,gradeD!G$40,IF(T30>=gradeD!E$41,gradeD!G$41,IF(T30>=gradeD!E$42,gradeD!G$42,IF(T30>=gradeD!E$43,gradeD!G$43,gradeD!G$44))))))) -> 4 | Y30: =IF(T30>=gradeD!I$42,gradeD!K$42,IF(T30>=gradeD!I$43,gradeD!K$43,gradeD!K$44)) -> 3 | AA30: 3 | AC30: 4 | AE30: 4 | AG30: 3 | AI30: 3 | AN30: =TมาตรฐานT!A28 -> 74 | AO30: 3 | AQ30: 3
A31: พิมพ์เปลี่ยนที่นี่ => | B31: 2 | C31: =$C$13+$C$13/2 -> 11.25 | D31: =$C$13+$C$13/2 -> 11.25 | E31: 1.5 เท่า | S31: =TมาตรฐานT!G29 -> 0 | T31: =TมาตรฐานT!O29 -> 90 | U31: =IF(T31>=gradeD!B$37,gradeD!D$37,IF(T31>=gradeD!B$38,gradeD!D$38,IF(T31>=gradeD!B$39,gradeD!D$39,IF(T31>=gradeD!B$40,gradeD!D$40,gradeD!D$41)))) -> 4 | W31: =IF(T31>=gradeD!E$37,gradeD!G$37,IF(T31>=gradeD!E$38,gradeD!G$38,IF(T31>=gradeD!E$39,gradeD!G$39,IF(T31>=gradeD!E$40,gradeD!G$40,IF(T31>=gradeD!E$41,gradeD!G$41,IF(T31>=gradeD!E$42,gradeD!G$42,IF(T31>=gradeD!E$43,gradeD!G$43,gradeD!G$44))))))) -> 4 | Y31: =IF(T31>=gradeD!I$42,gradeD!K$42,IF(T31>=gradeD!I$43,gradeD!K$43,gradeD!K$44)) -> 3 | AA31: 3 | AC31: 4 | AE31: 4 | AG31: 3 | AI31: 3 | AN31: =TมาตรฐานT!A29 -> 73 | AO31: 3 | AQ31: 3
A32: พิมพ์เปลี่ยนที่นี่ => | B32: 1 | C32: =$C$13 -> 7.5 | S32: =TมาตรฐานT!G30 -> 0 | T32: =TมาตรฐานT!O30 -> 90 | U32: =IF(T32>=gradeD!B$37,gradeD!D$37,IF(T32>=gradeD!B$38,gradeD!D$38,IF(T32>=gradeD!B$39,gradeD!D$39,IF(T32>=gradeD!B$40,gradeD!D$40,gradeD!D$41)))) -> 4 | W32: =IF(T32>=gradeD!E$37,gradeD!G$37,IF(T32>=gradeD!E$38,gradeD!G$38,IF(T32>=gradeD!E$39,gradeD!G$39,IF(T32>=gradeD!E$40,gradeD!G$40,IF(T32>=gradeD!E$41,gradeD!G$41,IF(T32>=gradeD!E$42,gradeD!G$42,IF(T32>=gradeD!E$43,gradeD!G$43,gradeD!G$44))))))) -> 4 | Y32: =IF(T32>=gradeD!I$42,gradeD!K$42,IF(T32>=gradeD!I$43,gradeD!K$43,gradeD!K$44)) -> 3 | AA32: 3 | AC32: 4 | AE32: 4 | AG32: 3 | AI32: 3 | AN32: =TมาตรฐานT!A30 -> 72 | AO32: 3 | AQ32: 3
B33: รวม | C33: =SUM(C29:C32) -> 37.5 | D33: =SUM(D29:D32) -> 22.5 | S33: =TมาตรฐานT!G31 -> 0 | T33: =TมาตรฐานT!O31 -> 90 | U33: =IF(T33>=gradeD!B$37,gradeD!D$37,IF(T33>=gradeD!B$38,gradeD!D$38,IF(T33>=gradeD!B$39,gradeD!D$39,IF(T33>=gradeD!B$40,gradeD!D$40,gradeD!D$41)))) -> 4 | W33: =IF(T33>=gradeD!E$37,gradeD!G$37,IF(T33>=gradeD!E$38,gradeD!G$38,IF(T33>=gradeD!E$39,gradeD!G$39,IF(T33>=gradeD!E$40,gradeD!G$40,IF(T33>=gradeD!E$41,gradeD!G$41,IF(T33>=gradeD!E$42,gradeD!G$42,IF(T33>=gradeD!E$43,gradeD!G$43,gradeD!G$44))))))) -> 4 | Y33: =IF(T33>=gradeD!I$42,gradeD!K$42,IF(T33>=gradeD!I$43,gradeD!K$43,gradeD!K$44)) -> 3 | AA33: 3 | AC33: 4 | AE33: 4 | AG33: 3 | AI33: 3 | AN33: =TมาตรฐานT!A31 -> 71 | AO33: 3 | AQ33: 3
A34: ถ้าจำนวนเกรดเป็น 2 เกรด ให้พิมพ์ 2 ค่ากลางเท่านั้น | S34: =TมาตรฐานT!G32 -> 0 | T34: =TมาตรฐานT!O32 -> 90 | U34: =IF(T34>=gradeD!B$37,gradeD!D$37,IF(T34>=gradeD!B$38,gradeD!D$38,IF(T34>=gradeD!B$39,gradeD!D$39,IF(T34>=gradeD!B$40,gradeD!D$40,gradeD!D$41)))) -> 4 | W34: =IF(T34>=gradeD!E$37,gradeD!G$37,IF(T34>=gradeD!E$38,gradeD!G$38,IF(T34>=gradeD!E$39,gradeD!G$39,IF(T34>=gradeD!E$40,gradeD!G$40,IF(T34>=gradeD!E$41,gradeD!G$41,IF(T34>=gradeD!E$42,gradeD!G$42,IF(T34>=gradeD!E$43,gradeD!G$43,gradeD!G$44))))))) -> 4 | Y34: =IF(T34>=gradeD!I$42,gradeD!K$42,IF(T34>=gradeD!I$43,gradeD!K$43,gradeD!K$44)) -> 3 | AA34: 3 | AC34: 4 | AE34: 4 | AG34: 3 | AI34: 3 | AN34: =TมาตรฐานT!A32 -> 70 | AO34: 3 | AQ34: 3
S35: =TมาตรฐานT!G33 -> 0 | T35: =TมาตรฐานT!O33 -> 90 | U35: =IF(T35>=gradeD!B$37,gradeD!D$37,IF(T35>=gradeD!B$38,gradeD!D$38,IF(T35>=gradeD!B$39,gradeD!D$39,IF(T35>=gradeD!B$40,gradeD!D$40,gradeD!D$41)))) -> 4 | W35: =IF(T35>=gradeD!E$37,gradeD!G$37,IF(T35>=gradeD!E$38,gradeD!G$38,IF(T35>=gradeD!E$39,gradeD!G$39,IF(T35>=gradeD!E$40,gradeD!G$40,IF(T35>=gradeD!E$41,gradeD!G$41,IF(T35>=gradeD!E$42,gradeD!G$42,IF(T35>=gradeD!E$43,gradeD!G$43,gradeD!G$44))))))) -> 4 | Y35: =IF(T35>=gradeD!I$42,gradeD!K$42,IF(T35>=gradeD!I$43,gradeD!K$43,gradeD!K$44)) -> 3 | AA35: 3 | AC35: 4 | AE35: 4 | AG35: 3 | AI35: 3 | AN35: =TมาตรฐานT!A33 -> 69 | AO35: 2 | AQ35: 2.5
B36: I (5 เกรด) | C36: I5 | D36: I5 | E36: I3 | F36: I3 | G36: I3 | H36: I5 | I36: I3 | S36: =TมาตรฐานT!G34 -> 0 | T36: =TมาตรฐานT!O34 -> 90 | U36: =IF(T36>=gradeD!B$37,gradeD!D$37,IF(T36>=gradeD!B$38,gradeD!D$38,IF(T36>=gradeD!B$39,gradeD!D$39,IF(T36>=gradeD!B$40,gradeD!D$40,gradeD!D$41)))) -> 4 | W36: =IF(T36>=gradeD!E$37,gradeD!G$37,IF(T36>=gradeD!E$38,gradeD!G$38,IF(T36>=gradeD!E$39,gradeD!G$39,IF(T36>=gradeD!E$40,gradeD!G$40,IF(T36>=gradeD!E$41,gradeD!G$41,IF(T36>=gradeD!E$42,gradeD!G$42,IF(T36>=gradeD!E$43,gradeD!G$43,gradeD!G$44))))))) -> 4 | Y36: =IF(T36>=gradeD!I$42,gradeD!K$42,IF(T36>=gradeD!I$43,gradeD!K$43,gradeD!K$44)) -> 3 | AA36: =IF(T36>=L$38,N$38,IF(T36>=L$39,N$39,IF(T36>=L$40,N$40,IF(T36>=L$41,N$41,N$42)))) -> 3 | AC36: =IF(T36>=B$47,D$47,IF(T36>=B$48,D$48,IF(T36>=B$49,D$49,D$50))) -> 4 | AE36: =IF(T36>=B$52,D$52,IF(T36>=B$53,D$53,IF(T36>=B$54,D$54,IF(T36>=B$55,D$55,IF(T36>=B$56,D$56,IF(T36>=B$57,D$57,D$58)))))) -> 4 | AG36: =IF(T36>=F$48,G$48,G$49) -> 3 | AI36: =IF(T36>=E$52,G$52,IF(T36>=E$53,G$53,G$54)) -> 3 | AN36: =TมาตรฐานT!A34 -> 68 | AO36: 2 | AQ36: 2.5
B37: =B38+C20 -> 66.5 | C37: =B37+C19-1 -> 73 | D37: =B19 -> 4 | E37: =B37 -> 66.5 | F37: =C37 -> 73 | G37: 4 | L37: I (3 เกรด) | S37: =TมาตรฐานT!G35 -> 0 | T37: =TมาตรฐานT!O35 -> 90 | U37: =IF(T37>=gradeD!B$37,gradeD!D$37,IF(T37>=gradeD!B$38,gradeD!D$38,IF(T37>=gradeD!B$39,gradeD!D$39,IF(T37>=gradeD!B$40,gradeD!D$40,gradeD!D$41)))) -> 4 | W37: =IF(T37>=gradeD!E$37,gradeD!G$37,IF(T37>=gradeD!E$38,gradeD!G$38,IF(T37>=gradeD!E$39,gradeD!G$39,IF(T37>=gradeD!E$40,gradeD!G$40,IF(T37>=gradeD!E$41,gradeD!G$41,IF(T37>=gradeD!E$42,gradeD!G$42,IF(T37>=gradeD!E$43,gradeD!G$43,gradeD!G$44))))))) -> 4 | Y37: =IF(T37>=gradeD!I$42,gradeD!K$42,IF(T37>=gradeD!I$43,gradeD!K$43,gradeD!K$44)) -> 3 | AA37: 3 | AC37: 4 | AE37: 4 | AG37: 3 | AI37: 3 | AN37: =TมาตรฐานT!A35 -> 67 | AO37: 2 | AQ37: 2.5
B38: =B39+C21 -> 59 | C38: =B37-1 -> 65.5 | D38: =B20 -> 3 | E38: =E39+H38 -> 62.75 | F38: =C38 -> 65.5 | G38: 3.5 | H38: =C20/2 -> 3.75 | I38: 3.75 | L38: =I42 -> 51.5 | M38: =J42 -> 58 | N38: =B20 -> 3 | S38: =TมาตรฐานT!G36 -> 0 | T38: =TมาตรฐานT!O36 -> 90 | U38: =IF(T38>=gradeD!B$37,gradeD!D$37,IF(T38>=gradeD!B$38,gradeD!D$38,IF(T38>=gradeD!B$39,gradeD!D$39,IF(T38>=gradeD!B$40,gradeD!D$40,gradeD!D$41)))) -> 4 | W38: =IF(T38>=gradeD!E$37,gradeD!G$37,IF(T38>=gradeD!E$38,gradeD!G$38,IF(T38>=gradeD!E$39,gradeD!G$39,IF(T38>=gradeD!E$40,gradeD!G$40,IF(T38>=gradeD!E$41,gradeD!G$41,IF(T38>=gradeD!E$42,gradeD!G$42,IF(T38>=gradeD!E$43,gradeD!G$43,gradeD!G$44))))))) -> 4 | Y38: =IF(T38>=gradeD!I$42,gradeD!K$42,IF(T38>=gradeD!I$43,gradeD!K$43,gradeD!K$44)) -> 3 | AA38: 3 | AC38: 4 | AE38: 4 | AG38: 3 | AI38: 3 | AN38: =TมาตรฐานT!A36 -> 66 | AO38: 2 | AQ38: 2.5
B39: =B40+C22 -> 44 | C39: =B38-1 -> 58 | D39: =B21 -> 2 | E39: =B38 -> 59 | G39: 3 | H39: 7.5 | I39: 7.5 | L39: =L40+I39 -> 44 | M39: =J43 -> 50.5 | N39: =0.5+N40 -> 2.5 | S39: =TมาตรฐานT!G37 -> 0 | T39: =TมาตรฐานT!O37 -> 90 | U39: =IF(T39>=gradeD!B$37,gradeD!D$37,IF(T39>=gradeD!B$38,gradeD!D$38,IF(T39>=gradeD!B$39,gradeD!D$39,IF(T39>=gradeD!B$40,gradeD!D$40,gradeD!D$41)))) -> 4 | W39: =IF(T39>=gradeD!E$37,gradeD!G$37,IF(T39>=gradeD!E$38,gradeD!G$38,IF(T39>=gradeD!E$39,gradeD!G$39,IF(T39>=gradeD!E$40,gradeD!G$40,IF(T39>=gradeD!E$41,gradeD!G$41,IF(T39>=gradeD!E$42,gradeD!G$42,IF(T39>=gradeD!E$43,gradeD!G$43,gradeD!G$44))))))) -> 4 | Y39: =IF(T39>=gradeD!I$42,gradeD!K$42,IF(T39>=gradeD!I$43,gradeD!K$43,gradeD!K$44)) -> 3 | AA39: 3 | AC39: 4 | AE39: 4 | AG39: 3 | AI39: 3 | AN39: =TมาตรฐานT!A37 -> 65 | AO39: 2 | AQ39: 2.5
B40: =B41+C23 -> 36.5 | C40: =B39-1 -> 43 | D40: =B22 -> 1 | E40: =E41+H39 -> 51.5 | F40: =C39 -> 58 | G40: 2.5 | H40: 3.75 | I40: 3.75 | L40: =I43 -> 36.5 | N40: =B21 -> 2 | S40: =TมาตรฐานT!G38 -> 0 | T40: =TมาตรฐานT!O38 -> 90 | U40: =IF(T40>=gradeD!B$37,gradeD!D$37,IF(T40>=gradeD!B$38,gradeD!D$38,IF(T40>=gradeD!B$39,gradeD!D$39,IF(T40>=gradeD!B$40,gradeD!D$40,gradeD!D$41)))) -> 4 | W40: =IF(T40>=gradeD!E$37,gradeD!G$37,IF(T40>=gradeD!E$38,gradeD!G$38,IF(T40>=gradeD!E$39,gradeD!G$39,IF(T40>=gradeD!E$40,gradeD!G$40,IF(T40>=gradeD!E$41,gradeD!G$41,IF(T40>=gradeD!E$42,gradeD!G$42,IF(T40>=gradeD!E$43,gradeD!G$43,gradeD!G$44))))))) -> 4 | Y40: =IF(T40>=gradeD!I$42,gradeD!K$42,IF(T40>=gradeD!I$43,gradeD!K$43,gradeD!K$44)) -> 3 | AA40: 3 | AC40: 4 | AE40: 4 | AG40: 3 | AI40: 3 | AN40: =TมาตรฐานT!A38 -> 64 | AO40: 2 | AQ40: 2
B41: =MIN(TมาตรฐานT!P2:P101) -> 29 | C41: =B40-1 -> 35.5 | D41: =B23 -> 0 | E41: =B39 -> 44 | G41: 2 | I41: I (3 เกรด) | L41: =I40+L42 -> 32.75 | M41: =J44 -> 35.5 | N41: =0.5+N42 -> 1.5 | S41: =TมาตรฐานT!G39 -> 0 | T41: =TมาตรฐานT!O39 -> 90 | U41: =IF(T41>=gradeD!B$37,gradeD!D$37,IF(T41>=gradeD!B$38,gradeD!D$38,IF(T41>=gradeD!B$39,gradeD!D$39,IF(T41>=gradeD!B$40,gradeD!D$40,gradeD!D$41)))) -> 4 | W41: =IF(T41>=gradeD!E$37,gradeD!G$37,IF(T41>=gradeD!E$38,gradeD!G$38,IF(T41>=gradeD!E$39,gradeD!G$39,IF(T41>=gradeD!E$40,gradeD!G$40,IF(T41>=gradeD!E$41,gradeD!G$41,IF(T41>=gradeD!E$42,gradeD!G$42,IF(T41>=gradeD!E$43,gradeD!G$43,gradeD!G$44))))))) -> 4 | Y41: =IF(T41>=gradeD!I$42,gradeD!K$42,IF(T41>=gradeD!I$43,gradeD!K$43,gradeD!K$44)) -> 3 | AA41: 3 | AC41: 4 | AE41: 4 | AG41: 3 | AI41: 3 | AN41: =TมาตรฐานT!A39 -> 63 | AO41: 2 | AQ41: 2
E42: =E43+H40 -> 40.25 | F42: =C40 -> 43 | G42: 1.5 | I42: =I43+D21 -> 51.5 | J42: =I42+D20-1 -> 58 | K42: =B20 -> 3 | L42: =I44 -> 29 | N42: =B22 -> 1 | S42: =TมาตรฐานT!G40 -> 0 | T42: =TมาตรฐานT!O40 -> 90 | U42: =IF(T42>=gradeD!B$37,gradeD!D$37,IF(T42>=gradeD!B$38,gradeD!D$38,IF(T42>=gradeD!B$39,gradeD!D$39,IF(T42>=gradeD!B$40,gradeD!D$40,gradeD!D$41)))) -> 4 | W42: =IF(T42>=gradeD!E$37,gradeD!G$37,IF(T42>=gradeD!E$38,gradeD!G$38,IF(T42>=gradeD!E$39,gradeD!G$39,IF(T42>=gradeD!E$40,gradeD!G$40,IF(T42>=gradeD!E$41,gradeD!G$41,IF(T42>=gradeD!E$42,gradeD!G$42,IF(T42>=gradeD!E$43,gradeD!G$43,gradeD!G$44))))))) -> 4 | Y42: =IF(T42>=gradeD!I$42,gradeD!K$42,IF(T42>=gradeD!I$43,gradeD!K$43,gradeD!K$44)) -> 3 | AA42: 3 | AC42: 4 | AE42: 4 | AG42: 3 | AI42: 3 | AN42: =TมาตรฐานT!A40 -> 62 | AO42: 2 | AQ42: 2
E43: =B40 -> 36.5 | G43: 1 | I43: =I44+D22 -> 36.5 | J43: =I42-1 -> 50.5 | K43: =B21 -> 2 | S43: =TมาตรฐานT!G41 -> 0 | T43: =TมาตรฐานT!O41 -> 90 | U43: =IF(T43>=gradeD!B$37,gradeD!D$37,IF(T43>=gradeD!B$38,gradeD!D$38,IF(T43>=gradeD!B$39,gradeD!D$39,IF(T43>=gradeD!B$40,gradeD!D$40,gradeD!D$41)))) -> 4 | W43: =IF(T43>=gradeD!E$37,gradeD!G$37,IF(T43>=gradeD!E$38,gradeD!G$38,IF(T43>=gradeD!E$39,gradeD!G$39,IF(T43>=gradeD!E$40,gradeD!G$40,IF(T43>=gradeD!E$41,gradeD!G$41,IF(T43>=gradeD!E$42,gradeD!G$42,IF(T43>=gradeD!E$43,gradeD!G$43,gradeD!G$44))))))) -> 4 | Y43: =IF(T43>=gradeD!I$42,gradeD!K$42,IF(T43>=gradeD!I$43,gradeD!K$43,gradeD!K$44)) -> 3 | AA43: 3 | AC43: 4 | AE43: 4 | AG43: 3 | AI43: 3 | AN43: =TมาตรฐานT!A41 -> 61 | AO43: 2 | AQ43: 2
E44: =B41 -> 29 | F44: =C41 -> 35.5 | G44: 0 | I44: =MIN(TมาตรฐานT!P2:P101) -> 29 | J44: =I43-1 -> 35.5 | K44: =B22 -> 1 | S44: =TมาตรฐานT!G42 -> 0 | T44: =TมาตรฐานT!O42 -> 90 | U44: =IF(T44>=gradeD!B$37,gradeD!D$37,IF(T44>=gradeD!B$38,gradeD!D$38,IF(T44>=gradeD!B$39,gradeD!D$39,IF(T44>=gradeD!B$40,gradeD!D$40,gradeD!D$41)))) -> 4 | W44: =IF(T44>=gradeD!E$37,gradeD!G$37,IF(T44>=gradeD!E$38,gradeD!G$38,IF(T44>=gradeD!E$39,gradeD!G$39,IF(T44>=gradeD!E$40,gradeD!G$40,IF(T44>=gradeD!E$41,gradeD!G$41,IF(T44>=gradeD!E$42,gradeD!G$42,IF(T44>=gradeD!E$43,gradeD!G$43,gradeD!G$44))))))) -> 4 | Y44: =IF(T44>=gradeD!I$42,gradeD!K$42,IF(T44>=gradeD!I$43,gradeD!K$43,gradeD!K$44)) -> 3 | AA44: 3 | AC44: 4 | AE44: 4 | AG44: 3 | AI44: 3 | AN44: =TมาตรฐานT!A42 -> 60 | AO44: 2 | AQ44: 2
S45: =TมาตรฐานT!G43 -> 0 | T45: =TมาตรฐานT!O43 -> 90 | U45: =IF(T45>=gradeD!B$37,gradeD!D$37,IF(T45>=gradeD!B$38,gradeD!D$38,IF(T45>=gradeD!B$39,gradeD!D$39,IF(T45>=gradeD!B$40,gradeD!D$40,gradeD!D$41)))) -> 4 | W45: =IF(T45>=gradeD!E$37,gradeD!G$37,IF(T45>=gradeD!E$38,gradeD!G$38,IF(T45>=gradeD!E$39,gradeD!G$39,IF(T45>=gradeD!E$40,gradeD!G$40,IF(T45>=gradeD!E$41,gradeD!G$41,IF(T45>=gradeD!E$42,gradeD!G$42,IF(T45>=gradeD!E$43,gradeD!G$43,gradeD!G$44))))))) -> 4 | Y45: =IF(T45>=gradeD!I$42,gradeD!K$42,IF(T45>=gradeD!I$43,gradeD!K$43,gradeD!K$44)) -> 3 | AA45: 3 | AC45: 4 | AE45: 4 | AG45: 3 | AI45: 3 | AN45: =TมาตรฐานT!A43 -> 59 | AO45: 1 | AQ45: 1.5
B46: I (4 เกรด) | C46: I4 | D46: I4 | E46: I (2 เกรด) | F46: I2 | G46: I2 | I46: เกรดเลขคี่ | J46: เกรดเลขคู่ | S46: =TมาตรฐานT!G44 -> 0 | T46: =TมาตรฐานT!O44 -> 90 | U46: =IF(T46>=gradeD!B$37,gradeD!D$37,IF(T46>=gradeD!B$38,gradeD!D$38,IF(T46>=gradeD!B$39,gradeD!D$39,IF(T46>=gradeD!B$40,gradeD!D$40,gradeD!D$41)))) -> 4 | W46: =IF(T46>=gradeD!E$37,gradeD!G$37,IF(T46>=gradeD!E$38,gradeD!G$38,IF(T46>=gradeD!E$39,gradeD!G$39,IF(T46>=gradeD!E$40,gradeD!G$40,IF(T46>=gradeD!E$41,gradeD!G$41,IF(T46>=gradeD!E$42,gradeD!G$42,IF(T46>=gradeD!E$43,gradeD!G$43,gradeD!G$44))))))) -> 4 | Y46: =IF(T46>=gradeD!I$42,gradeD!K$42,IF(T46>=gradeD!I$43,gradeD!K$43,gradeD!K$44)) -> 3 | AA46: 3 | AC46: 4 | AE46: 4 | AG46: 3 | AI46: 3 | AN46: =TมาตรฐานT!A44 -> 58 | AO46: 1 | AQ46: 1.5
B47: =B48+C30 -> 59 | C47: =B47+C29-1 -> 65.5 | D47: =B29 -> 4 | I47: =AND(D10=5,D13=FALSE) -> TRUE | J47: =AND(D10=4,D13=TRUE) -> FALSE | S47: =TมาตรฐานT!G45 -> 0 | T47: =TมาตรฐานT!O45 -> 90 | U47: =IF(T47>=gradeD!B$37,gradeD!D$37,IF(T47>=gradeD!B$38,gradeD!D$38,IF(T47>=gradeD!B$39,gradeD!D$39,IF(T47>=gradeD!B$40,gradeD!D$40,gradeD!D$41)))) -> 4 | W47: =IF(T47>=gradeD!E$37,gradeD!G$37,IF(T47>=gradeD!E$38,gradeD!G$38,IF(T47>=gradeD!E$39,gradeD!G$39,IF(T47>=gradeD!E$40,gradeD!G$40,IF(T47>=gradeD!E$41,gradeD!G$41,IF(T47>=gradeD!E$42,gradeD!G$42,IF(T47>=gradeD!E$43,gradeD!G$43,gradeD!G$44))))))) -> 4 | Y47: =IF(T47>=gradeD!I$42,gradeD!K$42,IF(T47>=gradeD!I$43,gradeD!K$43,gradeD!K$44)) -> 3 | AA47: 3 | AC47: 4 | AE47: 4 | AG47: 3 | AI47: 3 | AN47: =TมาตรฐานT!A45 -> 57 | AO47: 1 | AQ47: 1.5
B48: =B49+C31 -> 47.75 | C48: =B47-1 -> 58 | D48: =B30 -> 3 | E48: =E49+D31 -> 40.25 | F48: =E48+D30-1 -> 50.5 | G48: =B30 -> 3 | I48: =AND(D10=3,D13=FALSE) -> FALSE | J48: =AND(D10=2,D13=TRUE) -> FALSE | S48: =TมาตรฐานT!G46 -> 0 | T48: =TมาตรฐานT!O46 -> 90 | U48: =IF(T48>=gradeD!B$37,gradeD!D$37,IF(T48>=gradeD!B$38,gradeD!D$38,IF(T48>=gradeD!B$39,gradeD!D$39,IF(T48>=gradeD!B$40,gradeD!D$40,gradeD!D$41)))) -> 4 | W48: =IF(T48>=gradeD!E$37,gradeD!G$37,IF(T48>=gradeD!E$38,gradeD!G$38,IF(T48>=gradeD!E$39,gradeD!G$39,IF(T48>=gradeD!E$40,gradeD!G$40,IF(T48>=gradeD!E$41,gradeD!G$41,IF(T48>=gradeD!E$42,gradeD!G$42,IF(T48>=gradeD!E$43,gradeD!G$43,gradeD!G$44))))))) -> 4 | Y48: =IF(T48>=gradeD!I$42,gradeD!K$42,IF(T48>=gradeD!I$43,gradeD!K$43,gradeD!K$44)) -> 3 | AA48: 3 | AC48: 4 | AE48: 4 | AG48: 3 | AI48: 3 | AN48: =TมาตรฐานT!A46 -> 56 | AO48: 1 | AQ48: 1.5
B49: =B50+C32 -> 36.5 | C49: =B48-1 -> 46.75 | D49: =B31 -> 2 | E49: =MIN(TมาตรฐานT!P2:P101) -> 29 | F49: =E48-1 -> 39.25 | G49: =B31 -> 2 | S49: =TมาตรฐานT!G47 -> 0 | T49: =TมาตรฐานT!O47 -> 90 | U49: =IF(T49>=gradeD!B$37,gradeD!D$37,IF(T49>=gradeD!B$38,gradeD!D$38,IF(T49>=gradeD!B$39,gradeD!D$39,IF(T49>=gradeD!B$40,gradeD!D$40,gradeD!D$41)))) -> 4 | W49: =IF(T49>=gradeD!E$37,gradeD!G$37,IF(T49>=gradeD!E$38,gradeD!G$38,IF(T49>=gradeD!E$39,gradeD!G$39,IF(T49>=gradeD!E$40,gradeD!G$40,IF(T49>=gradeD!E$41,gradeD!G$41,IF(T49>=gradeD!E$42,gradeD!G$42,IF(T49>=gradeD!E$43,gradeD!G$43,gradeD!G$44))))))) -> 4 | Y49: =IF(T49>=gradeD!I$42,gradeD!K$42,IF(T49>=gradeD!I$43,gradeD!K$43,gradeD!K$44)) -> 3 | AA49: 3 | AC49: 4 | AE49: 4 | AG49: 3 | AI49: 3 | AN49: =TมาตรฐานT!A47 -> 55 | AO49: 1 | AQ49: 1.5
B50: =MIN(TมาตรฐานT!P2:P101) -> 29 | C50: =B49-1 -> 35.5 | D50: =B32 -> 1 | S50: =TมาตรฐานT!G48 -> 0 | T50: =TมาตรฐานT!O48 -> 90 | U50: =IF(T50>=gradeD!B$37,gradeD!D$37,IF(T50>=gradeD!B$38,gradeD!D$38,IF(T50>=gradeD!B$39,gradeD!D$39,IF(T50>=gradeD!B$40,gradeD!D$40,gradeD!D$41)))) -> 4 | W50: =IF(T50>=gradeD!E$37,gradeD!G$37,IF(T50>=gradeD!E$38,gradeD!G$38,IF(T50>=gradeD!E$39,gradeD!G$39,IF(T50>=gradeD!E$40,gradeD!G$40,IF(T50>=gradeD!E$41,gradeD!G$41,IF(T50>=gradeD!E$42,gradeD!G$42,IF(T50>=gradeD!E$43,gradeD!G$43,gradeD!G$44))))))) -> 4 | Y50: =IF(T50>=gradeD!I$42,gradeD!K$42,IF(T50>=gradeD!I$43,gradeD!K$43,gradeD!K$44)) -> 3 | AA50: 3 | AC50: 4 | AE50: 4 | AG50: 3 | AI50: 3 | AN50: =TมาตรฐานT!A48 -> 54 | AO50: 1 | AQ50: 1
S51: =TมาตรฐานT!G49 -> 0 | T51: =TมาตรฐานT!O49 -> 90 | U51: =IF(T51>=gradeD!B$37,gradeD!D$37,IF(T51>=gradeD!B$38,gradeD!D$38,IF(T51>=gradeD!B$39,gradeD!D$39,IF(T51>=gradeD!B$40,gradeD!D$40,gradeD!D$41)))) -> 4 | W51: =IF(T51>=gradeD!E$37,gradeD!G$37,IF(T51>=gradeD!E$38,gradeD!G$38,IF(T51>=gradeD!E$39,gradeD!G$39,IF(T51>=gradeD!E$40,gradeD!G$40,IF(T51>=gradeD!E$41,gradeD!G$41,IF(T51>=gradeD!E$42,gradeD!G$42,IF(T51>=gradeD!E$43,gradeD!G$43,gradeD!G$44))))))) -> 4 | Y51: =IF(T51>=gradeD!I$42,gradeD!K$42,IF(T51>=gradeD!I$43,gradeD!K$43,gradeD!K$44)) -> 3 | AA51: 3 | AC51: 4 | AE51: 4 | AG51: 3 | AI51: 3 | AN51: =TมาตรฐานT!A49 -> 53 | AO51: 1 | AQ51: 1
B52: =B47 -> 59 | C52: =C47 -> 65.5 | D52: =B29 -> 4 | E52: =E48 -> 40.25 | F52: 50.5 | G52: 3 | H52: =D30/2 -> 5.625 | S52: =TมาตรฐานT!G50 -> 0 | T52: =TมาตรฐานT!O50 -> 90 | U52: =IF(T52>=gradeD!B$37,gradeD!D$37,IF(T52>=gradeD!B$38,gradeD!D$38,IF(T52>=gradeD!B$39,gradeD!D$39,IF(T52>=gradeD!B$40,gradeD!D$40,gradeD!D$41)))) -> 4 | W52: =IF(T52>=gradeD!E$37,gradeD!G$37,IF(T52>=gradeD!E$38,gradeD!G$38,IF(T52>=gradeD!E$39,gradeD!G$39,IF(T52>=gradeD!E$40,gradeD!G$40,IF(T52>=gradeD!E$41,gradeD!G$41,IF(T52>=gradeD!E$42,gradeD!G$42,IF(T52>=gradeD!E$43,gradeD!G$43,gradeD!G$44))))))) -> 4 | Y52: =IF(T52>=gradeD!I$42,gradeD!K$42,IF(T52>=gradeD!I$43,gradeD!K$43,gradeD!K$44)) -> 3 | AA52: 3 | AC52: 4 | AE52: 4 | AG52: 3 | AI52: 3 | AN52: =TมาตรฐานT!A50 -> 52 | AO52: 1 | AQ52: 1
A53: =C29/2 -> 3.75 | B53: =B54+A54 -> 53.375 | C53: 58 | D53: =D52-0.5 -> 3.5 | E53: =E54+H53 -> 34.625 | F53: =F49 -> 39.25 | G53: =G52-0.5 -> 2.5 | H53: =D31/2 -> 5.625 | S53: =TมาตรฐานT!G51 -> 0 | T53: =TมาตรฐานT!O51 -> 90 | U53: =IF(T53>=gradeD!B$37,gradeD!D$37,IF(T53>=gradeD!B$38,gradeD!D$38,IF(T53>=gradeD!B$39,gradeD!D$39,IF(T53>=gradeD!B$40,gradeD!D$40,gradeD!D$41)))) -> 4 | W53: =IF(T53>=gradeD!E$37,gradeD!G$37,IF(T53>=gradeD!E$38,gradeD!G$38,IF(T53>=gradeD!E$39,gradeD!G$39,IF(T53>=gradeD!E$40,gradeD!G$40,IF(T53>=gradeD!E$41,gradeD!G$41,IF(T53>=gradeD!E$42,gradeD!G$42,IF(T53>=gradeD!E$43,gradeD!G$43,gradeD!G$44))))))) -> 4 | Y53: =IF(T53>=gradeD!I$42,gradeD!K$42,IF(T53>=gradeD!I$43,gradeD!K$43,gradeD!K$44)) -> 3 | AA53: 3 | AC53: 4 | AE53: 4 | AG53: 3 | AI53: 3 | AN53: =TมาตรฐานT!A51 -> 51 | AO53: 1 | AQ53: 1
A54: =C30/2 -> 5.625 | B54: =B48 -> 47.75 | D54: =B30 -> 3 | E54: =E49 -> 29 | G54: =G49 -> 2 | S54: =TมาตรฐานT!G52 -> 0 | T54: =TมาตรฐานT!O52 -> 90 | U54: =IF(T54>=gradeD!B$37,gradeD!D$37,IF(T54>=gradeD!B$38,gradeD!D$38,IF(T54>=gradeD!B$39,gradeD!D$39,IF(T54>=gradeD!B$40,gradeD!D$40,gradeD!D$41)))) -> 4 | W54: =IF(T54>=gradeD!E$37,gradeD!G$37,IF(T54>=gradeD!E$38,gradeD!G$38,IF(T54>=gradeD!E$39,gradeD!G$39,IF(T54>=gradeD!E$40,gradeD!G$40,IF(T54>=gradeD!E$41,gradeD!G$41,IF(T54>=gradeD!E$42,gradeD!G$42,IF(T54>=gradeD!E$43,gradeD!G$43,gradeD!G$44))))))) -> 4 | Y54: =IF(T54>=gradeD!I$42,gradeD!K$42,IF(T54>=gradeD!I$43,gradeD!K$43,gradeD!K$44)) -> 3 | AA54: 3 | AC54: 4 | AE54: 4 | AG54: 3 | AI54: 3 | AN54: =TมาตรฐานT!A52 -> 50 | AO54: 1 | AQ54: 1
A55: =C31/2 -> 5.625 | B55: =B56+A55 -> 42.125 | C55: =C49 -> 46.75 | D55: =D54-0.5 -> 2.5 | S55: =TมาตรฐานT!G53 -> 0 | T55: =TมาตรฐานT!O53 -> 90 | U55: =IF(T55>=gradeD!B$37,gradeD!D$37,IF(T55>=gradeD!B$38,gradeD!D$38,IF(T55>=gradeD!B$39,gradeD!D$39,IF(T55>=gradeD!B$40,gradeD!D$40,gradeD!D$41)))) -> 4 | W55: =IF(T55>=gradeD!E$37,gradeD!G$37,IF(T55>=gradeD!E$38,gradeD!G$38,IF(T55>=gradeD!E$39,gradeD!G$39,IF(T55>=gradeD!E$40,gradeD!G$40,IF(T55>=gradeD!E$41,gradeD!G$41,IF(T55>=gradeD!E$42,gradeD!G$42,IF(T55>=gradeD!E$43,gradeD!G$43,gradeD!G$44))))))) -> 4 | Y55: =IF(T55>=gradeD!I$42,gradeD!K$42,IF(T55>=gradeD!I$43,gradeD!K$43,gradeD!K$44)) -> 3 | AA55: 3 | AC55: 4 | AE55: 4 | AG55: 3 | AI55: 3 | AN55: =TมาตรฐานT!A53 -> 49 | AO55: 0 | AQ55: 0
A56: =C32/2 -> 3.75 | B56: =B49 -> 36.5 | D56: =B31 -> 2 | S56: =TมาตรฐานT!G54 -> 0 | T56: =TมาตรฐานT!O54 -> 90 | U56: =IF(T56>=gradeD!B$37,gradeD!D$37,IF(T56>=gradeD!B$38,gradeD!D$38,IF(T56>=gradeD!B$39,gradeD!D$39,IF(T56>=gradeD!B$40,gradeD!D$40,gradeD!D$41)))) -> 4 | W56: =IF(T56>=gradeD!E$37,gradeD!G$37,IF(T56>=gradeD!E$38,gradeD!G$38,IF(T56>=gradeD!E$39,gradeD!G$39,IF(T56>=gradeD!E$40,gradeD!G$40,IF(T56>=gradeD!E$41,gradeD!G$41,IF(T56>=gradeD!E$42,gradeD!G$42,IF(T56>=gradeD!E$43,gradeD!G$43,gradeD!G$44))))))) -> 4 | Y56: =IF(T56>=gradeD!I$42,gradeD!K$42,IF(T56>=gradeD!I$43,gradeD!K$43,gradeD!K$44)) -> 3 | AA56: 3 | AC56: 4 | AE56: 4 | AG56: 3 | AI56: 3 | AN56: =TมาตรฐานT!A54 -> 48 | AO56: 0 | AQ56: 0
B57: =B58+A56 -> 32.75 | C57: =C50 -> 35.5 | D57: =D56-0.5 -> 1.5 | S57: =TมาตรฐานT!G55 -> 0 | T57: =TมาตรฐานT!O55 -> 90 | U57: =IF(T57>=gradeD!B$37,gradeD!D$37,IF(T57>=gradeD!B$38,gradeD!D$38,IF(T57>=gradeD!B$39,gradeD!D$39,IF(T57>=gradeD!B$40,gradeD!D$40,gradeD!D$41)))) -> 4 | W57: =IF(T57>=gradeD!E$37,gradeD!G$37,IF(T57>=gradeD!E$38,gradeD!G$38,IF(T57>=gradeD!E$39,gradeD!G$39,IF(T57>=gradeD!E$40,gradeD!G$40,IF(T57>=gradeD!E$41,gradeD!G$41,IF(T57>=gradeD!E$42,gradeD!G$42,IF(T57>=gradeD!E$43,gradeD!G$43,gradeD!G$44))))))) -> 4 | Y57: =IF(T57>=gradeD!I$42,gradeD!K$42,IF(T57>=gradeD!I$43,gradeD!K$43,gradeD!K$44)) -> 3 | AA57: 3 | AC57: 4 | AE57: 4 | AG57: 3 | AI57: 3 | AN57: =TมาตรฐานT!A55 -> 47 | AO57: 0 | AQ57: 0
B58: =B50 -> 29 | D58: =B32 -> 1 | S58: =TมาตรฐานT!G56 -> 0 | T58: =TมาตรฐานT!O56 -> 90 | U58: =IF(T58>=gradeD!B$37,gradeD!D$37,IF(T58>=gradeD!B$38,gradeD!D$38,IF(T58>=gradeD!B$39,gradeD!D$39,IF(T58>=gradeD!B$40,gradeD!D$40,gradeD!D$41)))) -> 4 | W58: =IF(T58>=gradeD!E$37,gradeD!G$37,IF(T58>=gradeD!E$38,gradeD!G$38,IF(T58>=gradeD!E$39,gradeD!G$39,IF(T58>=gradeD!E$40,gradeD!G$40,IF(T58>=gradeD!E$41,gradeD!G$41,IF(T58>=gradeD!E$42,gradeD!G$42,IF(T58>=gradeD!E$43,gradeD!G$43,gradeD!G$44))))))) -> 4 | Y58: =IF(T58>=gradeD!I$42,gradeD!K$42,IF(T58>=gradeD!I$43,gradeD!K$43,gradeD!K$44)) -> 3 | AA58: 3 | AC58: 4 | AE58: 4 | AG58: 3 | AI58: 3 | AN58: =TมาตรฐานT!A56 -> 46 | AO58: 0 | AQ58: 0
S59: =TมาตรฐานT!G57 -> 0 | T59: =TมาตรฐานT!O57 -> 90 | U59: =IF(T59>=gradeD!B$37,gradeD!D$37,IF(T59>=gradeD!B$38,gradeD!D$38,IF(T59>=gradeD!B$39,gradeD!D$39,IF(T59>=gradeD!B$40,gradeD!D$40,gradeD!D$41)))) -> 4 | W59: =IF(T59>=gradeD!E$37,gradeD!G$37,IF(T59>=gradeD!E$38,gradeD!G$38,IF(T59>=gradeD!E$39,gradeD!G$39,IF(T59>=gradeD!E$40,gradeD!G$40,IF(T59>=gradeD!E$41,gradeD!G$41,IF(T59>=gradeD!E$42,gradeD!G$42,IF(T59>=gradeD!E$43,gradeD!G$43,gradeD!G$44))))))) -> 4 | Y59: =IF(T59>=gradeD!I$42,gradeD!K$42,IF(T59>=gradeD!I$43,gradeD!K$43,gradeD!K$44)) -> 3 | AA59: 3 | AC59: 4 | AE59: 4 | AG59: 3 | AI59: 3 | AN59: =TมาตรฐานT!A57 -> 45 | AO59: 0 | AQ59: 0
S60: =TมาตรฐานT!G58 -> 0 | T60: =TมาตรฐานT!O58 -> 90 | U60: =IF(T60>=gradeD!B$37,gradeD!D$37,IF(T60>=gradeD!B$38,gradeD!D$38,IF(T60>=gradeD!B$39,gradeD!D$39,IF(T60>=gradeD!B$40,gradeD!D$40,gradeD!D$41)))) -> 4 | W60: =IF(T60>=gradeD!E$37,gradeD!G$37,IF(T60>=gradeD!E$38,gradeD!G$38,IF(T60>=gradeD!E$39,gradeD!G$39,IF(T60>=gradeD!E$40,gradeD!G$40,IF(T60>=gradeD!E$41,gradeD!G$41,IF(T60>=gradeD!E$42,gradeD!G$42,IF(T60>=gradeD!E$43,gradeD!G$43,gradeD!G$44))))))) -> 4 | Y60: =IF(T60>=gradeD!I$42,gradeD!K$42,IF(T60>=gradeD!I$43,gradeD!K$43,gradeD!K$44)) -> 3 | AA60: 3 | AC60: 4 | AE60: 4 | AG60: 3 | AI60: 3 | AN60: =TมาตรฐานT!A58 -> 44 | AO60: 0 | AQ60: 0
S61: =TมาตรฐานT!G59 -> 0 | T61: =TมาตรฐานT!O59 -> 90 | U61: =IF(T61>=gradeD!B$37,gradeD!D$37,IF(T61>=gradeD!B$38,gradeD!D$38,IF(T61>=gradeD!B$39,gradeD!D$39,IF(T61>=gradeD!B$40,gradeD!D$40,gradeD!D$41)))) -> 4 | W61: =IF(T61>=gradeD!E$37,gradeD!G$37,IF(T61>=gradeD!E$38,gradeD!G$38,IF(T61>=gradeD!E$39,gradeD!G$39,IF(T61>=gradeD!E$40,gradeD!G$40,IF(T61>=gradeD!E$41,gradeD!G$41,IF(T61>=gradeD!E$42,gradeD!G$42,IF(T61>=gradeD!E$43,gradeD!G$43,gradeD!G$44))))))) -> 4 | Y61: =IF(T61>=gradeD!I$42,gradeD!K$42,IF(T61>=gradeD!I$43,gradeD!K$43,gradeD!K$44)) -> 3 | AA61: 3 | AC61: 4 | AE61: 4 | AG61: 3 | AI61: 3 | AN61: =TมาตรฐานT!A59 -> 43 | AO61: 0 | AQ61: 0
S62: =TมาตรฐานT!G60 -> 0 | T62: =TมาตรฐานT!O60 -> 90 | U62: =IF(T62>=gradeD!B$37,gradeD!D$37,IF(T62>=gradeD!B$38,gradeD!D$38,IF(T62>=gradeD!B$39,gradeD!D$39,IF(T62>=gradeD!B$40,gradeD!D$40,gradeD!D$41)))) -> 4 | W62: =IF(T62>=gradeD!E$37,gradeD!G$37,IF(T62>=gradeD!E$38,gradeD!G$38,IF(T62>=gradeD!E$39,gradeD!G$39,IF(T62>=gradeD!E$40,gradeD!G$40,IF(T62>=gradeD!E$41,gradeD!G$41,IF(T62>=gradeD!E$42,gradeD!G$42,IF(T62>=gradeD!E$43,gradeD!G$43,gradeD!G$44))))))) -> 4 | Y62: =IF(T62>=gradeD!I$42,gradeD!K$42,IF(T62>=gradeD!I$43,gradeD!K$43,gradeD!K$44)) -> 3 | AA62: 3 | AC62: 4 | AE62: 4 | AG62: 3 | AI62: 3 | AN62: =TมาตรฐานT!A60 -> 42 | AO62: 0 | AQ62: 0
S63: =TมาตรฐานT!G61 -> 0 | T63: =TมาตรฐานT!O61 -> 90 | U63: =IF(T63>=gradeD!B$37,gradeD!D$37,IF(T63>=gradeD!B$38,gradeD!D$38,IF(T63>=gradeD!B$39,gradeD!D$39,IF(T63>=gradeD!B$40,gradeD!D$40,gradeD!D$41)))) -> 4 | W63: =IF(T63>=gradeD!E$37,gradeD!G$37,IF(T63>=gradeD!E$38,gradeD!G$38,IF(T63>=gradeD!E$39,gradeD!G$39,IF(T63>=gradeD!E$40,gradeD!G$40,IF(T63>=gradeD!E$41,gradeD!G$41,IF(T63>=gradeD!E$42,gradeD!G$42,IF(T63>=gradeD!E$43,gradeD!G$43,gradeD!G$44))))))) -> 4 | Y63: =IF(T63>=gradeD!I$42,gradeD!K$42,IF(T63>=gradeD!I$43,gradeD!K$43,gradeD!K$44)) -> 3 | AA63: 3 | AC63: 4 | AE63: 4 | AG63: 3 | AI63: 3 | AN63: =TมาตรฐานT!A61 -> 41 | AO63: 0 | AQ63: 0
S64: =TมาตรฐานT!G62 -> 0 | T64: =TมาตรฐานT!O62 -> 90 | U64: =IF(T64>=gradeD!B$37,gradeD!D$37,IF(T64>=gradeD!B$38,gradeD!D$38,IF(T64>=gradeD!B$39,gradeD!D$39,IF(T64>=gradeD!B$40,gradeD!D$40,gradeD!D$41)))) -> 4 | W64: =IF(T64>=gradeD!E$37,gradeD!G$37,IF(T64>=gradeD!E$38,gradeD!G$38,IF(T64>=gradeD!E$39,gradeD!G$39,IF(T64>=gradeD!E$40,gradeD!G$40,IF(T64>=gradeD!E$41,gradeD!G$41,IF(T64>=gradeD!E$42,gradeD!G$42,IF(T64>=gradeD!E$43,gradeD!G$43,gradeD!G$44))))))) -> 4 | Y64: =IF(T64>=gradeD!I$42,gradeD!K$42,IF(T64>=gradeD!I$43,gradeD!K$43,gradeD!K$44)) -> 3 | AA64: 3 | AC64: 4 | AE64: 4 | AG64: 3 | AI64: 3 | AN64: =TมาตรฐานT!A62 -> 40 | AO64: 0 | AQ64: 0
S65: =TมาตรฐานT!G63 -> 0 | T65: =TมาตรฐานT!O63 -> 90 | U65: =IF(T65>=gradeD!B$37,gradeD!D$37,IF(T65>=gradeD!B$38,gradeD!D$38,IF(T65>=gradeD!B$39,gradeD!D$39,IF(T65>=gradeD!B$40,gradeD!D$40,gradeD!D$41)))) -> 4 | W65: =IF(T65>=gradeD!E$37,gradeD!G$37,IF(T65>=gradeD!E$38,gradeD!G$38,IF(T65>=gradeD!E$39,gradeD!G$39,IF(T65>=gradeD!E$40,gradeD!G$40,IF(T65>=gradeD!E$41,gradeD!G$41,IF(T65>=gradeD!E$42,gradeD!G$42,IF(T65>=gradeD!E$43,gradeD!G$43,gradeD!G$44))))))) -> 4 | Y65: =IF(T65>=gradeD!I$42,gradeD!K$42,IF(T65>=gradeD!I$43,gradeD!K$43,gradeD!K$44)) -> 3 | AA65: 3 | AC65: 4 | AE65: 4 | AG65: 3 | AI65: 3 | AN65: =TมาตรฐานT!A63 -> 39 | AO65: 0 | AQ65: 0
S66: =TมาตรฐานT!G64 -> 0 | T66: =TมาตรฐานT!O64 -> 90 | U66: =IF(T66>=gradeD!B$37,gradeD!D$37,IF(T66>=gradeD!B$38,gradeD!D$38,IF(T66>=gradeD!B$39,gradeD!D$39,IF(T66>=gradeD!B$40,gradeD!D$40,gradeD!D$41)))) -> 4 | W66: =IF(T66>=gradeD!E$37,gradeD!G$37,IF(T66>=gradeD!E$38,gradeD!G$38,IF(T66>=gradeD!E$39,gradeD!G$39,IF(T66>=gradeD!E$40,gradeD!G$40,IF(T66>=gradeD!E$41,gradeD!G$41,IF(T66>=gradeD!E$42,gradeD!G$42,IF(T66>=gradeD!E$43,gradeD!G$43,gradeD!G$44))))))) -> 4 | Y66: =IF(T66>=gradeD!I$42,gradeD!K$42,IF(T66>=gradeD!I$43,gradeD!K$43,gradeD!K$44)) -> 3 | AA66: 3 | AC66: 4 | AE66: 4 | AG66: 3 | AI66: 3 | AN66: =TมาตรฐานT!A64 -> 38 | AO66: 0 | AQ66: 0
S67: =TมาตรฐานT!G65 -> 0 | T67: =TมาตรฐานT!O65 -> 90 | U67: =IF(T67>=gradeD!B$37,gradeD!D$37,IF(T67>=gradeD!B$38,gradeD!D$38,IF(T67>=gradeD!B$39,gradeD!D$39,IF(T67>=gradeD!B$40,gradeD!D$40,gradeD!D$41)))) -> 4 | W67: =IF(T67>=gradeD!E$37,gradeD!G$37,IF(T67>=gradeD!E$38,gradeD!G$38,IF(T67>=gradeD!E$39,gradeD!G$39,IF(T67>=gradeD!E$40,gradeD!G$40,IF(T67>=gradeD!E$41,gradeD!G$41,IF(T67>=gradeD!E$42,gradeD!G$42,IF(T67>=gradeD!E$43,gradeD!G$43,gradeD!G$44))))))) -> 4 | Y67: =IF(T67>=gradeD!I$42,gradeD!K$42,IF(T67>=gradeD!I$43,gradeD!K$43,gradeD!K$44)) -> 3 | AA67: 3 | AC67: 4 | AE67: 4 | AG67: 3 | AI67: 3 | AN67: =TมาตรฐานT!A65 -> 37 | AO67: 0 | AQ67: 0
